{"text_format":"1","workbook":"xlsx","n_sheets":7,"sheets":["Fiche Récap","Effectifs","31-12-18","31-12-19","BD","CALC MOY","Feuil2"],"not_rendered":{"charts":0,"images":0,"macros":1,"external_links":0,"defined_names":29,"comments":0,"pivot_tables":0},"unopened":[],"bounds":{"document_bytes":16777216,"sheet_cells":100000,"rows_first":2000,"rows_last":500,"rows_between":2000,"halvings":0,"cell_chars":16384,"cell_head_chars":4096},"cells_cut":0,"cells_raw":0,"read":"whole","date_system":"1900"}

{"sheet":"Fiche Récap","index":0,"n_rows":303,"n_cols":7,"rows_kept":303,"cut":false,"hidden":false,"merged":[]}
[]
[null,null,"Fiche RECAP INDIVIDUELLE",null,null,"Nom & Prénom","Matricule "]
[null,null,null,null,null,"ABDENEBAOUI YASSINE",716230]
[null,null,"Matricule",{"$f":"VLOOKUP(D5,F:G,2,FALSE)","v":713029},null,"ABGUAOU RACHID",713029]
[null,null,"Nom et prénom","ABGUAOU RACHID","←","ABOUKADRI SARA",717946]
[null,null,"Fonction à date",{"$f":"VLOOKUP(D4,Effectifs!A:I,9,FALSE)","v":"Opérateur d'exploitation"},null,"ABOULOUMOUM SAID",706067]
[null,null,null,null,null,"AIFOUTE AHMED",713554]
[null,null,null,null,null,"AIT ABDERRAHMANE MOUNIR",707529]
[null,null,null,null,null,"AIT AROUSS HAFID",707063]
[null,null,null,null,null,"AIT MAHDI MALIKA",804555]
[null,null,null,null,null,"AIT SAID ABDERRAHMAN",401687]
[null,null,null,null,null,"AJAFAR ZOUHEIR",710700]
[null,null,null,null,null,"AKHSSASSI SOUFIANE",717263]
[null,null,null,null,null,"AKRAB MAROUANE",706102]
[null,null,null,null,null,"ALLAMI SOUHAIB",707254]
[null,null,null,null,null,"ALOUI MARIEM",713741]
[null,null,null,null,null,"AMANE HICHAM",711417]
[null,null,null,null,null,"AMINE OMAYMA",716255]
[null,null,null,null,null,"AMMOR ZOUHEIR",37926]
[null,null,null,null,null,"AMRANI ELGHALI",707182]
[null,null,null,null,null,"AMRANI JOUTEY MERYEM",715366]
[null,null,null,null,null,"AMRAOUI LAHCEN",710348]
[null,null,null,null,null,"AMZIL HANANE",713122]
[null,null,null,null,null,"ARAFA YOUNES",710767]
[null,null,null,null,null,"ARHOUNI ADIL",707628]
[null,null,null,null,null,"ARIF JALAL",716426]
[null,null,null,null,null,"AZIZ KENZA",402495]
[null,null,null,null,null,"AZMI ADIL",770164]
[null,null,null,null,null,"BA KARIM",717910]
[null,null,null,null,null,"BAHI MOSTAFA",716934]
[null,null,null,null,null,"BAHYA ILYASS",716393]
[null,null,null,null,null,"BAISSI SOUFIANE",717444]
[null,null,null,null,null,"BALLOUCH ZAINAB",714096]
[null,null,null,null,null,"BASSOU YOUSSEF",718041]
[null,null,null,null,null,"BEKKALI ZAKARIAE",715806]
[null,null,null,null,null,"BELFKIH BRAHIM",718080]
[null,null,null,null,null,"BEN KHADAJ BRAHIM",714629]
[null,null,null,null,null,"BEN MEHREZ NADIA",715534]
[null,null,null,null,null,"BEN WAHMANE RITA",715488]
[null,null,null,null,null,"BENHMAMMOUCH MOHAMMED",709397]
[null,null,null,null,null,"BENIHYA MOHAMED AMINE",707591]
[null,null,null,null,null,"BENJELLOUN MOHAMED",707061]
[null,null,null,null,null,"BENJLIL BOUCHAIB",707807]
[null,null,null,null,null,"BENMAAZOUZ ALLAL",707911]
[null,null,null,null,null,"BENNANI MANAR",710069]
[null,null,null,null,null,"BENRICHE KHALID",400367]
[null,null,null,null,null,"BENTAIEB EL MEHDI",402600]
[null,null,null,null,null,"BENTOUILA EL MEHDI",711841]
[null,null,null,null,null,"BENZAKOUR AHMED",717800]
[null,null,null,null,null,"BERKAOUI ABDELLAH",715700]
[null,null,null,null,null,"BERRABHA MARYAM",717463]
[null,null,null,null,null,"BERRADA ASMAE",715305]
[null,null,null,null,null,"BERRADA KENZA",715063]
[null,null,null,null,null,"BERRADA MOHAMMED",711197]
[null,null,null,null,null,"BERRISSOUL ISMAIL",709327]
[null,null,null,null,null,"BETTACHE FAHD",709658]
[null,null,null,null,null,"BICHRA MOHAMED NAWFAL",711946]
[null,null,null,null,null,"BOUALAM CHAKIB",453123]
[null,null,null,null,null,"BOUALAM OUMAIMA",715640]
[null,null,null,null,null,"BOUAMAINE FOUAD",703788]
[null,null,null,null,null,"BOUGHALEB TAHAR",716110]
[null,null,null,null,null,"BOUHILA SAFAE",716773]
[null,null,null,null,null,"BOUIHOUCHAMA NAIM",704564]
[null,null,null,null,null,"BOUIRDI MOHAMED REDA",717738]
[null,null,null,null,null,"BOUKHOU MOHAMED",715880]
[null,null,null,null,null,"BOUMLIC YOUNES",712068]
[null,null,null,null,null,"BOUSBAA HOUDA",714906]
[null,null,null,null,null,"BOUSETTA MOHAMED",717266]
[null,null,null,null,null,"BOUSSAID ISSMAIL",451236]
[null,null,null,null,null,"BOUZKRAOUI EL HOUSSAINE",709913]
[null,null,null,null,null,"BUIZ ABDELILAH",714431]
[null,null,null,null,null,"CHAHID AMINE",712070]
[null,null,null,null,null,"CHAIR NADIA",707808]
[null,null,null,null,null,"CHAJAR ILHAM",717821]
[null,null,null,null,null,"CHAMLAL MOHAMED",715588]
[null,null,null,null,null,"CHANTIT RIDA",707921]
[null,null,null,null,null,"CHENTOUF SABAH",402713]
[null,null,null,null,null,"CHERIF LALLIA",717144]
[null,null,null,null,null,"CHERKAOUI ABDERRAZZAK",716403]
[null,null,null,null,null,"CHOUHBI TAHA YASSINE",716466]
[null,null,null,null,null,"CHRAIBI ALAE",716113]
[null,null,null,null,null,"CHTIOUI AHMED",716385]
[null,null,null,null,null,"COLY NICOLAS CHRISTIAN",717807]
[null,null,null,null,null,"DAHMAN RIDA",712497]
[null,null,null,null,null,"DAHRI NADIA",402223]
[null,null,null,null,null,"DAKY MOHAMED OTHMANE",704275]
[null,null,null,null,null,"DAOUJI YASSINE",716885]
[null,null,null,null,null,"DARDAR KAOUTAR",713677]
[null,null,null,null,null,"DCHIECHE ZINEB",714535]
[null,null,null,null,null,"DEGAI HAFSA",716691]
[null,null,null,null,null,"DIALLO AHMADOU MATAR",717911]
[null,null,null,null,null,"DIALLO AMADOU MOCTAR",717818]
[null,null,null,null,null,"DIOUCH ABDERRAZAK",716272]
[null,null,null,null,null,"DIOUCH NOURA",23430]
[null,null,null,null,null,"DKHISSI ILHAM",714835]
[null,null,null,null,null,"DLIMI ZAKARIAE",710208]
[null,null,null,null,null,"DOULFAKAR MERYEM",709163]
[null,null,null,null,null,"EDDAKAKI AYOUB",707715]
[null,null,null,null,null,"EL AISSAOUI REDOUANE",704591]
[null,null,null,null,null,"EL BACHIRI ABDENNACER",705790]
[null,null,null,null,null,"EL BAHTOURI OTHMANE",718004]
[null,null,null,null,null,"EL BOUATI FATIMA ZAHRA",709610]
[null,null,null,null,null,"EL BOUDLALI YOUNES",709608]
[null,null,null,null,null,"EL COURT SAID",770144]
[null,null,null,null,null,"EL FATMI YASSINE",715187]
[null,null,null,null,null,"EL GHAOUAT MOHAMMED",717133]
[null,null,null,null,null,"EL GHAZOUANI YASSINE",717111]
[null,null,null,null,null,"EL GOUR AZEDDINE",401701]
[null,null,null,null,null,"EL GUASSEM HAMID",703662]
[null,null,null,null,null,"EL HALLAOUI KENZA",715479]
[null,null,null,null,null,"EL HAMIDI-EL KETTANI SOURAYA",711034]
[null,null,null,null,null,"EL HAMRITI AMINE",715769]
[null,null,null,null,null,"EL HANAFI-SEBTI AHMED",715423]
[null,null,null,null,null,"EL HANNIOUI MOHAMED",706229]
[null,null,null,null,null,"EL HAOUATE KARIM",707062]
[null,null,null,null,null,"EL HATA YASSINE",718039]
[null,null,null,null,null,"EL HILALI RACHID",716422]
[null,null,null,null,null,"EL IDRISSI ABDELMOUMEN",715266]
[null,null,null,null,null,"EL JALLAB TARIK",707013]
[null,null,null,null,null,"EL JAOUHARI GHALIA",709639]
[null,null,null,null,null,"EL JILANI OMAR",715440]
[null,null,null,null,null,"EL KADDOURI MOHAMED REDA",715386]
[null,null,null,null,null,"EL KALAI ZAKARIA",715194]
[null,null,null,null,null,"EL MAATAOUI ABDEL KODDOUS",717264]
[null,null,null,null,null,"EL MERRAJI OUIAM",715191]
[null,null,null,null,null,"EL MIR ABIR",717627]
[null,null,null,null,null,"EL MOUAFFEQ MOHAMED",707256]
[null,null,null,null,null,"EL MOUQTASIDI ASMAA",714919]
[null,null,null,null,null,"EL MOUTAOUAKKIL AICHA",712799]
[null,null,null,null,null,"EL YASSEM HOUDA",716172]
[null,null,null,null,null,"ELAOUNI MAHFOUD",716831]
[null,null,null,null,null,"ELGOUMIRI LOUBNA",709572]
[null,null,null,null,null,"ELLOUIZ KHALID",46107]
[null,null,null,null,null,"ERRIFAI MOHAMED ADIB",717825]
[null,null,null,null,null,"ESSABER AMINE",451212]
[null,null,null,null,null,"ESSADEQ HAFSSA",717934]
[null,null,null,null,null,"ESSOULHI KHADIJA",709607]
[null,null,null,null,null,"ET-TALEB MEHDI",712984]
[null,null,null,null,null,"ETTIRMIDI OUAFA",716479]
[null,null,null,null,null,"FADLEDDINE HAMZA",713692]
[null,null,null,null,null,"FAHLI YOUSSEF",716793]
[null,null,null,null,null,"FAHMANI MOHAMED EL MAHDI",710699]
[null,null,null,null,null,"FAJRINE OMAR",400686]
[null,null,null,null,null,"FAOUZI MOSTAPHA",707296]
[null,null,null,null,null,"FARTAS BOUCHAIB",400697]
[null,null,null,null,null,"FATHALLAH REDA",716611]
[null,null,null,null,null,"FAYESSAL EL KETTANI EL ABID",709009]
[null,null,null,null,null,"FEKAK KHALID",704142]
[null,null,null,null,null,"FERRAA ISMAIL",716601]
[null,null,null,null,null,"FERTASSI SIHAM",717624]
[null,null,null,null,null,"FIKRI ABDALLAH",716670]
[null,null,null,null,null,"FOUTA HAFIDA",451238]
[null,null,null,null,null,"GAKOU FALLOU",716920]
[null,null,null,null,null,"GHANDI AYOUB",716392]
[null,null,null,null,null,"GHANDI NEZHA",714160]
[null,null,null,null,null,"GHANNAM ZAYD",712808]
[null,null,null,null,null,"GOURAINY IMANE",714703]
[null,null,null,null,null,"GUENNOUN MOHAMED",717686]
[null,null,null,null,null,"GUIJJANE ZAKARIA",717933]
[null,null,null,null,null,"HADDAJE YOUNES",707710]
[null,null,null,null,null,"HADDANE ABDESSAMAD",717919]
[null,null,null,null,null,"HAIDA KAOUTAR",715287]
[null,null,null,null,null,"HAIDAT HAJAR",717443]
[null,null,null,null,null,"HAJBAOUI YOUSSEF",402110]
[null,null,null,null,null,"HAJJI OUAFI KARIM",717915]
[null,null,null,null,null,"HAKIM ZAKARIA",713162]
[null,null,null,null,null,"HAMADA ZAKARYA",716069]
[null,null,null,null,null,"HAMI ABDELILLAH",707590]
[null,null,null,null,null,"HARIS SALMA",714175]
[null,null,null,null,null,"HARNOUFI ZINEL ABIDINE",713280]
[null,null,null,null,null,"HINNI OUSSAMA",714924]
[null,null,null,null,null,"ISMAILI ASMAA",709611]
[null,null,null,null,null,"JAFOUI LAILA",715521]
[null,null,null,null,null,"JALIL SANAA",716935]
[null,null,null,null,null,"JANAH ABDERRAZAK",714983]
[null,null,null,null,null,"JAWAL REDA",717781]
[null,null,null,null,null,"JEBBAR FATIMA",709563]
[null,null,null,null,null,"JERRAF ACHRAF",707381]
[null,null,null,null,null,"KABDI SOUHAIL",709024]
[null,null,null,null,null,"KAJOUT ABDELHAY",710068]
[null,null,null,null,null,"KALA OMAR",451108]
[null,null,null,null,null,"KAMAL DALAL",716867]
[null,null,null,null,null,"KBAILI MERIEM",714432]
[null,null,null,null,null,"KERMICHE AICHA",716922]
[null,null,null,null,null,"KETTANI HASSANI ISMAIL",713743]
[null,null,null,null,null,"KHAIROUN MOHAMED",401643]
[null,null,null,null,null,"KHAL MOUNTASSER",716415]
[null,null,null,null,null,"KHATIR LEYLA",711075]
[null,null,null,null,null,"KHATTABI ABDELHAK",716777]
[null,null,null,null,null,"KHATTABI MOHAMED",714179]
[null,null,null,null,null,"KHAZZAR MUSTAPHA",707049]
[null,null,null,null,null,"KHDAD OUMAIMA",716441]
[null,null,null,null,null,"KISSANE ISLAM",717466]
[null,null,null,null,null,"KOSSIR YOUNES",715613]
[null,null,null,null,null,"KOURI MOHAMED",710710]
[null,null,null,null,null,"LAACHIR ADIL",709738]
[null,null,null,null,null,"LABYAD YOUSSEF",716776]
[null,null,null,null,null,"LACHGAR YASSINE",715104]
[null,null,null,null,null,"LACHHAB SAID",717861]
[null,null,null,null,null,"LAGHROUSSI JAMILA",707691]
[null,null,null,null,null,"LAGMIRI BOUCHRA",709398]
[null,null,null,null,null,"LAHOUAICHRI IMAD",716291]
[null,null,null,null,null,"LAHYAN SALMA",712806]
[null,null,null,null,null,"LAKRAFI YOUSSEF",715819]
[null,null,null,null,null,"LAMRINI ABDELKARIM",716413]
[null,null,null,null,null,"LARAKI MOHAMED JAOUAD",704015]
[null,null,null,null,null,"LARHZIL AALI",716406]
[null,null,null,null,null,"LASRY ACHRAF",716528]
[null,null,null,null,null,"LEHOUIZI ABDELKARIM",716883]
[null,null,null,null,null,"LYAMANI FAYCAL",710663]
[null,null,null,null,null,"MABROUK MAROUANE",716194]
[null,null,null,null,null,"MAFTOUH OMAR",39473]
[null,null,null,null,null,"MAJDI MOHAMED",451085]
[null,null,null,null,null,"MAJDOUL SALMA",716380]
[null,null,null,null,null,"MANOUN WESSAM",716869]
[null,null,null,null,null,"MARBOU AYOUB",710904]
[null,null,null,null,null,"MARZOUKI YOUSSEF",704188]
[null,null,null,null,null,"MAZDAOUI LAILA",706572]
[null,null,null,null,null,"MEKKAOUI JAMAL",706114]
[null,null,null,null,null,"MHAIDI TAOUFIK",713559]
[null,null,null,null,null,"MIKOU ADIL",402165]
[null,null,null,null,null,"MORJANE KAMAL",401734]
[null,null,null,null,null,"MORTAJI ADIL",707601]
[null,null,null,null,null,"MOUAK YOUSSEF",716694]
[null,null,null,null,null,"MOUATIK ZAKARIA",716320]
[null,null,null,null,null,"MOUHDI FOUAD",707931]
[null,null,null,null,null,"MOUJIB ILHAM",717119]
[null,null,null,null,null,"MOUMKINE OUMAIMA",716786]
[null,null,null,null,null,"MOUNIS ABDERRAHMANE",714866]
[null,null,null,null,null,"MOUNTASSIR HICHAM",21324]
[null,null,null,null,null,"MOURADI WALID",710728]
[null,null,null,null,null,"MOUSTAID MOUNA",714832]
[null,null,null,null,null,"MOUSTIPHI YASSINE",710197]
[null,null,null,null,null,"MOUTAWAKIL KHALID",451132]
[null,null,null,null,null,"NACER AYOUB",717772]
[null,null,null,null,null,"NACIF ACHRAF",716596]
[null,null,null,null,null,"NAFHI YASSINE",717684]
[null,null,null,null,null,"NAJIM MERIEM",717000]
[null,null,null,null,null,"NAJMI SAMIR",705925]
[null,null,null,null,null,"NDAW ABDOU AZIZ",717779]
[null,null,null,null,null,"NDIAYE SIDI BOUYA",717780]
[null,null,null,null,null,"NEFAA HOUDA",716748]
[null,null,null,null,null,"NOUARI ABDELAZIZ",37881]
[null,null,null,null,null,"OBBAD NEZHA",714833]
[null,null,null,null,null,"OUAZZANI TOUHAMI MOHAMMED",716923]
[null,null,null,null,null,"OUEDGHIRI SANAE",712746]
[null,null,null,null,null,"OUSSALM SAMIA",716313]
[null,null,null,null,null,"QOTAIBAH YOUSRA",717302]
[null,null,null,null,null,"QUIBANE RAMZI",715627]
[null,null,null,null,null,"RAHMOUNI ABDELLATIF",28721]
[null,null,null,null,null,"RAIS BOUCHRA",718044]
[null,null,null,null,null,"RAKHI ABDELHAK",716663]
[null,null,null,null,null,"RETAIBA RACHID",451143]
[null,null,null,null,null,"RHINAOUI SALAH EDDINE",402212]
[null,null,null,null,null,"RIFLA SAMAH",716647]
[null,null,null,null,null,"RIKAOUI RACHID",400653]
[null,null,null,null,null,"ROUESSI MOHAMED HAMZA",716749]
[null,null,null,null,null,"SAHRAOUI ABDELHAKIM",717439]
[null,null,null,null,null,"SAID SALAHEDDINE",716324]
[null,null,null,null,null,"SAIDOUNE ZINEB",716421]
[null,null,null,null,null,"SALHI OUAHIBA",714886]
[null,null,null,null,null,"SALIM ZAKARIA",711556]
[null,null,null,null,null,"SAMI YOUNES",716418]
[null,null,null,null,null,"SANI NADIA",715497]
[null,null,null,null,null,"SAOUD DRISS",716819]
[null,null,null,null,null,"SAOUD HASSAN",400334]
[null,null,null,null,null,"SARR JOSEPH DOMINIQUE GOROM",717863]
[null,null,null,null,null,"SAYOUTY SANAA",717651]
[null,null,null,null,null,"SEKKATE NABILA",402393]
[null,null,null,null,null,"SEMMOUZI SOFIA",716381]
[null,null,null,null,null,"SERADNI FATIMA ZAHRA",714829]
[null,null,null,null,null,"SFAIRA BAHIA",707806]
[null,null,null,null,null,"SLIMANI HOUTI ALI",715859]
[null,null,null,null,null,"SMOUNI RABII",705990]
[null,null,null,null,null,"SOULHI MOHAMED",716462]
[null,null,null,null,null,"SOUSSI-MAISSOUR MOUNIA",402245]
[null,null,null,null,null,"SQUALLI-HOUSSAINI NARJISS",715549]
[null,null,null,null,null,"TABIT ABDELILAH",45653]
[null,null,null,null,null,"TAGHRICHTE MOUHSSIN",710047]
[null,null,null,null,null,"TAHIRI IDRISSI ISMAIL",717776]
[null,null,null,null,null,"TAHRAOUI NOUREDDINE",401778]
[null,null,null,null,null,"TAKI ACHRAF",716445]
[null,null,null,null,null,"TALBI DRISS",401723]
[null,null,null,null,null,"TALIB MOHAMED",707128]
[null,null,null,null,null,"TAOUSS NADIA",401608]
[null,null,null,null,null,"THIAW MAMADOU",717808]
[null,null,null,null,null,"TOUERESS WAFAA",712157]
[null,null,null,null,null,"TOUIBGUI EL MAHDI",717203]
[null,null,null,null,null,"TOUIJRI SOUFIANE",715091]
[null,null,null,null,null,"TOUIL RABII",717419]
[null,null,null,null,null,"TOULALI CHAIMAA",717189]
[null,null,null,null,null,"TOULOUT AMAL",707309]
[null,null,null,null,null,"WAHOUB ZAKARIA",714854]
[null,null,null,null,null,"ZAHER KHAOULA",716982]
[null,null,null,null,null,"ZAHIR HAMZA",714840]
[null,null,null,null,null,"ZAHRANE AICHA",703799]
[null,null,null,null,null,"ZEHDI YOUSSEF",716994]
[null,null,null,null,null,"ZEMMITA MOHAMED",710446]
[null,null,null,null,null,"ZEROUALI BOUKHAL EL MEHDI",715146]
[null,null,null,null,null,"ZIADI HICHAM",711862]
[null,null,null,null,null,"ZIDI MUSTAPHA",20915]
[null,null,null,null,null,"ZINE EDDINE NAWAL",707699]
[null,null,null,null,null,"ZNIBER SAAD",715784]

{"sheet":"Effectifs","index":1,"n_rows":398,"n_cols":22,"rows_kept":398,"cut":false,"hidden":true,"merged":[]}
["Matricule","Entitè","Pôle","Domaine","Sous domaine","Sujet","Nom","Prénom","Fonction","Date de Recrutement","Genre","Date démarrage SIG","Date de naissance","Date du départ du SIG","DIPLOME","Nombre d'année","ECOLE/UNIVERSITE","Catégorie","Ancienneté","Année d'ancienneté","Age","Tranche d'Age"]
[703875," Systèmes d'information Groupe"," Responsable du SIG","","","","LRHEZZIOUI","SOUMAYA","Directeur Exécutif","1988-08-08","F","1988-08-08","1960-06-02","","Ingénieur d'état + Master","BAC+5-INGENIEUR-MASTER-DEA-DESS","INSEA + Univ. USA","Cadre",32,"20 ans et plus",60,"Plus de 55 ans"]
[704591," Systèmes d'information Groupe","Systèmes d'information Groupe","","","","EL AISSAOUI","REDOUANE","Responsable Projet Stratégique SIG","1992-05-11","M","2019-09-01","1966-06-29","","Ingénieur d'état + ITB","BAC+5-INGENIEUR-MASTER-DEA-DESS","ENSEEIHT","CADRE",28,"20 ans et plus",54,"De 46 à 55 ans"]
[804555,"Contrôle Interne","Contrôle Interne","Contrôle Interne","","","AIT MAHDI","MALIKA","Contrôleur Interne","2017-04-03","F","2017-04-03","1979-02-07","","Ingénieur d'application + Master","BAC+5-INGENIEUR-MASTER-DEA-DESS","EMSI","Cadre",3,"De 2 à moins de 5 ans",41,"De 36 à 45 ans"]
[707309,"Contrôle Interne","Contrôle Interne","Contrôle Interne","","","TOULOUT","AMAL","Contrôleur Interne","2007-06-15","F","2014-06-23","1979-07-29","","Diplôme ESG France","BAC+5-INGENIEUR-MASTER-DEA-DESS","ESGF PARIS","Cadre",13,"De 12 à moins de 20 ans",41,"De 36 à 45 ans"]
[21324,"Contrôle Interne","Contrôle Interne","Contrôle Interne","","","MOUNTASSIR","HICHAM","Contrôleur Interne","1990-03-01","M","1990-03-01","1967-12-20","","BTS","BAC+2-DEUG-BTS-DUT","","Cadre",30,"20 ans et plus",53,"De 46 à 55 ans"]
[402713,"Contrôle Interne","Contrôle Interne","Contrôle Interne","","","CHENTOUF","SABAH","Contrôleur Interne","1999-01-11","F","1999-01-11","1968-11-05","","Ingénieur d'application","BAC+4-LICENCE-MAITRISE","ISGE","Cadre",21,"20 ans et plus",52,"De 46 à 55 ans"]
[711862,"Digital center"," Digital center","A Responsable Digital center","","","ZIADI","HICHAM","Responsable du SIG","2011-05-27","M","2011-11-02","1976-12-08","","Ingénieur","BAC+5-INGENIEUR-MASTER-DEA-DESS","ENSTA","Cadre",9,"De 5 à moins de 12 ans",44,"De 26 à 35 ans"]
[713554,"Digital center","Banque En Ligne & Frontaux","A Responsable Banque En Ligne & Frontaux","","","AIFOUTE","AHMED","Responsable de pôle","2014-02-03","M","2014-02-03","1969-08-08","","DESS","BAC+5-INGENIEUR-MASTER-DEA-DESS","Univ.STL Montpellier","Cadre",6,"De 5 à moins de 12 ans",51,"De 46 à 55 ans"]
[718076,"Digital center","Banque En Ligne & Frontaux","Domaine Self care","Self care","","ELMANSOURY","AYOUB","Chargé d'étude et développement Senior","2020-07-01","M","2020-07-01","1992-11-11","","","BAC+5-INGENIEUR-MASTER-DEA-DESS","","CADRE",0,"Moins de 2 ans",28,"De 26 à 35 ans"]
[715145,"Digital center","Banque En Ligne & Frontaux","Domaine Self care","Self care","","BEKKARI","IBTISSAM","Chargé d'étude et développement junior","2020-10-15","F","2020-10-15","1994-01-22","","Ingénieur d'application","BAC+5-INGENIEUR-MASTER-DEA-DESS","ESTEM","CADRE",0,"Moins de 2 ans",26,"De 26 à 35 ans"]
[717808,"Digital center","Banque En Ligne & Frontaux","Self care","Self care","","THIAW","MAMADOU","Chargé d'étude et développement junior","2019-12-02","M","2019-12-02","1988-11-20","","","BAC+5-INGENIEUR-MASTER-DEA-DESS","","CADRE",1,"Moins de 2 ans",32,"De 26 à 35 ans"]
[711197,"Digital center","Banque En Ligne & Frontaux","Self care","Self care","","BERRADA","MOHAMED","Coordinateur Etudes & Developpements","2011-01-07","M","2011-01-17","1984-12-12","","Master 2","BAC+5-INGENIEUR-MASTER-DEA-DESS","ESGI Paris","Cadre",9,"De 5 à moins de 12 ans",36,"De 36 à 45 ans"]
[718061,"Digital center","Banque En Ligne & Frontaux","Self care","Self care","","JEHOUANI","HACHIM","Chargé d'étude et développement Senior","2020-05-01","M","2020-05-01","1988-07-29","","","BAC+5-INGENIEUR-MASTER-DEA-DESS","","CADRE",0,"Moins de 2 ans",32,"De 26 à 35 ans"]
[710208,"Digital center","Banque En Ligne & Frontaux","Self care","Self care","","DLIMI","ZAKARIA","Coordinateur Etudes & Developpements","2009-11-25","M","2010-01-04","1985-01-09","","Ingénieur d'état","BAC+4-LICENCE-MAITRISE","ENSA AGADIR","Cadre",11,"De 5 à moins de 12 ans",35,"De 26 à 35 ans"]
[715521,"Digital center","Banque En Ligne & Frontaux","Self care","Self care","","JAFOUI","LAILA","Coordinateur Etudes & Developpements","2016-12-15","F","2016-12-15","1986-09-27","","Ingénieur d'application","BAC+5-INGENIEUR-MASTER-DEA-DESS","EMSI","Cadre",4,"De 2 à moins de 5 ans",34,"De 26 à 35 ans"]
[714886,"Digital center","Banque En Ligne & Frontaux","Self care","Self care","","SALHI","WAHIBA","Chargé d'étude et développement junior","2016-02-01","F","2016-02-01","1994-03-12","","Licence Professionnelle + Master","BAC+5-INGENIEUR-MASTER-DEA-DESS","ENITE OASIS","CADRE",4,"De 2 à moins de 5 ans",26,"De 26 à 35 ans"]
[717863,"Digital center","Banque En Ligne & Frontaux","Self care","Self care","","SARR","JOSEPH DOMINIQUE GOROM","Coordinateur Etudes & Developpements","2019-12-16","M","2019-12-16","1988-01-21","","","BAC+5-INGENIEUR-MASTER-DEA-DESS","","CADRE",1,"Moins de 2 ans",32,"De 26 à 35 ans"]
[717779,"Digital center","Banque En Ligne & Frontaux","Self care","Self care","","NDAW","ABOU AZIZ","Chargé d'étude et développement Senior","2019-11-15","M","2019-11-15","1990-10-19","","","BAC+5-INGENIEUR-MASTER-DEA-DESS","","CADRE",1,"Moins de 2 ans",30,"De 26 à 35 ans"]
[712806,"Digital center","Banque En Ligne & Frontaux","Self care","Self care","","LAHYAN","SALMA","Chargé d'étude et développement Senior","2013-02-15","F","2013-02-15","1987-07-12","","Ingénieur d'état","BAC+5-INGENIEUR-MASTER-DEA-DESS","ENSIAS","Cadre",7,"De 5 à moins de 12 ans",33,"De 26 à 35 ans"]
[717825,"Digital center","Banque En Ligne & Frontaux","Self care","Self care","","ERRIFAI","MOHAMED ADIB","Chargé d'étude et développement junior","2019-12-16","M","2019-12-16","1995-07-02","","Ingénieur d'état","BAC+5-INGENIEUR-MASTER-DEA-DESS","ENSA","CADRE",1,"Moins de 2 ans",25,"25 ans et moins"]
[320066,"Digital center","Banque En Ligne & Frontaux","Self care","Self care","","COULIBALY","ABDOUL RAZAK","Chargé d'étude et développement junior","2020-01-15","M","2020-01-15","1996-09-10","","","BAC+5-INGENIEUR-MASTER-DEA-DESS","","CADRE",0,"Moins de 2 ans",24,"25 ans et moins"]
[717861,"Digital center","Banque En Ligne & Frontaux","Self care","Self care","","LACHHAB","SAID","Chargé d'étude et développement junior","2019-12-16","M","2019-12-16","1997-05-22","","Master","BAC+5-INGENIEUR-MASTER-DEA-DESS","ENSIAS","CADRE",1,"Moins de 2 ans",23,"25 ans et moins"]
[716596,"Digital center","Banque En Ligne & Frontaux","Self care","Self care","","NACIF","ACHRAF","Chargé d'étude et développement Senior","2018-06-01","M","2018-06-01","1986-11-22","","Ingénieur d'état","BAC+5-INGENIEUR-MASTER-DEA-DESS","ENSA SAFI","Cadre",2,"De 2 à moins de 5 ans",34,"De 26 à 35 ans"]
[715063,"Digital center","Banque En Ligne & Frontaux","Vitrines Digitales","Vitrines Digitales","","BERRADA","KENZA","Coordinateur Etudes & Developpements","2016-05-16","F","2016-05-16","1988-08-17","","Ingénieur","BAC+5-INGENIEUR-MASTER-DEA-DESS","Telecom bretagne","Cadre",4,"De 2 à moins de 5 ans",32,"De 26 à 35 ans"]
[717946,"Digital center","Banque En Ligne & Frontaux","Vitrines Digitales","Vitrines Digitales","","ABOUKADRI","SARA","Chargé d'étude et développement Senior","2020-02-17","F","2020-02-17","1991-09-14","","Ingénieur d'état + Master","BAC+5-INGENIEUR-MASTER-DEA-DESS","INPT - ENSIMAG - HEC","CADRE",0,"Moins de 2 ans",29,"De 26 à 35 ans"]
[718080,"Digital center","Digital center","Digital center","","","BELFKIH","BRAHIM","Responsable de programme","2020-07-01","M","2020-07-01","1981-07-14","","Ingénieur","BAC+5-INGENIEUR-MASTER-DEA-DESS","ENSEIRB","CADRE",0,"Moins de 2 ans",39,"De 36 à 45 ans"]
[715700,"Digital center","Digital Platforms Enablers & DevSecOps","Datalake","Datalake","","BERKAOUI","ABDELLAH","Coordinateur Etudes & Developpements","2017-03-15","M","2017-03-15","1987-02-14","","Ingénieur d'état + MBA","BAC+5-INGENIEUR-MASTER-DEA-DESS","ENSIAS ESCAE","Cadre",3,"De 2 à moins de 5 ans",33,"De 26 à 35 ans"]
[716786,"Digital center","Digital Platforms Enablers & DevSecOps","Datalake","Datalake","","MOUMKINE","OUMAIMA","Chargé d'étude et développement junior","2018-08-15","F","2018-08-15","1994-05-25","","Master","BAC+5-INGENIEUR-MASTER-DEA-DESS","ENSA TETOUAN","Cadre",2,"De 2 à moins de 5 ans",26,"De 26 à 35 ans"]
[711556,"Digital center","Digital Platforms Enablers & DevSecOps","Datalake","Datalake","","SALIM","ZAKARIA","Chargé d'étude et développement Senior","2011-07-07","M","2011-07-18","1987-01-02","","Master 2","BAC+5-INGENIEUR-MASTER-DEA-DESS","ESIAG + EDHEC+ ISTA","Cadre",9,"De 5 à moins de 12 ans",33,"De 26 à 35 ans"]
[711841,"Digital center","Digital Platforms Enablers & DevSecOps","ECM - Collaboratif et Digitalisation"," Responsable ECM - Collaboratif et Digitalisation","","BENTOUILA","EL MEHDI","Responsable Domaine Fonctionnel","2011-08-01","M","2011-11-02","1983-04-18","","Ingénieur d'état","BAC+5-INGENIEUR-MASTER-DEA-DESS","INSA LYON","Cadre",9,"De 5 à moins de 12 ans",37,"De 36 à 45 ans"]
[715479,"Digital center","Digital Platforms Enablers & DevSecOps","ECM - Collaboratif et Digitalisation","ECM - Collaboratif et Digitalisation","","EL HALLAOUI","KENZA","Chargé d'étude et développement Senior","2016-11-15","F","2016-11-15","1992-05-25","","Ingénieur","BAC+5-INGENIEUR-MASTER-DEA-DESS","UIC","Cadre",4,"De 2 à moins de 5 ans",28,"De 26 à 35 ans"]
[716110,"Digital center","Digital Platforms Enablers & DevSecOps","ECM - Collaboratif et Digitalisation","ECM - Collaboratif et Digitalisation","","BOUGHALEB","TAHAR","Coordinateur Etudes & Developpements","2017-09-04","M","2017-09-04","1983-02-08","","Master","BAC+5-INGENIEUR-MASTER-DEA-DESS","Univ Nancy2 / IGA","Cadre",3,"De 2 à moins de 5 ans",37,"De 36 à 45 ans"]
[718044,"Digital center","Digital Platforms Enablers & DevSecOps","ECM - Collaboratif et Digitalisation","ECM - Collaboratif et Digitalisation","","RAIS","BOUCHRA","Chargé d'étude et développement Senior","2020-04-01","F","2020-04-01","1987-05-29","","Ingénieur d'état","BAC+5-INGENIEUR-MASTER-DEA-DESS","ENSIAS","CADRE",0,"Moins de 2 ans",33,"De 26 à 35 ans"]
[716923,"Digital center","Digital Platforms Enablers & DevSecOps","ECM - Collaboratif et Digitalisation","ECM - Collaboratif et Digitalisation","","OUAZZANI TOUHAMI","MOHAMMED","Coordinateur Etudes & Developpements","2018-10-15","M","2018-10-15","1985-08-31","","Master","BAC+5-INGENIEUR-MASTER-DEA-DESS","Univ René Descartes","CADRE",2,"De 2 à moins de 5 ans",35,"De 26 à 35 ans"]
[715497,"Digital center","Digital Platforms Enablers & DevSecOps","ECM - Collaboratif et Digitalisation","ECM - Collaboratif et Digitalisation","","SANI","NADIA","Chargé d'étude et développement Senior","2020-07-01","F","2020-07-01","1992-05-16","","Ingénieur d'état","BAC+5-INGENIEUR-MASTER-DEA-DESS","ENSIAS","Cadre",0,"Moins de 2 ans",28,"De 26 à 35 ans"]
[711186,"Digital center","Digital Platforms Enablers & DevSecOps","ECM - Collaboratif et Digitalisation","ECM - Collaboratif et Digitalisation","","KHERRAZ","SOUAD","Chargé d'étude et développement junior","2011-01-17","F","2011-01-17","1990-02-22","","Technicien spécialisé  + Master","BAC+5-INGENIEUR-MASTER-DEA-DESS","ISTA","CADRE",9,"De 5 à moins de 12 ans",30,"De 26 à 35 ans"]
[715146,"Digital center","Digital Platforms Enablers & DevSecOps","ECM - Collaboratif et Digitalisation","ECM - Collaboratif et Digitalisation","","ZEROUALI BOUKHAL","EL MEHDI","Coordinateur Etudes & Developpements","2016-06-15","M","2016-06-15","1982-02-24","","Ingénieur","BAC+5-INGENIEUR-MASTER-DEA-DESS","Poly technique TOURS","Cadre",4,"De 2 à moins de 5 ans",38,"De 36 à 45 ans"]
[717911,"Digital center","Digital Platforms Enablers & DevSecOps","ECM - Collaboratif et Digitalisation","ECM - Collaboratif et Digitalisation","","DIALLO","AHMADOU MATAR","Coordinateur Etudes & Developpements","2020-01-06","M","2020-01-06","1984-07-09","","","BAC+5-INGENIEUR-MASTER-DEA-DESS","","CADRE",0,"Moins de 2 ans",36,"De 36 à 45 ans"]
[714906,"Digital center","Digital Platforms Enablers & DevSecOps","ECM - Collaboratif et Digitalisation","ECM - Collaboratif et Digitalisation","","BOUSBAA","HOUDA","Chargé d'étude et développement junior","2016-03-01","F","2016-03-01","1996-02-02","","Technicien spécialisé  + Master","BAC+5-INGENIEUR-MASTER-DEA-DESS","ISTA","CADRE",4,"De 2 à moins de 5 ans",24,"25 ans et moins"]
[712746,"Digital center","Digital Platforms Enablers & DevSecOps","ECM - Collaboratif et Digitalisation","ECM - Collaboratif et Digitalisation","","OUEDGHIRI","SANAE","Chargé d'étude et développement Senior","2013-01-02","F","2013-01-02","1987-07-01","","Master","BAC+5-INGENIEUR-MASTER-DEA-DESS","FSTS","Cadre",7,"De 5 à moins de 12 ans",33,"De 26 à 35 ans"]
[713715,"Digital center","Digital Platforms Enablers & DevSecOps","OMS"," Responsable OMS","","HAJOUI","MOURAD","Coordinateur Etudes & Developpements","2014-06-02","M","2014-06-02","1978-06-27","","DESS SIAD","BAC+5-INGENIEUR-MASTER-DEA-DESS","UNIV Toulouse I","Cadre",6,"De 5 à moins de 12 ans",42,"De 36 à 45 ans"]
[710728,"Digital center","Digital Platforms Enablers & DevSecOps","OMS","OMS","","MOURADI","WALID","Chargé d'étude et développement Senior","2010-05-26","M","2010-07-01","1984-08-10","","DESS","BAC+5-INGENIEUR-MASTER-DEA-DESS","FST","Cadre",10,"De 5 à moins de 12 ans",36,"De 36 à 45 ans"]
[717302,"Digital center","Digital Platforms Enablers & DevSecOps","OMS","OMS","","QOTAIBAH","YOUSRA","Chargé d'étude et développement junior","2019-04-01","F","2019-04-01","1991-06-26","","Master","BAC+5-INGENIEUR-MASTER-DEA-DESS","Nice Sophia Antipolis","CADRE",1,"Moins de 2 ans",29,"De 26 à 35 ans"]
[706102,"Digital center","Distribution, Facturation & Paiement","A Responsable Distribution, Facturation & Paiement","","","AKRAB","MAROUANE","Responsable de pôle","2002-12-09","M","2002-12-09","1980-10-29","","BTS","BAC+4-LICENCE-MAITRISE","IGA","Cadre",18,"De 12 à moins de 20 ans",40,"De 36 à 45 ans"]
[451143,"Digital center","Distribution, Facturation & Paiement","Distribution, Facturation & Paiement","Distribution, Facturation & Paiement","","RETAIBA","RACHID","Chargé d'étude et développement Senior","2001-05-14","M","2001-05-14","1972-06-29","","Euromater Gestion Télécom","BAC+5-INGENIEUR-MASTER-DEA-DESS","ESIEA Paris","Cadre",19,"De 12 à moins de 20 ans",48,"De 46 à 55 ans"]
[715191,"Digital center","Distribution, Facturation & Paiement","Distribution, Facturation & Paiement","Distribution, Facturation & Paiement","","EL MERRAJI","OUIAM","Architecte SI","2016-07-01","F","2016-07-01","1985-11-22","","Master","BAC+5-INGENIEUR-MASTER-DEA-DESS","","Cadre",4,"De 2 à moins de 5 ans",35,"De 26 à 35 ans"]
[718060,"Digital center","Distribution, Facturation & Paiement","Facturation","Facturation","","LEZREG","SOUKAINA","Chargé d'étude et développement junior","2020-05-01","F","2020-05-01","1995-05-13","","","BAC+5-INGENIEUR-MASTER-DEA-DESS","","CADRE",0,"Moins de 2 ans",25,"25 ans et moins"]
[320069,"Digital center","Distribution, Facturation & Paiement","Facturation","Facturation","","KOFFI BERENGER","WILFRIED","Chargé d'étude et développement junior","2020-01-15","M","2020-01-15","1990-02-22","","Master","BAC+5-INGENIEUR-MASTER-DEA-DESS","Pigier-ci plateau","CADRE",0,"Moins de 2 ans",30,"De 26 à 35 ans"]
[712984,"Digital center","Distribution, Facturation & Paiement","Facturation","Facturation","","ET-TALEB","MEHDI","Chargé d'étude et développement Senior","2013-06-17","M","2013-06-17","1988-04-01","","Ingénieur","BAC+5-INGENIEUR-MASTER-DEA-DESS","Telecom Sud PARIS","Cadre",7,"De 5 à moins de 12 ans",32,"De 26 à 35 ans"]
[451154,"Digital center","Distribution, Facturation & Paiement","Facturation","Facturation","","ACHBANI","KHALID","Coordinateur Etudes & Developpements","2001-05-22","M","2001-05-22","1969-06-29","","Licence","BAC+4-LICENCE-MAITRISE","Univ. Maroc","Cadre",19,"De 12 à moins de 20 ans",51,"De 46 à 55 ans"]
[451236,"Digital center","Distribution, Facturation & Paiement","Facturation","Facturation","","BOUSSAID","ISSMAIL","Responsable Domaine Projet","2004-09-24","M","2004-09-24","1977-11-30","","Master","BAC+5-INGENIEUR-MASTER-DEA-DESS","Univ. Maroc","Cadre",16,"De 12 à moins de 20 ans",43,"De 36 à 45 ans"]
[709607,"Digital center","Distribution, Facturation & Paiement","Facturation","Facturation","","ESSOULHI","KHADIJA","Chargé d'étude et développement junior","2008-06-18","F","2008-06-18","1983-05-19","","Technicien spécialisé","BAC+2-DEUG-BTS-DUT","CIFPB","Non Cadre",12,"De 12 à moins de 20 ans",37,"De 36 à 45 ans"]
[717915,"Digital center","Distribution, Facturation & Paiement","Paiement","Paiement","","HAJJI OUAFI","KARIM","Chargé d'étude et développement Senior","2020-02-01","M","2020-02-01","1986-04-25","","Ingénieur d'état","BAC+5-INGENIEUR-MASTER-DEA-DESS","ENSICAEN","CADRE",0,"Moins de 2 ans",34,"De 26 à 35 ans"]
[716025,"Digital center","Distribution, Facturation & Paiement","Paiement","Paiement","","AHMATACH","FAWAZ","Responsable Domaine Fonctionnel","2017-08-01","M","2017-08-01","1979-05-17","","Ingénieur d'état","BAC+5-INGENIEUR-MASTER-DEA-DESS","ISTASE","Cadre",3,"De 2 à moins de 5 ans",41,"De 36 à 45 ans"]
[716867,"Digital center","Distribution, Facturation & Paiement","Paiement","Paiement","","KAMAL","DALAL","Chargé d'étude et développement Senior","2018-10-01","F","2018-10-01","1988-09-24","","Ingénieur d'état","BAC+5-INGENIEUR-MASTER-DEA-DESS","ENSIAS","CADRE",2,"De 2 à moins de 5 ans",32,"De 26 à 35 ans"]
[718099,"Digital center","Distribution, Facturation & Paiement","Vente Multicanale","Vente Multicanale","","HACHALI","YASSINE","Chargé d'étude et développement junior","2020-07-15","M","2020-07-15","1999-05-13","","Technicien spécialisé","BAC+2-DEUG-BTS-DUT","OFPTT","NON CADRE",0,"Moins de 2 ans",21,"25 ans et moins"]
[715640,"Digital center","Distribution, Facturation & Paiement","Vente Multicanale","Vente Multicanale","","BOUALAM","OUMAIMA","Chargé d'étude et développement junior","2017-02-06","F","2017-02-06","1995-12-31","","Technicien spécialisé","BAC+2-DEUG-BTS-DUT","EFET","Non Cadre",3,"De 2 à moins de 5 ans",25,"25 ans et moins"]
[715287,"Digital center","Distribution, Facturation & Paiement","Vente Multicanale","Vente Multicanale","","HAIDA","KAOUTAR","Responsable Domaine Projet","2016-08-15","F","2016-08-15","1985-01-03","","Ingénieur d'état","BAC+5-INGENIEUR-MASTER-DEA-DESS","ENIM","Cadre",4,"De 2 à moins de 5 ans",35,"De 26 à 35 ans"]
[715187,"Digital center","Distribution, Facturation & Paiement","Vente Multicanale","Vente Multicanale","","EL FATMI","YASSINE","Chargé d'étude et développement Senior","2016-07-01","M","2016-07-01","1990-12-01","","Ingénieur d'état","BAC+5-INGENIEUR-MASTER-DEA-DESS","EMI","Cadre",4,"De 2 à moins de 5 ans",30,"De 26 à 35 ans"]
[716172,"Digital center","Distribution, Facturation & Paiement","Vente Multicanale","Vente Multicanale","","EL YASSEM","HOUDA","Coordinateur Etudes & Developpements","2017-09-15","F","2017-09-15","1987-10-24","","Ingénieur d'état","BAC+5-INGENIEUR-MASTER-DEA-DESS","ENSIAS","Cadre",3,"De 2 à moins de 5 ans",33,"De 26 à 35 ans"]
[718097,"Digital center","Distribution, Facturation & Paiement","Vente Multicanale","Vente Multicanale","","ROUKABI","FAYCAL","Chargé d'étude et développement junior","2020-07-15","M","2020-07-15","1997-09-04","","","BAC+3-DIPLOME CYCLE NORMAL+LICENCE","","NON CADRE",0,"Moins de 2 ans",23,"25 ans et moins"]
[716415,"Digital center","Distribution, Facturation & Paiement","Vente Multicanale","Vente Multicanale","","KHAL","MOUNTASSER","Chargé d'étude et développement junior","2018-03-01","M","2018-03-01","1993-01-14","","Ingénieur d'état","BAC+5-INGENIEUR-MASTER-DEA-DESS","Académie d'aviation civile","Cadre",2,"De 2 à moins de 5 ans",27,"De 26 à 35 ans"]
[320070,"Digital center","Distribution, Facturation & Paiement","Vente Multicanale","Vente Multicanale","","TANOH","ARMEL DESIRE","Chargé d'étude et développement junior","2020-01-15","M","2020-01-15","1996-09-10","","","BAC+5-INGENIEUR-MASTER-DEA-DESS","","CADRE",0,"Moins de 2 ans",24,"25 ans et moins"]
[718098,"Digital center","Distribution, Facturation & Paiement","Vente Multicanale","Vente Multicanale","","MOUKKADI","MOUAD","Chargé d'étude et développement Junior","2020-07-15","M","2020-07-15","1999-08-29","","Technicien spécialisé","BAC+2-DEUG-BTS-DUT","ISTA","NON CADRE",0,"Moins de 2 ans",21,"25 ans et moins"]
[717144,"Digital center","Pilotage & Coaching"," Responsable Pilotage & Coaching","","","CHERIF","LALLIA"," Responsable de pôle","2019-02-01","F","2019-02-01","1984-06-02","","Ingénieur + Master","BAC+5-INGENIEUR-MASTER-DEA-DESS","Polytechnique Algérie","CADRE",1,"Moins de 2 ans",36,"De 36 à 45 ans"]
[451212,"Digital center","Pilotage & Coaching","Pilotage & Coaching","","","ESSABER","AMINE","Responsable Domaine Fonctionnel","2003-09-01","M","2003-09-01","1979-04-27","","Ingénieur d'état","BAC+5-INGENIEUR-MASTER-DEA-DESS","EMI","Cadre",17,"De 12 à moins de 20 ans",41,"De 36 à 45 ans"]
[718004,"Digital center","Pilotage & Coaching","Pilotage & Coaching","","","EL BAHTOURI","OTHMANE","Coach Agile","2020-03-02","M","2020-03-02","1982-01-27","","Diplôme d'ingénieur en Télécommunications","BAC+5-INGENIEUR-MASTER-DEA-DESS","Ecoles Mines Télécom France","CADRE",0,"Moins de 2 ans",38,"De 36 à 45 ans"]
[718067,"Digital center","Pilotage & Coaching","Pilotage & Coaching","","","MOUDDA","ISSAM","Coach Agile","2020-06-15","M","2020-06-15","1984-05-01","","","BAC+5-INGENIEUR-MASTER-DEA-DESS","","CADRE",0,"Moins de 2 ans",36,"De 36 à 45 ans"]
[706067,"Digital center","Postes de Travail & Connaissance Client","A Responsable Postes de Travail & Connaissance Client","","","ABOULOUMOUM","SAID","Responsable de pôle","2002-10-08","M","2002-10-08","1978-08-16","","Ingénieur d'état","BAC+5-INGENIEUR-MASTER-DEA-DESS","ENSIAS","Cadre",18,"De 12 à moins de 20 ans",42,"De 36 à 45 ans"]
[715549,"Digital center","Postes de Travail & Connaissance Client","Components","Components","","SQUALLI HOUSSAINI","NARJISS","Chargé d'étude et développement Senior","2017-01-02","F","2017-01-02","1988-06-18","","Ingénieur d'état","BAC+5-INGENIEUR-MASTER-DEA-DESS","ENSIAS","Cadre",3,"De 2 à moins de 5 ans",32,"De 26 à 35 ans"]
[707062,"Digital center","Postes de Travail & Connaissance Client","CRM & Modèle relationnel","  Responsable CRM & Modèle relationnel","","EL HAOUATE","KARIM","Responsable de Domaine Fonctionnel","2013-02-15","M","2013-02-15","1982-06-01","","Ingénieur d'état","BAC+5-INGENIEUR-MASTER-DEA-DESS","ENIM","Cadre",7,"De 5 à moins de 12 ans",38,"De 36 à 45 ans"]
[716773,"Digital center","Postes de Travail & Connaissance Client","CRM & Modèle relationnel","CRM & Modèle relationnel","","BOUHILA","SAFAE","Chargé d'étude et développement junior","2018-08-01","F","2018-08-01","1992-08-29","","Ingénieur","BAC+5-INGENIEUR-MASTER-DEA-DESS","VINCI Rabat","Cadre",2,"De 2 à moins de 5 ans",28,"De 26 à 35 ans"]
[711417,"Digital center","Postes de Travail & Connaissance Client","CRM & Modèle relationnel","CRM & Modèle relationnel","","AMANE","HICHAM","Chargé d'étude et développement Senior","2011-05-02","M","2011-05-16","1984-07-31","","Ingénieur d'application","BAC+5-INGENIEUR-MASTER-DEA-DESS","EMSI","Cadre",9,"De 5 à moins de 12 ans",36,"De 36 à 45 ans"]
[718039,"Digital center","Postes de Travail & Connaissance Client","CRM & Modèle relationnel","CRM & Modèle relationnel","","EL HATA","YASSINE","Chargé d'étude et développement junior","2020-03-18","M","2020-03-18","1996-08-21","","Technicien","BAC+2-DEUG-BTS-DUT","Ecole de Safi","NON CADRE",0,"Moins de 2 ans",24,"25 ans et moins"]
[707601,"Digital center","Postes de Travail & Connaissance Client","Operation agence & Intraday","Operation agence & Intraday","","MORTAJI","ADIL","Responsable Domaine Fonctionnel","2008-01-15","M","2008-01-15","1981-02-10","","Ingénieur d'état","BAC+5-INGENIEUR-MASTER-DEA-DESS","ENSEEIHT","Cadre",12,"De 12 à moins de 20 ans",39,"De 36 à 45 ans"]
[717910,"Digital center","Postes de Travail & Connaissance Client","Operation agence & Intraday","Operation agence & Intraday","","BA","KARIM","Chargé d'étude et développement junior","2020-01-06","M","2020-01-06","1986-09-14","","","BAC+5-INGENIEUR-MASTER-DEA-DESS","","CADRE",0,"Moins de 2 ans",34,"De 26 à 35 ans"]
[716869,"Digital center","Postes de Travail & Connaissance Client","Operation agence & Intraday","Operation agence & Intraday","","MANOUN","WESSAM","Chargé d'étude et développement Senior","2018-10-01","M","2018-10-01","1989-02-04","","","BAC+5-INGENIEUR-MASTER-DEA-DESS","","CADRE",2,"De 2 à moins de 5 ans",31,"De 26 à 35 ans"]
[707715,"Digital center","Postes de Travail & Connaissance Client","Operation agence & Intraday","Operation agence & Intraday","","EDDAKAKI","AYOUB","Coordinateur Etudes & Developpements","2008-03-17","M","2008-03-17","1983-05-31","","Ingénieur d'état","BAC+5-INGENIEUR-MASTER-DEA-DESS","EMI","Cadre",12,"De 12 à moins de 20 ans",37,"De 36 à 45 ans"]
[712157,"Digital center","Postes de Travail & Connaissance Client","Référentiel client et EER","Référentiel client et EER","","TOUERESS EP ABCHIR","WAFAA","Coordinateur Etudes & Developpements","2012-04-16","F","2012-04-16","1981-12-16","","Master","BAC+5-INGENIEUR-MASTER-DEA-DESS","EMSI + Univ Paris Sud 11","Cadre",8,"De 5 à moins de 12 ans",39,"De 36 à 45 ans"]
[715423,"Digital center","Postes de Travail & Connaissance Client","Référentiel client et EER","Référentiel client et EER","","EL HANAFI SEBTI","AHMED","Chargé d'étude et développement Senior","2016-10-17","M","2016-10-17","1992-07-20","","Ingénieur d'état","BAC+5-INGENIEUR-MASTER-DEA-DESS","ENSIAS","Cadre",4,"De 2 à moins de 5 ans",28,"De 26 à 35 ans"]
[714832,"Digital center","Postes de Travail & Connaissance Client","Supports N2","Supports N2","","MOUSTAID","MOUNA","Chargé d'étude et développement junior","2016-01-04","F","2016-01-04","1994-04-13","","Licence Professionnelle  + Master","BAC+5-INGENIEUR-MASTER-DEA-DESS","FST SETTAT","CADRE",4,"De 2 à moins de 5 ans",26,"De 26 à 35 ans"]
[714919,"Digital center","Postes de Travail & Connaissance Client","Supports N2","Supports N2","AFFECTE LE 01-01-19","EL MOUQTASIDI","ASMAA","Chargé d'étude et développement junior","2016-03-15","F","2016-03-15","1994-04-17","","Technicien spécialisé + MASTER","BAC+5-INGENIEUR-MASTER-DEA-DESS","ISGI","CADRE",4,"De 2 à moins de 5 ans",26,"De 26 à 35 ans"]
[707061,"Etudes & Développements"," Etudes & Développements","  Responsable des Etudes & Développements","","","BENJELLOUN","MOHAMED","Responsable Etudes & Développements","2007-01-15","M","2007-01-15","1965-03-15","","Ingénieur","BAC+5-INGENIEUR-MASTER-DEA-DESS","EUDIL","Cadre",13,"De 12 à moins de 20 ans",55,"De 46 à 55 ans"]
[400788,"Etudes & Développements"," Etudes & Développements","A responsable","","","AFRIKOU","AMINA","Responsable de pôle","1996-12-02","F","1996-12-02","1969-05-28","","Ingénieur d'état","BAC+5-INGENIEUR-MASTER-DEA-DESS","EMI","Cadre",24,"20 ans et plus",51,"De 46 à 55 ans"]
[716479,"Etudes & Développements","Banque commerciale et Filiales bancaires","Domaine Filiales SFS et Bancaires","Domaine Filiales SFS et Bancaires","","ETTIRMIDI","OUAFA","Manager SI","2018-04-23","F","2018-04-23","1974-09-17","","Ingénieur d'état","BAC+5-INGENIEUR-MASTER-DEA-DESS","EHTP","Cadre",2,"De 2 à moins de 5 ans",46,"De 46 à 55 ans"]
[706572,"Etudes & Développements","Banque commerciale et Filiales bancaires","Domaine Filiales SFS et Bancaires","Domaine Filiales SFS et Bancaires","BAS","MAZDAOUI","LAILA","Coordinateur Etudes & Developpements","2006-06-15","F","2006-06-15","1978-11-08","","Maîtrise","BAC+4-LICENCE-MAITRISE","Univ. Maroc","Cadre",14,"De 12 à moins de 20 ans",42,"De 36 à 45 ans"]
[402223,"Etudes & Développements","Banque commerciale et Filiales bancaires","Domaine Filiales SFS et Bancaires","Domaine Filiales SFS et Bancaires","BAS","DAHRI","NADIA","Coordinateur Etudes & Developpements","2001-10-01","F","2001-10-01","1977-07-27","","Maîtrise","BAC+4-LICENCE-MAITRISE","Univ. Maroc","Cadre",19,"De 12 à moins de 20 ans",43,"De 36 à 45 ans"]
[712497,"Etudes & Développements","Banque de financement et d'investissement groupe","A responsable Banque de financement et d'investissement groupe","","","DAHMAN","RIDA","Responsable de pôle","2012-10-15","M","2012-10-15","1979-10-23","","Master","BAC+5-INGENIEUR-MASTER-DEA-DESS","Fst + Institut Galilée de Paris","Cadre",8,"De 5 à moins de 12 ans",41,"De 36 à 45 ans"]
[717933,"Etudes & Développements","Banque de financement et d'investissement groupe","Banque de financement et d'investissement groupe","","","GUIJJANE","ZAKARIA","Coordinateur Etudes & Developpements","2020-02-17","M","2020-02-17","1985-07-05","","Master","BAC+5-INGENIEUR-MASTER-DEA-DESS","IUP Toulouse - IUP Aix-Marseille - IAE Nice","CADRE",0,"Moins de 2 ans",35,"De 26 à 35 ans"]
[707911,"Etudes & Développements","Banque de financement et d'investissement groupe","Domaine Salle des marchés"," Responsable Domaine Fonctionnel","","BENMAAZOUZ","ALLAL","Responsable Domaine Fonctionnel","2008-07-01","M","2008-07-01","1972-04-19","","DESS","BAC+5-INGENIEUR-MASTER-DEA-DESS","ESSI NICE","Cadre",12,"De 12 à moins de 20 ans",48,"De 46 à 55 ans"]
[707381,"Etudes & Développements","Banque de financement et d'investissement groupe","Domaine Salle des marchés","Salle des marchés","","JERRAF","ACHRAF","Chargé d'étude et développement Senior","2007-09-03","M","2007-09-03","1982-12-19","","Ingénieur d'application","BAC+5-INGENIEUR-MASTER-DEA-DESS","ESG","Cadre",13,"De 12 à moins de 20 ans",38,"De 36 à 45 ans"]
[717738,"Etudes & Développements","Banque de financement et d'investissement groupe","Domaine Salle des marchés","Salle des marchés","","BOUIRDI","MOHAMED REDA","Chargé d'étude et développement junior","2019-11-01","M","2019-11-01","1993-08-08","","Master","BAC+5-INGENIEUR-MASTER-DEA-DESS","Univ Hassan 1er","CADRE",1,"Moins de 2 ans",27,"De 26 à 35 ans"]
[714835,"Etudes & Développements","Banque de financement et d'investissement groupe","Domaine Salle des marchés","Salle des marchés","","DKHISSI","ILHAM","Chargé d'étude et développement junior","2016-01-15","F","2016-01-15","1988-08-13","","Ingénieur d'état","BAC+5-INGENIEUR-MASTER-DEA-DESS","INSEA","Cadre",4,"De 2 à moins de 5 ans",32,"De 26 à 35 ans"]
[714703,"Etudes & Développements","Banque de financement et d'investissement groupe","Domaine Salle des marchés","Salle des marchés","","GOURAINY","IMANE","Chargé d'étude et développement Senior","2015-11-01","M","2015-11-01","1991-12-18","","Ingénieur d'état","BAC+5-INGENIEUR-MASTER-DEA-DESS","ENSA SAFI","Cadre",5,"De 5 à moins de 12 ans",29,"De 26 à 35 ans"]
[703788,"Etudes & Développements","Banque de financement et d'investissement groupe","Domaine Salle des marchés","Salle des marchés","","BOUAMAINE","FOUAD","Chargé d'étude et développement Senior","1987-09-01","M","1987-09-01","1963-09-19","","Diplôme cycle normal","BAC+3-DIPLOME CYCLE NORMAL+LICENCE","ISG","Cadre",33,"20 ans et plus",57,"Plus de 55 ans"]
[715613,"Etudes & Développements","Banque de financement et d'investissement groupe","Domaine Salle des marchés","Salle des marchés","","KOSSIR","YOUNES","Chargé d'étude et développement Senior","2017-02-01","M","2017-02-01","1988-08-02","","Ingénieur d'état","BAC+5-INGENIEUR-MASTER-DEA-DESS","ENSIAS","Cadre",3,"De 2 à moins de 5 ans",32,"De 26 à 35 ans"]
[710767,"Etudes & Développements","Banque de financement et d'investissement groupe","Domaine Salle des marchés","Salle des marchés","","ARAFA","YOUNES","Responsable Domaine Projet","2010-05-27","M","2010-07-01","1983-08-13","","Master","BAC+5-INGENIEUR-MASTER-DEA-DESS","Univ Henry Poincaré nancy 1","Cadre",10,"De 5 à moins de 12 ans",37,"De 36 à 45 ans"]
[713743,"Etudes & Développements","Banque de financement et d'investissement groupe","Domaine Salle des marchés","Salle des marchés","","KETTANI HASSANI","ISMAIL","Chargé d'étude et développement Senior","2014-06-16","M","2014-06-16","1991-02-10","","Master","BAC+5-INGENIEUR-MASTER-DEA-DESS","ESG","Cadre",6,"De 5 à moins de 12 ans",29,"De 26 à 35 ans"]
[704275,"Etudes & Développements","Banque de financement et d'investissement groupe","Domaine Titres & Opérations de Bourses"," Responsable Domaine Fonctionnel","","DAKY","MOHAMED OTHMANE","Manager SI","1991-11-04","M","1991-11-04","1963-08-31","","Bachelor","BAC+5-INGENIEUR-MASTER-DEA-DESS","Univ. Canada","Cadre",29,"20 ans et plus",57,"Plus de 55 ans"]
[715859,"Etudes & Développements","Banque de financement et d'investissement groupe","Domaine Titres & Opérations de Bourses","Titres & Opérations de Bourses","","SLIMANI HOUTI","ALI","Coordinateur Etudes & Developpements","2017-06-01","M","2017-06-01","1989-07-10","","Ingénieur d'état","BAC+5-INGENIEUR-MASTER-DEA-DESS","ENSEIRB MATMECA","Cadre",3,"De 2 à moins de 5 ans",31,"De 26 à 35 ans"]
[718118,"Etudes & Développements","Banque de financement et d'investissement groupe","Domaine Titres & Opérations de Bourses","Titres & Opérations de Bourses","","AKDI","KHITAM","Chargé d'étude et développement junior","2020-09-01","F","2020-09-01","1996-11-25","","Master","BAC+5-INGENIEUR-MASTER-DEA-DESS","UNIV TETOUAN","CADRE",0,"Moins de 2 ans",24,"25 ans et moins"]
[714840,"Etudes & Développements","Banque de financement et d'investissement groupe","Domaine Titres & Opérations de Bourses","Titres & Opérations de Bourses","","ZAHIR","HAMZA","Chargé d'étude et développement Senior","2016-01-04","M","2016-01-04","1991-04-15","","Ingénieur d'état","BAC+5-INGENIEUR-MASTER-DEA-DESS","EMI","Cadre",4,"De 2 à moins de 5 ans",29,"De 26 à 35 ans"]
[717466,"Etudes & Développements","Banque de financement et d'investissement groupe","Domaine Titres & Opérations de Bourses","Titres & Opérations de Bourses","","KISSANE","ISLAM","Chargé d'étude et développement junior","2019-06-17","F","2019-06-17","1991-04-30","","Ingénieur d'état","BAC+5-INGENIEUR-MASTER-DEA-DESS","ENSIAS","CADRE",1,"Moins de 2 ans",29,"De 26 à 35 ans"]
[715627,"Etudes & Développements","Banque de financement et d'investissement groupe","Domaine Titres & Opérations de Bourses","Titres & Opérations de Bourses","","QUIBANE","RAMZI","Chargé d'étude et développement junior","2017-02-06","M","2017-02-06","1995-12-11","","Technicien spécialisé + Licence prof + Master","BAC+5-INGENIEUR-MASTER-DEA-DESS","OFPTT","Non Cadre",3,"De 2 à moins de 5 ans",25,"25 ans et moins"]
[706114,"Etudes & Développements","Cash Management & Trade Finance","Trade Finance & Cash Management"," Responsable de pôle","","MEKKAOUI","JAMAL","Responsable de pôle","2002-12-10","M","2002-12-10","1979-08-18","","Ingénieur d'état","BAC+5-INGENIEUR-MASTER-DEA-DESS","ENSIAS","Cadre",18,"De 12 à moins de 20 ans",41,"De 36 à 45 ans"]
[705990,"Etudes & Développements","Cash Management & Trade Finance","Trade Finance & Cash Management","Trade Finance & Cash Management","","SMOUNI","RABII","Responsable Domaine Fonctionnel","2002-03-18","M","2002-03-18","1977-09-20","","Licence","BAC+4-LICENCE-MAITRISE","Univ. Maroc","Cadre",18,"De 12 à moins de 20 ans",43,"De 36 à 45 ans"]
[718115,"Etudes & Développements","Cash Management & Trade Finance","Trade Finance & Cash Management","Trade Finance & Cash Management","","LAAROUSSI","IKRAM","Chargé d'étude et développement junior","2020-08-17","F","2020-08-17","1993-12-10","","Ingénieur d'état","BAC+5-INGENIEUR-MASTER-DEA-DESS","ENSIAS","CADRE",0,"Moins de 2 ans",27,"De 26 à 35 ans"]
[716413,"Etudes & Développements","Cash Management & Trade Finance","Trade Finance & Cash Management","Trade Finance & Cash Management","","LAMRINI","ABDELKARIM","Chargé d'étude et développement Senior","2018-02-15","M","2018-02-15","1987-06-26","","Ingénieur d'état + Master","BAC+5-INGENIEUR-MASTER-DEA-DESS","ENSICAEN","Cadre",2,"De 2 à moins de 5 ans",33,"De 26 à 35 ans"]
[451085,"Etudes & Développements","Cash Management & Trade Finance","Trade Finance & Cash Management","Trade Finance & Cash Management","","MAJDI","MOHAMED","Chargé d'étude et développement Senior","1989-05-02","M","1989-05-02","1962-12-11","11/12/2022","DTI","BAC+2-DEUG-BTS-DUT","","Cadre",31,"20 ans et plus",58,"Plus de 55 ans"]
[715266,"Etudes & Développements","Cash Management & Trade Finance","Trade Finance & Cash Management","Trade Finance & Cash Management","","EL IDRISSI","ABDELMOUMEN","Chargé d'étude et développement Senior","2016-08-01","M","2016-08-01","1988-06-23","","Ingénieur d'application","BAC+5-INGENIEUR-MASTER-DEA-DESS","ESTEM","Cadre",4,"De 2 à moins de 5 ans",32,"De 26 à 35 ans"]
[717111,"Etudes & Développements","Cash Management & Trade Finance","Trade Finance & Cash Management","Trade Finance & Cash Management","","EL GHAZOUANI","YASSINE","Chargé d'étude et développement junior","2019-01-02","M","2019-01-02","1992-08-24","","Ingénieur d'état","BAC+5-INGENIEUR-MASTER-DEA-DESS","ENSET","CADRE",1,"Moins de 2 ans",28,"De 26 à 35 ans"]
[709398,"Etudes & Développements","Cash Management & Trade Finance","Trade Finance & Cash Management","Trade Finance & Cash Management","","LAGMIRI","BOUCHRA","Coordinateur Etudes & Developpements","2009-03-03","F","2009-03-16","1976-02-14","","Ingénieur d'application","BAC+4-LICENCE-MAITRISE","EMSI","Cadre",11,"De 5 à moins de 12 ans",44,"De 36 à 45 ans"]
[710446,"Etudes & Développements","Cash Management & Trade Finance","Trade Finance & Cash Management","Trade Finance & Cash Management","","ZEMMITA","MOHAMED","Coordinateur Etudes & Developpements","2010-01-04","M","2010-03-01","1985-01-02","","Ingénieur d'application","BAC+4-LICENCE-MAITRISE","ISERT","Cadre",10,"De 5 à moins de 12 ans",35,"De 26 à 35 ans"]
[716934,"Etudes & Développements","Cash Management & Trade Finance","Trade Finance & Cash Management","Trade Finance & Cash Management","","BAHI","Mostafa","Coordinateur Etudes & Developpements","2018-11-01","M","2018-11-01","1978-01-01","","Ingénieur","BAC+5-INGENIEUR-MASTER-DEA-DESS","NTIC de TELECOM LILLE1","CADRE",2,"De 2 à moins de 5 ans",42,"De 36 à 45 ans"]
[711034,"Etudes & Développements","Cash Management & Trade Finance","Trade Finance & Cash Management","Trade Finance & Cash Management","","EL HAMIDI-EL KETTANI","SOURAYA","Chargé d'étude et développement Senior","2010-09-17","F","2010-11-01","1983-07-14","","Ingénieur d'application","BAC+5-INGENIEUR-MASTER-DEA-DESS","EMSI","Cadre",10,"De 5 à moins de 12 ans",37,"De 36 à 45 ans"]
[716069,"Etudes & Développements","Cash Management & Trade Finance","Trade Finance & Cash Management","Trade Finance & Cash Management","","HAMADA","ZAKARYA","Chargé d'étude et développement junior","2017-08-15","M","2017-08-15","1994-02-22","","Ingénieur d'état","BAC+5-INGENIEUR-MASTER-DEA-DESS","EMI","Cadre",3,"De 2 à moins de 5 ans",26,"De 26 à 35 ans"]
[707808,"Etudes & Développements","Cash Management & Trade Finance","Trade Finance & Cash Management","Trade Finance & Cash Management","","CHAIR","NADIA","Chargé d'étude et développement Senior","2008-05-02","F","2008-05-02","1984-07-20","","Ingénieur d'application","BAC+4-LICENCE-MAITRISE","EMSI","Cadre",12,"De 12 à moins de 20 ans",36,"De 36 à 45 ans"]
[451238,"Etudes & Développements","Cash Management & Trade Finance","Trade Finance & Cash Management","Trade Finance & Cash Management","","FOUTA","HAFIDA","Responsable Domaine Fonctionnel","2004-10-01","F","2004-10-01","1977-11-08","","Master + Bachelor","BAC+5-INGENIEUR-MASTER-DEA-DESS","Al Akhawayn","Cadre",16,"De 12 à moins de 20 ans",43,"De 36 à 45 ans"]
[707699,"Etudes & Développements","Cash Management & Trade Finance","Trade Finance & Cash Management","Trade Finance & Cash Management","AFFECTE LE 01-04-19","ZINE EDDINE","NAWAL","Chargé d'étude et développement junior","2007-02-28","F","2007-02-28","1984-08-24","","Bac+3","BAC+3-DIPLOME CYCLE NORMAL+LICENCE","ISTA + IGA","Non Cadre",13,"De 12 à moins de 20 ans",36,"De 36 à 45 ans"]
[715784,"Etudes & Développements","Cash Management & Trade Finance","Trade Finance & Cash Management","Trade Finance & Cash Management","EBICS","ZNIBER","SAAD","Coordinateur Etudes & Developpements","2017-04-19","M","2017-04-19","1985-01-09","","Ingénieur d'état","BAC+5-INGENIEUR-MASTER-DEA-DESS","INSA ROUEN","Cadre",3,"De 2 à moins de 5 ans",35,"De 26 à 35 ans"]
[717934,"Etudes & Développements","Cash Management & Trade Finance","Trade Finance & Cash Management","Trade Finance & Cash Management","EBICS","ESSADEQ","HAFSSA","Chargé d'étude et développement junior","2020-02-17","F","2020-02-17","1995-04-22","","Ingénieur d'application","BAC+5-INGENIEUR-MASTER-DEA-DESS","EMSI","CADRE",0,"Moins de 2 ans",25,"25 ans et moins"]
[716113,"Etudes & Développements","Cash Management & Trade Finance","Trade Finance & Cash Management","Trade Finance & Cash Management","Programme SWIFT","CHRAIBI","ALAE","Coordinateur Etudes & Developpements","2017-09-04","M","2017-09-04","1975-11-12","","DEA","BAC+5-INGENIEUR-MASTER-DEA-DESS","ENSEEIHT TOULOUSE","Cadre",3,"De 2 à moins de 5 ans",45,"De 36 à 45 ans"]
[710069,"Etudes & Développements","Compliance","A responsable Compliance","","","BENNANI","MANAR","Responsable de pôle","2009-11-09","M","2009-11-16","1975-04-25","","Ingénieur d'état","BAC+5-INGENIEUR-MASTER-DEA-DESS","EMI","Cadre",11,"De 5 à moins de 12 ans",45,"De 36 à 45 ans"]
[718107,"Etudes & Développements","Compliance","Compliance","Compliance","","RAJI","MARYAMA","Chargé d'étude et développement junior","2020-08-03","F","2020-08-03","1996-08-21","","Technicien spécialisé","BAC+3-DIPLOME CYCLE NORMAL+LICENCE","ISGI","NON CADRE",0,"Moins de 2 ans",24,"25 ans et moins"]
[707806,"Etudes & Développements","Compliance","Compliance","Compliance","","SFAIRA","BAHIA","Chargé d'étude et développement Senior","2008-05-02","F","2008-05-02","1983-02-09","","DESS","BAC+5-INGENIEUR-MASTER-DEA-DESS","Univers. Dhar Mehraz Fes","Cadre",12,"De 12 à moins de 20 ans",37,"De 36 à 45 ans"]
[716691,"Etudes & Développements","Compliance","Compliance","Compliance","","DEGHAI","HAFSA","Chargé d'étude et développement Senior","2018-06-18","F","2018-06-18","1982-02-10","","Ingénieur d'état","BAC+5-INGENIEUR-MASTER-DEA-DESS"," EPS","Cadre",2,"De 2 à moins de 5 ans",38,"De 36 à 45 ans"]
[717821,"Etudes & Développements","Compliance","Compliance","Compliance","","CHAJAR","ILHAM","Chargé d'étude et développement junior","2019-12-16","F","2019-12-16","1997-01-31","","Master","BAC+5-INGENIEUR-MASTER-DEA-DESS","FST","CADRE",1,"Moins de 2 ans",23,"25 ans et moins"]
[715588,"Etudes & Développements","Compliance","Compliance","Compliance","","CHAMLAL","MOHAMED","Chargé d'étude et développement Senior","2017-01-16","M","2017-01-16","1991-07-27","","Master","BAC+5-INGENIEUR-MASTER-DEA-DESS","Univ Toulouse 1","Cadre",3,"De 2 à moins de 5 ans",29,"De 26 à 35 ans"]
[717627,"Etudes & Développements","Compliance","Compliance","Compliance","","EL MIR","ABIR","Chargé d'étude et développement Senior","2019-08-15","F","2019-08-15","1986-09-20","","Master","BAC+5-INGENIEUR-MASTER-DEA-DESS","INSA / ENIM","CADRE",1,"Moins de 2 ans",34,"De 26 à 35 ans"]
[402165,"Etudes & Développements","Etudes & Développements","Domaine Décisionel"," Responsable Domaine Décisionel","","MIKOU","ADIL","Responsable Domaine Fonctionnel","2001-09-01","M","2001-09-01","1973-09-20","","Master Télécom","BAC+5-INGENIEUR-MASTER-DEA-DESS","IGA Casa","Cadre",19,"De 12 à moins de 20 ans",47,"De 46 à 55 ans"]
[718139,"Etudes & Développements","Etudes & Développements","Domaine Décisionel","Décisionel","","NABBAT","SOUFIANE","Chargé d'étude et développement junior","2020-10-01","M","2020-10-01","1994-08-15","","","BAC+5-INGENIEUR-MASTER-DEA-DESS","","CADRE",0,"Moins de 2 ans",26,"De 26 à 35 ans"]
[400653,"Etudes & Développements","Etudes & Développements","Domaine Décisionel","Décisionel","","RIKAOUI","RACHID","Chargé d'étude et développement Senior","1991-01-08","M","1991-01-08","1966-09-18","","Ingénieur d'état","BAC+5-INGENIEUR-MASTER-DEA-DESS","Univ. Maroc","Cadre",29,"20 ans et plus",54,"De 46 à 55 ans"]
[716819,"Etudes & Développements","Etudes & Développements","Domaine Décisionel","Décisionel","","SAOUD","DRISS","Chargé d'étude et développement Junior","2018-09-03","M","2018-09-03","1994-01-21","","Master en BIG DATA & CLOUD","BAC+5-INGENIEUR-MASTER-DEA-DESS","","Cadre",2,"De 2 à moins de 5 ans",26,"De 26 à 35 ans"]
[715538,"Etudes & Développements","Etudes & Développements","Domaine Décisionel","Décisionel","","AFILAL","KHAWLA","Chargé d'étude et développement Senior","2017-01-02","F","2017-01-02","1994-05-07","","Ingénieur d'état","BAC+5-INGENIEUR-MASTER-DEA-DESS","EMI","Cadre",3,"De 2 à moins de 5 ans",26,"De 26 à 35 ans"]
[718105,"Etudes & Développements","Etudes & Développements","Domaine Décisionel","Décisionel","BIG DATA","CHAABI","YASSINE","Chargé d'étude et développement junior","2020-08-03","M","2020-08-03","1994-09-09","","Master + Ingénieur d'état","BAC+5-INGENIEUR-MASTER-DEA-DESS","ENSIAS","CADRE",0,"Moins de 2 ans",26,"De 26 à 35 ans"]
[711946,"Etudes & Développements","Pilotage & Moyens généraux","A responsable Pilotage & Moyens généraux","","","BICHRA","MOHAMED NAWFAL","Responsable de Domaine Fonctionnel","2011-12-01","M","2011-12-01","1980-05-19","","Master","BAC+5-INGENIEUR-MASTER-DEA-DESS","ESCE Paris","Cadre",9,"De 5 à moins de 12 ans",40,"De 36 à 45 ans"]
[402110,"Etudes & Développements","Pilotage & Moyens généraux","Domaine Finance & Comptabilité"," Responsable Domaine Finance & Comptabilité","","HAJBAOUI","YOUSSEF","Responsable Domaine Fonctionnel","2001-07-09","M","2001-07-09","1968-09-16","","Ingénieur d'état","BAC+5-INGENIEUR-MASTER-DEA-DESS","ENSIAS","Cadre",19,"De 12 à moins de 20 ans",52,"De 46 à 55 ans"]
[715305,"Etudes & Développements","Pilotage & Moyens généraux","Domaine Finance & Comptabilité","Finance & Comptabilité","","BERRADA","ASMAE","Coordinateur Etudes & Developpements","2016-08-15","F","2016-08-15","1984-07-07","","Ingénieur","BAC+5-INGENIEUR-MASTER-DEA-DESS","IAE","Cadre",4,"De 2 à moins de 5 ans",36,"De 36 à 45 ans"]
[707691,"Etudes & Développements","Pilotage & Moyens généraux","Domaine Finance & Comptabilité","Finance & Comptabilité","","LAGHROUSSI","JAMILA","Chargé d'étude et développement Senior","2008-03-04","F","2008-03-04","1984-01-26","","Ingénieur d'application","BAC+4-LICENCE-MAITRISE","EMSI","Cadre",12,"De 12 à moins de 20 ans",36,"De 36 à 45 ans"]
[718041,"Etudes & Développements","Pilotage & Moyens généraux","Domaine Finance & Comptabilité","Finance & Comptabilité","","BASSOU","YOUSSEF","Chargé d'étude et développement junior","2020-03-18","M","2020-03-18","1992-05-09","","Ingénieur d'application","BAC+5-INGENIEUR-MASTER-DEA-DESS","FST SETTAT","CADRE",0,"Moins de 2 ans",28,"De 26 à 35 ans"]
[400334,"Etudes & Développements","Pilotage & Moyens généraux","Domaine Finance & Comptabilité","Finance & Comptabilité","","SAOUD","HASSAN","Chargé d'étude et développement Senior","1990-02-19","M","1990-02-19","1962-12-11","","Secondaire","NS","Lycée","Cadre",30,"20 ans et plus",58,"Plus de 55 ans"]
[402245,"Etudes & Développements","Pilotage & Moyens généraux","Domaine Moyens Généraux","  Responsable Domaine Moyens Généraux","","SOUSSI-MAISSOUR","MOUNIA","Responsable Domaine Fonctionnel","2001-08-20","F","2001-08-20","1977-08-07","","Ingénieur d'état","BAC+5-INGENIEUR-MASTER-DEA-DESS","Ecole Mines","Cadre",19,"De 12 à moins de 20 ans",54,"De 46 à 55 ans"]
[716403,"Etudes & Développements","Pilotage & Moyens généraux","Domaine Moyens Généraux","Moyens Généraux","","CHERKAOUI","ABDERRAZZAK","Coordinateur Etudes & Developpements","2018-02-01","M","2018-02-01","1985-01-30","","Ingénieur d'état","BAC+5-INGENIEUR-MASTER-DEA-DESS","ENSA TANGER","Cadre",2,"De 2 à moins de 5 ans",35,"De 26 à 35 ans"]
[400675,"Etudes & Développements","Pilotage & Moyens généraux","Domaine Moyens Généraux","Moyens Généraux","","HALOUANE ","HAKIM","Chargé d'étude et développement Senior","1990-02-19","M","1990-02-19","1960-05-14","","ITB","ITB","Conser National des arts & métiers","Cadre",30,"20 ans et plus",60,"Plus de 55 ans"]
[717624,"Etudes & Développements","Pilotage & Moyens généraux","Domaine Moyens Généraux","Moyens Généraux","","FERTASSI","SIHAM","Chargé d'étude et développement Senior","2019-08-15","F","2019-08-15","1986-11-24","","Ingénieur d'état","BAC+5-INGENIEUR-MASTER-DEA-DESS","ENSAT","CADRE",1,"Moins de 2 ans",34,"De 26 à 35 ans"]
[717189,"Etudes & Développements","Pilotage & Moyens généraux","Domaine Moyens Généraux","Moyens Généraux","","TOULALI","CHAIMAE","Chargé d'étude et développement junior","2019-02-15","F","2019-02-15","1991-09-08","","Ingénieur d'état","BAC+5-INGENIEUR-MASTER-DEA-DESS","ENSAO","Cadre",1,"Moins de 2 ans",29,"De 26 à 35 ans"]
[707254,"Etudes & Développements","Pilotage & Moyens généraux","Domaine Moyens Généraux","Moyens Généraux","","ALLAMI","SOUHAIB","Chargé d'étude et développement Senior","2007-05-02","M","2007-05-02","1973-05-22","","DESS","BAC+5-INGENIEUR-MASTER-DEA-DESS","ESSAIM","Cadre",13,"De 12 à moins de 20 ans",47,"De 46 à 55 ans"]
[715440,"Etudes & Développements","Pilotage & Moyens généraux","Domaine Moyens Généraux","Moyens Généraux","","EL JILANI","OMAR","Responsable Domaine Projet","2016-11-01","M","2016-11-01","1980-11-17","","Ingénieur d'état","BAC+5-INGENIEUR-MASTER-DEA-DESS","INSEA","Cadre",4,"De 2 à moins de 5 ans",40,"De 36 à 45 ans"]
[707628,"Etudes & Développements","Recette","Recette","","","ARHOUNI","ADIL","Chargé d'étude et développement Senior","2008-01-03","M","2008-01-03","1972-05-15","","Master","BAC+5-INGENIEUR-MASTER-DEA-DESS","Al Akhawayn","Cadre",12,"De 12 à moins de 20 ans",48,"De 46 à 55 ans"]
[45653,"Etudes & Développements","Recette","Recette","","","TABIT","ABDELILLAH","Chargé d'étude et développement junior","2009-01-25","M","2009-02-02","1981-02-05","","BAC+4","BAC+4-LICENCE-MAITRISE","IGA RABAT","Cadre",11,"De 5 à moins de 12 ans",39,"De 36 à 45 ans"]
[401608,"Etudes & Développements","Ressources Management","Ingénierie Applicative","Ingénierie Applicative","","TAOUSS ","NADIA","Chargé d'étude et développement Senior","1999-06-01","F","1999-06-01","1968-01-29","","Ingénieur d'état + Master","BAC+5-INGENIEUR-MASTER-DEA-DESS","INSEA + Al Akhawayn","Cadre",21,"20 ans et plus",52,"De 46 à 55 ans"]
[401643,"Etudes & Développements","Ressources Management","Ingénierie Applicative","Position Minute et autres sujets","","KHAIROUN","MOHAMED","Responsable Domaine Fonctionnel","2000-06-01","M","2000-06-01","1962-07-01","","Ingénieur","BAC+5-INGENIEUR-MASTER-DEA-DESS","Ecole Centrale Paris","Cadre",20,"20 ans et plus",58,"Plus de 55 ans"]
[703799,"Etudes & Développements","Risques","Responsable de pôle","","","ZAHRANE Ep ABROUS","AICHA","Responsable de pôle","1987-09-01","F","1987-09-01","1963-12-15","","Diplôme cycle normal","BAC+3-DIPLOME CYCLE NORMAL+LICENCE","IGA","Cadre",33,"20 ans et plus",57,"Plus de 55 ans"]
[712799,"Etudes & Développements","Risques","Risques","Risques","","EL MOUTAOUAKKIL","AICHA","Chargé d'étude et développement Senior","2013-02-01","F","2013-02-01","1983-12-12","","Master","BAC+5-INGENIEUR-MASTER-DEA-DESS","Inst d'Adm des Entr","Cadre",7,"De 5 à moins de 12 ans",37,"De 36 à 45 ans"]
[20915,"Etudes & Développements","Risques","Risques","Risques","","ZIDI","MUSTAPHA","Coordinateur Etudes & Developpements","1989-10-19","M","1989-10-19","1964-05-26","","ITB","ITB","Centre de Formation Profes. & Banc.","Cadre",31,"20 ans et plus",56,"Plus de 55 ans"]
[402393,"Etudes & Développements","Risques","Risques","Risques","","SEKKATE","NABILA","Coordinateur Etudes & Developpements","2002-01-02","F","2002-01-02","1977-03-17","","Ingénieur d'état","BAC+5-INGENIEUR-MASTER-DEA-DESS","ENSIAS","Cadre",18,"De 12 à moins de 20 ans",43,"De 36 à 45 ans"]
[716324,"Etudes & Développements","Risques","Risques","Risques","","SAID","SALAHEDDINE","Chargé d'étude et développement Senior","2017-12-15","M","2017-12-15","1991-02-23","","Ingénieur d'état","BAC+5-INGENIEUR-MASTER-DEA-DESS","EMI","Cadre",3,"De 2 à moins de 5 ans",29,"De 26 à 35 ans"]
[717686,"Etudes & Développements","Risques","Risques","Risques","","GUENNOUN","MOHAMED","Chargé d'étude et développement Senior","2019-09-16","M","2019-09-16","1984-05-14","","Ingénieur d'application","BAC+5-INGENIEUR-MASTER-DEA-DESS","EMSI","CADRE",1,"Moins de 2 ans",36,"De 36 à 45 ans"]
[712808,"Etudes & Développements","Risques","Risques","Risques","","GHANNAM","ZAYD","Responsable Domaine Projet","2013-02-15","M","2013-02-15","1982-06-28","","Ingénieur","BAC+5-INGENIEUR-MASTER-DEA-DESS","Ecole Poly Tech Montpellier","Cadre",7,"De 5 à moins de 12 ans",38,"De 36 à 45 ans"]
[718108,"Etudes & Développements","Risques","Risques","Risques","","NID TALEB","MOUAD","Chargé d'étude et développement junior","2020-08-03","M","2020-08-03","1998-09-30","","Technicien spécialisé","BAC+2-DEUG-BTS-DUT","ISTA","NON CADRE",0,"Moins de 2 ans",22,"25 ans et moins"]
[718100,"Etudes & Développements","Risques","Risques","Risques","","ROUDALI","CHARIF","Chargé d'étude et développement junior","2020-07-15","M","2020-07-15","1994-04-09","","Ingénieur d'état","BAC+5-INGENIEUR-MASTER-DEA-DESS","ENSA tanger","CADRE",0,"Moins de 2 ans",26,"De 26 à 35 ans"]
[717119,"Etudes & Développements","Risques","Risques","Risques","","MOUJIB","ILHAM","Chargé d'étude et développement Senior","2019-01-02","F","2019-01-02","1987-07-01","","Ingénieur d'application","BAC+5-INGENIEUR-MASTER-DEA-DESS","EMSI","CADRE",1,"Moins de 2 ans",33,"De 26 à 35 ans"]
[704015,"Infrastructure & Production Informatique","  Infrastructure & Production Informatique","a Responsable Infrastructure & Production Informatique","","","LARAKI","MOHAMED JAOUAD","Responsable Production Informatique","1990-01-02","M","1990-01-02","1958-06-06","","Maîtrise","BAC+4-LICENCE-MAITRISE","Univ. France","Cadre",30,"20 ans et plus",62,"Plus de 55 ans"]
[402212,"Infrastructure & Production Informatique","Architecture et Projets de la Production Informatique (APPI)","A Responsable Architecture et Projets de la Production Informatique (APPI)","","","RHINAOUI","SALAH EDDINE","Responsable Architecture et Projets de la Production Informatique (APPI)","2017-01-02","M","2017-01-18","1967-07-08","","Analyste Programmeur","BAC+2-DEUG-BTS-DUT","EUROLEC","Cadre",3,"De 2 à moins de 5 ans",53,"De 46 à 55 ans"]
[718056,"Infrastructure & Production Informatique","Architecture et Projets de la Production Informatique (APPI)","Architecture et Projets de la Production Informatique (APPI)","","","TIMOULAY","GHIZLANE","Chef de projet de production","2020-04-01","F","2020-04-01","1988-10-08","","","BAC+5-INGENIEUR-MASTER-DEA-DESS","","CADRE",0,"Moins de 2 ans",32,"De 26 à 35 ans"]
[706617,"Infrastructure & Production Informatique","Architecture et Projets de la Production Informatique (APPI)","ASSET MANAGEMENT"," Responsable ASSET MANAGEMENT","","AARAFAT","ABDELALALI","Chargé d'asset management","2006-07-03","M","2006-07-03","1976-08-18","","Master Europeen","BAC+5-INGENIEUR-MASTER-DEA-DESS","Univ. Poincaré","Cadre",14,"De 12 à moins de 20 ans",44,"De 36 à 45 ans"]
[709913,"Infrastructure & Production Informatique","Architecture et Projets de la Production Informatique (APPI)","Cellule Architecture de Production","","","BOUZKRAOUI","ELHOUSSAINE","Architecte de Production","2009-06-15","M","2009-08-17","1986-06-16","","Ingénieur d'état","BAC+5-INGENIEUR-MASTER-DEA-DESS","EMI","Cadre",11,"De 5 à moins de 12 ans",34,"De 26 à 35 ans"]
[451132,"Infrastructure & Production Informatique","Architecture et Projets de la Production Informatique (APPI)","Cellule Architecture de Production","","","MOUTAWAKIL","KHALID","Architecte de production","2001-03-01","M","2001-03-01","1974-03-02","","Ingénieur d'état","BAC+5-INGENIEUR-MASTER-DEA-DESS","ENIM","Cadre",19,"De 12 à moins de 20 ans",46,"De 46 à 55 ans"]
[716426,"Infrastructure & Production Informatique","Architecture et Projets de la Production Informatique (APPI)","Equipe chefs de projets de production","","","ARIF","JALAL","Chef de Projet de Production","2018-03-15","M","2018-03-15","1985-01-17","","Master","BAC+5-INGENIEUR-MASTER-DEA-DESS","UIR","Cadre",2,"De 2 à moins de 5 ans",35,"De 26 à 35 ans"]
[717463,"Infrastructure & Production Informatique","Architecture et Projets de la Production Informatique (APPI)","Equipe chefs de projets de production","","","BERRABHA","MARYAM","Chef de projet de production","2019-06-17","F","2019-06-17","1989-01-15","","Ingénieur d'état","BAC+5-INGENIEUR-MASTER-DEA-DESS","ENSA","CADRE",1,"Moins de 2 ans",31,"De 26 à 35 ans"]
[705925,"Infrastructure & Production Informatique","Architecture et Projets de la Production Informatique (APPI)","Equipe chefs de projets de production","","","NAJMI","SAMIR","Chef de projet de production","2001-10-15","M","2001-10-15","1977-08-18","","Ingénieur d'état","BAC+5-INGENIEUR-MASTER-DEA-DESS","EMI","Cadre",19,"De 12 à moins de 20 ans",43,"De 36 à 45 ans"]
[707529,"Infrastructure & Production Informatique","Architecture et Projets de la Production Informatique (APPI)","Equipe chefs de projets de production","","","AIT ABDERRAHMANE","MOUNIR","Chef de projet de production","2007-12-17","M","2007-12-17","1982-05-27","","Ingénieur","BAC+5-INGENIEUR-MASTER-DEA-DESS","ESST","Cadre",13,"De 12 à moins de 20 ans",38,"De 36 à 45 ans"]
[28958,"Infrastructure & Production Informatique","Architecture et Projets de la Production Informatique (APPI)","Equipe chefs de projets de production","","","ACHARKI","MOHAMED","Chef de projet de production","1999-04-26","M","1999-04-26","1973-10-23","","Licence","BAC+4-LICENCE-MAITRISE","Univ. Maroc","Cadre",21,"20 ans et plus",47,"De 46 à 55 ans"]
[320073,"Infrastructure & Production Informatique","Cellule de pilotage","Cellule de pilotage","Cellule de pilotage","","BEKROUNDJO","AKOLEY ARISTIDE","Chargé de pilotage","2020-02-10","M","2020-02-10","1987-01-29","","Ingénieur d'état","BAC+5-INGENIEUR-MASTER-DEA-DESS","INPT","CADRE",0,"Moins de 2 ans",33,"De 26 à 35 ans"]
[716694,"Infrastructure & Production Informatique","Cellule de pilotage","Cellule de pilotage","Cellule de pilotage","","MOUAK","YOUSSEF","Chargé de pilotage","2018-07-02","M","2018-07-02","1988-06-06","","Ingénieur","BAC+5-INGENIEUR-MASTER-DEA-DESS","HIGH-TECH","Cadre",2,"De 2 à moins de 5 ans",32,"De 26 à 35 ans"]
[706229,"Infrastructure & Production Informatique","Infrastructure","Infra Réseau Télécom","  Responsable Domaine Infra Réseau Télécom","","EL HANNIOUI","MOHAMED","Responsable Domaine Infra Réseau Télécom","2003-12-04","M","2003-12-04","1968-10-01","","Master","BAC+5-INGENIEUR-MASTER-DEA-DESS","OFPPT","Cadre",17,"De 12 à moins de 20 ans",52,"De 46 à 55 ans"]
[717776,"Infrastructure & Production Informatique","Infrastructure","Infra Réseau Télécom","Infra Réseau Télécom","","TAHIRI IDRISSI","ISMAIL","Administrateur Réseaux & Télécoms","2019-11-15","M","2019-11-15","1988-03-16","","Master","BAC+5-INGENIEUR-MASTER-DEA-DESS","","CADRE",1,"Moins de 2 ans",32,"De 26 à 35 ans"]
[715769,"Infrastructure & Production Informatique","Infrastructure","Infra Réseau Télécom","Infra Réseau Télécom","","EL HAMRITI","AMINE","Administrateur Réseaux & Télécoms","2017-04-17","M","2017-04-17","1984-04-01","","Ingénieur","BAC+5-INGENIEUR-MASTER-DEA-DESS","EHEGICC","Cadre",3,"De 2 à moins de 5 ans",36,"De 36 à 45 ans"]
[717780,"Infrastructure & Production Informatique","Infrastructure","Infra Réseau Télécom","Infra Réseau Télécom","","NDIAYE","SIDY BOUYA","Administrateur Réseaux & Télécoms","2019-11-15","M","2019-11-15","1991-08-31","","","BAC+5-INGENIEUR-MASTER-DEA-DESS","","CADRE",1,"Moins de 2 ans",29,"De 26 à 35 ans"]
[717818,"Infrastructure & Production Informatique","Infrastructure","Infra Réseau Télécom","Infra Réseau Télécom","","DIALLO","AMADOU MOCTAR","Administrateur Réseaux & Télécoms","2019-12-02","M","2019-12-02","1988-08-19","","","BAC+5-INGENIEUR-MASTER-DEA-DESS","","CADRE",1,"Moins de 2 ans",32,"De 26 à 35 ans"]
[710663,"Infrastructure & Production Informatique","Infrastructure","Infra Réseau Télécom","Infra Réseau Télécom","","LYAMANI","FAICAL","Expert Réseaux & Télécoms","2010-04-30","M","2010-05-17","1986-06-15","","Ingénieur d'application","BAC+4-LICENCE-MAITRISE","ISERT","Cadre",10,"De 5 à moins de 12 ans",34,"De 26 à 35 ans"]
[707182,"Infrastructure & Production Informatique","Infrastructure","Infra Réseau Télécom","Infra Réseau Télécom","","AMRANI","EL GHALI","Architecte Télécoms Senior","2007-03-01","M","2007-03-01","1984-10-14","","Master","BAC+5-INGENIEUR-MASTER-DEA-DESS","2 IRS","Cadre",13,"De 12 à moins de 20 ans",36,"De 36 à 45 ans"]
[709738,"Infrastructure & Production Informatique","Infrastructure","Infra Réseau Télécom","Infra Réseau Télécom","","LAACHIR","ADIL","Technicien Réseaux & Télécoms","2009-06-15","M","2009-08-03","1975-06-02","","Technicien télecom","BAC+2-DEUG-BTS-DUT","EURELEC","Cadre",11,"De 5 à moins de 12 ans",45,"De 36 à 45 ans"]
[707013,"Infrastructure & Production Informatique","Infrastructure","Infrastructure Centralisée","  Responsable Infrastructure Centralisée","","EL JALLAB","TARIK","Responsable Infrastructure Centralisée","2006-12-15","M","2006-12-15","1980-08-18","","Maîtrise","BAC+5-INGENIEUR-MASTER-DEA-DESS","Univ. Maroc","Cadre",14,"De 12 à moins de 20 ans",40,"De 36 à 45 ans"]
[715819,"Infrastructure & Production Informatique","Infrastructure","Infrastructure Centralisée","Infrastructure Centralisée","","LAKRAFI","YOUSSEF","Expert Infrastructure","2017-05-02","M","2017-05-02","1969-05-01","","Master","BAC+5-INGENIEUR-MASTER-DEA-DESS","Univ de Montpellier","Cadre",3,"De 2 à moins de 5 ans",51,"De 26 à 35 ans"]
[716272,"Infrastructure & Production Informatique","Infrastructure","Infrastructure Centralisée","Infrastructure Centralisée","","DIOUCH","ABDERRAZAK","Administrateur Infrastructure Junior","2017-11-15","M","2017-11-15","1992-04-14","","Ingénieur d'application","BAC+5-INGENIEUR-MASTER-DEA-DESS","ESTEM","Cadre",3,"De 2 à moins de 5 ans",28,"De 26 à 35 ans"]
[715806,"Infrastructure & Production Informatique","Infrastructure","Infrastructure Centralisée","Infrastructure Centralisée","","BEKKALI","ZAKARIA","Administrateur Infrastructure Confirmé","2017-05-02","M","2017-05-02","1983-04-11","","Ingénieur d'état","BAC+5-INGENIEUR-MASTER-DEA-DESS","Vincy","Cadre",3,"De 2 à moins de 5 ans",37,"De 36 à 45 ans"]
[716418,"Infrastructure & Production Informatique","Infrastructure","Infrastructure Centralisée","Infrastructure Centralisée","","SAMI","YOUNES","Administrateur Infrastructure Confirmé","2018-03-01","M","2018-03-01","1986-09-30","","Ingénieur d'état","BAC+5-INGENIEUR-MASTER-DEA-DESS","INPT","Cadre",2,"De 2 à moins de 5 ans",34,"De 26 à 35 ans"]
[715091,"Infrastructure & Production Informatique","Infrastructure","Infrastructure Centralisée","Infrastructure Centralisée","","TOUIJRI","SOUFIANE","Administrateur Infrastructure Sénior","2016-06-01","M","2016-06-01","1984-02-24","","","BAC+5-INGENIEUR-MASTER-DEA-DESS","","Cadre",4,"De 2 à moins de 5 ans",36,"De 36 à 45 ans"]
[716291,"Infrastructure & Production Informatique","Infrastructure","Infrastructure Centralisée","Infrastructure Centralisée","","LAHOUAICHRI","IMAD","Administrateur Infrastructure Junior","2017-12-04","M","2017-12-04","1989-10-18","","Master","BAC+5-INGENIEUR-MASTER-DEA-DESS","FST","Cadre",3,"De 2 à moins de 5 ans",31,"De 26 à 35 ans"]
[705790,"Infrastructure & Production Informatique","Mainframe","A Responsable Mainframe","","","EL BACHIRI","ABDENNACER","Responsable Mainframe","2009-01-19","M","2009-03-02","1977-01-01","","Ingénieur d'état","BAC+5-INGENIEUR-MASTER-DEA-DESS","EMI","Cadre",11,"De 5 à moins de 12 ans",43,"De 36 à 45 ans"]
[709009,"Infrastructure & Production Informatique","Mainframe","Intégration Mainframe","A Responsable Intégration Mainframe","","FAYESSAL EL KETTANI","EL ABID","Responsable Intégration de Production des Applications Mainframe","2008-10-30","M","2008-10-30","1962-09-23","","Formation Reseau et Télécom","BAC+5-INGENIEUR-MASTER-DEA-DESS","ISERT","Cadre",12,"De 12 à moins de 20 ans",58,"Plus de 55 ans"]
[707063,"Infrastructure & Production Informatique","Mainframe","Intégration Mainframe","Intégration Mainframe","","AIT AROUSS","HAFID","Intégrateur de Production des Applications Mainframes","2007-01-15","M","2007-01-15","1975-06-26","","Licence","BAC+4-LICENCE-MAITRISE","Univ. Maroc","Cadre",13,"De 12 à moins de 20 ans",45,"De 36 à 45 ans"]
[715386,"Infrastructure & Production Informatique","Mainframe","Intégration Mainframe","Intégration Mainframe","","EL KADDOURI","MOHAMED REDA","Intégrateur de Production des Applications Mainframes","2016-10-03","M","2016-10-03","1985-07-09","","Maîtrise","BAC+5-INGENIEUR-MASTER-DEA-DESS","ISIAG IUP  MIAGE","Cadre",4,"De 2 à moins de 5 ans",35,"De 26 à 35 ans"]
[718078,"Infrastructure & Production Informatique","PSI & Gestion des DATACENTERS","PSI & Gestion des DATACENTERS","","","AROUBITE","SAAD","Gestionnaire PSI","2020-07-01","M","2020-07-01","1993-12-10","","Ingénieur d'application","BAC+5-INGENIEUR-MASTER-DEA-DESS","EMSI","CADRE",0,"Moins de 2 ans",27,"De 26 à 35 ans"]
[716230,"Infrastructure & Production Informatique","PSI & Gestion des DATACENTERS","PSI & Gestion des DATACENTERS","PSI & Gestion des DATACENTERS","","ABDENEBAOUI","YASSINE","Responsable PSI","2017-11-01","M","2017-11-01","1982-07-02","","Ingénieur d'application","BAC+4-LICENCE-MAITRISE","EMSI","Cadre",3,"De 2 à moins de 5 ans",38,"De 36 à 45 ans"]
[707296,"Infrastructure & Production Informatique","PSI & Gestion des DATACENTERS","PSI & Gestion des DATACENTERS","PSI & Gestion des DATACENTERS","","FAOUZI","MOSTAPHA","Gestionnaire PSI","2007-06-01","M","2007-06-01","1979-04-08","","Maîtrise","BAC+5-INGENIEUR-MASTER-DEA-DESS","Univ. Maroc","Cadre",13,"De 12 à moins de 20 ans",41,"De 36 à 45 ans"]
[714833,"Infrastructure & Production Informatique","Services Applicatifs et Intégration (SAI)","A Responsable Services Applicatifs et Intégration (SAI)","","","OBBAD EP BAKI","NEZHA","Responsable Services Applicatifs et Intégration (SAI)","2016-01-15","F","2016-01-15","1972-06-04","","Ingénieur","BAC+5-INGENIEUR-MASTER-DEA-DESS","ENI BREST","Cadre",4,"De 2 à moins de 5 ans",48,"De 46 à 55 ans"]
[401701,"Infrastructure & Production Informatique","Services Applicatifs et Intégration (SAI)","Administration et expertises","Administration technique","A Team Leader Administration technique","EL GOUR","AZEDDINE","Team Leader Administration technique","1999-04-12","M","1999-04-12","1975-02-25","","Ingénieur d'application","BAC+4-LICENCE-MAITRISE","ESTEM","Cadre",21,"20 ans et plus",45,"De 36 à 45 ans"]
[707921,"Infrastructure & Production Informatique","Services Applicatifs et Intégration (SAI)","Administration et expertises","Administration Technique","Administration Technique","CHANTIT","REDA","Administrateur Technique","2007-12-01","M","2007-12-01","1981-03-27","","BAC+4","BAC+4-LICENCE-MAITRISE","IGA","Cadre",13,"De 12 à moins de 20 ans",39,"De 36 à 45 ans"]
[718124,"Infrastructure & Production Informatique","Services Applicatifs et Intégration (SAI)","Administration et expertises","Administration technique","Administration Technique","CHARAAOUI","MOHAMED","Administrateur Technique","2020-09-01","M","2020-09-01","1990-02-04","","Master","BAC+5-INGENIEUR-MASTER-DEA-DESS","ESG","CADRE",0,"Moins de 2 ans",30,"De 26 à 35 ans"]
[714866,"Infrastructure & Production Informatique","Services Applicatifs et Intégration (SAI)","Administration et expertises","Administration Technique","Administration Technique","MOUNIS","ABDERRAHMANE","Administrateur Technique","2016-01-08","M","2016-01-08","1993-07-03","","Technicien spécialisé + Licence prof + Master","BAC+5-INGENIEUR-MASTER-DEA-DESS","ISTA MARRAKECH","Non Cadre",4,"De 2 à moins de 5 ans",27,"De 26 à 35 ans"]
[718062,"Infrastructure & Production Informatique","Services Applicatifs et Intégration (SAI)","Administration et expertises","Administration technique","Administration Technique","MAKROUM","HAMZA","Administrateur Technique","2020-05-04","M","2020-05-04","1986-09-25","","","BAC+5-INGENIEUR-MASTER-DEA-DESS","","CADRE",0,"Moins de 2 ans",26,"De 26 à 35 ans"]
[718102,"Infrastructure & Production Informatique","Services Applicatifs et Intégration (SAI)","Administration et expertises","Administration technique","Administration Technique","EL GHOUAT","YASSINE","Administrateur Technique","2020-08-03","M","2020-08-03","1994-04-28","","Master","BAC+5-INGENIEUR-MASTER-DEA-DESS","SUPINFO","CADRE",0,"Moins de 2 ans",26,"De 26 à 35 ans"]
[716749,"Infrastructure & Production Informatique","Services Applicatifs et Intégration (SAI)","Administration et expertises","Administration technique","Administration Technique","ROUESSI","MOHAMED HAMZA","Administrateur Technique","2018-07-16","M","2018-07-16","1987-03-30","","Master","BAC+5-INGENIEUR-MASTER-DEA-DESS","FST SETTAT","Cadre",2,"De 2 à moins de 5 ans",33,"De 26 à 35 ans"]
[709572,"Infrastructure & Production Informatique","Services Applicatifs et Intégration (SAI)","Administration et expertises","Administration Technique","Administration Technique","ELGOUMIRI","LOUBNA","Administrateur Technique","2009-04-20","F","2009-06-01","1983-02-08","","Ingénieur d'application","BAC+4-LICENCE-MAITRISE","EMSI","Cadre",11,"De 5 à moins de 12 ans",24,"25 ans et moins"]
[717919,"Infrastructure & Production Informatique","Services Applicatifs et Intégration (SAI)","Administration et expertises","Expertises Middleware / WEB / BD"," Responsable Expertises Middleware / WEB / BD","HADDANE","ABDESSAMAD","Responsable Middleware","2020-02-03","M","2020-02-03","1980-12-09","","Master","BAC+5-INGENIEUR-MASTER-DEA-DESS","FST","CADRE",0,"Moins de 2 ans",40,"De 36 à 45 ans"]
[400367,"Infrastructure & Production Informatique","Services Applicatifs et Intégration (SAI)","Administration et expertises","Expertises Middleware / WEB / BD","Expertises Middleware / WEB / BD","BENRICHE","KHALID","Expert DBA","1993-01-01","M","1993-01-01","1968-01-09","","Secondaire","NS","Lycée","Cadre",27,"20 ans et plus",52,"De 46 à 55 ans"]
[710197,"Infrastructure & Production Informatique","Services Applicatifs et Intégration (SAI)","Administration et expertises","Gestion Poste de travail","A Team Leader Gestion Poste de travail","MOUSTIPHI","YASSINE","Team Leader Gestion Poste de travail","2019-07-01","M","2019-07-01","1988-08-18","","Technicien","BAC+2-DEUG-BTS-DUT","ISTA","Cadre",1,"Moins de 2 ans",32,"De 26 à 35 ans"]
[712070,"Infrastructure & Production Informatique","Services Applicatifs et Intégration (SAI)","Administration et expertises","Gestion Poste de travail","Gestion Poste de travail","CHAHID","AMINE","Gestionnaire Poste de travail","2012-02-01","M","2012-02-01","1987-08-03","","Licence professionnelle en Conception et développement Architecture Système","BAC+3-DIPLOME CYCLE NORMAL+LICENCE","ENEM","Non Cadre",8,"De 5 à moins de 12 ans",33,"De 26 à 35 ans"]
[320074,"Infrastructure & Production Informatique","Services Applicatifs et Intégration (SAI)","Administration et expertises","Gestion Poste de travail","Gestion Poste de travail","OUTTARA","ADAMA SOULEYMANE","Gestionnaire Poste de travail","2020-02-18","M","2020-02-18","1992-06-12","","Ingénieur","BAC+5-INGENIEUR-MASTER-DEA-DESS","Ecile AGITEL","CADRE",0,"Moins de 2 ans",28,"De 26 à 35 ans"]
[718144,"Infrastructure & Production Informatique","Services Applicatifs et Intégration (SAI)","Administration et expertises","Gestion Poste de travail","Gestion Poste de travail","BOUCHKHI","ATMAN","Gestionnaire Poste de travail","2020-10-15","M","2020-10-15","1994-03-07","","Ingénieur d'état","BAC+5-INGENIEUR-MASTER-DEA-DESS","ENSA Tétouan","CADRE",0,"Moins de 2 ans",26,"De 26 à 35 ans"]
[710699,"Infrastructure & Production Informatique","Services Applicatifs et Intégration (SAI)","Administration et expertises","Pôle de Compétence Opérationnelle PCO","A Team Leader PCO Pôle de Compétence Opérationnelle","FAHMANI","MOHAMED EL MAHDI","Team Leader PCO","2010-05-25","M","2010-06-15","1983-09-20","","Master 2","BAC+5-INGENIEUR-MASTER-DEA-DESS","Univ CLAUDE BERNARD Lyon","Cadre",10,"De 5 à moins de 12 ans",37,"De 36 à 45 ans"]
[710700,"Infrastructure & Production Informatique","Services Applicatifs et Intégration (SAI)","Administration et expertises","Pôle de Compétence Opérationnelle PCO","Pôle de Compétence Opérationnelle PCO","AJAFAR","ZOUHEIR","Administrateur de Production","2010-05-25","M","2010-06-15","1980-01-05","","BAC+4","BAC+4-LICENCE-MAITRISE","IGA","Cadre",10,"De 5 à moins de 12 ans",40,"De 36 à 45 ans"]
[712068,"Infrastructure & Production Informatique","Services Applicatifs et Intégration (SAI)","Administration et expertises","Pôle de Compétence Opérationnelle PCO","Pôle de Compétence Opérationnelle PCO","BOUMLIC","YOUNES","Administrateur de Production","2012-02-13","M","2020-02-03","1988-11-30","","Ingénieur d'application","BAC+5-INGENIEUR-MASTER-DEA-DESS","ESTEM","CADRE",8,"De 5 à moins de 12 ans",32,"De 26 à 35 ans"]
[714924,"Infrastructure & Production Informatique","Services Applicatifs et Intégration (SAI)","Administration et expertises","Pôle de Compétence Opérationnelle PCO","Pôle de Compétence Opérationnelle PCO","HINNI","OUSSAMA","Administrateur de Production","2016-03-15","m","2016-03-15","1991-05-25","","Licence Professionnelle  + Master","BAC+5-INGENIEUR-MASTER-DEA-DESS","FST","Non Cadre",4,"De 2 à moins de 5 ans",29,"De 26 à 35 ans"]
[713558,"Infrastructure & Production Informatique","Services Applicatifs et Intégration (SAI)","Administration et expertises","Pôle de Compétence Opérationnelle PCO","Pôle de Compétence Opérationnelle PCO","ADLIL","ABDERRAHMANE","Administrateur de Production","2014-02-17","M","2014-02-17","1990-03-24","","Licence Professionnelle + Master","BAC+5-INGENIEUR-MASTER-DEA-DESS","FST SETTAT","Non Cadre",6,"De 5 à moins de 12 ans",30,"De 26 à 35 ans"]
[402600,"Infrastructure & Production Informatique","Services Applicatifs et Intégration (SAI)","Administration et expertises","Pôle de Compétence Opérationnelle PCO","Pôle de Compétence Opérationnelle PCO","BENTAIEB","EL MEHDI","Administrateur de Production","2002-10-10","M","2002-10-10","1978-04-16","","Ingénieur d'application","BAC+4-LICENCE-MAITRISE","ESTEM","Cadre",18,"De 12 à moins de 20 ans",42,"De 36 à 45 ans"]
[715880,"Infrastructure & Production Informatique","Services Applicatifs et Intégration (SAI)","Administration et expertises","Pôle de Compétence Opérationnelle PCO","Pôle de Compétence Opérationnelle PCO","BOUKHOU","MOHAMED","Administrateur de Production","2017-06-01","M","2017-06-01","1992-04-13","","Licence Professionnelle + Master","BAC+5-INGENIEUR-MASTER-DEA-DESS","FST SETTAT","Non Cadre",3,"De 2 à moins de 5 ans",28,"De 26 à 35 ans"]
[717133,"Infrastructure & Production Informatique","Services Applicatifs et Intégration (SAI)","Industrialisation des processus"," Responsable Industrialisation des processus","","EL GHAOUAT","MOHAMED"," Responsable Industrialisation des processus","2019-01-02","M","2019-01-02","1975-05-04","","Master","BAC+5-INGENIEUR-MASTER-DEA-DESS","ETS MONTREAL","CADRE",1,"Moins de 2 ans",45,"De 36 à 45 ans"]
[320071,"Infrastructure & Production Informatique","Services Applicatifs et Intégration (SAI)","Industrialisation des processus","Industrialisation des processus","","EHOLA","BRUCE CESAIRE","Chargé d'industrialisation des processus","2020-01-20","M","2020-01-20","1984-03-18","","","BAC+5-INGENIEUR-MASTER-DEA-DESS","","CADRE",0,"Moins de 2 ans",36,"De 36 à 45 ans"]
[718106,"Infrastructure & Production Informatique","Services Applicatifs et Intégration (SAI)","Industrialisation des processus","Industrialisation des processus","","LEMGHARI","KHALID","Chargé d'industrialisation des processus","2020-08-03","M","2020-08-03","1985-05-18","","Master","BAC+5-INGENIEUR-MASTER-DEA-DESS","Université Hassan 1er","CADRE",0,"Moins de 2 ans",35,"De 26 à 35 ans"]
[320072,"Infrastructure & Production Informatique","Services Applicatifs et Intégration (SAI)","Industrialisation des processus","Industrialisation des processus","","BOGNININ","JEAN MARC AMON","Chargé d'industrialisation des processus","2020-02-03","M","2020-02-03","1988-01-12","","Ingénieur d'état","BAC+5-INGENIEUR-MASTER-DEA-DESS","I T ABIDJAN","CADRE",0,"Moins de 2 ans",32,"De 26 à 35 ans"]
[716920,"Infrastructure & Production Informatique","Services Applicatifs et Intégration (SAI)","Industrialisation des processus","Industrialisation des processus","","GAKOU","FALLOU","Chargé d'industrialisation des processus","2018-10-15","M","2018-10-15","1992-09-10","","Ingénieur d'état","BAC+5-INGENIEUR-MASTER-DEA-DESS","Academie Internationale MED VI","CADRE",2,"De 2 à moins de 5 ans",28,"De 26 à 35 ans"]
[402495,"Infrastructure & Production Informatique","Services Applicatifs et Intégration (SAI)","Intégration de production des applications","A Responsable Intégration de production des applications de la banque","","AZIZ","KENZA","Responsable intégration de production des applications de la banque","2002-04-15","F","2002-04-15","1982-04-21","","Diplôme cycle normal","BAC+3-DIPLOME CYCLE NORMAL+LICENCE","EMSI","Cadre",18,"De 12 à moins de 20 ans",38,"De 36 à 45 ans"]
[710348,"Infrastructure & Production Informatique","Services Applicatifs et Intégration (SAI)","Intégration de production des applications","Flux et d'ordonnancement"," Responsable Flux & ordonnancement","AMRAOUI","LAHCEN","Team Leader Flux et d'ordonnancement","2009-11-09","M","2010-02-01","1981-12-17","","Ingénieur d'état","BAC+5-INGENIEUR-MASTER-DEA-DESS","ENSIAS","Cadre",11,"De 5 à moins de 12 ans",39,"De 36 à 45 ans"]
[714113,"Infrastructure & Production Informatique","Services Applicatifs et Intégration (SAI)","Intégration de production des applications","Flux et d'ordonnancement","Flux et d'ordonnancement","EL JABLI","ABDELILLAH","Intégrateur des flux","2015-01-02","M","2015-01-02","1988-01-14","","Licence Professionnelle + Master","BAC+3-DIPLOME CYCLE NORMAL+LICENCE","","Non Cadre",5,"De 5 à moins de 12 ans",32,"De 26 à 35 ans"]
[717419,"Infrastructure & Production Informatique","Services Applicatifs et Intégration (SAI)","Intégration de production des applications","Flux et d'ordonnancement","Flux et d'ordonnancement","TOUIL","RABII","Intégrateur des flux","2019-05-07","F","2019-05-07","1992-08-28","","Ingénieur d'application","BAC+5-INGENIEUR-MASTER-DEA-DESS","ESTEM","CADRE",1,"Moins de 2 ans",28,"De 26 à 35 ans"]
[716313,"Infrastructure & Production Informatique","Services Applicatifs et Intégration (SAI)","Intégration de production des applications","Flux et d'ordonnancement","Flux et d'ordonnancement","OUSSALM","SAMIA","Intégrateur des flux","2018-12-01","F","2019-02-21","1995-06-13","","Technicien spécialisé","BAC+2-DEUG-BTS-DUT","ISTA","NON CADRE",2,"De 2 à moins de 5 ans",25,"25 ans et moins"]
[709639,"Infrastructure & Production Informatique","Services Applicatifs et Intégration (SAI)","Intégration de production des applications","IPAB BTG BC & F, SFS Monétique","IPAB BTG BC & F, SFS Monétique","EL JAOUHARI","GHALIA","Intégrateur de Production des Applications","2009-06-10","F","2009-06-23","1988-04-11","","DUT + MASTER","BAC+5-INGENIEUR-MASTER-DEA-DESS","ESTC","CADRE",11,"De 5 à moins de 12 ans",32,"De 26 à 35 ans"]
[716601,"Infrastructure & Production Informatique","Services Applicatifs et Intégration (SAI)","Intégration de production des applications","IPAB BTG BC & F, SFS Monétique","IPAB BTG BC & F, SFS Monétique","FERAA","ISMAIL","Intégrateur de Production des Applications","2018-06-01","M","2018-06-01","1987-10-30","","Master","BAC+5-INGENIEUR-MASTER-DEA-DESS","Univ Bretagne Occidental / ESTEM","Cadre",2,"De 2 à moins de 5 ans",33,"De 26 à 35 ans"]
[714629,"Infrastructure & Production Informatique","Services Applicatifs et Intégration (SAI)","Intégration de production des applications","IPAB BTG BC & F, SFS Monétique","Responsable IPAB BTG BC & F, SFS Monétique","BEN KHADAJ","BRAHIM","Technical Account Manager","2016-09-15","M","2019-02-21","1977-07-01","","Ingénieur d'état","BAC+5-INGENIEUR-MASTER-DEA-DESS","","CADRE",4,"De 2 à moins de 5 ans",43,"De 36 à 45 ans"]
[714179,"Infrastructure & Production Informatique","Services Applicatifs et Intégration (SAI)","Intégration de production des applications","IPAB OTD","IPAB OTD","KHATTABI","MOHAMED","Intégrateur de Production des Applications","2015-03-04","M","2015-03-04","1989-06-26","","Ingénieur d'application","BAC+4-LICENCE-MAITRISE","EMSI","Cadre",5,"De 5 à moins de 12 ans",31,"De 26 à 35 ans"]
[716406,"Infrastructure & Production Informatique","Services Applicatifs et Intégration (SAI)","Intégration de production des applications","IPAB OTD","IPAB OTD","LARHZIL","AALI","Intégrateur de Production des Applications","2018-02-01","M","2018-02-01","1994-06-06","","Ingénieur d'état","BAC+5-INGENIEUR-MASTER-DEA-DESS","EMI","Cadre",2,"De 2 à moins de 5 ans",26,"De 26 à 35 ans"]
[716462,"Infrastructure & Production Informatique","Services Applicatifs et Intégration (SAI)","Intégration de production des applications","IPAB OTD","IPAB OTD","SOULHI","MOHAMED","Intégrateur de Production des Applications","2020-01-15","M","2020-01-15","1989-02-05","","Ingénieur d'état","BAC+5-INGENIEUR-MASTER-DEA-DESS","ENSA TANGER","Cadre",0,"Moins de 2 ans",31,"De 26 à 35 ans"]
[716831,"Infrastructure & Production Informatique","Services Applicatifs et Intégration (SAI)","Intégration de production des applications","IPAB Pilotage M.Généraux Risques Compliance","IPAB Pilotage M.Généraux Risques Compliance","EL AOUNI","MAHFOUD","Intégrateur de Production des Applications","2018-09-03","M","2018-09-03","1991-09-01","","Ingénieur d'état","BAC+5-INGENIEUR-MASTER-DEA-DESS","AIAC","CADRE",2,"De 2 à moins de 5 ans",29,"De 26 à 35 ans"]
[718119,"Infrastructure & Production Informatique","Services Applicatifs et Intégration (SAI)","Intégration de production des applications","IPAB Pilotage M.Généraux Risques Compliance","IPAB Pilotage M.Généraux Risques Compliance","SHISSAH","KARIMA","Intégrateur de Production des Applications","2020-09-01","F","2020-09-01","1993-05-24","","Master","BAC+5-INGENIEUR-MASTER-DEA-DESS","Univ Tetouan","CADRE",0,"Moins de 2 ans",27,"De 26 à 35 ans"]
[715104,"Infrastructure & Production Informatique","Services Applicatifs et Intégration (SAI)","Intégration de production des applications","IPAB Pilotage M.Généraux Risques Compliance","IPAB Pilotage M.Généraux Risques Compliance","LACHGAR","YASSINE","Intégrateur des flux","2016-06-01","M","2016-06-01","1993-08-30","","Licence Professionnelle","BAC+3-DIPLOME CYCLE NORMAL+LICENCE","EST","Non Cadre",4,"De 2 à moins de 5 ans",27,"De 26 à 35 ans"]
[709024,"Infrastructure & Production Informatique","Services Applicatifs et Intégration (SAI)","Intégration de Production des Applications BDI","A Responsable Intégration de Production des Applications BDI","","KABDI","SOUHAIL","Responsable Intégration de Production des Applications BDI","2008-11-17","M","2008-11-17","1975-07-28","","Ingénieur d'étude et développement","BAC+5-INGENIEUR-MASTER-DEA-DESS","ESG","Cadre",12,"De 12 à moins de 20 ans",45,"De 36 à 45 ans"]
[717807,"Infrastructure & Production Informatique","Services Applicatifs et Intégration (SAI)","Intégration de Production des Applications BDI","Intégration de Production des Applications BDI","","COLY","NICOLAS CHISTIAN","Technical Account Manager","2019-12-02","M","2019-12-02","1980-10-14","","","BAC+5-INGENIEUR-MASTER-DEA-DESS","","CADRE",1,"Moins de 2 ans",40,"De 36 à 45 ans"]
[452348,"Infrastructure & Production Informatique","Services Applicatifs et Intégration (SAI)","Services Applicatifs et Intégration (SAI)","","","LAHROUSSI","FATIHA","CH. DE QUALIF.ET EXPLOIT. FLUX MONETIQUE","2005-06-01","F","2019-02-21","1969-11-27","","Technicien spécialisé","BAC+2-DEUG-BTS-DUT","","CADRE",15,"De 12 à moins de 20 ans",51,"De 46 à 55 ans"]
[716793,"NON AFFECTE","NON AFFECTE","NON AFFECTE","","","FAHLI","YOUSSEF","Chargé d'étude et développement Senior","2018-08-15","M","2018-08-15","1984-01-26","","Master","BAC+5-INGENIEUR-MASTER-DEA-DESS","FST SETTAT","Cadre",2,"De 2 à moins de 5 ans",36,"De 36 à 45 ans"]
[704188,"Production Informatique","Pilotage & Supervision de la Production PSP","Pilotage de l'Exploitation, Optimisation des traitements et pilotage des flux"," Responsable Pilotage de l'Exploitation, Optimisation des traitements et pilotage des flux","","MARZOUKI","YOUSSEF","Responsable Pilotage de l'exploitation, optimisation des traitements et Pilotage des flux","1991-04-22","M","1991-04-22","1965-10-10","","ITB","ITB","Centre de Formation Profes. & Banc.","Cadre",29,"20 ans et plus",55,"De 46 à 55 ans"]
[400686,"Production Informatique","Pilotage & Supervision de la Production PSP","Pilotage de l'Exploitation, Optimisation des traitements et pilotage des flux","Pilotage de l'Exploitation, Optimisation des traitements et pilotage des flux","","FAJRINE","OMAR","Gestionnaire de flux","1989-05-02","M","1989-05-02","1961-10-28","","Niveau BAC + 2","NIVEAU BAC","","Cadre",31,"20 ans et plus",59,"Plus de 55 ans"]
[707591,"Production Informatique","Pilotage & Supervision de la Production PSP","Pilotage de l'Exploitation, Optimisation des traitements et pilotage des flux","Pilotage de l'Exploitation, Optimisation des traitements et pilotage des flux","","BENIHYA","MOHAMED AMINE","Gestionnaire de flux","2007-12-24","M","2007-12-24","1981-12-17","","BAC+4","BAC+4-LICENCE-MAITRISE","IGA","Cadre",13,"De 12 à moins de 20 ans",39,"De 36 à 45 ans"]
[716528,"Production Informatique","Pilotage & Supervision de la Production PSP","Pilotage de l'Exploitation, Optimisation des traitements et pilotage des flux","Pilotage de l'Exploitation, Optimisation des traitements et pilotage des flux","Pilotage Exploitation","LASRY","ACHRAF","Opérateur d'Exploitation","2018-05-02","M","2018-05-02","1997-08-27","","Technicien spécialisé","BAC+2-DEUG-BTS-DUT","ISTA","Non Cadre",2,"De 2 à moins de 5 ans",23,"25 ans et moins"]
[709327,"Production Informatique","Pilotage & Supervision de la Production PSP","Pilotage de l'Exploitation, Optimisation des traitements et pilotage des flux","Pilotage de l'Exploitation, Optimisation des traitements et pilotage des flux","Pilotage Exploitation","BERRISSOUL","ISMAIL","Responsable de Shift","2009-02-20","M","2009-03-02","1984-10-12","","Diplôme réseaux télécoms","BAC+4-LICENCE-MAITRISE","EDHEC","Cadre",11,"De 5 à moins de 12 ans",36,"De 36 à 45 ans"]
[716320,"Production Informatique","Pilotage & Supervision de la Production PSP","Pilotage de l'Exploitation, Optimisation des traitements et pilotage des flux","Pilotage de l'Exploitation, Optimisation des traitements et pilotage des flux","Pilotage Exploitation","MOUATIK","ZAKARIA","Opérateur d'Exploitation","2017-12-15","M","2017-12-15","1992-06-09","","Licence Professionnelle","BAC+3-DIPLOME CYCLE NORMAL+LICENCE","FS AIN CHOCK","Non Cadre",3,"De 2 à moins de 5 ans",28,"De 26 à 35 ans"]
[714983,"Production Informatique","Pilotage & Supervision de la Production PSP","Pilotage de l'Exploitation, Optimisation des traitements et pilotage des flux","Pilotage de l'Exploitation, Optimisation des traitements et pilotage des flux","Pilotage Exploitation","JANAH","ABDERRAZAK","Opérateur d'Exploitation","2016-01-04","M","2016-04-01","1992-11-17","","Licence Professionnelle","BAC+3-DIPLOME CYCLE NORMAL+LICENCE","FST SETTAT","Non Cadre",4,"De 2 à moins de 5 ans",28,"De 26 à 35 ans"]
[713692,"Production Informatique","Pilotage & Supervision de la Production PSP","Pilotage de l'Exploitation, Optimisation des traitements et pilotage des flux","Pilotage de l'Exploitation, Optimisation des traitements et pilotage des flux","Pilotage Exploitation","FADLEDDINE","HAMZA","Opérateur d'Exploitation","2014-06-02","M","2014-06-02","1991-02-17","","Licence Professionnelle","BAC+3-DIPLOME CYCLE NORMAL+LICENCE","FST SETTAT","Non Cadre",6,"De 5 à moins de 12 ans",29,"De 26 à 35 ans"]
[707049,"Production Informatique","Pilotage & Supervision de la Production PSP","Pilotage de l'Exploitation, Optimisation des traitements et pilotage des flux","Pilotage de l'Exploitation, Optimisation des traitements et pilotage des flux","Pilotage Exploitation","KHAZZAR","MUSTAPHA","Opérateur d'Exploitation","2007-01-02","M","2007-01-02","1972-01-07","","Licence","BAC+4-LICENCE-MAITRISE","Univ. Maroc","Cadre",13,"De 12 à moins de 20 ans",48,"De 46 à 55 ans"]
[707128,"Production Informatique","Pilotage & Supervision de la Production PSP","Pilotage de l'Exploitation, Optimisation des traitements et pilotage des flux","Pilotage de l'Exploitation, Optimisation des traitements et pilotage des flux","Pilotage Exploitation","TALIB","MOHAMED","Responsable de Shift","2007-02-15","M","2007-02-15","1972-05-22","","BAC+2","BAC+2-DEUG-BTS-DUT","","Cadre",13,"De 12 à moins de 20 ans",48,"De 46 à 55 ans"]
[707256,"Production Informatique","Pilotage & Supervision de la Production PSP","Pilotage de l'Exploitation, Optimisation des traitements et pilotage des flux","Pilotage de l'Exploitation, Optimisation des traitements et pilotage des flux","Pilotage Exploitation","EL MOUAFFEQ","MOHAMED","Responsable de Shift","2007-05-02","M","2007-05-02","1982-09-11","","DTS","BAC+2-DEUG-BTS-DUT","IGA","CADRE",13,"De 12 à moins de 20 ans",38,"De 36 à 45 ans"]
[37881,"Production Informatique","Pilotage & Supervision de la Production PSP","Pilotage de l'Exploitation, Optimisation des traitements et pilotage des flux","Pilotage de l'Exploitation, Optimisation des traitements et pilotage des flux","Pilotage Exploitation","NOUARI","ABDELAZIZ","Opérateur d'Exploitation","1985-09-16","M","1985-09-16","1966-06-17","","Secondaire","NS","Lycée","Cadre",35,"20 ans et plus",54,"De 46 à 55 ans"]
[770144,"Production Informatique","Pilotage & Supervision de la Production PSP","Pilotage de l'Exploitation, Optimisation des traitements et pilotage des flux","Pilotage de l'Exploitation, Optimisation des traitements et pilotage des flux","Pilotage Exploitation","EL COURT","SAID","Gestionnaire d'exploitation","1998-02-01","M","1998-02-01","1967-06-30","","Secondaire","NS","Lycée","CADRE",22,"20 ans et plus",53,"De 46 à 55 ans"]
[717781,"Production Informatique","Pilotage & Supervision de la Production PSP","Pilotage de l'Exploitation, Optimisation des traitements et pilotage des flux","Pilotage de l'Exploitation, Optimisation des traitements et pilotage des flux","Pilotage Exploitation","JAWAL","REDA","Opérateur d'Exploitation","2019-11-15","M","2019-11-15","1991-03-27","","","BAC+2-DEUG-BTS-DUT","","NON CADRE",1,"Moins de 2 ans",29,"De 26 à 35 ans"]
[717769,"Production Informatique","Pilotage & Supervision de la Production PSP","Pilotage de l'Exploitation, Optimisation des traitements et pilotage des flux","Pilotage de l'Exploitation, Optimisation des traitements et pilotage des flux","Pilotage Exploitation","MORJANI","ANAS","Opérateur d'Exploitation","2019-11-15","M","2019-11-05","1997-07-26","","Licence Professionnelle","BAC+3-DIPLOME CYCLE NORMAL+LICENCE","","NON CADRE",1,"Moins de 2 ans",23,"25 ans et moins"]
[717751,"Production Informatique","Pilotage & Supervision de la Production PSP","Pilotage de l'Exploitation, Optimisation des traitements et pilotage des flux","Pilotage de l'Exploitation, Optimisation des traitements et pilotage des flux","Pilotage Exploitation","SILOUH","MOHAMED","Opérateur d'Exploitation","2019-11-01","M","2019-11-01","1995-01-05","","Licence","BAC+3-DIPLOME CYCLE NORMAL+LICENCE","FST","NON CADRE",1,"Moins de 2 ans",25,"25 ans et moins"]
[716611,"Production Informatique","Pilotage & Supervision de la Production PSP","Pilotage de l'Exploitation, Optimisation des traitements et pilotage des flux","Pilotage de l'Exploitation, Optimisation des traitements et pilotage des flux","Pilotage Exploitation","FATHALLAH","REDA","Opérateur d'Exploitation","2018-06-01","M","2018-06-01","1997-07-25","","Licence Professionnelle","BAC+3-DIPLOME CYCLE NORMAL+LICENCE","FST SETTAT","Non Cadre",2,"De 2 à moins de 5 ans",23,"25 ans et moins"]
[718127,"Production Informatique","Pilotage & Supervision de la Production PSP","Pilotage de l'Exploitation, Optimisation des traitements et pilotage des flux","Pilotage de l'Exploitation, Optimisation des traitements et pilotage des flux","Pilotage Exploitation","ATLASSI","MOHAMMED EL AMINE","Opérateur d'Exploitation","2020-09-01","M","2020-09-01","1996-09-04","","Technicien spécialisé","BAC+3-DIPLOME CYCLE NORMAL+LICENCE","ICF","NON CADRE",0,"Moins de 2 ans",24,"25 ans et moins"]
[703662,"Production Informatique","Pilotage & Supervision de la Production PSP","Pilotage de l'Exploitation, Optimisation des traitements et pilotage des flux","Pilotage de l'Exploitation, Optimisation des traitements et pilotage des flux","Pilotage Exploitation","EL GUASSEM","HAMID","Gestionnaire d'exploitation","1986-02-17","M","1986-02-17","1961-01-01","","BAC","BAC","Lycée","Cadre",34,"20 ans et plus",59,"Plus de 55 ans"]
[718112,"Production Informatique","Pilotage & Supervision de la Production PSP","Pilotage de l'Exploitation, Optimisation des traitements et pilotage des flux","Pilotage de l'Exploitation, Optimisation des traitements et pilotage des flux","Pilotage Exploitation","BOUTA","WALID","Opérateur d'Exploitation","2020-08-03","M","2020-08-03","1995-04-28","","Technicien spécialisé","BAC+2-DEUG-BTS-DUT","OFPTT","NON CADRE",0,"Moins de 2 ans",25,"25 ans et moins"]
[704537,"Production Informatique","Pilotage & Supervision de la Production PSP","Pilotage de l'Exploitation, Optimisation des traitements et pilotage des flux","Pilotage de l'Exploitation, Optimisation des traitements et pilotage des flux","Pilotage Exploitation","DARDARY","MOUNSIF","Gestionnaire d'exploitation","1988-04-01","M","1988-04-01","1960-12-18","31/12/2020","DEUG","BAC+2-DEUG-BTS-DUT","Univ. Maroc","Cadre",32,"20 ans et plus",60,"Plus de 55 ans"]
[716390,"Production Informatique","Pilotage & Supervision de la Production PSP","Pilotage de l'Exploitation, Optimisation des traitements et pilotage des flux","Pilotage de l'Exploitation, Optimisation des traitements et pilotage des flux","Pilotage Exploitation","RHANBOURI","WALID","Opérateur d'Exploitation","2018-01-15","M","2018-01-15","1994-06-22","","Licence","BAC+3-DIPLOME CYCLE NORMAL+LICENCE","FST Marrakech","Non Cadre",2,"De 2 à moins de 5 ans",26,"De 26 à 35 ans"]
[713280,"Production Informatique","Pilotage & Supervision de la Production PSP","Pilotage de l'Exploitation, Optimisation des traitements et pilotage des flux","Pilotage de l'Exploitation, Optimisation des traitements et pilotage des flux","Pilotage Exploitation","HARNOUFI","ZINE ABIDINE","Opérateur d'Exploitation","2013-10-28","M","2013-10-28","1990-08-25","","Technicien spécialisé","BAC+2-DEUG-BTS-DUT","ISTA","Non Cadre",7,"De 5 à moins de 12 ans",30,"De 26 à 35 ans"]
[717444,"Production Informatique","Pilotage & Supervision de la Production PSP","Pilotage de l'Exploitation, Optimisation des traitements et pilotage des flux","Pilotage de l'Exploitation, Optimisation des traitements et pilotage des flux","Pilotage Exploitation","BAISSI","SOUFIANE","Opérateur d'Exploitation","2019-06-03","M","2019-06-03","1995-07-30","","Licence Professionnelle","BAC+3-DIPLOME CYCLE NORMAL+LICENCE","","NON CADRE",1,"Moins de 2 ans",25,"25 ans et moins"]
[713029,"Production Informatique","Pilotage & Supervision de la Production PSP","Pilotage de l'Exploitation, Optimisation des traitements et pilotage des flux","Pilotage de l'Exploitation, Optimisation des traitements et pilotage des flux","Pilotage Exploitation","ABGUAOU","RACHID","Opérateur d'exploitation","2013-06-03","M","2013-06-03","1987-04-18","","Technicien spécialisé","BAC+2-DEUG-BTS-DUT","ISTA","Non Cadre",7,"De 5 à moins de 12 ans",33,"De 26 à 35 ans"]
[713162,"Production Informatique","Pilotage & Supervision de la Production PSP","Pilotage de l'Exploitation, Optimisation des traitements et pilotage des flux","Pilotage de l'Exploitation, Optimisation des traitements et pilotage des flux","Pilotage Exploitation","HAKIM","ZAKARIA","Opérateur d'Exploitation","2013-09-09","M","2013-09-10","1989-12-16","","Licence Professionnelle","BAC+3-DIPLOME CYCLE NORMAL+LICENCE","F BEN MSIK","Non Cadre",7,"De 5 à moins de 12 ans",31,"De 26 à 35 ans"]
[707590,"Production Informatique","Pilotage & Supervision de la Production PSP","Pilotage de l'Exploitation, Optimisation des traitements et pilotage des flux","Pilotage de l'Exploitation, Optimisation des traitements et pilotage des flux","Responsable Pilotage Exploitation","HAMI","ABDELILAH","Responsable Pilotage Exploitation","2007-12-24","M","2007-12-24","1974-07-23","","Ingénieur d'application","BAC+4-LICENCE-MAITRISE","EMSI","Cadre",13,"De 12 à moins de 20 ans",46,"De 46 à 55 ans"]
[15406,"Production Informatique","Pilotage & Supervision de la Production PSP","Supervision"," Responsable Supervision","","ABOUMEJD","ABDESSAMAD","Responsable Supervision","1985-01-07","M","1985-01-07","1963-01-21","","BAC","BAC","Lycée","Cadre",35,"20 ans et plus",57,"Plus de 55 ans"]
[716393,"Production Informatique","Pilotage & Supervision de la Production PSP","Supervision","Supervision","","BAHYA","ILYASS","Superviseur","2018-02-01","M","2018-02-01","1995-10-14","","Technicien spécialisé","BAC+2-DEUG-BTS-DUT","NTIC2","Non Cadre",2,"De 2 à moins de 5 ans",25,"25 ans et moins"]
[716776,"Production Informatique","Pilotage & Supervision de la Production PSP","Supervision","Supervision","","LABYAD","YOUSSEF","Superviseur","2018-08-01","M","2018-08-01","1991-07-28","","Licence Professionnelle","BAC+3-DIPLOME CYCLE NORMAL+LICENCE","FST SETTAT","NON CADRE",2,"De 2 à moins de 5 ans",29,"De 26 à 35 ans"]
[716392,"Production Informatique","Pilotage & Supervision de la Production PSP","Supervision","Supervision","","GHANDI","AYOUB","Superviseur","2018-02-01","M","2018-02-01","1993-01-19","","Licence Professionnelle","BAC+3-DIPLOME CYCLE NORMAL+LICENCE","EST","Non Cadre",2,"De 2 à moins de 5 ans",27,"De 26 à 35 ans"]
[716855,"Production Informatique","Pilotage & Supervision de la Production PSP","Supervision","Supervision","","MANKARI","AYMEN","Superviseur","2018-09-17","M","2018-09-17","1996-12-28","","Licence Professionnelle","BAC+5-INGENIEUR-MASTER-DEA-DESS","FST SETTAT","NON CADRE",2,"De 2 à moins de 5 ans",24,"25 ans et moins"]
[716883,"Production Informatique","Pilotage & Supervision de la Production PSP","Supervision","Supervision","","DAOUJI","YASSINE","Superviseur","2018-10-15","M","2018-10-15","1996-11-16","","Technicien spécialisé","BAC+2-DEUG-BTS-DUT","ISTA HH1","NON CADRE",2,"De 2 à moins de 5 ans",24,"25 ans et moins"]
[401778,"Production Informatique","Pilotage & Supervision de la Production PSP","Supervision","Supervision","","TAHRAOUI","NOUREDDINE","Superviseur","1990-06-11","M","1990-06-11","1961-09-09","","DUT","BAC+2-DEUG-BTS-DUT","","Cadre",30,"20 ans et plus",59,"Plus de 55 ans"]
[716885,"Production Informatique","Pilotage & Supervision de la Production PSP","Supervision","Supervision","","LEHOUIZI","ABDELKARIM","Superviseur","2018-10-15","M","2018-10-15","1997-04-02","","Licence Professionnelle","BAC+3-DIPLOME CYCLE NORMAL+LICENCE","FST SETTAT","NON CADRE",2,"De 2 à moins de 5 ans",23,"25 ans et moins"]
[718087,"Production Informatique","Pilotage & Supervision de la Production PSP","Supervision","Supervision","","BOUSSAIDI","AYOUB","Superviseur","2020-07-01","M","2020-07-01","1995-06-18","","","BAC+3-DIPLOME CYCLE NORMAL+LICENCE","","NON CADRE",0,"Moins de 2 ans",25,"25 ans et moins"]
[717684,"Production Informatique","Pilotage & Supervision de la Production PSP","Supervision","Supervision","","NAFHI","YASSINE","Superviseur","2019-09-16","M","2019-09-16","1997-11-25","","Licence Professionnelle","BAC+3-DIPLOME CYCLE NORMAL+LICENCE","FST SETTAT","NON CADRE",1,"Moins de 2 ans",23,"25 ans et moins"]
[718092,"Production Informatique","Pilotage & Supervision de la Production PSP","Supervision","Supervision","","KARIM","ADIL","Superviseur","2020-07-01","M","2020-07-01","1998-09-08","","","BAC+3-DIPLOME CYCLE NORMAL+LICENCE","","NON CADRE",0,"Moins de 2 ans",22,"25 ans et moins"]
[718109,"Production Informatique","Pilotage & Supervision de la Production PSP","Supervision","Supervision","","ACHKHBAR","TARIK","Superviseur","2020-08-03","M","2020-08-03","1998-07-02","","Technicien en informatique","BAC+2-DEUG-BTS-DUT","OFPTT","NON CADRE",0,"Moins de 2 ans",22,"25 ans et moins"]
[714854,"Production Informatique","Pilotage & Supervision de la Production PSP","Supervision","Supervision","","WAHOUB","ZAKARIA","Superviseur","2016-01-08","M","2016-01-08","1990-11-09","","Licence Professionnelle","BAC+3-DIPLOME CYCLE NORMAL+LICENCE","FST SETTAT","Non Cadre",4,"De 2 à moins de 5 ans",30,"De 26 à 35 ans"]
[717747,"Production Informatique","Pilotage & Supervision de la Production PSP","Supervision","Supervision","","GANDAOUI","ABDERRAMAN","Superviseur","2019-11-01","M","2019-11-01","1996-10-09","","Licence","BAC+3-DIPLOME CYCLE NORMAL+LICENCE","IPI","NON CADRE",1,"Moins de 2 ans",24,"25 ans et moins"]
[707710,"Production Informatique","Support & Services aux utilisateurs ( SSU)"," Support & Services aux utilisateurs ( SSU)","A Responsable Support & Services aux utilisateurs ( SSU)","A Responsable Support & Services aux utilisateurs ( SSU)","HADDAJE","YOUNES","Responsable Support & Services aux utilisateurs ( SSU)","2008-03-17","M","2008-03-17","1974-06-13","","Master IS EEPR","BAC+5-INGENIEUR-MASTER-DEA-DESS","Univ Henry Poincaré","Cadre",12,"De 12 à moins de 20 ans",46,"De 46 à 55 ans"]
[28721,"Production Informatique","Support & Services aux utilisateurs ( SSU)","Assistance en ligne & Support Régions","Assistance en ligne","A Responsable  Assistance en ligne","RAHMOUNI","ABDELLATIF","Responsable Assistance en ligne","1998-12-29","M","1998-12-29","1975-06-01","","DEUG","BAC+2-DEUG-BTS-DUT","Univ. Maroc","Cadre",22,"20 ans et plus",45,"De 36 à 45 ans"]
[717771,"Production Informatique","Support & Services aux utilisateurs ( SSU)","Assistance en ligne & Support Régions","Assistance en ligne","Assistance en ligne","JAMAL EDDINE","RIHAB","Assistant en ligne","2019-11-15","F","2019-11-15","1998-03-24","","Licence Professionnelle","BAC+3-DIPLOME CYCLE NORMAL+LICENCE","","Non Cadre",1,"Moins de 2 ans",22,"25 ans et moins"]
[717443,"Production Informatique","Support & Services aux utilisateurs ( SSU)","Assistance en ligne & Support Régions","Assistance en ligne","Assistance en ligne","HAIDAT","HAJAR","Assistant en ligne","2019-06-03","F","2019-06-03","1996-12-10","","Licence Professionnelle","BAC+3-DIPLOME CYCLE NORMAL+LICENCE","FST","NON CADRE",1,"Moins de 2 ans",24,"25 ans et moins"]
[717439,"Production Informatique","Support & Services aux utilisateurs ( SSU)","Assistance en ligne & Support Régions","Assistance en ligne","Assistance en ligne","SAHRAOUI","ABDELKRIM","Assistant en ligne","2019-06-03","M","2019-06-03","1994-09-08","","Technicien spécialisé","BAC+2-DEUG-BTS-DUT","OFPTT","NON CADRE",1,"Moins de 2 ans",26,"De 26 à 35 ans"]
[718091,"Production Informatique","Support & Services aux utilisateurs ( SSU)","Assistance en ligne & Support Régions","Assistance en ligne","Assistance en ligne","MGHAFRI","AHLAM","Assistant en ligne","2020-07-01","F","2020-07-01","1997-02-04","","","BAC+3-DIPLOME CYCLE NORMAL+LICENCE","","NON CADRE",0,"Moins de 2 ans",23,"25 ans et moins"]
[716670,"Production Informatique","Support & Services aux utilisateurs ( SSU)","Assistance en ligne & Support Régions","Assistance en ligne","Assistance en ligne","FIKRI","ABDELLAH","Assistant en ligne","2018-06-18","M","2018-06-18","1995-04-23","","Technicien spécialisé","BAC+2-DEUG-BTS-DUT","ISTA","Non Cadre",2,"De 2 à moins de 5 ans",25,"25 ans et moins"]
[716663,"Production Informatique","Support & Services aux utilisateurs ( SSU)","Assistance en ligne & Support Régions","Assistance en ligne","Assistance en ligne","RAKHI","ABDELHAK","Assistant en ligne","2018-06-18","M","2018-06-18","1998-01-06","","Technicien spécialisé","BAC+2-DEUG-BTS-DUT","NTIC2","Non Cadre",2,"De 2 à moins de 5 ans",22,"25 ans et moins"]
[718085,"Production Informatique","Support & Services aux utilisateurs ( SSU)","Assistance en ligne & Support Régions","Assistance en ligne","Assistance en ligne","ELWARDI","ZAKARIA","Assistant en ligne","2020-07-01","M","2020-07-01","1999-01-31","","","BAC+3-DIPLOME CYCLE NORMAL+LICENCE","","NON CADRE",0,"Moins de 2 ans",21,"25 ans et moins"]
[718088,"Production Informatique","Support & Services aux utilisateurs ( SSU)","Assistance en ligne & Support Régions","Assistance en ligne","Assistance en ligne","LAOULIDI","MAJIDA","Assistant en ligne","2020-07-01","F","2020-07-01","1998-07-08","","","BAC+3-DIPLOME CYCLE NORMAL+LICENCE","","NON CADRE",0,"Moins de 2 ans",22,"25 ans et moins"]
[718090,"Production Informatique","Support & Services aux utilisateurs ( SSU)","Assistance en ligne & Support Régions","Assistance en ligne","Assistance en ligne","ERREBBAH","ABDELILAH","Assistant en ligne","2020-07-01","M","2020-07-01","1999-03-21","","","BAC+3-DIPLOME CYCLE NORMAL+LICENCE","","NON CADRE",0,"Moins de 2 ans",21,"25 ans et moins"]
[717698,"Production Informatique","Support & Services aux utilisateurs ( SSU)","Assistance en ligne & Support Régions","Assistance en ligne","Assistance en ligne","BANAICHE","ABDELALI","Assistant en ligne","2019-10-01","M","2019-10-01","1999-02-07","","Technicien spécialisé","BAC+2-DEUG-BTS-DUT","OFPTT ISTA","NON CADRE",1,"Moins de 2 ans",21,"25 ans et moins"]
[718128,"Production Informatique","Support & Services aux utilisateurs ( SSU)","Assistance en ligne & Support Régions","Assistance en ligne","Assistance en ligne","ANIBA","HIBA","Assistant en ligne","2020-09-01","F","2020-09-01","1998-10-22","","","BAC+2-DEUG-BTS-DUT","","NON CADRE",0,"Moins de 2 ans",22,"25 ans et moins"]
[718021,"Production Informatique","Support & Services aux utilisateurs ( SSU)","Assistance en ligne & Support Régions","Assistance en ligne","Assistance en ligne","ABOUHILAL","AYOUB","Assistant en ligne","2020-03-18","M","2020-03-18","1997-11-09","","Licence Professionnelle","BAC+3-DIPLOME CYCLE NORMAL+LICENCE","FST","NON CADRE",0,"Moins de 2 ans",23,"25 ans et moins"]
[718142,"Production Informatique","Support & Services aux utilisateurs ( SSU)","Assistance en ligne & Support Régions","Assistance en ligne","Assistance en ligne","FADIL","ILHAM","Assistant en ligne","2020-10-01","F","2020-10-01","2000-07-07","","","BAC+2-DEUG-BTS-DUT","","NON CADRE",0,"Moins de 2 ans",20,"25 ans et moins"]
[716441,"Production Informatique","Support & Services aux utilisateurs ( SSU)","Assistance en ligne & Support Régions","Assistance en ligne","Assistance en ligne","KHDAD","OUMAYMA","Assistant en ligne","2018-03-15","F","2018-03-15","1996-07-02","","Licence Génie Civil","BAC+3-DIPLOME CYCLE NORMAL+LICENCE","FST","Non Cadre",2,"De 2 à moins de 5 ans",24,"25 ans et moins"]
[717263,"Production Informatique","Support & Services aux utilisateurs ( SSU)","Assistance en ligne & Support Régions","Assistance en ligne","Assistance en ligne","AKHSSASSI","SOUFIANE","Assistant en ligne","2019-03-15","M","2019-03-15","1996-02-14","","Technicien spécialisé","BAC+2-DEUG-BTS-DUT","","NON CADRE",1,"Moins de 2 ans",24,"25 ans et moins"]
[717266,"Production Informatique","Support & Services aux utilisateurs ( SSU)","Assistance en ligne & Support Régions","Assistance en ligne","Assistance en ligne","BOUSETTA","MOHAMED","Assistant en ligne","2019-03-15","M","2019-03-15","1996-05-25","","Technicien spécialisé","BAC+2-DEUG-BTS-DUT","","NON CADRE",1,"Moins de 2 ans",24,"25 ans et moins"]
[717264,"Production Informatique","Support & Services aux utilisateurs ( SSU)","Assistance en ligne & Support Régions","Assistance en ligne","Assistance en ligne","ELMAATAOUI","ABDELKODDOUS","Assistant en ligne","2019-03-15","M","2019-03-15","1998-03-29","","Technicien spécialisé","BAC+2-DEUG-BTS-DUT","","NON CADRE",1,"Moins de 2 ans",22,"25 ans et moins"]
[717788,"Production Informatique","Support & Services aux utilisateurs ( SSU)","Assistance en ligne & Support Régions","Assistance en ligne","Office 365","WAHID","REDA","Assistant en ligne","2019-12-02","M","2019-12-02","1999-03-31","","","BAC+2-DEUG-BTS-DUT","","NON CADRE",1,"Moins de 2 ans",21,"25 ans et moins"]
[717699,"Production Informatique","Support & Services aux utilisateurs ( SSU)","Assistance en ligne & Support Régions","Assistance en ligne","Office 365","NAMA","YOUSSEF","Assistant en ligne","2019-10-01","M","2019-10-01","1999-06-22","","Technicien spécialisé","BAC+2-DEUG-BTS-DUT","OFPTT ISTA","NON CADRE",1,"Moins de 2 ans",21,"25 ans et moins"]
[716994,"Production Informatique","Support & Services aux utilisateurs ( SSU)","Assistance en ligne & Support Régions","Assistance en ligne","Office 365","ZEHDI","YOUSSEF","Assistant en ligne","2018-11-15","M","2018-11-15","1995-06-10","","","BAC+2-DEUG-BTS-DUT","","NON CADRE",2,"De 2 à moins de 5 ans",25,"25 ans et moins"]
[717700,"Production Informatique","Support & Services aux utilisateurs ( SSU)","Assistance en ligne & Support Régions","Assistance en ligne","Office 365","OUMESLAKHT","TARIK","Assistant en ligne","2019-10-01","M","2019-10-01","1999-07-02","","Technicien spécialisé","BAC+2-DEUG-BTS-DUT","OFPTT ISTA","NON CADRE",1,"Moins de 2 ans",21,"25 ans et moins"]
[717772,"Production Informatique","Support & Services aux utilisateurs ( SSU)","Assistance en ligne & Support Régions","Assistance en ligne","Office 365","NACER","AYOUB","Assistant en ligne","2019-11-15","M","2019-11-15","1994-02-01","","Technicien spécialisé","BAC+2-DEUG-BTS-DUT","","NON CADRE",1,"Moins de 2 ans",26,"De 26 à 35 ans"]
[39473,"Production Informatique","Support & Services aux utilisateurs ( SSU)","Assistance en ligne & Support Régions","Support  Grand Casa","A Responsable Support  Grand Casa","MAFTOUH","OMAR","Responsable Régions Service Desk","1992-08-10","M","1992-08-10","1962-04-19","","Ingénieur d'application","BAC+4-LICENCE-MAITRISE","ESTEM","Cadre",28,"20 ans et plus",58,"Plus de 55 ans"]
[714431,"Production Informatique","Support & Services aux utilisateurs ( SSU)","Assistance en ligne & Support Régions","Support  Grand Casa","Office 365","BUIZ","ABDLILAH","Chargé support technique Service Desk","2015-07-01","M","2015-07-01","1994-06-14","","Technicien spécialisé","BAC+2-DEUG-BTS-DUT","ISTA ISIG","Non Cadre",5,"De 5 à moins de 12 ans",26,"De 26 à 35 ans"]
[714096,"Production Informatique","Support & Services aux utilisateurs ( SSU)","Assistance en ligne & Support Régions","Support  Grand Casa","Support  Grand Casa SF","BALLOUCH","ZAINAB","Chargé Support Fonctionnel Service Desk","2014-12-15","F","2014-12-15","1994-02-18","","Technicien spécialisé  + Master","BAC+5-INGENIEUR-MASTER-DEA-DESS","ISTA","Non Cadre",6,"De 5 à moins de 12 ans",26,"De 26 à 35 ans"]
[400697,"Production Informatique","Support & Services aux utilisateurs ( SSU)","Assistance en ligne & Support Régions","Support  Grand Casa","Support  Grand Casa SF","FARTAS","BOUCHAIB","Chargé Support Fonctionnel Service Desk","1987-12-15","M","1987-12-15","1964-09-07","","CAB","CAB","Centre de Formation Profes. & Banc.","Cadre",33,"20 ans et plus",56,"Plus de 55 ans"]
[770164,"Production Informatique","Support & Services aux utilisateurs ( SSU)","Assistance en ligne & Support Régions","Support  Grand Casa","Support  Grand Casa SF","AZMI","ADIL","Chargé support technique Service Desk","2000-03-01","M","2000-03-01","1975-04-06","","Secondaire","NS","Lycée","Non Cadre",20,"20 ans et plus",45,"De 36 à 45 ans"]
[704564,"Production Informatique","Support & Services aux utilisateurs ( SSU)","Assistance en ligne & Support Régions","Support  Grand Casa","Support  Grand Casa ST","BOUIHOUCHAMA","NAIM","Chargé Support Fonctionnel Service Desk","1988-08-01","M","1988-08-01","1963-11-03","","Secondaire","NS","Lycée","Cadre",32,"20 ans et plus",57,"Plus de 55 ans"]
[716194,"Production Informatique","Support & Services aux utilisateurs ( SSU)","Assistance en ligne & Support Régions","Support  Grand Casa","Support  Grand Casa ST","MABROUK","MAROUANE","Chargé support technique Service Desk","2017-10-09","M","2017-10-09","1992-02-10","","Technicien spécialisé","BAC+2-DEUG-BTS-DUT","ESIA","Non Cadre",3,"De 2 à moins de 5 ans",28,"De 26 à 35 ans"]
[713559,"Production Informatique","Support & Services aux utilisateurs ( SSU)","Assistance en ligne & Support Régions","Support  Grand Casa","Support  Grand Casa ST","MHAIDI","TAOUFIK","Chargé support technique Service Desk","2014-02-17","M","2014-02-17","1991-11-06","","DTS","BAC+2-DEUG-BTS-DUT","ISTA","Non Cadre",6,"De 5 à moins de 12 ans",29,"De 26 à 35 ans"]
[716777,"Production Informatique","Support & Services aux utilisateurs ( SSU)","Assistance en ligne & Support Régions","Support  Grand Casa","Support  Grand Casa ST1","KHATTABI","ABDELHAK","Chargé support technique Service Desk","2018-08-01","M","2018-08-02","1983-11-18","","Technicien spécialisé","BAC+2-DEUG-BTS-DUT","EURIATECH","Non Cadre",2,"De 2 à moins de 5 ans",37,"De 36 à 45 ans"]
[401723,"Production Informatique","Support & Services aux utilisateurs ( SSU)","Assistance en ligne & Support Régions","Support Nord Est & YEM","A Responsable Support Nord Est & YEM","TALBI","DRISS","Responsable Régions Service Desk","1999-03-01","M","1999-03-01","1972-10-08","","Licence","BAC+4-LICENCE-MAITRISE","Univ. Maroc","Cadre",21,"20 ans et plus",48,"De 46 à 55 ans"]
[714160,"Production Informatique","Support & Services aux utilisateurs ( SSU)","Assistance en ligne & Support Régions","Support Nord Est & YEM","Support Nord Est & YEM","GHANDI","NEZHA","Chargé Support Fonctionnel Service Desk","2015-02-02","F","2015-02-02","1990-05-03","","Technicien spécialisé + Licence prof + master","BAC+5-INGENIEUR-MASTER-DEA-DESS","ISTA NTIC","Non Cadre",5,"De 5 à moins de 12 ans",30,"De 26 à 35 ans"]
[716381,"Production Informatique","Support & Services aux utilisateurs ( SSU)","Assistance en ligne & Support Régions","Support Nord Est & YEM","Support Nord Est & YEM","SEMMOUZI","SOFIA","Chargé support technique Service Desk","2018-01-15","M","2018-01-15","1993-08-03","","Licence Professionnelle  + Master","BAC+5-INGENIEUR-MASTER-DEA-DESS","FST SETTAT","Non Cadre",2,"De 2 à moins de 5 ans",27,"De 26 à 35 ans"]
[714829,"Production Informatique","Support & Services aux utilisateurs ( SSU)","Assistance en ligne & Support Régions","Support Nord Est & YEM","Support Nord Est & YEM SF","SERADNI","FATIMA ZAHRA","Chargé Support Fonctionnel Service Desk","2016-01-12","F","2016-01-12","1990-05-24","","Licence Professionnelle","BAC+3-DIPLOME CYCLE NORMAL+LICENCE","FST AIN CHOK","Non Cadre",4,"De 2 à moins de 5 ans",30,"De 26 à 35 ans"]
[46107,"Production Informatique","Support & Services aux utilisateurs ( SSU)","Assistance en ligne & Support Régions","Support Nord Est & YEM","Support Nord Est & YEM SF","ELLOUIZ","KHALID","Chargé Support Fonctionnel Service Desk","2003-12-08","M","2003-12-08","1980-04-04","","Ingénieur d'application","BAC+4-LICENCE-MAITRISE","ESTEM","Cadre",17,"De 12 à moins de 20 ans",40,"De 36 à 45 ans"]
[709608,"Production Informatique","Support & Services aux utilisateurs ( SSU)","Assistance en ligne & Support Régions","Support Nord Ouest","A Responsable Support Nord Ouest","EL BOUDLALI","YOUNES","Responsable Régions Service Desk","2007-09-17","M","2007-09-17","1984-02-03","","BAC+2","BAC+2-DEUG-BTS-DUT","","CADRE",13,"De 12 à moins de 20 ans",36,"De 36 à 45 ans"]
[714175,"Production Informatique","Support & Services aux utilisateurs ( SSU)","Assistance en ligne & Support Régions","Support Nord Ouest","Office 365","HARIS","SALMA","Chargé support technique Service Desk","2015-02-16","F","2015-02-16","1991-06-05","","Licence + Master","BAC+5-INGENIEUR-MASTER-DEA-DESS","FSEJ","Non Cadre",5,"De 5 à moins de 12 ans",29,"De 26 à 35 ans"]
[716385,"Production Informatique","Support & Services aux utilisateurs ( SSU)","Assistance en ligne & Support Régions","Support Nord Ouest","Support Nord Ouest","CHTIOUI","AHMED","Chargé Support Fonctionnel Service Desk","2018-01-15","M","2018-01-15","1993-01-07","","Technicien spécialisé","BAC+2-DEUG-BTS-DUT","","Non Cadre",2,"De 2 à moins de 5 ans",27,"De 26 à 35 ans"]
[37926,"Production Informatique","Support & Services aux utilisateurs ( SSU)","Assistance en ligne & Support Régions","Support Nord Ouest","Support Nord Ouest  ST1","AMMOR","ZOUHEIR","Chargé Support Fonctionnel Service Desk","1986-05-20","M","1986-05-20","1961-09-13","","Secondaire","NS","Lycée","Cadre",34,"20 ans et plus",59,"Plus de 55 ans"]
[707972,"Production Informatique","Support & Services aux utilisateurs ( SSU)","Assistance en ligne & Support Régions","Support Sud & Sud ouest","A Responsable Support Sud & Sud ouest","ADALLA","HICHAM","Responsable Régions Service Desk","2008-08-18","M","2008-08-04","1979-12-21","","Ingénieur d'application en Informatique","BAC+5-INGENIEUR-MASTER-DEA-DESS","Univer Techn de KOVROV Russie","Cadre",12,"De 12 à moins de 20 ans",41,"De 36 à 45 ans"]
[716445,"Production Informatique","Support & Services aux utilisateurs ( SSU)","Assistance en ligne & Support Régions","Support Sud & Sud ouest","Office 365","TAKI","ACHRAF","Chargé support technique Service Desk","2018-04-02","M","2018-04-02","1991-12-24","","","BAC+3-DIPLOME CYCLE NORMAL+LICENCE","","Non Cadre",2,"De 2 à moins de 5 ans",29,"De 26 à 35 ans"]
[713122,"Production Informatique","Support & Services aux utilisateurs ( SSU)","Assistance en ligne & Support Régions","Support Sud & Sud ouest","Support Sud & Sud ouest ST","AMZIL","HANANE","Chargé Support Fonctionnel","2013-07-17","F","2013-07-17","1991-04-27","","Technicien Spécialisé","BAC+2-DEUG-BTS-DUT","CFMOTI","Non Cadre",7,"De 5 à moins de 12 ans",29,"De 26 à 35 ans"]
[714432,"Production Informatique","Support & Services aux utilisateurs ( SSU)","Assistance en ligne & Support Régions","Support Sud & Sud ouest","Support Sud & Sud ouest ST","KBAILI","MERIEM","Chargé support technique Service Desk","2015-07-01","F","2015-07-01","1992-07-26","","Licence  + Master","BAC+5-INGENIEUR-MASTER-DEA-DESS","SUP TECHNOLOGY","Non Cadre",5,"De 5 à moins de 12 ans",28,"De 26 à 35 ans"]
[716255,"Production Informatique","Support & Services aux utilisateurs ( SSU)","Assistance en ligne & Support Régions","Support Sud & Sud ouest","Support Sud & Sud ouest ST","AMINE","OUMAYMA","Chargé support technique Service Desk","2017-11-01","F","2017-11-01","1994-11-20","","Licence Professionnelle","BAC+3-DIPLOME CYCLE NORMAL+LICENCE","","Non Cadre",3,"De 2 à moins de 5 ans",26,"De 26 à 35 ans"]
[716647,"Production Informatique","Support & Services aux utilisateurs ( SSU)","Déploiements, Coordination & Gestion des Prestataires","Déploiements, Coordination & Gestion des Prestataires","Déploiements, Coordination & Gestion des Prestataires","RIFLA","SAMAH","Chargé de projets et déploiement","2018-06-18","F","2018-06-18","1996-08-18","","Licence Professionnelle","BAC+3-DIPLOME CYCLE NORMAL+LICENCE","EST","Non Cadre",2,"De 2 à moins de 5 ans",24,"25 ans et moins"]
[717203,"Production Informatique","Support & Services aux utilisateurs ( SSU)","Déploiements, Coordination & Gestion des Prestataires","Déploiements, Coordination & Gestion des Prestataires","Déploiements, Coordination & Gestion des Prestataires","TOUIBGUI","MEHDI","Chargé de projets et déploiement","2019-03-01","M","2019-03-01","1990-04-27","","Technicien spécialisé","BAC+2-DEUG-BTS-DUT","ISTA","NON CADRE",1,"Moins de 2 ans",30,"De 26 à 35 ans"]
[453123,"Production Informatique","Support & Services aux utilisateurs ( SSU)","Déploiements, Coordination & Gestion des Prestataires","Déploiements, Coordination & Gestion des Prestataires","Déploiements, Coordination & Gestion des Prestataires","BOUALAM","CHAKIB","Chargé qualité service desk","2005-06-01","M","2019-02-21","1977-06-08","","Technicien spécialisé","BAC+2-DEUG-BTS-DUT","","CADRE",15,"De 12 à moins de 20 ans",43,"De 36 à 45 ans"]
[704142,"Production Informatique","Support & Services aux utilisateurs ( SSU)","Déploiements, Coordination & Gestion des Prestataires","Déploiements, Coordination & Gestion des Prestataires","Déploiements, Coordination & Gestion des Prestataires","FEKAK","KHALID","Chargé de projets et déploiement","1991-04-08","M","1991-04-08","1964-05-01","","BTS","BAC+2-DEUG-BTS-DUT","IGA","Cadre",29,"20 ans et plus",56,"Plus de 55 ans"]
[709163,"Production Informatique","Support & Services aux utilisateurs ( SSU)","Gestion du Parc Matériel","A Responsable Gestion du Parc Matériel","A Responsable Gestion du Parc Matériel","DOULFAKAR","MERYEM","Responsable du parc Informatique","2008-11-20","F","2009-01-05","1971-12-22","","BAC+4","BAC+4-LICENCE-MAITRISE","ENIM TUNIS","Cadre",12,"De 12 à moins de 20 ans",49,"De 46 à 55 ans"]
[709610,"Production Informatique","Support & Services aux utilisateurs ( SSU)","Gestion du Parc Matériel","Gestion du Parc Matériel","Gestion du Parc Matériel","EL BOUATI","FATIM ZAHRA","Chargé du parc Informatique","2008-06-18","F","2008-06-18","1984-02-18","","DTS","BAC+2-DEUG-BTS-DUT","CETEC","Non Cadre",12,"De 12 à moins de 20 ans",36,"De 36 à 45 ans"]
[401687,"Production Informatique","Support & Services aux utilisateurs ( SSU)","Gestion du Parc Matériel","Gestion du Parc Matériel","Gestion du Parc Matériel","AIT SAID","ABDERRAHMANE","Chargé du parc Informatique","1999-05-24","M","1999-05-24","1970-05-02","","Secondaire","NS","Lycée","CADRE",21,"20 ans et plus",50,"De 46 à 55 ans"]
[718089,"Production Informatique","Support & Services aux utilisateurs ( SSU)","Gestion du Parc Matériel","Gestion du Parc Matériel","Gestion du Parc Matériel","MATAR","REDA","Chargé du parc Informatique","2020-07-01","M","2020-07-01","1998-04-02","","Licence","BAC+3-DIPLOME CYCLE NORMAL+LICENCE","FST SETTAT","NON CADRE",0,"Moins de 2 ans",22,"25 ans et moins"]
[716043,"Sécurité  des SI Groupe","A Sécurité  des SI Groupe","A Responsable Sécurité  des SI Groupe","","","FAIK","HICHAM","Responsable Sécurité  des SI Groupe","2017-08-15","M","2017-08-15","1977-03-06","","Ingénieur d'état","BAC+5-INGENIEUR-MASTER-DEA-DESS","EHTP","Cadre",3,"De 2 à moins de 5 ans",43,"De 36 à 45 ans"]
[708089,"Sécurité  des SI Groupe","Analyse des menaces et veille","Analyse des menaces et veille","","","QAISAR","MOHAMMED","Responsable du centre Opérationnel de Supervision Sécurité","2008-09-29","M","2008-09-29","1969-08-08","","Licence en S Inf et Master en cours","BAC+5-INGENIEUR-MASTER-DEA-DESS","Unive Maroc","Cadre",12,"De 12 à moins de 20 ans",51,"De 46 à 55 ans"]
[717931,"Sécurité  des SI Groupe","Analyse des menaces et veille","Analyse des menaces et veille","","","RAJI","ANAS","Analyste Supervision Opérationnelle de la Sécurité - T1","2020-02-17","M","2020-02-17","1995-08-16","","Ingénieur d'état","BAC+5-INGENIEUR-MASTER-DEA-DESS","ENSA SAFI","CADRE",0,"Moins de 2 ans",25,"25 ans et moins"]
[716847,"Sécurité  des SI Groupe","Analyse des menaces et veille","Analyse des menaces et veille","","","EL ALLIOUI","MOSTAFA","Analyste Supervision Opérationnelle de la Sécurité - T1","2018-09-17","M","2018-09-17","1995-01-28","","Ingénieur d'état","BAC+5-INGENIEUR-MASTER-DEA-DESS","ENSA","CADRE",2,"De 2 à moins de 5 ans",25,"25 ans et moins"]
[717729,"Sécurité  des SI Groupe","Analyse des menaces et veille","Analyse des menaces et veille","","","JANNAT","TAHA","Analyste Supervision Opérationnelle de la Sécurité - T1","2019-10-15","M","2019-10-15","1994-03-29","","Master","BAC+5-INGENIEUR-MASTER-DEA-DESS","ENSA KENITRA","CADRE",1,"Moins de 2 ans",26,"De 26 à 35 ans"]
[718000,"Sécurité  des SI Groupe","Analyse des menaces et veille","Analyse des menaces et veille","","","LAHOUANI","ABDELKBIR","Analyste Supervision Opérationnelle de la Sécurité - T1","2020-03-02","M","2020-03-02","1996-12-28","","Ingénieur d'état","BAC+5-INGENIEUR-MASTER-DEA-DESS","ENSA KHOURIBGA","CADRE",0,"Moins de 2 ans",24,"25 ans et moins"]
[717992,"Sécurité  des SI Groupe","Analyse des menaces et veille","Analyse des menaces et veille","","","EL HAJJOUI","HOUSSAM","Analyste Supervision Opérationnelle de la Sécurité - T2","2020-03-02","M","2020-03-02","1991-04-29","","Ingénieur d'état","BAC+5-INGENIEUR-MASTER-DEA-DESS","ENSA EL JADIDA","CADRE",0,"Moins de 2 ans",29,"De 26 à 35 ans"]
[716267,"Sécurité  des SI Groupe","Analyse des menaces et veille","Analyse des menaces et veille","","","KADADRY","ANWAR","Ingénieur Analyse forensique et Réponse aux incidents sécurité","2017-11-15","M","2017-11-15","1988-02-07","","Master","BAC+5-INGENIEUR-MASTER-DEA-DESS","ESC LILLE","Cadre",3,"De 2 à moins de 5 ans",32,"De 26 à 35 ans"]
[716518,"Sécurité  des SI Groupe","Management de la Sécurité","a Responsable Management de la Sécurité","","","ESSAMI","FATIMA EZZAHRA","Responsable Pôle management de la Sécurité des SI","2018-05-02","F","2018-05-02","1986-10-10","","Ingénieur d'état","BAC+5-INGENIEUR-MASTER-DEA-DESS","ENIM","Cadre",2,"De 2 à moins de 5 ans",34,"De 26 à 35 ans"]
[717725,"Sécurité  des SI Groupe","Management de la Sécurité","Management de la Sécurité","","","BOUGAZE","YOUSSRA","Ingénieur Gouvernance Sécurité des SI","2019-10-15","F","2019-10-15","1994-09-26","","Ingénieur d'état","BAC+5-INGENIEUR-MASTER-DEA-DESS","EMI","CADRE",1,"Moins de 2 ans",26,"De 26 à 35 ans"]
[718079,"Sécurité  des SI Groupe","Management de la Sécurité","Management de la Sécurité","","","CHAFRA","KAWTAR","Ingénieur Gouvernance Sécurité des SI Junior","2020-07-01","F","2020-07-01","1995-05-20","","Ingénieur d'état","BAC+5-INGENIEUR-MASTER-DEA-DESS","ENSIAS","CADRE",0,"Moins de 2 ans",25,"25 ans et moins"]
[718117,"Sécurité  des SI Groupe","Management de la Sécurité","Management de la Sécurité","","","MARHOUSS","HANANE","Ingénieur Gouvernance Sécurité des SI Junior","2020-09-01","F","2020-09-01","1997-06-24","","Ingénieur d'état","BAC+5-INGENIEUR-MASTER-DEA-DESS","EMI","CADRE",0,"Moins de 2 ans",23,"25 ans et moins"]
[716870,"Sécurité  des SI Groupe","Pilotage Sécurité Filiales"," Responsable Pilotage Sécurité Filiales","","","GUENNOUNI","HASNAE","Responsable Pilotage Sécurité Filiales","2018-10-01","F","2018-10-01","1987-11-26","","Ingénieur d'état","BAC+5-INGENIEUR-MASTER-DEA-DESS","ENSA TANGER","CADRE",2,"De 2 à moins de 5 ans",33,"De 26 à 35 ans"]
[718077,"Sécurité  des SI Groupe","Pilotage Sécurité Filiales","Pilotage Sécurité Filiales","","","TAZI","FERDAOUSSE","Ingénieur Gouvernance Sécurité des SI Sénior","2020-07-01","F","2020-07-01","1984-04-17","","Master","BAC+5-INGENIEUR-MASTER-DEA-DESS","ENSIAS","CADRE",0,"Moins de 2 ans",36,"De 36 à 45 ans"]
[718126,"Sécurité  des SI Groupe","Pilotage Sécurité Filiales","Pilotage Sécurité Filiales","","","EL FASSI","ACHRAF","Ingénieur Gouvernance Sécurité des SI Sénior","2020-09-01","M","2020-09-01","1979-05-23","","Master","BAC+5-INGENIEUR-MASTER-DEA-DESS","INT INF LIMOGES","CADRE",0,"Moins de 2 ans",41,"De 36 à 45 ans"]
[709397,"Sécurité  des SI Groupe","Sécurité Opérationnelle","a Responsable Sécurité Opérationnelle","","","BENHMAMMOUCH","Mohamed","Responsable Sécurité Opérationnelle Groupe","2009-02-18","M","2009-03-16","1983-10-01","","Ingénieur sécurité systéme","BAC+4-LICENCE-MAITRISE","EMSI","Cadre",11,"De 5 à moins de 12 ans",37,"De 36 à 45 ans"]
[717775,"Sécurité  des SI Groupe","Sécurité Opérationnelle","Sécurité Opérationnelle","","","NDAW","HABIBOU","Administrateur Sécurité Opérationnelle","2019-11-01","M","2019-11-01","1995-10-23","","Master","BAC+5-INGENIEUR-MASTER-DEA-DESS","","CADRE",1,"Moins de 2 ans",25,"25 ans et moins"]
[718110,"Sécurité  des SI Groupe","Sécurité Opérationnelle","Sécurité Opérationnelle","","","NHIR","YOUSSEF","Administrateur Sécurité Opérationnelle","2020-08-03","M","2020-08-03","1999-10-05","","Technicien spécialisé","BAC+2-DEUG-BTS-DUT","OFPTT","NON CADRE",0,"Moins de 2 ans",21,"25 ans et moins"]
[718111,"Sécurité  des SI Groupe","Sécurité Opérationnelle","Sécurité Opérationnelle","","","MEKKAOUI","HANANE","Administrateur Sécurité Opérationnelle","2020-08-03","F","2020-08-03","1997-03-24","","Technicien spécialisé","BAC+2-DEUG-BTS-DUT","OFPTT","NON CADRE",0,"Moins de 2 ans",23,"25 ans et moins"]
[716922,"Sécurité  des SI Groupe","Sécurité Opérationnelle","Sécurité Opérationnelle","","","KERMICHE","AICHA","Ingénieur Sécurité Opérationnelle des applications","2018-10-15","F","2018-10-15","1993-06-13","","Ingénieur d'état","BAC+5-INGENIEUR-MASTER-DEA-DESS","Ecole Polytechnique d'Agadir","CADRE",2,"De 2 à moins de 5 ans",27,"De 26 à 35 ans"]
[717000,"Sécurité  des SI Groupe","Sécurité Opérationnelle","Sécurité Opérationnelle","","","NAJIM","MERIEM","Ingénieur Sécurité  Opérationnelle des données","2018-12-03","F","2018-12-03","1988-02-26","","Master","BAC+5-INGENIEUR-MASTER-DEA-DESS","ESEM","CADRE",2,"De 2 à moins de 5 ans",32,"De 26 à 35 ans"]
[716466,"Sécurité  des SI Groupe","Sécurité Opérationnelle","Sécurité Opérationnelle","","","CHOUHBI","TAHA YASSINE","Ingénieur Cybersécurité Pentesteur","2018-04-02","M","2018-04-02","1991-12-15","","Ingénieur","BAC+5-INGENIEUR-MASTER-DEA-DESS","Institut Vinci","Cadre",2,"De 2 à moins de 5 ans",29,"De 26 à 35 ans"]
[718081,"Sécurité  des SI Groupe","Sécurité Opérationnelle","Sécurité Opérationnelle","","","LOTFI","HAJAR","Administrateur Sécurité Opérationnelle","2020-07-01","M","2020-07-01","1994-05-27","","Ingénieur + Master","BAC+5-INGENIEUR-MASTER-DEA-DESS","ENSA ISIMA","CADRE",0,"Moins de 2 ans",26,"De 26 à 35 ans"]
[718047,"Sécurité  des SI Groupe","Sécurité Opérationnelle","Sécurité Opérationnelle","","","HADDAOUI","OTHMANE","Administrateur Sécurité Opérationnelle","2020-04-01","M","2020-04-01","1993-01-07","","Master","BAC+5-INGENIEUR-MASTER-DEA-DESS","Univer Int de Rabat","CADRE",0,"Moins de 2 ans",27,"De 26 à 35 ans"]
[718136,"Sécurité  des SI Groupe","Sécurité Opérationnelle","Sécurité Opérationnelle","","","BENLKHDIM","AZHAR","Ingénieur Sécurité Opérationnelle des Applications","2020-09-15","M","2020-09-15","1996-01-03","","","BAC+5-INGENIEUR-MASTER-DEA-DESS","","CADRE",0,"Moins de 2 ans",24,"25 ans et moins"]
[712773,"Sécurité  des SI Groupe","Sécurité Opérationnelle","Sécurité Opérationnelle","","","MOURID","YOUNESS","Administrateur Sécurité Opérationnelle","2013-02-04","M","2013-02-04","1988-12-04","","Technicien","BAC+2-DEUG-BTS-DUT","ISTA","Non Cadre",7,"De 5 à moins de 12 ans",32,"De 26 à 35 ans"]
[717774,"Sécurité  des SI Groupe","Sécurité Opérationnelle","Sécurité Opérationnelle","","","LO","MASSABA BATHIE","Administrateur Sécurité Opérationnelle","2019-11-01","M","2019-11-01","1987-07-07","","Master","BAC+5-INGENIEUR-MASTER-DEA-DESS","LIMOGES","CADRE",1,"Moins de 2 ans",33,"De 26 à 35 ans"]
[401734,"Sécurité  des SI Groupe","Sécurité Opérationnelle","Sécurité Opérationnelle","","","MORJANE","KAMAL","Ingénieur Sécurité Opérationnelle","1999-01-02","M","1999-01-02","1973-08-12","","Ingénieur d'application","BAC+4-LICENCE-MAITRISE","ESTEM","Cadre",21,"20 ans et plus",47,"De 46 à 55 ans"]
[710710,"Sécurité  des SI Groupe","Sécurité Opérationnelle","Sécurité Opérationnelle","","","KOURI","MOHAMED","Administrateur Sécurité Opérationnelle","2010-06-14","M","2010-06-14","1986-01-14","","Technicien","BAC+2-DEUG-BTS-DUT","","Non Cadre",10,"De 5 à moins de 12 ans",34,"De 26 à 35 ans"]
[710047,"Sécurité  des SI Groupe","Sécurité Opérationnelle","Sécurité Opérationnelle","","AFFECTE LE 03/06/19","TAGHRICHTE","MOUHCINE","Administrateur Sécurité Opérationnelle","2009-10-30","M","2009-11-02","1989-01-10","","Technicien Spécialisé","BAC+2-DEUG-BTS-DUT","ISTA NTIC II","Non Cadre",11,"De 5 à moins de 12 ans",31,"De 26 à 35 ans"]
[707807,"Stratégie et Architecture","Stratégie et Architecture","Stratégie et Architecture","","","BENJLIL","BOUCHAIB","Architecte Solution","2008-05-05","M","2008-05-05","1972-07-01","","Ingénieur d'application","BAC+5-INGENIEUR-MASTER-DEA-DESS","EMSI","Cadre",12,"De 12 à moins de 20 ans",48,"De 46 à 55 ans"]
[707931,"Stratégie et Architecture","Stratégie et Architecture","Stratégie et Architecture","","","MOUHDI","FOUAD","Architecte SI","2008-07-15","M","2008-07-15","1978-09-30","","Ingénieur d'état + Master","BAC+5-INGENIEUR-MASTER-DEA-DESS","EHTP & EMSI","Cadre",12,"De 12 à moins de 20 ans",42,"De 36 à 45 ans"]
[716422,"Stratégie et Architecture","Stratégie et Architecture","Stratégie et Architecture","","","EL HILALI","RACHID","Architecte Solution","2018-03-01","M","2018-03-01","1976-10-07","","Master","BAC+5-INGENIEUR-MASTER-DEA-DESS","UNIV Paris1 Panthéon Sorbonne IAE","Cadre",2,"De 2 à moins de 5 ans",44,"De 36 à 45 ans"]
[709658,"Support et Pilotage de la Performance","A Support et Pilotage de la Performance","A Responsable Support et Pilotage de la Performance","","","BETTACHE","FAHD","Responsable Support & Pilotage de la Performance","2009-04-20","M","2020-01-06","1977-03-30","","DEA","BAC+5-INGENIEUR-MASTER-DEA-DESS","Ecole Doctorale STIC","CADRE",11,"De 5 à moins de 12 ans",43,"De 36 à 45 ans"]
[715534,"Support et Pilotage de la Performance","Assurance Qualité","A responsable Assurance Qualité","","","BEN MEHREZ","NADIA","Responsable Assurance Qualité","2017-01-02","F","2017-01-02","1967-06-02","","Ingénieur d'état","BAC+5-INGENIEUR-MASTER-DEA-DESS","INPT","Cadre",3,"De 2 à moins de 5 ans",53,"De 46 à 55 ans"]
[716935,"Support et Pilotage de la Performance","Assurance Qualité","Methodes et Qualite","Methodes et Qualite","","JALIL","SANAA","Analyste Méthodes & Qualité Sénior","2018-11-01","F","2018-11-01","1984-04-26","","","BAC+5-INGENIEUR-MASTER-DEA-DESS","IGA","CADRE",2,"De 2 à moins de 5 ans",36,"De 36 à 45 ans"]
[715194,"Support et Pilotage de la Performance","Assurance Qualité","Software testing","Software testing","","EL KALAI","ZAKARIA","Responsable Software testing","2016-07-01","M","2016-07-01","1976-06-28","","Master","BAC+5-INGENIEUR-MASTER-DEA-DESS","","Cadre",4,"De 2 à moins de 5 ans",44,"De 36 à 45 ans"]
[716748,"Support et Pilotage de la Performance","Assurance Qualité","Software testing","Software testing","","NEFAA","HOUDA","Chargé Software Testing","2018-07-16","F","2018-07-16","1989-04-03","","Master","BAC+5-INGENIEUR-MASTER-DEA-DESS","Univ Nice Antipolis France","Cadre",2,"De 2 à moins de 5 ans",31,"De 26 à 35 ans"]
[710068,"Support et Pilotage de la Performance","Pilotage de la Performance","a Responsable  Pilotage de la Performance","","","KAJOUT","Abdelhay","Responsable Pilotage de la Performance","2009-10-16","M","2009-11-16","1983-04-12","","Ingénieur d'état","BAC+5-INGENIEUR-MASTER-DEA-DESS","INSA","Cadre",11,"De 5 à moins de 12 ans",37,"De 36 à 45 ans"]
[714535,"Support et Pilotage de la Performance","Pilotage de la Performance","Contrôle de Gestion","Contrôle de Gestion","","DCHIECHE","ZINEB","Contrôleur de gestion chargé des budgets","2015-08-03","F","2015-08-03","1991-01-17","","Licence  + Master","BAC+5-INGENIEUR-MASTER-DEA-DESS","FSJES","CADRE",5,"De 5 à moins de 12 ans",29,"De 26 à 35 ans"]
[718121,"Support et Pilotage de la Performance","Pilotage de la Performance","Contrôle de Gestion","Contrôle de Gestion","","HELLAOUI","YOUSRA","Contrôleur de gestion en charge des contrats","2020-09-01","F","2020-09-01","1993-03-22","","Master","BAC+5-INGENIEUR-MASTER-DEA-DESS","Fac El Jadida","CADRE",0,"Moins de 2 ans",27,"De 26 à 35 ans"]
[710904,"Support et Pilotage de la Performance","Pilotage de la Performance","Contrôle de Gestion","Contrôle de Gestion","","MARBOU","AYOUB","Contrôleur de gestion en charge de refacturation et rengeniering des couts","2010-06-25","M","2010-09-01","1979-06-08","","Ingénieur d'état","BAC+5-INGENIEUR-MASTER-DEA-DESS","INSEA","Cadre",10,"De 5 à moins de 12 ans",41,"De 36 à 45 ans"]
[714420,"Support et Pilotage de la Performance","Pilotage de la Performance","Contrôle de Gestion","Contrôle de Gestion","","ZAKARI","KHAOULA","Contrôleur de gestion chargé des budgets","2015-07-01","F","2015-07-01","1992-07-17","","Licence + Master","BAC+5-INGENIEUR-MASTER-DEA-DESS","FSEJ","CADRE",5,"De 5 à moins de 12 ans",28,"De 26 à 35 ans"]
[715488,"Support et Pilotage de la Performance","Pilotage de la Performance","Contrôle de Gestion","Contrôle de Gestion","","BEN WAHMANE","RITA","Contrôleur de gestion chargé des prestataires","2016-11-16","F","2016-11-16","1995-09-20","","Technicien spécialisé","BAC+2-DEUG-BTS-DUT","CIFPB","Non Cadre",4,"De 2 à moins de 5 ans",25,"25 ans et moins"]
[709611,"Support et Pilotage de la Performance","Pilotage de la Performance","Contrôle de Gestion","Contrôle de Gestion","","ISMAILI","ASMAA","Contrôleur de gestion chargé des prestataires","2008-06-18","F","2008-06-18","1983-02-06","","Licence en Sciences Economiques","BAC+3-DIPLOME CYCLE NORMAL+LICENCE","Univ. Maroc","CADRE",12,"De 12 à moins de 20 ans",37,"De 36 à 45 ans"]
[716421,"Support et Pilotage de la Performance","Pilotage de la Performance","Contrôle de Gestion","Contrôle de Gestion","","SAIDOUNE","ZINEB","Contrôleur de gestion en charge de refacturation et rengeniering des couts","2018-03-01","F","2018-03-01","1991-12-06","","Master","BAC+5-INGENIEUR-MASTER-DEA-DESS","HEM / IAE Lyon","Cadre",2,"De 2 à moins de 5 ans",29,"De 26 à 35 ans"]
[713677,"Support et Pilotage de la Performance","Pilotage de la Performance","Project Management Office","a Responsable Project Management Office","","DARDAR","KAOUTAR","Responsable Project Management Office","2014-05-02","F","2014-05-02","1983-10-15","","Master","BAC+5-INGENIEUR-MASTER-DEA-DESS","HEC","Cadre",6,"De 5 à moins de 12 ans",37,"De 36 à 45 ans"]
[713741,"Support et Pilotage de la Performance","Pilotage de la Performance","Project Management Office","Project Management Office","","ALOUI","MARIEM","Project Management Officer Projet","2014-06-16","F","2014-06-16","1991-10-19","","Licence Professionnelle  + Master","BAC+5-INGENIEUR-MASTER-DEA-DESS","FS EL JADIDA","CADRE",6,"De 5 à moins de 12 ans",29,"De 26 à 35 ans"]
[715366,"Support et Pilotage de la Performance","Pilotage de la Performance","Project Management Office","Project Management Office","","AMRANI JOUTEY","MERYEM","Project Management Officer Portefeuille","2016-09-15","F","2016-09-15","1987-12-19","","Master","BAC+5-INGENIEUR-MASTER-DEA-DESS","ESSEC","Cadre",4,"De 2 à moins de 5 ans",33,"De 26 à 35 ans"]
[715685,"Support et Pilotage de la Performance","Pilotage de la Performance","Project Management Office","Project Management Office","","ELATOUANI","REDA","Administrateur Junior EPM","2017-03-15","M","2017-03-15","1995-03-09","","Licence en Math Informatique","BAC+3-DIPLOME CYCLE NORMAL+LICENCE","FSB Casablanca","NON CADRE",3,"De 2 à moins de 5 ans",25,"25 ans et moins"]
[717651,"Support et Pilotage de la Performance","Pilotage de la Performance","Project Management Office","Project Management Office","","SAYOUTY","SANAA","Administrateur Junior EPM","2019-09-02","F","2019-09-02","1998-09-19","","Technicien spécialisé","BAC+2-DEUG-BTS-DUT","","NON CADRE",1,"Moins de 2 ans",22,"25 ans et moins"]
[711075,"Support et Pilotage de la Performance","Support et Moyens SIG","A Responsable Support et Moyens SIG","","","KHATIR Ep ELHILA","LEYLA","Responsable Support et Moyens","2010-11-01","F","2013-09-16","1961-04-26","","Ingénieur+Doctorat+MBA","BAC+5-INGENIEUR-MASTER-DEA-DESS","Ecole Ing + Univ de Toulouse + ENASS Paris","Cadre",10,"De 5 à moins de 12 ans",59,"Plus de 55 ans"]
[451108,"Support et Pilotage de la Performance","Support et Moyens SIG","Garcon de bureau","","","KALA","OMAR","Assistant de bureau","1996-01-01","M","1996-01-01","1961-07-01","","Secondaire","NS","","Non Cadre",24,"20 ans et plus",59,"Plus de 55 ans"]
[23430,"Support et Pilotage de la Performance","Support et Moyens SIG","Support et Moyens SIG","","","DIOUCH","NOURA","Gestionnaire administratif RH & moyens","1991-12-09","F","1991-12-09","1968-06-08","","DEUG + Brevet Bancaire","BAC+2-DEUG-BTS-DUT","Univ. Maroc + Centre de Formation Profes. & Banc.","Cadre",29,"20 ans et plus",52,"De 46 à 55 ans"]
[717800,"Support et Pilotage de la Performance","Support et Moyens SIG","Support et Moyens SIG","","","BENZAKOUR","AHMED","Chargé d'Ingénierie RH et Communication","2019-12-02","M","2019-12-02","1985-02-18","","","BAC+5-INGENIEUR-MASTER-DEA-DESS","","CADRE",1,"Moins de 2 ans",35,"De 26 à 35 ans"]
[716982,"Support et Pilotage de la Performance","Support et Moyens SIG","Support et Moyens SIG","","","ZAHER","KHAOULA","Responsable Orga & Process","2018-11-15","F","2018-11-15","1985-01-04","","Master","BAC+5-INGENIEUR-MASTER-DEA-DESS","ENCG","CADRE",2,"De 2 à moins de 5 ans",35,"De 26 à 35 ans"]
[400700,"Support et Pilotage de la Performance","Support et Moyens SIG","Support et Moyens SIG","","","RAJRAJI","NADIA","CADRE","2010-01-01","F","2010-01-01","1962-01-21","","Maîtrise","BAC+4-LICENCE-MAITRISE","Univ. Belgique","Cadre",10,"De 5 à moins de 12 ans",58,"Plus de 55 ans"]
[709563,"Support et Pilotage de la Performance","Support et Moyens SIG","Support et Moyens SIG","","","JEBBAR","FATIMA","Gestionnaire de suivi RH & Moyens","2009-05-18","F","2016-06-01","1983-05-10","","Master","BAC+5-INGENIEUR-MASTER-DEA-DESS","FSH2","Cadre"]
[715101,"Support et Pilotage de la Performance","Support et Moyens SIG","Support et Moyens SIG","","12/10/20","ABOUYAALA","KHAOULA","Gestionnaire administratif RH & moyens","2016-06-01","F","2016-06-01","1993-01-26","","Licence Fondamentale","BAC+3-DIPLOME CYCLE NORMAL+LICENCE","FSJES","Non Cadre"]

{"sheet":"31-12-18","index":2,"n_rows":367,"n_cols":19,"rows_kept":367,"cut":false,"hidden":true,"merged":[]}
["Matricule","Entite","Pôle","Domaine","Sujet","Sous domaine","Nom","Prénom","Fonction","Date de Recrutement","Sexe","Date démarrage SIG","Date de naissance","Date du départ du SIG","DIPLOME","Nombre d'année","ECOLE/UNIVERSITE","ECOLE/UNIVERSITE","Statut"]
[703875," Systèmes d'information Groupe"," Responsable du SIG","","","","LRHEZZIOUI","SOUMAYA","Directeur Exécutif","1988-08-08","F","1988-08-08","1960-06-02","","Ingénieur d'état + Master","BAC+5-INGENIEUR-MASTER-DEA-DESS","INSEA","INSEA","Cadre"]
[804555,"Contrôle Interne","Contrôle Interne","A Contrôleur interne manager","","","AIT MAHDI","MALIKA","Contrôleur interne manager","2017-04-03","F","2017-04-03","1979-02-07","","Ingénieur d'application + Master","BAC+5-INGENIEUR-MASTER-DEA-DESS","EMSI","EMSI","Cadre"]
[707309,"Contrôle Interne","Contrôle Interne","Contrôle Interne","","","TOULOUT","AMAL","Contrôleur Interne","2007-06-15","F","2014-06-23","1979-07-29","","Diplôme ESG France","BAC+5-INGENIEUR-MASTER-DEA-DESS","ESGF PARIS","ESGF PARIS","Cadre"]
[21324,"Contrôle Interne","Contrôle Interne","Contrôle Interne","","","MOUNTASSIR","HICHAM","Contrôleur Interne","1990-03-01","M","1990-03-01","1967-12-20","","BTS","BAC+2-DEUG-BTS-DUT","","","Cadre"]
[402713,"Contrôle Interne","Contrôle Interne","Contrôle Interne","","","CHENTOUF","SABAH","Contrôleur Interne","1999-01-11","F","1999-01-11","1968-11-05","","Ingénieur d'application","BAC+4-LICENCE-MAITRISE","ISGE","ISGE","Cadre"]
[711862,"Digital center"," Digital center","A Responsable Digital center","","","ZIADI","HICHAM","Responsable Digital center","2011-05-27","M","2011-11-02","1976-12-08","","Ingénieur","BAC+5-INGENIEUR-MASTER-DEA-DESS","ENSTA","ENSTA","Cadre"]
[39393,"Digital center","Banque commerciale et Filiales bancaires","Domaine Distribution","Distribution","","CHAIB","LALLA FATIMA","Chargé d'étude et développement Senior","1992-07-01","F","1992-07-01","1963-12-16","30/04/2019","BAC","BAC","Lycée","Lycée","Cadre"]
[715544,"Digital center","Banque commerciale et Filiales bancaires","Domaine Distribution","Projet Vente et Urbanisation SD","","SOUSSI","IMANE","Chargé d'étude et développement junior","2017-01-02","F","2017-01-02","1993-07-16","27/05/2019","Master","BAC+5-INGENIEUR-MASTER-DEA-DESS","Faculté des sciences HII Ain Chock","Faculté des sciences HII Ain Chock","Cadre"]
[713554,"DIGITAL CENTER","Banque En Ligne & Frontaux","A Responsable Banque En Ligne & Frontaux","","","AIFOUTE","AHMED","Responsable de pôle","2014-02-03","M","2014-02-03","1969-08-08","","DESS","BAC+5-INGENIEUR-MASTER-DEA-DESS","Univ.STL Montpellier","Univ.STL Montpellier","Cadre"]
[715146,"DIGITAL CENTER","Banque En Ligne & Frontaux","Selfcare","Selfcare","","ZEROUALI BOUKHAL","EL MEHDI","Coordinateur Etudes & Developpements","2016-06-15","M","2016-06-15","1982-02-24","","Ingénieur","BAC+5-INGENIEUR-MASTER-DEA-DESS","Poly technique TOURS","Poly technique TOURS","Cadre"]
[715521,"DIGITAL CENTER","Banque En Ligne & Frontaux","Selfcare","Selfcare","","JAFOUI","LAILA","Chargé d'étude et développement Senior","2016-12-15","F","2016-12-15","1986-09-27","","Ingénieur d'application","BAC+5-INGENIEUR-MASTER-DEA-DESS","EMSI","EMSI","Cadre"]
[714886,"DIGITAL CENTER","Banque En Ligne & Frontaux","Selfcare","Selfcare","","SALHI","WAHIBA","Chargé d'étude et développement junior","2016-02-01","F","2016-02-01","1994-03-12","","Licence Professionnelle","BAC+3-DIPLOME CYCLE NORMAL+LICENCE","ENITE OASIS","ENITE OASIS","Non Cadre"]
[710208,"DIGITAL CENTER","Banque En Ligne & Frontaux","Selfcare","Selfcare","","DLIMI","ZAKARIA","Coordinateur Etudes & Developpements","2009-11-25","M","2010-01-04","1985-01-09","","Ingénieur d'état","BAC+4-LICENCE-MAITRISE","ENSA AGADIR","ENSA AGADIR","Cadre"]
[711197,"DIGITAL CENTER","Banque En Ligne & Frontaux","Selfcare","Selfcare","","BERRADA","MOHAMED","Chargé d'étude et développement Senior","2011-01-07","M","2011-01-17","1984-12-12","","Master 2","BAC+5-INGENIEUR-MASTER-DEA-DESS","ESGI Paris","ESGI Paris","Cadre"]
[716596,"DIGITAL CENTER","Banque En Ligne & Frontaux","Selfcare","Selfcare","","NACIF","ACHRAF","Chargé d'étude et développement Senior","2018-06-01","M","2018-06-01","1986-11-22","","Ingénieur d'état","BAC+5-INGENIEUR-MASTER-DEA-DESS","ENSA","ENSA","Cadre"]
[714893,"DIGITAL CENTER","Banque En Ligne & Frontaux","Selfcare","Selfcare","","KABLY","SALAHEDDINE","Chargé d'étude et développement junior","2016-02-15","M","2016-02-15","1992-01-24","02/03/2020","Master","BAC+5-INGENIEUR-MASTER-DEA-DESS","","","Cadre"]
[716786,"DIGITAL CENTER","Banque En Ligne & Frontaux","Selfcare","Selfcare","","MOUMKINE","OUMAIMA","Chargé d'étude et développement junior","2018-08-15","F","2018-08-15","1994-05-25","","Master","BAC+5-INGENIEUR-MASTER-DEA-DESS","ENSA","ENSA","Cadre"]
[712806,"DIGITAL CENTER","Banque En Ligne & Frontaux","Selfcare","Selfcare","","LAHYAN","SALMA","Chargé d'étude et développement Senior","2013-02-15","F","2013-02-15","1987-07-12","","Ingénieur d'état","BAC+5-INGENIEUR-MASTER-DEA-DESS","ENSIAS","ENSIAS","Cadre"]
[715063,"DIGITAL CENTER","Banque En Ligne & Frontaux","Vitrines Digitales","Vitrines Digitales","","BERRADA","KENZA","Coordinateur Etudes & Developpements","2016-05-16","F","2016-05-16","1988-08-17","","Ingénieur","BAC+5-INGENIEUR-MASTER-DEA-DESS","Telecom bretagne","Telecom bretagne","Cadre"]
[712183,"DIGITAL CENTER","Digital Platforms Enablers & DevSecOps","Datalake","A Responsable Datalake","","ELGHAZALI","KHALID","Coordinateur Etudes & Developpements","2012-04-16","M","2012-04-16","1972-09-18","","Master","BAC+5-INGENIEUR-MASTER-DEA-DESS","Univ Henri Poincaré","Univ Henri Poincaré","Cadre"]
[716827,"DIGITAL CENTER","Digital Platforms Enablers & DevSecOps","Datalake","Datalake","","CHARKI","HOYAM","Chargé d'étude et développement junior","2018-09-03","F","2018-09-03","1995-12-14","01/10/2019","Ingénieur d'état","BAC+5-INGENIEUR-MASTER-DEA-DESS","EMI","EMI","Cadre"]
[716787,"DIGITAL CENTER","Digital Platforms Enablers & DevSecOps","Datalake","Datalake","","ABD","CHAIMAA","Chargé d'étude et développement junior","2018-08-15","F","2018-08-15","1995-03-12","25/11/2019","Master","BAC+5-INGENIEUR-MASTER-DEA-DESS","ENSETM","ENSETM","Cadre"]
[451143,"DIGITAL CENTER","Digital Platforms Enablers & DevSecOps","Datalake","Datalake","","RETAIBA","RACHID","Chargé d'étude et développement Senior","2001-05-14","M","2001-05-14","1972-06-29","","Euromater Gestion Télécom","BAC+5-INGENIEUR-MASTER-DEA-DESS","ESIEA Paris","ESIEA Paris","Cadre"]
[711556,"DIGITAL CENTER","Digital Platforms Enablers & DevSecOps","Datalake","Datalake","","SALIM","ZAKARIA","Chargé d'étude et développement Senior","2011-07-07","M","2011-07-18","1987-01-02","","Master 2","BAC+5-INGENIEUR-MASTER-DEA-DESS","ESIAG","ESIAG","Cadre"]
[711841,"DIGITAL CENTER","Digital Platforms Enablers & DevSecOps","ECM - Collaboratif et Digitalisation","A Responsable ECM - Collaboratif et Digitalisation","","BENTOUILA","EL MEHDI","Responsable Domaine Fonctionnel","2011-08-01","M","2011-11-02","1983-04-18","","Ingénieur d'état","BAC+5-INGENIEUR-MASTER-DEA-DESS","INSA LYON","INSA LYON","Cadre"]
[716923,"DIGITAL CENTER","Digital Platforms Enablers & DevSecOps","ECM - Collaboratif et Digitalisation","ECM - Collaboratif et Digitalisation","","OUAZZANI TOUHAMI","MOHAMMED","Chargé d'étude et développement Senior","2018-10-15","M","2018-10-15","1985-08-31","","Master","BAC+5-INGENIEUR-MASTER-DEA-DESS","Univ René Descartes","Univ René Descartes","CADRE"]
[712746,"DIGITAL CENTER","Digital Platforms Enablers & DevSecOps","ECM - Collaboratif et Digitalisation","ECM - Collaboratif et Digitalisation","","OUEDGHIRI","SANAE","Chargé d'étude et développement Senior","2013-01-02","F","2013-01-02","1987-07-01","","Master","BAC+5-INGENIEUR-MASTER-DEA-DESS","FSTS","FSTS","Cadre"]
[711186,"DIGITAL CENTER","Digital Platforms Enablers & DevSecOps","ECM - Collaboratif et Digitalisation","ECM - Collaboratif et Digitalisation","","KHERRAZ","SOUAD","Chargé d'étude et développement junior","2011-01-17","F","2011-01-17","1990-02-22","","Technicien spécialisé","BAC+2-DEUG-BTS-DUT","ISTA","ISTA","Non Cadre"]
[714906,"DIGITAL CENTER","Digital Platforms Enablers & DevSecOps","ECM - Collaboratif et Digitalisation","ECM - Collaboratif et Digitalisation","","BOUSBAA","HOUDA","Chargé d'étude et développement junior","2016-03-01","F","2016-03-01","1996-02-02","","Technicien spécialisé","BAC+2-DEUG-BTS-DUT","ISTA","ISTA","Non Cadre"]
[714807,"DIGITAL CENTER","Digital Platforms Enablers & DevSecOps","ECM - Collaboratif et Digitalisation","ECM - Collaboratif et Digitalisation","","LGHAZAOUI","IBRAHIM","Chargé d'étude et développement Junior","2016-01-04","M","2016-01-04","1990-10-20","17/01/2020","Ingénieur d'état","BAC+5-INGENIEUR-MASTER-DEA-DESS","ENSEM INFORMATIQUE","ENSEM INFORMATIQUE","Cadre"]
[715479,"DIGITAL CENTER","Digital Platforms Enablers & DevSecOps","ECM - Collaboratif et Digitalisation","ECM - Collaboratif et Digitalisation","","EL HALLAOUI","KENZA","Chargé d'étude et développement junior","2016-11-15","F","2016-11-15","1992-05-25","","Ingénieur","BAC+5-INGENIEUR-MASTER-DEA-DESS","UIC","UIC","Cadre"]
[715497,"DIGITAL CENTER","Digital Platforms Enablers & DevSecOps","ECM - Collaboratif et Digitalisation","ECM - Collaboratif et Digitalisation","","SANI","NADIA","Chargé d'étude et développement junior","2016-12-01","F","2016-12-01","1992-05-16","20/12/2019","Ingénieur d'état","BAC+5-INGENIEUR-MASTER-DEA-DESS","ENSIAS","ENSIAS","Cadre"]
[715700,"DIGITAL CENTER","Digital Platforms Enablers & DevSecOps","ECM - Collaboratif et Digitalisation","ECM - Collaboratif et Digitalisation","","BERKAOUI","ABDELLAH","Chargé d'étude et développement Senior","2017-03-15","M","2017-03-15","1987-02-14","","Ingénieur d'état + MBA","BAC+5-INGENIEUR-MASTER-DEA-DESS","ENSIAS","ENSIAS","Cadre"]
[716110,"DIGITAL CENTER","Digital Platforms Enablers & DevSecOps","ECM - Collaboratif et Digitalisation","ECM - Collaboratif et Digitalisation","","BOUGHALEB","TAHAR","Chargé d'étude et développement Senior","2017-09-04","M","2017-09-04","1983-02-08","","Master","BAC+5-INGENIEUR-MASTER-DEA-DESS","Univ Nancy2 / IGA","Univ Nancy2 / IGA","Cadre"]
[713715,"DIGITAL CENTER","Digital Platforms Enablers & DevSecOps","OMS","A Responsable OMS","","HAJOUI","MOURAD","Coordinateur Etudes & Developpements","2014-06-02","M","2014-06-02","1978-06-27","","DESS SIAD","BAC+5-INGENIEUR-MASTER-DEA-DESS","UNIV Toulouse I","UNIV Toulouse I","Cadre"]
[710728,"DIGITAL CENTER","Digital Platforms Enablers & DevSecOps","OMS","OMS","","MOURADI","WALID","Chargé d'étude et développement Senior","2010-05-26","M","2010-07-01","1984-08-10","","DESS","BAC+5-INGENIEUR-MASTER-DEA-DESS","FST","FST","Cadre"]
[706102,"DIGITAL CENTER","Distribution, Facturation & Paiement ","A Responsable Distribution, Facturation & Paiement","","","AKRAB","MAROUANE","Responsable de pôle","2002-12-09","M","2002-12-09","1980-10-29","","BTS","BAC+4-LICENCE-MAITRISE","IGA","IGA","Cadre"]
[716087,"DIGITAL CENTER","Distribution, Facturation & Paiement ","Facturation","Facturation","","HEMDI","AYOUB","Chargé d'étude et développement junior","2017-08-15","M","2017-08-15","1994-08-30","18/10/2019","Ingénieur d'état","BAC+5-INGENIEUR-MASTER-DEA-DESS","EMI","EMI","Cadre"]
[712984,"DIGITAL CENTER","Distribution, Facturation & Paiement ","Facturation","Facturation","","ET-TALEB","MEHDI","Chargé d'étude et développement Senior","2013-06-17","M","2013-06-17","1988-04-01","","Ingénieur","BAC+5-INGENIEUR-MASTER-DEA-DESS","Telecom Sud PARIS","Telecom Sud PARIS","Cadre"]
[451154,"DIGITAL CENTER","Distribution, Facturation & Paiement ","Facturation","Facturation","","ACHBANI","KHALID","Chargé d'étude et développement Senior","2001-05-22","M","2001-05-22","1969-06-29","","Licence","BAC+4-LICENCE-MAITRISE","Univ. Maroc","Univ. Maroc","Cadre"]
[451236,"DIGITAL CENTER","Distribution, Facturation & Paiement ","Facturation","Facturation","","BOUSSAID","ISSMAIL","Coordinateur Etudes & Developpements","2004-09-24","M","2004-09-24","1977-11-30","","Master","BAC+5-INGENIEUR-MASTER-DEA-DESS","Univ. Maroc","Univ. Maroc","Cadre"]
[716025,"DIGITAL CENTER","Distribution, Facturation & Paiement ","Paiement","Paiement","","AHMATACH","FAWAZ","Responsable Domaine Fonctionnel","2017-08-01","M","2017-08-01","1979-05-17","","Ingénieur d'état","BAC+5-INGENIEUR-MASTER-DEA-DESS","ISTASE","ISTASE","Cadre"]
[716867,"DIGITAL CENTER","Distribution, Facturation & Paiement ","Paiement","Paiement","","KAMAL","DALAL","Chargé d'étude et développement Senior","2018-10-01","F","2018-10-01","1988-09-24","","Ingénieur d'état","BAC+5-INGENIEUR-MASTER-DEA-DESS","ENSIAS","ENSIAS","CADRE"]
[715187,"DIGITAL CENTER","Distribution, Facturation & Paiement ","Vente Multicanale","Vente Multicanale","","EL FATMI","YASSINE","Chargé d'étude et développement Senior","2016-07-01","M","2016-07-01","1990-12-01","","Ingénieur d'état","BAC+5-INGENIEUR-MASTER-DEA-DESS","EMI","EMI","Cadre"]
[716415,"DIGITAL CENTER","Distribution, Facturation & Paiement ","Vente Multicanale","Vente Multicanale","","KHAL","MOUNTASSER","Chargé d'étude et développement junior","2018-03-01","M","2018-03-01","1993-01-14","","Ingénieur d'état","BAC+5-INGENIEUR-MASTER-DEA-DESS","Académie d'aviation civile","Académie d'aviation civile","Cadre"]
[716172,"DIGITAL CENTER","Distribution, Facturation & Paiement ","Vente Multicanale","Vente Multicanale","","EL YASSEM","HOUDA","Chargé d'étude et développement Senior","2017-09-15","F","2017-09-15","1987-10-24","","Ingénieur d'état","BAC+5-INGENIEUR-MASTER-DEA-DESS","ENSIAS","ENSIAS","Cadre"]
[709607,"DIGITAL CENTER","Distribution, Facturation & Paiement ","Vente Multicanale","Vente Multicanale","","ESSOULHI","KHADIJA","Chargé d'étude et développement junior","2008-06-18","F","2008-06-18","1983-05-19","","Technicien spécialisé","BAC+2-DEUG-BTS-DUT","CIFPB","CIFPB","Non Cadre"]
[715287,"DIGITAL CENTER","Distribution, Facturation & Paiement ","Vente Multicanale","Vente Multicanale","","HAIDA","KAOUTAR","Coordinateur Etudes & Developpements","2016-08-15","F","2016-08-15","1985-01-03","","Ingénieur d'état","BAC+5-INGENIEUR-MASTER-DEA-DESS","ENIM","ENIM","Cadre"]
[712743,"Digital center","Omni Canal  &  Transformation Digitale","Domaine Dématérialisation et Collaboratif","Dématérialisation et Collaboratif","","BENCHEKROUN","YASSINE","Chargé d'étude et développement junior","2012-12-17","M","2012-12-17","1985-01-01","31/01/2019","Master","BAC+5-INGENIEUR-MASTER-DEA-DESS","Ecole centrale de Paris","Ecole centrale de Paris","Cadre"]
[714174,"Digital center","Omni Canal  &  Transformation Digitale","Domaine Opérations Agences - Borj Poste de travail"," Opérations Agences - Borj Poste de travail","AFFECTE LE 01-04-19","ELBIR","NAOUAL","Chargé d'étude et développement junior","2015-02-16","F","2015-02-16","1992-12-24","17/07/2019","Licence + Master","BAC+5-INGENIEUR-MASTER-DEA-DESS","FS BEN MSIK","FS BEN MSIK","Non Cadre"]
[711746,"Digital center","Omni Canal  &  Transformation Digitale","Domaine Opérations Agences - Borj Poste de travail","Opérations Agences - Borj Poste de travail","","TAHRAOUI","JIHAD","Chargé d'étude et développement junior","2011-09-06","F","2011-09-19","1986-03-13","18/01/2019","Ingénieur d'état","BAC+5-INGENIEUR-MASTER-DEA-DESS","INSEA","INSEA","Cadre"]
[451212,"DIGITAL CENTER","Pilotage & Coaching","Pilotage & Coaching","","","ESSABER","AMINE","Project Management Officer Projet","2003-09-01","M","2003-09-01","1979-04-27","","Ingénieur d'état","BAC+5-INGENIEUR-MASTER-DEA-DESS","EMI","EMI","Cadre"]
[706067,"DIGITAL CENTER","Postes de Travail & Connaissance Client","A Responsable Postes de Travail & Connaissance Client","","","ABOULOUMOUM","SAID","Responsable de pôle","2002-10-08","M","2002-10-08","1978-08-16","","Ingénieur d'état","BAC+5-INGENIEUR-MASTER-DEA-DESS","ENSIAS","ENSIAS","Cadre"]
[715549,"DIGITAL CENTER","Postes de Travail & Connaissance Client","Components","Components","","SQUALLI HOUSSAINI","NARJISS","Chargé d'étude et développement Senior","2017-01-02","F","2017-01-02","1988-06-18","","Ingénieur d'état","BAC+5-INGENIEUR-MASTER-DEA-DESS","ENSIAS","ENSIAS","Cadre"]
[707062,"DIGITAL CENTER","Postes de Travail & Connaissance Client","CRM & Modèle relationnel","A Responsable CRM & Modèle relationnel","","EL HAOUATE","KARIM","Responsable de Domaine Fonctionnel","2013-02-15","M","2013-02-15","1982-06-01","","Ingénieur d'état","BAC+5-INGENIEUR-MASTER-DEA-DESS","ENIM","ENIM","Cadre"]
[711417,"DIGITAL CENTER","Postes de Travail & Connaissance Client","CRM & Modèle relationnel","CRM & Modèle relationnel","","AMANE","HICHAM","Chargé d'étude et développement Senior","2011-05-02","M","2011-05-16","1984-07-31","","Ingénieur d'application","BAC+5-INGENIEUR-MASTER-DEA-DESS","EMSI","EMSI","Cadre"]
[716773,"DIGITAL CENTER","Postes de Travail & Connaissance Client","CRM & Modèle relationnel","CRM & Modèle relationnel","","BOUHILA","SAFAE","Chargé d'étude et développement junior","2018-08-01","F","2018-08-01","1992-08-29","","Ingénieur","BAC+5-INGENIEUR-MASTER-DEA-DESS","VINCI Rabat","VINCI Rabat","Cadre"]
[707601,"DIGITAL CENTER","Postes de Travail & Connaissance Client","Operation agence & Intraday","Operation agence & Intraday","","MORTAJI","ADIL","Coordinateur Etudes & Developpements","2008-01-15","M","2008-01-15","1981-02-10","","Ingénieur d'état","BAC+5-INGENIEUR-MASTER-DEA-DESS","ENSEEIHT","ENSEEIHT","Cadre"]
[707715,"DIGITAL CENTER","Postes de Travail & Connaissance Client","Operation agence & Intraday","Operation agence & Intraday","","EDDAKAKI","AYOUB","Coordinateur Etudes & Developpements","2008-03-17","M","2008-03-17","1983-05-31","","Ingénieur d'état","BAC+5-INGENIEUR-MASTER-DEA-DESS","EMI","EMI","Cadre"]
[716869,"DIGITAL CENTER","Postes de Travail & Connaissance Client","Operation agence & Intraday","Operation agence & Intraday","","MANOUN","WESSAM","Chargé d'étude et développement Senior","2018-10-01","M","2018-10-01","1989-02-04","","","BAC+5-INGENIEUR-MASTER-DEA-DESS","","","CADRE"]
[715423,"DIGITAL CENTER","Postes de Travail & Connaissance Client","Référentiel client et EER","Référentiel client et EER","","EL HANAFI SEBTI","AHMED","Chargé d'étude et développement junior","2016-10-17","M","2016-10-17","1992-07-20","","Ingénieur d'état","BAC+5-INGENIEUR-MASTER-DEA-DESS","ENSIAS","ENSIAS","Cadre"]
[712157,"DIGITAL CENTER","Postes de Travail & Connaissance Client","Référentiel client et EER","Référentiel client et EER","","TOUERESS EP ABCHIR","WAFAA","Chargé d'étude et développement Senior","2012-04-16","F","2012-04-16","1981-12-16","","Master","BAC+5-INGENIEUR-MASTER-DEA-DESS","EMSI","EMSI","Cadre"]
[714832,"DIGITAL CENTER","Postes de Travail & Connaissance Client","Supports N2","Supports N2","","MOUSTAID","MOUNA","Chargé d'étude et développement junior","2016-01-04","F","2016-01-04","1994-04-13","","Licence Professionnelle","BAC+3-DIPLOME CYCLE NORMAL+LICENCE","FST","FST","Non Cadre"]
[710948,"DIGITAL CENTER","Postes de Travail & Connaissance Client","Supports N2","Supports N2","","ZAHRAOUI","HIND","Chargé d'étude et développement Senior","2010-06-15","F","2010-10-01","1982-10-23","27/09/2019","Ingénieur d'état","BAC+5-INGENIEUR-MASTER-DEA-DESS","ENSIAS","ENSIAS","Cadre"]
[714919,"DIGITAL CENTER","Postes de Travail & Connaissance Client","Supports N2","Supports N2","AFFECTE LE 01-01-19","EL MOUQTASIDI","ASMAA","Chargé d'étude et développement junior","2016-03-15","F","2016-03-15","1994-04-17","","Technicien spécialisé + MASTER","BAC+5-INGENIEUR-MASTER-DEA-DESS","ISGI","ISGI","Non Cadre"]
[716766,"Digital center","Ressources Management","Ingénierie Applicative","ECM","","BOUHADDIOUI","MANAR","Chargé d'étude et développement junior","2018-08-01","F","2018-08-01","1995-06-11","31/05/2019","Master","BAC+5-INGENIEUR-MASTER-DEA-DESS","ENSIAS","ENSIAS","Cadre"]
[716824,"Digital center","Ressources Management","Ingénierie Applicative","GRC","","MOUNOUAR","FADOUA","Chargé d'étude et développement junior","2018-09-03","F","2018-09-03","1995-01-04","18/05/2019","Master en BIG DATA & CLOUD","BAC+5-INGENIEUR-MASTER-DEA-DESS","Faculté des Siences Ain Chok","Faculté des Siences Ain Chok","Cadre"]
[715767,"Digital center","Ressources Management","Ingénierie Applicative","Projet Vente et Urbanisation SD","","BENROUAINE","SALWA","Chargé d'étude et développement junior","2017-04-17","F","2017-04-17","1994-01-04","17/02/2019","Ingénieur","BAC+5-INGENIEUR-MASTER-DEA-DESS","Université Internationale de Casablanca","Université Internationale de Casablanca","Cadre"]
[707061,"Etudes & Développements"," Etudes & Développements","  Responsable des Etudes & Développements","","","BENJELLOUN","MOHAMED","Responsable Etudes & Développements","2007-01-15","M","2007-01-15","1965-03-15","","Ingénieur","BAC+5-INGENIEUR-MASTER-DEA-DESS","EUDIL","EUDIL","Cadre"]
[15805,"Etudes & Développements","Banque commerciale et Filiales bancaires","A responsable Banque commerciale et Filiales bancaires","","","SEFFAR ANDALOUSSI","MOHAMED CHAKIB","Responsable de pôle","1985-04-22","M","1985-04-22","1959-07-02","31/07/2019","Ingénieur","BAC+5-INGENIEUR-MASTER-DEA-DESS","Sup Télécoms ParisIS","Sup Télécoms ParisIS","Cadre"]
[706572,"Etudes & Développements","Banque commerciale et Filiales bancaires","Domaine Filiales SFS et Bancaires","Domaine Filiales SFS et Bancaires","BAS","MAZDAOUI","LAILA","Coordinateur Etudes & Developpements","2006-06-15","F","2006-06-15","1978-11-08","","Maîtrise","BAC+4-LICENCE-MAITRISE","Univ. Maroc","Univ. Maroc","Cadre"]
[402223,"Etudes & Développements","Banque commerciale et Filiales bancaires","Domaine Filiales SFS et Bancaires","Domaine Filiales SFS et Bancaires","BAS","DAHRI","NADIA","Coordinateur Etudes & Developpements","2001-10-01","F","2001-10-01","1977-07-27","","Maîtrise","BAC+4-LICENCE-MAITRISE","Univ. Maroc","Univ. Maroc","Cadre"]
[712497,"Etudes & Développements","Banque de financement et d'investissement groupe","A responsable Banque de financement et d'investissement groupe","","","DAHMAN","RIDA","Responsable de pôle","2012-10-15","M","2012-10-15","1979-10-23","","Master","BAC+5-INGENIEUR-MASTER-DEA-DESS","FST","FST","Cadre"]
[707911,"Etudes & Développements","Banque de financement et d'investissement groupe","Domaine Salle des marchés","A Responsable Domaine Fonctionnel","","BENMAAZOUZ","ALLAL","Responsable Domaine Fonctionnel","2008-07-01","M","2008-07-01","1972-04-19","","DESS","BAC+5-INGENIEUR-MASTER-DEA-DESS","ESSI NICE","ESSI NICE","Cadre"]
[703788,"Etudes & Développements","Banque de financement et d'investissement groupe","Domaine Salle des marchés","Salle des marchés","","BOUAMAINE","FOUAD","Chargé d'étude et développement Senior","1987-09-01","M","1987-09-01","1963-09-19","","Diplôme cycle normal","BAC+3-DIPLOME CYCLE NORMAL+LICENCE","ISG","ISG","Cadre"]
[710767,"Etudes & Développements","Banque de financement et d'investissement groupe","Domaine Salle des marchés","Salle des marchés","","ARAFA","YOUNES","Chargé d'étude et développement Senior","2010-05-27","M","2010-07-01","1983-08-13","","Master","BAC+5-INGENIEUR-MASTER-DEA-DESS","Univ Henry Poincaré nancy 1","Univ Henry Poincaré nancy 1","Cadre"]
[715613,"Etudes & Développements","Banque de financement et d'investissement groupe","Domaine Salle des marchés","Salle des marchés","","KOSSIR","YOUNES","Chargé d'étude et développement Senior","2017-02-01","M","2017-02-01","1988-08-02","","Ingénieur d'état","BAC+5-INGENIEUR-MASTER-DEA-DESS","ENSIAS","ENSIAS","Cadre"]
[707381,"Etudes & Développements","Banque de financement et d'investissement groupe","Domaine Salle des marchés","Salle des marchés","","JERRAF","ACHRAF","Chargé d'étude et développement Senior","2007-09-03","M","2007-09-03","1982-12-19","","Ingénieur d'application","BAC+5-INGENIEUR-MASTER-DEA-DESS","ESG","ESG","Cadre"]
[714835,"Etudes & Développements","Banque de financement et d'investissement groupe","Domaine Salle des marchés","Salle des marchés","","DKHISSI","ILHAM","Chargé d'étude et développement junior","2016-01-15","F","2016-01-15","1988-08-13","","Ingénieur d'état","BAC+5-INGENIEUR-MASTER-DEA-DESS","INSEA","INSEA","Cadre"]
[713743,"Etudes & Développements","Banque de financement et d'investissement groupe","Domaine Salle des marchés","Salle des marchés","","KETTANI HASSANI","ISMAIL","Chargé d'étude et développement Junior","2014-06-16","M","2014-06-16","1991-02-10","","Master","BAC+5-INGENIEUR-MASTER-DEA-DESS","ESG","ESG","Cadre"]
[714703,"Etudes & Développements","Banque de financement et d'investissement groupe","Domaine Salle des marchés","Salle des marchés","","GOURAINY","IMANE","Chargé d'étude et développement Senior","2015-11-01","M","2015-11-01","1991-12-18","","Ingénieur d'état","BAC+5-INGENIEUR-MASTER-DEA-DESS","ENSA","ENSA","Cadre"]
[704275,"Etudes & Développements","Banque de financement et d'investissement groupe","Domaine Titres & Opérations de Bourses","A Responsable Domaine Titres & Opérations de Bourses","","DAKY","MOHAMED OTHMANE","Responsable Domaine Fonctionnel","1991-11-04","M","1991-11-04","1963-08-31","","Bachelor","BAC+5-INGENIEUR-MASTER-DEA-DESS","Univ. Canada","Univ. Canada","Cadre"]
[710546,"Etudes & Développements","Banque de financement et d'investissement groupe","Domaine Titres & Opérations de Bourses","Titres & Opérations de Bourses","","BELHADI","ZINEB","Chargé d'étude et développement junior","2010-02-01","F","2010-04-01","1985-01-18","06/03/2019","Master + Ingénieur","BAC+5-INGENIEUR-MASTER-DEA-DESS","Université Paris Dauphine","Université Paris Dauphine","Cadre"]
[714840,"Etudes & Développements","Banque de financement et d'investissement groupe","Domaine Titres & Opérations de Bourses","Titres & Opérations de Bourses","","ZAHIR","HAMZA","Chargé d'étude et développement Senior","2016-01-04","M","2016-01-04","1991-04-15","","Ingénieur d'état","BAC+5-INGENIEUR-MASTER-DEA-DESS","EMI","EMI","Cadre"]
[38665,"Etudes & Développements","Banque de financement et d'investissement groupe","Domaine Titres & Opérations de Bourses","Titres & Opérations de Bourses","","TUIRTOU","ABDELMOULA","Chargé d'étude et développement Senior","1990-12-01","M","1990-12-01","1960-07-23","31/07/2020","BAC","BAC","Lycée","Lycée","Cadre"]
[715859,"Etudes & Développements","Banque de financement et d'investissement groupe","Domaine Titres & Opérations de Bourses","Titres & Opérations de Bourses","","SLIMANI HOUTI","ALI","Chargé d'étude et développement Senior","2017-06-01","M","2017-06-01","1989-07-10","","Ingénieur d'état","BAC+5-INGENIEUR-MASTER-DEA-DESS","ENSEIRB MATMECA","ENSEIRB MATMECA","Cadre"]
[716795,"Etudes & Développements","Banque de financement et d'investissement groupe","Domaine Titres & Opérations de Bourses","Titres & Opérations de Bourses","","ABOUL","ACHRAF","Chargé d'étude et développement junior","2018-08-15","M","2018-08-15","1995-07-29","08/02/2019","Ingénieur d'état","BAC+5-INGENIEUR-MASTER-DEA-DESS","EMI","EMI","Cadre"]
[714797,"Etudes & Développements","Banque de financement et d'investissement groupe","Domaine Titres & Opérations de Bourses","Titres & Opérations de Bourses","","OUCHANE","MOHAMED","Chargé d'étude et développement junior","2015-12-15","M","2015-12-15","1991-03-25","19/07/2019","Ingénieur d'application","BAC+4-LICENCE-MAITRISE","EMSI","EMSI","Cadre"]
[706114,"Etudes & Développements","Cash Management & Trade Finance","Domaine Trade Finance & Cash Management","A Responsable Domaine Trade Finance & Cash Management","","MEKKAOUI","JAMAL","Responsable Domaine Fonctionnel","2002-12-10","M","2002-12-10","1979-08-18","","Ingénieur d'état","BAC+5-INGENIEUR-MASTER-DEA-DESS","ENSIAS","ENSIAS","Cadre"]
[14677,"Etudes & Développements","Cash Management & Trade Finance","Domaine Trade Finance & Cash Management","Trade Finance & Cash Management","","MAMOU","AMINA","Chargé d'étude et développement Senior","1984-10-29","F","1984-10-29","1959-01-18","31/01/2019","BTS","BAC+2-DEUG-BTS-DUT","","","Cadre"]
[711034,"Etudes & Développements","Cash Management & Trade Finance","Domaine Trade Finance & Cash Management","Trade Finance & Cash Management","","EL HAMIDI-EL KETTANI","SOURAYA","Chargé d'étude et développement Senior","2010-09-17","F","2010-11-01","1983-07-14","","Ingénieur d'application","BAC+5-INGENIEUR-MASTER-DEA-DESS","EMSI","EMSI","Cadre"]
[451238,"Etudes & Développements","Cash Management & Trade Finance","Domaine Trade Finance & Cash Management","Trade Finance & Cash Management","","FOUTA","HAFIDA","Coordinateur Etudes & Developpements","2004-10-01","F","2004-10-01","1977-11-08","","Master + Bachelor","BAC+5-INGENIEUR-MASTER-DEA-DESS","Al Akhawayn","Al Akhawayn","Cadre"]
[705990,"Etudes & Développements","Cash Management & Trade Finance","Domaine Trade Finance & Cash Management","Trade Finance & Cash Management","","SMOUNI","RABII","Coordinateur Etudes & Developpements","2002-03-18","M","2002-03-18","1977-09-20","","Licence","BAC+4-LICENCE-MAITRISE","Univ. Maroc","Univ. Maroc","Cadre"]
[451085,"Etudes & Développements","Cash Management & Trade Finance","Domaine Trade Finance & Cash Management","Trade Finance & Cash Management","","MAJDI","MOHAMED","Chargé d'étude et développement Senior","1989-05-02","M","1989-05-02","1962-12-11","11/12/2022","DTI","BAC+2-DEUG-BTS-DUT","","","Cadre"]
[707808,"Etudes & Développements","Cash Management & Trade Finance","Domaine Trade Finance & Cash Management","Trade Finance & Cash Management","","CHAIR","NADIA","Chargé d'étude et développement Senior","2008-05-02","F","2008-05-02","1984-07-20","","Ingénieur d'application","BAC+4-LICENCE-MAITRISE","EMSI","EMSI","Cadre"]
[709398,"Etudes & Développements","Cash Management & Trade Finance","Domaine Trade Finance & Cash Management","Trade Finance & Cash Management","","LAGMIRI","BOUCHRA","Coordinateur Etudes & Developpements","2009-03-03","F","2009-03-16","1976-02-14","","Ingénieur d'application","BAC+4-LICENCE-MAITRISE","EMSI","EMSI","Cadre"]
[710446,"Etudes & Développements","Cash Management & Trade Finance","Domaine Trade Finance & Cash Management","Trade Finance & Cash Management","","ZEMMITA","MOHAMED","Chargé d'étude et développement Senior","2010-01-04","M","2010-03-01","1985-01-02","","Ingénieur d'application","BAC+4-LICENCE-MAITRISE","ISERT","ISERT","Cadre"]
[707699,"Etudes & Développements","Cash Management & Trade Finance","Domaine Trade Finance & Cash Management","Trade Finance & Cash Management","AFFECTE LE 01-04-19","ZINE EDDINE","NAWAL","Chargé d'étude et développement junior","2007-02-28","F","2007-02-28","1984-08-24","","Bac+3","BAC+3-DIPLOME CYCLE NORMAL+LICENCE","IGA","IGA","Non Cadre"]
[716479,"Etudes & Développements","Etudes & Développements","","","","ETTIRMIDI","OUAFA","Manager SI","2018-04-23","F","2018-04-23","1974-09-17","","Ingénieur d'état","BAC+5-INGENIEUR-MASTER-DEA-DESS","EHTP","EHTP","Cadre"]
[400788,"Etudes & Développements","Pilotage & Moyens généraux","A responsable Pilotage & Moyens généraux","","","AFRIKOU","AMINA","Responsable de pôle","1996-12-02","F","1996-12-02","1969-05-28","","Ingénieur d'état","BAC+5-INGENIEUR-MASTER-DEA-DESS","EMI","EMI","Cadre"]
[402165,"Etudes & Développements","Pilotage & Moyens généraux","Domaine Décisionel","A Responsable Domaine Décisionel","","MIKOU","ADIL","Responsable Domaine Fonctionnel","2001-09-01","M","2001-09-01","1973-09-20","","Master Télécom","BAC+5-INGENIEUR-MASTER-DEA-DESS","IGA","IGA","Cadre"]
[707227,"Etudes & Développements","Pilotage & Moyens généraux","Domaine Décisionel","Décisionel","","EL BADAOUI","SALIM","Coordinateur Etudes & Developpements","2007-04-02","M","2007-04-02","1978-08-20","","Ingénieur d'application","BAC+5-INGENIEUR-MASTER-DEA-DESS","EMSI","EMSI","Cadre"]
[715538,"Etudes & Développements","Pilotage & Moyens généraux","Domaine Décisionel","Décisionel","","AFILAL","KHAWLA","Chargé d'étude et développement junior","2017-01-02","F","2017-01-02","1994-05-07","","Ingénieur d'état","BAC+5-INGENIEUR-MASTER-DEA-DESS","EMI","EMI","Cadre"]
[400653,"Etudes & Développements","Pilotage & Moyens généraux","Domaine Décisionel","Décisionel","","RIKAOUI","RACHID","Chargé d'étude et développement Senior","1991-01-08","M","1991-01-08","1966-09-18","","Ingénieur d'état","BAC+5-INGENIEUR-MASTER-DEA-DESS","Univ. Maroc","Univ. Maroc","Cadre"]
[716819,"Etudes & Développements","Pilotage & Moyens généraux","Domaine Décisionel","Décisionel","","SAOUD","DRISS","Chargé d'étude et développement Junior","2018-09-03","M","2018-09-03","1994-01-21","","Master en BIG DATA & CLOUD","BAC+5-INGENIEUR-MASTER-DEA-DESS","","","Cadre"]
[711946,"Etudes & Développements","Pilotage & Moyens généraux","Domaine Finance & Comptabilité","A Responsable Domaine Finance & Comptabilité","","BICHRA","MOHAMED NAWFAL","Responsable de Domaine Fonctionnel","2011-12-01","M","2011-12-01","1980-05-19","","Master","BAC+5-INGENIEUR-MASTER-DEA-DESS","ESCE Paris","ESCE Paris","Cadre"]
[400334,"Etudes & Développements","Pilotage & Moyens généraux","Domaine Finance & Comptabilité","Finance & Comptabilité","","SAOUD","HASSAN","Chargé d'étude et développement Senior","1990-02-19","M","1990-02-19","1962-12-11","","Secondaire","NS","Lycée","Lycée","Cadre"]
[707691,"Etudes & Développements","Pilotage & Moyens généraux","Domaine Finance & Comptabilité","Finance & Comptabilité","","LAGHROUSSI","JAMILA","Chargé d'étude et développement Senior","2008-03-04","F","2008-03-04","1984-01-26","","Ingénieur d'application","BAC+4-LICENCE-MAITRISE","EMSI","EMSI","Cadre"]
[402245,"Etudes & Développements","Pilotage & Moyens généraux","Domaine Moyens Généraux","A Responsable Domaine Moyens Généraux","","SOUSSI-MAISSOUR","MOUNIA","Responsable Domaine Fonctionnel","2001-08-20","F","2001-08-20","1977-08-07","","Ingénieur d'état","BAC+5-INGENIEUR-MASTER-DEA-DESS","Ecole Mines","Ecole Mines","Cadre"]
[706615,"Etudes & Développements","Pilotage & Moyens généraux","Domaine Moyens Généraux","Moyens Généraux","","EL MAHSRI","KHALID","Coordinateur Etudes & Developpements","2006-07-03","M","2006-07-03","1981-06-07","25/06/2019","Ingénieur d'état","BAC+5-INGENIEUR-MASTER-DEA-DESS","EMI","EMI","Cadre"]
[707254,"Etudes & Développements","Pilotage & Moyens généraux","Domaine Moyens Généraux","Moyens Généraux","","ALLAMI","SOUHAIB","Chargé d'étude et développement Senior","2007-05-02","M","2007-05-02","1973-05-22","","DESS","BAC+5-INGENIEUR-MASTER-DEA-DESS","ESSAIM","ESSAIM","Cadre"]
[400675,"Etudes & Développements","Pilotage & Moyens généraux","Domaine Moyens Généraux","Moyens Généraux","","HALOUANE ","HAKIM","Chargé d'étude et développement Senior","1990-02-19","M","1990-02-19","1960-05-14","30/05/2020","ITB","ITB","Conser National des arts & métiers","Conser National des arts & métiers","Cadre"]
[715482,"Etudes & Développements","Pilotage & Moyens généraux","Domaine Moyens Généraux","Moyens Généraux","","CHAHBOUNE","IMAD EDDINE","Chargé d'étude et développement junior","2016-11-15","M","2016-11-15","1994-05-24","18/01/2019","Ingénieur d'état","BAC+5-INGENIEUR-MASTER-DEA-DESS","EMI","EMI","Cadre"]
[707628,"Etudes & Développements","Recette","Recette","","","ARHOUNI","ADIL","Chargé d'étude et développement Senior","2008-01-03","M","2008-01-03","1972-05-15","","Master","BAC+5-INGENIEUR-MASTER-DEA-DESS","Al Akhawayn","Al Akhawayn","Cadre"]
[45653,"Etudes & Développements","Recette","Recette","","","TABIT","ABDELILLAH","Chargé d'étude et développement junior","2009-01-25","M","2009-02-02","1981-02-05","","BAC+4","BAC+4-LICENCE-MAITRISE","IGA RABAT","IGA RABAT","Cadre"]
[716934,"Etudes & Développements","Ressources Management","Ingénierie Applicative","","","BAHI","Mostafa","Coordinateur Etudes & Developpements","2018-11-01","M","2018-11-01","1978-01-01","","Ingénieur","BAC+5-INGENIEUR-MASTER-DEA-DESS","NTIC de TELECOM LILLE1","NTIC de TELECOM LILLE1","CADRE"]
[715910,"Etudes & Développements","Ressources Management","Ingénierie Applicative","A Responsable Ingénierie Applicative","","AHID","ABDELMOUNEIM","Manager SI","2017-06-15","M","2017-06-15","1983-10-26","29/03/2019","Ingénieur d'état","BAC+5-INGENIEUR-MASTER-DEA-DESS","ENSEEIHT Toulouse","ENSEEIHT Toulouse","Cadre"]
[402110,"Etudes & Développements","Ressources Management","Ingénierie Applicative","Arrêtés des comptes / Réferentiel","","HAJBAOUI","YOUSSEF","Responsable Domaine Fonctionnel","2001-07-09","M","2001-07-09","1968-09-16","","Ingénieur d'état","BAC+5-INGENIEUR-MASTER-DEA-DESS","ENSIAS","ENSIAS","Cadre"]
[716794,"Etudes & Développements","Ressources Management","Ingénierie Applicative","Arrêtés des comptes / Réferentiel","","EL MAAYAR","YOUSSEF","Chargé d'étude et développement junior","2018-08-15","M","2018-08-15","1995-04-28","09/05/2019","Ingénieur d'état","BAC+5-INGENIEUR-MASTER-DEA-DESS","EMI","EMI","Cadre"]
[715257,"Etudes & Développements","Ressources Management","Ingénierie Applicative","BAS","","BOUKILI CHABI","MOHAMED","Coordinateur Etudes & Developpements","2016-08-01","M","2016-08-01","1984-07-28","22/03/2019","Master2","BAC+5-INGENIEUR-MASTER-DEA-DESS","Univ Toulouse","Univ Toulouse","Cadre"]
[715427,"Etudes & Développements","Ressources Management","Ingénierie Applicative","Borj cash","","ALAMI IDRISSI","SARA","Chargé d'étude et développement junior","2016-10-17","F","2016-10-17","1990-10-29","28/02/2019","Ingénieur d'état","BAC+5-INGENIEUR-MASTER-DEA-DESS","INSA LYON","INSA LYON","Cadre"]
[716216,"Etudes & Développements","Ressources Management","Ingénierie Applicative","Casch Management","","M'HAMDI ALAOUI","IMANE","Chargé d'étude et développement junior","2017-10-18","F","2017-10-18","1993-09-29","15/05/2019","Ingénieur d'état","BAC+5-INGENIEUR-MASTER-DEA-DESS","ENSIAS","ENSIAS","Cadre"]
[715784,"Etudes & Développements","Ressources Management","Ingénierie Applicative","EBICS","","ZNIBER","SAAD","Coordinateur Etudes & Developpements","2017-04-19","M","2017-04-19","1985-01-09","","Ingénieur d'état","BAC+5-INGENIEUR-MASTER-DEA-DESS","INSA ROUEN","INSA ROUEN","Cadre"]
[715305,"Etudes & Développements","Ressources Management","Ingénierie Applicative","Finance & Comptabilité","","BERRADA","ASMAE","Coordinateur Etudes & Developpements","2016-08-15","F","2016-08-15","1984-07-07","","Ingénieur","BAC+5-INGENIEUR-MASTER-DEA-DESS","IAE","IAE","Cadre"]
[715224,"Etudes & Développements","Ressources Management","Ingénierie Applicative","Finance & Comptabilité","","HAMMOUTI","BADREDDINE","Chargé d'étude et développement junior","2016-07-15","M","2016-07-15","1992-06-30","13/09/2019","Master","BAC+5-INGENIEUR-MASTER-DEA-DESS","FS OUJDA","FS OUJDA","Cadre"]
[401608,"Etudes & Développements","Ressources Management","Ingénierie Applicative","Ingénierie Applicative","","TAOUSS ","NADIA","Chargé d'étude et développement Senior","1999-06-01","F","1999-06-01","1968-01-29","","Ingénieur d'état + Master","BAC+5-INGENIEUR-MASTER-DEA-DESS","INSEA + Al Akhawayn","INSEA + Al Akhawayn","Cadre"]
[716403,"Etudes & Développements","Ressources Management","Ingénierie Applicative","Moyen Generaux (E-sourcing)","","CHERKAOUI","ABDERRAZZAK","Chargé d'étude et développement Senior","2018-02-01","M","2018-02-01","1985-01-30","","Ingénieur d'état","BAC+5-INGENIEUR-MASTER-DEA-DESS","ENSA TANGER","ENSA TANGER","Cadre"]
[715440,"Etudes & Développements","Ressources Management","Ingénierie Applicative","Moyens Géneraux SIRH","","EL JILANI","OMAR","Coordinateur Etudes & Developpements","2016-11-01","M","2016-11-01","1980-11-17","","Ingénieur d'état","BAC+5-INGENIEUR-MASTER-DEA-DESS","INSEA","INSEA","Cadre"]
[401643,"Etudes & Développements","Ressources Management","Ingénierie Applicative","Position Minute et autres sujets","","KHAIROUN","MOHAMED","Responsable Domaine Fonctionnel","2000-06-01","M","2000-06-01","1962-07-01","","Ingénieur","BAC+5-INGENIEUR-MASTER-DEA-DESS","Ecole Centrale Paris","Ecole Centrale Paris","Cadre"]
[716113,"Etudes & Développements","Ressources Management","Ingénierie Applicative","Programme SWIFT","","CHRAIBI","ALAE","Coordinateur Etudes & Developpements","2017-09-04","M","2017-09-04","1975-11-12","","DEA","BAC+5-INGENIEUR-MASTER-DEA-DESS","ENSEEIHT TOULOUSE","ENSEEIHT TOULOUSE","Cadre"]
[716413,"Etudes & Développements","Ressources Management","Ingénierie Applicative","Trade (TI+)","","LAMRINI","ABDELKARIM","Chargé d'étude et développement Senior","2018-02-15","M","2018-02-15","1987-06-26","","Ingénieur d'état + Master","BAC+5-INGENIEUR-MASTER-DEA-DESS","ENSICAEN","ENSICAEN","Cadre"]
[716227,"Etudes & Développements","Ressources Management","Ingénierie Applicative","Trade (TI+)","","TOREIS","YOUSRA","Chargé d'étude et développement junior","2017-11-01","F","2017-11-01","1993-03-23","31/01/2019","Ingénieur d'état","BAC+5-INGENIEUR-MASTER-DEA-DESS","EMI","EMI","Cadre"]
[715266,"Etudes & Développements","Ressources Management","Ingénierie Applicative","Trade (TI+)","","EL IDRISSI","ABDELMOUMEN","Chargé d'étude et développement Senior","2016-08-01","M","2016-08-01","1988-06-23","","Ingénieur d'application","BAC+5-INGENIEUR-MASTER-DEA-DESS","ESTEM","ESTEM","Cadre"]
[716069,"Etudes & Développements","Ressources Management","Ingénierie Applicative","Trade (TI+)","","HAMADA","ZAKARYA","Chargé d'étude et développement junior","2017-08-15","M","2017-08-15","1994-02-22","","Ingénieur d'état","BAC+5-INGENIEUR-MASTER-DEA-DESS","EMI","EMI","Cadre"]
[716325,"Etudes & Développements","Ressources Management","Ingénierie Applicative","Trade (TI+)","","RHAZZAL","INASS","Chargé d'étude et développement Senior","2017-12-15","F","2017-12-15","1986-08-11","31/12/2018","Ingénieur d'application","BAC+5-INGENIEUR-MASTER-DEA-DESS","EMSI","EMSI","Cadre"]
[714841,"Etudes & Développements","Risques et compliance","a Responsable Risques et compliance","","","OUAZZANI","NABIL","Responsable de Pôle","2016-01-19","M","2016-01-19","1976-02-28","16/08/2019","Ingénieur d'état","BAC+5-INGENIEUR-MASTER-DEA-DESS","EHTP UNIV LAVAL","EHTP UNIV LAVAL","Cadre"]
[710069,"Etudes & Développements","Risques et compliance","Domaine Compliance","A Responsable Domaine Compliance","","BENNANI","MANAR","Responsable Domaine Fonctionnel","2009-11-09","M","2009-11-16","1975-04-25","","Ingénieur d'état","BAC+5-INGENIEUR-MASTER-DEA-DESS","EMI","EMI","Cadre"]
[716691,"Etudes & Développements","Risques et compliance","Domaine Compliance","Compliance","","DEGHAI","HAFSA","Chargé d'étude et développement junior","2018-06-18","F","2018-06-18","1982-02-10","","Ingénieur d'état","BAC+5-INGENIEUR-MASTER-DEA-DESS"," EPS"," EPS","Cadre"]
[715588,"Etudes & Développements","Risques et compliance","Domaine Compliance","Compliance","","CHAMLAL","MOHAMED","Chargé d'étude et développement junior","2017-01-16","M","2017-01-16","1991-07-27","","Master","BAC+5-INGENIEUR-MASTER-DEA-DESS","Univ Toulouse 1","Univ Toulouse 1","Cadre"]
[703799,"Etudes & Développements","Risques et compliance","Domaine Risque & engagements","A Responsable Domaine Risque & engagements","","ZAHRANE Ep ABROUS","AICHA","Responsable Domaine Fonctionnel","1987-09-01","F","1987-09-01","1963-12-15","","Diplôme cycle normal","BAC+3-DIPLOME CYCLE NORMAL+LICENCE","IGA","IGA","Cadre"]
[716324,"Etudes & Développements","Risques et compliance","Domaine Risque & engagements","Risque & engagements","","SAID","SALAHEDDINE","Chargé d'étude et développement Senior","2017-12-15","M","2017-12-15","1991-02-23","","Ingénieur d'état","BAC+5-INGENIEUR-MASTER-DEA-DESS","EMI","EMI","Cadre"]
[716322,"Etudes & Développements","Risques et compliance","Domaine Risque & engagements","Risque & engagements","","BENALI","MOHAMED","Chargé d'étude et développement junior","2017-12-15","M","2017-12-15","1994-03-23","","Ingénieur d'état","BAC+5-INGENIEUR-MASTER-DEA-DESS","EMI","EMI","Cadre"]
[712799,"Etudes & Développements","Risques et compliance","Domaine Risque & engagements","Risque & engagements","","EL MOUTAOUAKKIL","AICHA","Chargé d'étude et développement Senior","2013-02-01","F","2013-02-01","1983-12-12","","Master","BAC+5-INGENIEUR-MASTER-DEA-DESS","Inst d'Adm des Entr","Inst d'Adm des Entr","Cadre"]
[707806,"Etudes & Développements","Risques et compliance","Domaine Risque & engagements","Risque & engagements","","SFAIRA","BAHIA","Chargé d'étude et développement Senior","2008-05-02","F","2008-05-02","1983-02-09","","DESS","BAC+5-INGENIEUR-MASTER-DEA-DESS","Univers. Dhar Mehraz Fes","Univers. Dhar Mehraz Fes","Cadre"]
[20915,"Etudes & Développements","Risques et compliance","Domaine Risque & engagements","Risque & engagements","","ZIDI","MUSTAPHA","Coordinateur Etudes & Developpements","1989-10-19","M","1989-10-19","1964-05-26","","ITB","ITB","Centre de Formation Profes. & Banc.","Centre de Formation Profes. & Banc.","Cadre"]
[402393,"Etudes & Développements","Risques et compliance","Domaine Risque & engagements","Risque & engagements","","SEKKATE","NABILA","Coordinateur Etudes & Developpements","2002-01-02","F","2002-01-02","1977-03-17","","Ingénieur d'état","BAC+5-INGENIEUR-MASTER-DEA-DESS","ENSIAS","ENSIAS","Cadre"]
[712808,"Etudes & Développements","Risques et compliance","Domaine Risque & engagements","Risque & engagements","","GHANNAM","ZAYD","Coordinateur Etudes & Developpements","2013-02-15","M","2013-02-15","1982-06-28","","Ingénieur","BAC+5-INGENIEUR-MASTER-DEA-DESS","Ecole Poly Tech Montpellier","Ecole Poly Tech Montpellier","Cadre"]
[704015,"Infrastructure & Production Informatique","  Infrastructure & Production Informatique","a Responsable Infrastructure & Production Informatique","","","LARAKI","MOHAMED JAOUAD","Responsable Production Informatique","1990-01-02","M","1990-01-02","1958-06-06","","Maîtrise","BAC+4-LICENCE-MAITRISE","Univ. France","Univ. France","Cadre"]
[402212,"Infrastructure & Production Informatique","Architecture et Projets de la Production Informatique (APPI)","A Responsable Architecture et Projets de la Production Informatique (APPI)","","","RHINAOUI","SALAH EDDINE","Responsable Architecture et Projets de la Production Informatique (APPI)","2017-01-02","M","2017-01-18","1967-07-08","","Analyste Programmeur","BAC+2-DEUG-BTS-DUT","EUROLEC","EUROLEC","Cadre"]
[706617,"Infrastructure & Production Informatique","Architecture et Projets de la Production Informatique (APPI)","ASSET MANAGEMENT","A Responsable ASSET MANAGEMENT","","AARAFAT","ABDELALALI","Chargé d'asset management","2006-07-03","M","2006-07-03","1976-08-18","","Master Europeen","BAC+5-INGENIEUR-MASTER-DEA-DESS","Univ. Poincaré","Univ. Poincaré","Cadre"]
[709913,"Infrastructure & Production Informatique","Architecture et Projets de la Production Informatique (APPI)","Cellule Architecture de Production","","","BOUZKRAOUI","ELHOUSSAINE","Architecte de Production","2009-06-15","M","2009-08-17","1986-06-16","","Ingénieur d'état","BAC+5-INGENIEUR-MASTER-DEA-DESS","EMI","EMI","Cadre"]
[451132,"Infrastructure & Production Informatique","Architecture et Projets de la Production Informatique (APPI)","Cellule Architecture de Production","","","MOUTAWAKIL","KHALID","Architecte de production","2001-03-01","M","2001-03-01","1974-03-02","","Ingénieur d'état","BAC+5-INGENIEUR-MASTER-DEA-DESS","ENIM","ENIM","Cadre"]
[716428,"Infrastructure & Production Informatique","Architecture et Projets de la Production Informatique (APPI)","Cellule Architecture de Production","","","SALAMA","YASSINE","Architecte de Production","2018-03-15","M","2018-03-15","1982-05-09","29/10/2019","Ingénieur d'état","BAC+5-INGENIEUR-MASTER-DEA-DESS","EHTP","EHTP","Cadre"]
[716317,"Infrastructure & Production Informatique","Architecture et Projets de la Production Informatique (APPI)","Equipe chefs de projets de Production","","","MAHAOUCHI","SOUHAIR","Chef de projet de production","2017-12-15","F","2017-12-15","1987-10-31","28/02/2019","Master","BAC+5-INGENIEUR-MASTER-DEA-DESS","ENSA FES","ENSA FES","Cadre"]
[705925,"Infrastructure & Production Informatique","Architecture et Projets de la Production Informatique (APPI)","Equipe chefs de projets de production","","","NAJMI","SAMIR","Chef de projet de production","2001-10-15","M","2001-10-15","1977-08-18","","Ingénieur d'état","BAC+5-INGENIEUR-MASTER-DEA-DESS","EMI","EMI","Cadre"]
[707529,"Infrastructure & Production Informatique","Architecture et Projets de la Production Informatique (APPI)","Equipe chefs de projets de production","","","AIT ABDERRAHMANE","MOUNIR","Chef de projet de production","2007-12-17","M","2007-12-17","1982-05-27","","Ingénieur","BAC+5-INGENIEUR-MASTER-DEA-DESS","ESST","ESST","Cadre"]
[28958,"Infrastructure & Production Informatique","Architecture et Projets de la Production Informatique (APPI)","Equipe chefs de projets de production","","","ACHARKI","MOHAMED","Chef de projet de production","1999-04-26","M","1999-04-26","1973-10-23","","Licence","BAC+4-LICENCE-MAITRISE","Univ. Maroc","Univ. Maroc","Cadre"]
[716461,"Infrastructure & Production Informatique","Architecture et Projets de la Production Informatique (APPI)","Equipe chefs de projets de production","","","YOUSFI","IMAD","Chef de projet de production","2018-04-02","M","2018-04-02","1980-10-28","31/01/2020","Master DEA","BAC+5-INGENIEUR-MASTER-DEA-DESS","Univ d' Orsay Paris","Univ d' Orsay Paris","Cadre"]
[716426,"Infrastructure & Production Informatique","Architecture et Projets de la Production Informatique (APPI)","Equipe chefs de projets de production","","","ARIF","JALAL","Chef de Projet de Production","2018-03-15","M","2018-03-15","1985-01-17","","Master","BAC+5-INGENIEUR-MASTER-DEA-DESS","UIR","UIR","Cadre"]
[706229,"Infrastructure & Production Informatique","Infrastructure","Infra Réseau Télécom","  Responsable Domaine Infra Réseau Télécom","","EL HANNIOUI","MOHAMED","Responsable Domaine Infra Réseau Télécom","2003-12-04","M","2003-12-04","1968-10-01","","Master","BAC+5-INGENIEUR-MASTER-DEA-DESS","OFPPT","OFPPT","Cadre"]
[710663,"Infrastructure & Production Informatique","Infrastructure","Infra Réseau Télécom","Infra Réseau Télécom","","LYAMANI","FAICAL","Expert Réseaux & Télécoms","2010-04-30","M","2010-05-17","1986-06-15","","Ingénieur d'application","BAC+4-LICENCE-MAITRISE","ISERT","ISERT","Cadre"]
[709738,"Infrastructure & Production Informatique","Infrastructure","Infra Réseau Télécom","Infra Réseau Télécom","","LAACHIR","ADIL","Technicien Réseaux & Télécoms","2009-06-15","M","2009-08-03","1975-06-02","","Technicien télecom","BAC+2-DEUG-BTS-DUT","EURELEC","EURELEC","Cadre"]
[715621,"Infrastructure & Production Informatique","Infrastructure","Infra Réseau Télécom","Infra Réseau Télécom","","KHALID","ABDELGHAFOUR","Administrateur Réseaux & Télécoms","2017-02-01","M","2017-02-01","1988-06-15","18/01/2019","Ingénieur d'application","BAC+5-INGENIEUR-MASTER-DEA-DESS","EMSI","EMSI","Cadre"]
[707182,"Infrastructure & Production Informatique","Infrastructure","Infra Réseau Télécom","Infra Réseau Télécom","","AMRANI","EL GHALI","Architecte Télécoms Senior","2007-03-01","M","2007-03-01","1984-10-14","","Master","BAC+5-INGENIEUR-MASTER-DEA-DESS","2 IRS","2 IRS","Cadre"]
[715769,"Infrastructure & Production Informatique","Infrastructure","Infra Réseau Télécom","Infra Réseau Télécom","","EL HAMRITI","AMINE","Administrateur Réseaux & Télécoms","2017-04-17","M","2017-04-17","1984-04-01","","Ingénieur","BAC+5-INGENIEUR-MASTER-DEA-DESS","EHEGICC","EHEGICC","Cadre"]
[707732,"Infrastructure & Production Informatique","Infrastructure","Infrastructure centralisée","A Responsable Infrastructure centralisée","","JOUAD","MUSTAPHA","Responsable Infrastructure centralisée","2008-04-15","M","2008-04-15","1983-03-28","31/01/2019","Ingénieur d'état","BAC+5-INGENIEUR-MASTER-DEA-DESS","EHTP","EHTP","Cadre"]
[716291,"Infrastructure & Production Informatique","Infrastructure","Infrastructure Centralisée","Infrastructure Centralisée","","LAHOUAICHRI","IMAD","Administrateur Infrastructure Junior","2017-12-04","M","2017-12-04","1989-10-18","","Master","BAC+5-INGENIEUR-MASTER-DEA-DESS","FST","FST","Cadre"]
[707013,"Infrastructure & Production Informatique","Infrastructure","Infrastructure Centralisée","Infrastructure Centralisée","","EL JALLAB","TARIK","Expert Infrastructure","2006-12-15","M","2006-12-15","1980-08-18","","Maîtrise","BAC+5-INGENIEUR-MASTER-DEA-DESS","Univ. Maroc","Univ. Maroc","Cadre"]
[715091,"Infrastructure & Production Informatique","Infrastructure","Infrastructure Centralisée","Infrastructure Centralisée","","TOUIJRI","SOUFIANE","Administrateur Infrastructure Sénior","2016-06-01","M","2016-06-01","1984-02-24","","","BAC+5-INGENIEUR-MASTER-DEA-DESS","","","Cadre"]
[715819,"Infrastructure & Production Informatique","Infrastructure","Infrastructure Centralisée","Infrastructure Centralisée","","LAKRAFI","YOUSSEF","Expert Infrastructure","2017-05-02","M","2017-05-02","1969-05-01","","Master","BAC+5-INGENIEUR-MASTER-DEA-DESS","Univ de Montpellier","Univ de Montpellier","Cadre"]
[715806,"Infrastructure & Production Informatique","Infrastructure","Infrastructure Centralisée","Infrastructure Centralisée","","BEKKALI","ZAKARIA","Administrateur Infrastructure Confirmé","2017-05-02","M","2017-05-02","1983-04-11","","Ingénieur d'état","BAC+5-INGENIEUR-MASTER-DEA-DESS","Vincy","Vincy","Cadre"]
[716272,"Infrastructure & Production Informatique","Infrastructure","Infrastructure Centralisée","Infrastructure Centralisée","","DIOUCH","ABDERRAZAK","Administrateur Infrastructure Junior","2017-11-15","M","2017-11-15","1992-04-14","","Ingénieur d'application","BAC+5-INGENIEUR-MASTER-DEA-DESS","ESTEM","ESTEM","Cadre"]
[716418,"Infrastructure & Production Informatique","Infrastructure","Infrastructure Centralisée","Infrastructure Centralisée","","SAMI","YOUNES","Administrateur Infrastructure Confirmé","2018-03-01","M","2018-03-01","1986-09-30","","Ingénieur d'état","BAC+5-INGENIEUR-MASTER-DEA-DESS","INPT","INPT","Cadre"]
[715677,"Infrastructure & Production Informatique","Infrastructure & Production Informatique","Cellule de pilotage","  Responsable Cellule de pilotage","","ERCHIDI","KARIM","Chargé de pilotage","2017-03-01","M","2017-03-01","1989-09-22","29/06/2019","Master","BAC+5-INGENIEUR-MASTER-DEA-DESS","TELECOM LILLE ESSEC","TELECOM LILLE ESSEC","Cadre"]
[716694,"Infrastructure & Production Informatique","Infrastructure & Production Informatique","Cellule de pilotage","Cellule de pilotage","","MOUAK","YOUSSEF","Chargé de pilotage","2018-07-02","M","2018-07-02","1988-06-06","","Ingénieur","BAC+5-INGENIEUR-MASTER-DEA-DESS","HIGH-TECH","HIGH-TECH","Cadre"]
[705790,"Infrastructure & Production Informatique","Mainframe","A Responsable Mainframe","","","EL BACHIRI","ABDENNACER","Responsable Mainframe","2009-01-19","M","2009-03-02","1977-01-01","","Ingénieur d'état","BAC+5-INGENIEUR-MASTER-DEA-DESS","EMI","EMI","Cadre"]
[709009,"Infrastructure & Production Informatique","Mainframe","Intégration Mainframe","A Responsable Intégration Mainframe","","FAYESSAL EL KETTANI","EL ABID","Responsable Intégration de Production des Applications Mainframe","2008-10-30","M","2008-10-30","1962-09-23","","Formation Reseau et Télécom","BAC+5-INGENIEUR-MASTER-DEA-DESS","ISERT","ISERT","Cadre"]
[715080,"Infrastructure & Production Informatique","Mainframe","Intégration Mainframe","Intégration Mainframe","","JAOUHARI","TARIK","Intégrateur de Production des Applications Mainframes","2016-06-01","M","2016-06-01","1989-03-11","31/01/2019","","BAC+5-INGENIEUR-MASTER-DEA-DESS","","","Cadre"]
[715386,"Infrastructure & Production Informatique","Mainframe","Intégration Mainframe","Intégration Mainframe","","EL KADDOURI","MOHAMED REDA","Intégrateur de Production des Applications Mainframes","2016-10-03","M","2016-10-03","1985-07-09","","Maîtrise","BAC+5-INGENIEUR-MASTER-DEA-DESS","ISIAG IUP  MIAGE","ISIAG IUP  MIAGE","Cadre"]
[712549,"Infrastructure & Production Informatique","Mainframe","SYSTEM"," Responsable SYSTEM","","ZARRAFA","ABDELLAH","Administrateur système Mainframe","2012-11-04","M","2012-11-04","1987-06-21","24/01/2019","Ingénieur d'état","BAC+5-INGENIEUR-MASTER-DEA-DESS","INPT","INPT","Cadre"]
[716230,"Infrastructure & Production Informatique","Pilotage & Supervision de la Production PSP","PSI & Gestion des DATACENTERS","PSI & Gestion des DATACENTERS","","ABDENEBAOUI","YASSINE","Gesionnaire PSI","2017-11-01","M","2017-11-01","1982-07-02","","Ingénieur d'application","BAC+4-LICENCE-MAITRISE","EMSI","EMSI","Cadre"]
[707296,"Infrastructure & Production Informatique","Pilotage & Supervision de la Production PSP","PSI & Gestion des DATACENTERS","PSI & Gestion des DATACENTERS","","FAOUZI","MOSTAPHA","Gestionnaire PSI","2007-06-01","M","2007-06-01","1979-04-08","","Maîtrise","BAC+5-INGENIEUR-MASTER-DEA-DESS","Univ. Maroc","Univ. Maroc","Cadre"]
[714833,"Infrastructure & Production Informatique","Services Applicatifs et Intégration (SAI)","A Responsable Services Applicatifs et Intégration (SAI)","","","OBBAD EP BAKI","NEZHA","Responsable Services Applicatifs et Intégration (SAI)","2016-01-15","F","2016-01-15","1972-06-04","","Ingénieur","BAC+5-INGENIEUR-MASTER-DEA-DESS","ENI BREST","ENI BREST","Cadre"]
[402096,"Infrastructure & Production Informatique","Services Applicatifs et Intégration (SAI)","Administration et expertises","  Responsable Administration et expertises","","DAKIR","IMADE","Responsable Administration et expertises","2001-04-02","M","2001-04-02","1976-02-05","15/01/2019","Maîtrise","BAC+4-LICENCE-MAITRISE","Univ. Maroc","Univ. Maroc","Cadre"]
[716407,"Infrastructure & Production Informatique","Services Applicatifs et Intégration (SAI)","Administration et expertises","Administration et expertises","A Responsable Administration et expertises","LAZAR","NABIL","Responsable Administration et expertises","2018-02-05","M","2018-02-05","1983-06-15","31/01/2020","","BAC+5-INGENIEUR-MASTER-DEA-DESS","","","Cadre"]
[401701,"Infrastructure & Production Informatique","Services Applicatifs et Intégration (SAI)","Administration et expertises","Administration technique","A Team Leader Administration technique","EL GOUR","AZEDDINE","Team Leader Administration technique","1999-04-12","M","1999-04-12","1975-02-25","","Ingénieur d'application","BAC+4-LICENCE-MAITRISE","ESTEM","ESTEM","Cadre"]
[716749,"Infrastructure & Production Informatique","Services Applicatifs et Intégration (SAI)","Administration et expertises","Administration technique","Administration Technique","ROUESSI","MOHAMED HAMZA","Administrateur Technique","2018-07-16","M","2018-07-16","1987-03-30","","Master","BAC+5-INGENIEUR-MASTER-DEA-DESS","FST","FST","Cadre"]
[707921,"Infrastructure & Production Informatique","Services Applicatifs et Intégration (SAI)","Administration et expertises","Administration Technique","Administration Technique","CHANTIT","REDA","Administrateur Technique","2007-12-01","M","2007-12-01","1981-03-27","","BAC+4","BAC+4-LICENCE-MAITRISE","IGA","IGA","Cadre"]
[709572,"Infrastructure & Production Informatique","Services Applicatifs et Intégration (SAI)","Administration et expertises","Administration Technique","Administration Technique","ELGOUMIRI","LOUBNA","Administrateur Technique","2009-04-20","F","2009-06-01","1983-02-08","","Ingénieur d'application","BAC+4-LICENCE-MAITRISE","EMSI","EMSI","Cadre"]
[400367,"Infrastructure & Production Informatique","Services Applicatifs et Intégration (SAI)","Administration et expertises","Expertises Middleware / WEB / BD","Expertises Middleware / WEB / BD","BENRICHE","KHALID","Expert DBA","1993-01-01","M","1993-01-01","1968-01-09","","Secondaire","NS","Lycée","Lycée","Cadre"]
[712070,"Infrastructure & Production Informatique","Services Applicatifs et Intégration (SAI)","Administration et expertises","Gestion Poste de travail","Gestion Poste de travail","CHAHID","AMINE","Gestionnaire Poste de travail","2012-02-01","M","2012-02-01","1987-08-03","","Licence professionnelle en Conception et développement Architecture Système","BAC+3-DIPLOME CYCLE NORMAL+LICENCE","ENEM","ENEM","Non Cadre"]
[713541,"Infrastructure & Production Informatique","Services Applicatifs et Intégration (SAI)","Administration et expertises","Gestion Poste de Travail","Gestion Poste de Travail","AMRANI","NABIL","Gestionnaire Poste de travail","2014-01-20","M","2014-01-20","1992-11-02","25/03/2019","Licence Professionnelle","BAC+3-DIPLOME CYCLE NORMAL+LICENCE","FST","FST","Non Cadre"]
[716931,"Infrastructure & Production Informatique","Services Applicatifs et Intégration (SAI)","Administration et expertises","Gestion Poste de travail","Gestion Poste de travail","ELATRASSI","MEHDI","Gestionnaire Poste de travail","2018-11-01","M","2018-11-01","1985-07-11","30/05/2019","Ingénieur d'application","BAC+5-INGENIEUR-MASTER-DEA-DESS","HIGH-TECH RABAT","HIGH-TECH RABAT","CADRE"]
[710699,"Infrastructure & Production Informatique","Services Applicatifs et Intégration (SAI)","Administration et expertises","Pôle de Compétence Opérationnelle PCO","A Team Leader PCO Pôle de Compétence Opérationnelle","FAHMANI","MOHAMED EL MAHDI","Team Leader PCO","2010-05-25","M","2010-06-15","1983-09-20","","Master 2","BAC+5-INGENIEUR-MASTER-DEA-DESS","Univ CLAUDE BERNARD Lyon","Univ CLAUDE BERNARD Lyon","Cadre"]
[714924,"Infrastructure & Production Informatique","Services Applicatifs et Intégration (SAI)","Administration et expertises","Pôle de Compétence Opérationnelle PCO","Pôle de Compétence Opérationnelle PCO","HINNI","OUSSAMA","Administrateur de Production","2016-03-15","m","2016-03-15","1991-05-25","","Licence Professionnelle  + Master","BAC+5-INGENIEUR-MASTER-DEA-DESS","FST","FST","Non Cadre"]
[710700,"Infrastructure & Production Informatique","Services Applicatifs et Intégration (SAI)","Administration et expertises","Pôle de Compétence Opérationnelle PCO","Pôle de Compétence Opérationnelle PCO","AJAFAR","ZOUHEIR","Administrateur de Production","2010-05-25","M","2010-06-15","1980-01-05","","BAC+4","BAC+4-LICENCE-MAITRISE","IGA","IGA","Cadre"]
[713558,"Infrastructure & Production Informatique","Services Applicatifs et Intégration (SAI)","Administration et expertises","Pôle de Compétence Opérationnelle PCO","Pôle de Compétence Opérationnelle PCO","ADLIL","ABDERRAHMANE","Administrateur de Production","2014-02-17","M","2014-02-17","1990-03-24","","Licence Professionnelle + Master","BAC+5-INGENIEUR-MASTER-DEA-DESS","FST","FST","Non Cadre"]
[713560,"Infrastructure & Production Informatique","Services Applicatifs et Intégration (SAI)","Administration et expertises","Pôle de Compétence Opérationnelle PCO","Pôle de Compétence Opérationnelle PCO","LAMKADDEM","MOHAMED","Administrateur de Production","2014-02-17","M","2014-02-17","1991-09-25","13/04/2019","Licence Professionnelle + Master","BAC+5-INGENIEUR-MASTER-DEA-DESS","FSJES AIN CHOCK","FSJES AIN CHOCK","Non Cadre"]
[402600,"Infrastructure & Production Informatique","Services Applicatifs et Intégration (SAI)","Administration et expertises","Pôle de Compétence Opérationnelle PCO","Pôle de Compétence Opérationnelle PCO","BENTAIEB","EL MEHDI","Administrateur de Production","2002-10-10","M","2002-10-10","1978-04-16","","Ingénieur d'application","BAC+4-LICENCE-MAITRISE","ESTEM","ESTEM","Cadre"]
[716920,"Infrastructure & Production Informatique","Services Applicatifs et Intégration (SAI)","Industrialisation des processus","Industrialisation des processus","","GAKOU","FALLOU","Chargé d'industrialisation des processus","2018-10-15","M","2018-10-15","1992-09-10","","Ingénieur d'état","BAC+5-INGENIEUR-MASTER-DEA-DESS","Academie Internationale MED VI","Academie Internationale MED VI","CADRE"]
[709024,"Infrastructure & Production Informatique","Services Applicatifs et Intégration (SAI)","Intégration de Production des Applications BDI","A Responsable Intégration de Production des Applications BDI","","KABDI","SOUHAIL","Responsable Intégration de Production des Applications BDI","2008-11-17","M","2008-11-17","1975-07-28","","Ingénieur d'étude et développement","BAC+5-INGENIEUR-MASTER-DEA-DESS","ESG","ESG","Cadre"]
[714702,"Infrastructure & Production Informatique","Services Applicatifs et Intégration (SAI)","Intégration de Production des Applications BDI","Intégration de Production des Applications BDI","","EL YAKINE","BRAHIM","Intégrateur de Production des Applications","2015-09-15","M","2015-11-02","1981-05-03","31/01/2019","Ingénieur d'état","BAC+5-INGENIEUR-MASTER-DEA-DESS","INPT RABAT","INPT RABAT","Cadre"]
[402495,"Infrastructure & Production Informatique","Services Applicatifs et Intégration (SAI)","Intégration de production des applications de la banque","A Responsable Intégration de production des applications de la banque","","AZIZ","KENZA","Responsable intégration de production des applications de la banque","2002-04-15","F","2002-04-15","1982-04-21","","Diplôme cycle normal","BAC+3-DIPLOME CYCLE NORMAL+LICENCE","EMSI","EMSI","Cadre"]
[710348,"Infrastructure & Production Informatique","Services Applicatifs et Intégration (SAI)","Intégration de production des applications de la banque","Flux et d'ordonnancement","A Responsable Flux & ordonnancement","AMRAOUI","LAHCEN","Team Leader Flux et d'ordonnancement","2009-11-09","M","2010-02-01","1981-12-17","","Ingénieur d'état","BAC+5-INGENIEUR-MASTER-DEA-DESS","ENSIAS","ENSIAS","Cadre"]
[712672,"Infrastructure & Production Informatique","Services Applicatifs et Intégration (SAI)","Intégration de production des applications de la banque","Flux et d'ordonnancement","Flux et d'ordonnancement","BOUSTANI","SOUFIANE","Intégrateur des flux","2016-03-01","M","2016-03-01","1984-09-22","30/05/2019","Technicien spécialisé","BAC+2-DEUG-BTS-DUT","IFIAG","IFIAG","Non Cadre"]
[715104,"Infrastructure & Production Informatique","Services Applicatifs et Intégration (SAI)","Intégration de production des applications de la banque","Flux et d'ordonnancement","Flux et d'ordonnancement","LACHGAR","YASSINE","Intégrateur des flux","2016-06-01","M","2016-06-01","1993-08-30","","Licence Professionnelle","BAC+3-DIPLOME CYCLE NORMAL+LICENCE","EST","EST","Non Cadre"]
[715236,"Infrastructure & Production Informatique","Services Applicatifs et Intégration (SAI)","Intégration de production des applications de la banque","Flux et d'ordonnancement","Flux et d'ordonnancement","MOUNAJJIME","MOUHCINE","Intégrateur des flux","2016-07-15","M","2016-07-15","1984-11-10","11/01/2019","Master","BAC+5-INGENIEUR-MASTER-DEA-DESS","Ecole CESA","Ecole CESA","Cadre"]
[714113,"Infrastructure & Production Informatique","Services Applicatifs et Intégration (SAI)","Intégration de production des applications de la banque","Flux et d'ordonnancement","Flux et d'ordonnancement","EL JABLI","ABDELILLAH","Intégrateur des flux","2015-01-02","M","2015-01-02","1988-01-14","","Licence Professionnelle + Master","BAC+3-DIPLOME CYCLE NORMAL+LICENCE","","","Non Cadre"]
[707592,"Infrastructure & Production Informatique","Services Applicatifs et Intégration (SAI)","Intégration de production des applications de la banque","IPAB BTG BC & F, SFS","A Responsable IPAB BTG BC & F, SFS","NAOUFEL","SAMY","Technical Account Manager","2007-12-24","M","2007-12-24","1981-06-15","27/04/2019","Ingénieur d'application","BAC+4-LICENCE-MAITRISE","ISERT","ISERT","Cadre"]
[716601,"Infrastructure & Production Informatique","Services Applicatifs et Intégration (SAI)","Intégration de production des applications de la banque","IPAB BTG BC & F, SFS","IPAB BTG BC & F, SFS","FERAA","ISMAIL","Intégrateur de Production des Applications","2018-06-01","M","2018-06-01","1987-10-30","","Master","BAC+5-INGENIEUR-MASTER-DEA-DESS","Univ Bretagne Occidental / ESTEM","Univ Bretagne Occidental / ESTEM","Cadre"]
[709639,"Infrastructure & Production Informatique","Services Applicatifs et Intégration (SAI)","Intégration de production des applications de la banque","IPAB BTG BC & F, SFS","IPAB BTG BC & F, SFS","EL JAOUHARI","GHALIA","Intégrateur de Production des Applications","2009-06-10","F","2009-06-23","1988-04-11","","DUT","BAC+2-DEUG-BTS-DUT","ESTC","ESTC","Non Cadre"]
[714230,"Infrastructure & Production Informatique","Services Applicatifs et Intégration (SAI)","Intégration de production des applications de la banque","IPAB OTD Monétique","A Responsable IPAB OTD Monétique","DILALI","MAROUANE","Technical Account Manager","2015-04-01","M","2015-04-01","1988-11-04","","Ingénieur d'application","BAC+4-LICENCE-MAITRISE","HIGH TECH","HIGH TECH","Cadre"]
[716406,"Infrastructure & Production Informatique","Services Applicatifs et Intégration (SAI)","Intégration de production des applications de la banque","IPAB OTD Monétique","IPAB OTD Monétique","LARHZIL","AALI","Intégrateur de Production des Applications","2018-02-01","M","2018-02-01","1994-06-06","","Ingénieur d'état","BAC+5-INGENIEUR-MASTER-DEA-DESS","EMI","EMI","Cadre"]
[714179,"Infrastructure & Production Informatique","Services Applicatifs et Intégration (SAI)","Intégration de production des applications de la banque","IPAB OTD Monétique","IPAB OTD Monétique","KHATTABI","MOHAMED","Intégrateur de Production des Applications","2015-03-04","M","2015-03-04","1989-06-26","","Ingénieur d'application","BAC+4-LICENCE-MAITRISE","EMSI","EMSI","Cadre"]
[709910,"Infrastructure & Production Informatique","Services Applicatifs et Intégration (SAI)","Intégration de production des applications de la banque","IPAB Pilotage M.Généraux Risques Compliance","A Responsable IPAB IPAB Pilotage M.Généraux Risques Compliance","BENABDELLAH","YOUSSEF","Technical Account Manager","2009-04-20","M","2009-09-01","1980-10-23","","Master en informatique","BAC+5-INGENIEUR-MASTER-DEA-DESS","Henri Poincaré Nancy France","Henri Poincaré Nancy France","Cadre"]
[716831,"Infrastructure & Production Informatique","Services Applicatifs et Intégration (SAI)","Intégration de production des applications de la banque","IPAB Pilotage M.Généraux Risques Compliance","IPAB Pilotage M.Généraux Risques Compliance","EL AOUNI","MAHFOUD","Intégrateur de Production des Applications","2018-09-03","M","2018-09-03","1991-09-01","","Ingénieur d'état","BAC+5-INGENIEUR-MASTER-DEA-DESS","AIAC","AIAC","CADRE"]
[704285,"IT AFRICA"," IT AFRICA","a Responsable IT AFRICA","","","BENABDELJALIL","MOHAMED","Responsable IT AFRICA","1991-12-03","M","1991-12-03","1966-02-07","","Maîtrise","BAC+4-LICENCE-MAITRISE","Univ. France","Univ. France","Cadre"]
[401585,"IT AFRICA","Centre de service et de supports","A Responsable Centre de service et de supports","","","EL BOUZID","MUSTAPHA","Responsable de Pôle","1988-01-01","M","1988-01-01","1962-02-21","02/02/2020","Master of business ADM","BAC+5-INGENIEUR-MASTER-DEA-DESS","Univ. Canada","Univ. Canada","Cadre"]
[711742,"IT AFRICA","Centre de service et de supports","Centre de service et de supports","","","BERRADI","KHADIJA","Chargé d'étude et développement Junior","2011-09-27","F","2011-10-03","1990-04-16","","Technicien spécialisé","BAC+2-DEUG-BTS-DUT","NTIC2","NTIC2","Non Cadre"]
[716793,"IT AFRICA","Centre de service et de supports","Centre de service et de supports","","","FAHLI","YOUSSEF","Chargé d'étude et développement Senior","2018-08-15","M","2018-08-15","1984-01-26","","Master","BAC+5-INGENIEUR-MASTER-DEA-DESS","FST","FST","Cadre"]
[713212,"IT AFRICA","Centre de service et de supports","Centre de service et de supports","","","ADIB","ABLHAKIM","Chargé d'étude et développement junior","2013-09-17","M","2013-09-17","1991-07-29","16/08/2019","Licence Professionnelle","BAC+3-DIPLOME CYCLE NORMAL+LICENCE","FST","FST","Non Cadre"]
[715847,"IT AFRICA","Centre de service et de supports","Centre de service et de supports","","","DRIHANY","KHADIJA","Coordinateur Etudes & Developpements","2017-05-15","F","2017-05-02","1986-04-12","","Ingénieur d'état","BAC+5-INGENIEUR-MASTER-DEA-DESS","ISITV Toulan","ISITV Toulan","Cadre"]
[708078,"IT AFRICA","Centre de service et de supports","Centre de service et de supports","","","EL AICHI","MOULAY RACHID","Chargé d'étude et développement Senior","2008-10-15","M","2008-10-15","1977-12-03","","Diplôme d'ingénieur en informatique","BAC+5-INGENIEUR-MASTER-DEA-DESS","ENSIEG INPG GRENOBLE","ENSIEG INPG GRENOBLE","Cadre"]
[716096,"IT AFRICA","Centre de service et de supports","Centre de service et de supports","","","ASSLAM","MOUNIA","Chargé d'étude et développement Senior","2017-08-15","F","2017-08-15","1980-01-31","06/06/2019","Ingénieur d'application","BAC+5-INGENIEUR-MASTER-DEA-DESS","EMSI","EMSI","Cadre"]
[400414,"IT AFRICA","Centre de service et de supports","Centre de service et de supports","","","DOSS BENNANI","JAMAL","Responsable Domaine Fonctionnel","1990-02-01","M","1990-02-01","1961-04-22","","DEUG","BAC+2-DEUG-BTS-DUT","Univ. Maroc","Univ. Maroc","Cadre"]
[716431,"IT AFRICA","Centre de service et de supports","Centre de service et de supports","","","DADI","MERIEM","Coordinateur Etudes & Developpements","2018-03-15","F","2018-03-15","1984-10-27","","Master","BAC+5-INGENIEUR-MASTER-DEA-DESS","EMSI / EHTP","EMSI / EHTP","Cadre"]
[715770,"IT AFRICA","Centre de service et de supports","Centre de service et de supports","","","LIMAMI","YASSER","Chargé d'étude et développement Senior","2017-04-17","M","2017-04-17","1987-07-13","","Master pro 2 miage","BAC+5-INGENIEUR-MASTER-DEA-DESS","FST","FST","Cadre"]
[712027,"IT AFRICA","Centre de service et de supports","Centre de service et de supports","","AFFECTE 30/10/18","JALLOULY","AYOUB","Chargé d'étude et développement Junior","2012-01-17","M","2012-01-17","1988-03-03","","Technicien","BAC+2-DEUG-BTS-DUT","ISTA","ISTA","Non Cadre"]
[704188,"Production Informatique","Pilotage & Supervision de la Production PSP","Pilotage de l'Exploitation, Optimisation des traitements et pilotage des flux","A Responsable Pilotage de l'Exploitation, Optimisation des traitements et pilotage des flux","","MARZOUKI","YOUSSEF","Responsable Pilotage de l'exploitation, optimisation des traitements et Pilotage des flux","1991-04-22","M","1991-04-22","1965-10-10","","ITB","ITB","Centre de Formation Profes. & Banc.","Centre de Formation Profes. & Banc.","Cadre"]
[37697,"Production Informatique","Pilotage & Supervision de la Production PSP","Pilotage de l'Exploitation, Optimisation des traitements et pilotage des flux","Pilotage de l'Exploitation, Optimisation des traitements et pilotage des flux","","FENTAOUI","ABDERRAHIM","Gestionnaire de flux","1981-09-01","M","1981-09-01","1960-06-01","30/06/2020","Secondaire","NS","Lycée","Lycée","Cadre"]
[707591,"Production Informatique","Pilotage & Supervision de la Production PSP","Pilotage de l'Exploitation, Optimisation des traitements et pilotage des flux","Pilotage de l'Exploitation, Optimisation des traitements et pilotage des flux","","BENIHYA","MOHAMED AMINE","Gestionnaire de flux","2007-12-24","M","2007-12-24","1981-12-17","","BAC+4","BAC+4-LICENCE-MAITRISE","IGA","IGA","Cadre"]
[400686,"Production Informatique","Pilotage & Supervision de la Production PSP","Pilotage de l'Exploitation, Optimisation des traitements et pilotage des flux","Pilotage de l'Exploitation, Optimisation des traitements et pilotage des flux","","FAJRINE","OMAR","Gestionnaire de flux","1989-05-02","M","1989-05-02","1961-10-28","","Niveau BAC + 2","NIVEAU BAC","","","Cadre"]
[704537,"Production Informatique","Pilotage & Supervision de la Production PSP","Pilotage de l'Exploitation, Optimisation des traitements et pilotage des flux","Pilotage de l'Exploitation, Optimisation des traitements et pilotage des flux","Pilotage Exploitation","DARDARY","MOUNSIF","Gestionnaire d'exploitation","1988-04-01","M","1988-04-01","1960-12-18","31/12/2020","DEUG","BAC+2-DEUG-BTS-DUT","Univ. Maroc","Univ. Maroc","Cadre"]
[716390,"Production Informatique","Pilotage & Supervision de la Production PSP","Pilotage de l'Exploitation, Optimisation des traitements et pilotage des flux","Pilotage de l'Exploitation, Optimisation des traitements et pilotage des flux","Pilotage Exploitation","RHANBOURI","WALID","Opérateur d'Exploitation","2018-01-15","M","2018-01-15","1994-06-22","","Licence","BAC+3-DIPLOME CYCLE NORMAL+LICENCE","FST Marrakech","FST Marrakech","Non Cadre"]
[713162,"Production Informatique","Pilotage & Supervision de la Production PSP","Pilotage de l'Exploitation, Optimisation des traitements et pilotage des flux","Pilotage de l'Exploitation, Optimisation des traitements et pilotage des flux","Pilotage Exploitation","HAKIM","ZAKARIA","Opérateur d'Exploitation","2013-09-09","M","2013-09-10","1989-12-16","","Licence Professionnelle","BAC+3-DIPLOME CYCLE NORMAL+LICENCE","F BEN MSIK","F BEN MSIK","Non Cadre"]
[709327,"Production Informatique","Pilotage & Supervision de la Production PSP","Pilotage de l'Exploitation, Optimisation des traitements et pilotage des flux","Pilotage de l'Exploitation, Optimisation des traitements et pilotage des flux","Pilotage Exploitation","BERRISSOUL","ISMAIL","Responsable de Shift","2009-02-20","M","2009-03-02","1984-10-12","","Diplôme réseaux télécoms","BAC+4-LICENCE-MAITRISE","EDHEC","EDHEC","Cadre"]
[716950,"Production Informatique","Pilotage & Supervision de la Production PSP","Pilotage de l'Exploitation, Optimisation des traitements et pilotage des flux","Pilotage de l'Exploitation, Optimisation des traitements et pilotage des flux","Pilotage Exploitation","BOUZROUR","MEHDI","Opérateur d'Exploitation","2018-11-01","M","2018-11-01","1996-09-28","","Licence Professionnelle","BAC+3-DIPLOME CYCLE NORMAL+LICENCE","FST Mohammedia","FST Mohammedia","NON CADRE"]
[711992,"Production Informatique","Pilotage & Supervision de la Production PSP","Pilotage de l'Exploitation, Optimisation des traitements et pilotage des flux","Pilotage de l'Exploitation, Optimisation des traitements et pilotage des flux","Pilotage Exploitation","MOUSSAFIR","ABDESSAMAD","Opérateur d'Exploitation","2012-01-16","M","2012-01-16","1991-01-09","31/12/2019","DTS","BAC+2-DEUG-BTS-DUT","CFMOTI","CFMOTI","Non Cadre"]
[713200,"Production Informatique","Pilotage & Supervision de la Production PSP","Pilotage de l'Exploitation, Optimisation des traitements et pilotage des flux","Pilotage de l'Exploitation, Optimisation des traitements et pilotage des flux","Pilotage Exploitation","LAKHIARI","MAROUANE","Opérateur d'exploitation","2013-09-09","M","2013-09-10","1994-04-02","29/06/2019","Technicien Spécialisé","BAC+2-DEUG-BTS-DUT","ISTA","ISTA","Non Cadre"]
[703662,"Production Informatique","Pilotage & Supervision de la Production PSP","Pilotage de l'Exploitation, Optimisation des traitements et pilotage des flux","Pilotage de l'Exploitation, Optimisation des traitements et pilotage des flux","Pilotage Exploitation","EL GUASSEM","HAMID","Gestionnaire d'exploitation","1986-02-17","M","1986-02-17","1961-01-01","","BAC","BAC","Lycée","Lycée","Cadre"]
[707063,"Production Informatique","Pilotage & Supervision de la Production PSP","Pilotage de l'Exploitation, Optimisation des traitements et pilotage des flux","Pilotage de l'Exploitation, Optimisation des traitements et pilotage des flux","Pilotage Exploitation","AIT AROUSS","HAFID","Responsable de Shift","2007-01-15","M","2007-01-15","1975-06-26","","Licence","BAC+4-LICENCE-MAITRISE","Univ. Maroc","Univ. Maroc","Cadre"]
[716528,"Production Informatique","Pilotage & Supervision de la Production PSP","Pilotage de l'Exploitation, Optimisation des traitements et pilotage des flux","Pilotage de l'Exploitation, Optimisation des traitements et pilotage des flux","Pilotage Exploitation","LASRY","ACHRAF","Opérateur d'Exploitation","2018-05-02","M","2018-05-02","1997-08-27","","Technicien spécialisé","BAC+2-DEUG-BTS-DUT","ISTA","ISTA","Non Cadre"]
[707256,"Production Informatique","Pilotage & Supervision de la Production PSP","Pilotage de l'Exploitation, Optimisation des traitements et pilotage des flux","Pilotage de l'Exploitation, Optimisation des traitements et pilotage des flux","Pilotage Exploitation","EL MOUAFFEQ","MOHAMED","Responsable de Shift","2007-05-02","M","2007-05-02","1982-09-11","","DTS","BAC+2-DEUG-BTS-DUT","IGA","IGA","Non Cadre"]
[713692,"Production Informatique","Pilotage & Supervision de la Production PSP","Pilotage de l'Exploitation, Optimisation des traitements et pilotage des flux","Pilotage de l'Exploitation, Optimisation des traitements et pilotage des flux","Pilotage Exploitation","FADLEDDINE","HAMZA","Opérateur d'Exploitation","2014-06-02","M","2014-06-02","1991-02-17","","Licence Professionnelle","BAC+3-DIPLOME CYCLE NORMAL+LICENCE","FST","FST","Non Cadre"]
[37881,"Production Informatique","Pilotage & Supervision de la Production PSP","Pilotage de l'Exploitation, Optimisation des traitements et pilotage des flux","Pilotage de l'Exploitation, Optimisation des traitements et pilotage des flux","Pilotage Exploitation","NOUARI","ABDELAZIZ","Opérateur d'Exploitation","1985-09-16","M","1985-09-16","1966-06-17","","Secondaire","NS","Lycée","Lycée","Cadre"]
[713280,"Production Informatique","Pilotage & Supervision de la Production PSP","Pilotage de l'Exploitation, Optimisation des traitements et pilotage des flux","Pilotage de l'Exploitation, Optimisation des traitements et pilotage des flux","Pilotage Exploitation","HARNOUFI","ZINE ABIDINE","Opérateur d'Exploitation","2013-10-28","M","2013-10-28","1990-08-25","","Technicien spécialisé","BAC+2-DEUG-BTS-DUT","ISTA","ISTA","Non Cadre"]
[712939,"Production Informatique","Pilotage & Supervision de la Production PSP","Pilotage de l'Exploitation, Optimisation des traitements et pilotage des flux","Pilotage de l'Exploitation, Optimisation des traitements et pilotage des flux","Pilotage Exploitation","IMAJADE","IMAD","Opérateur d'exploitation","2013-05-02","M","2013-05-02","1990-01-25","19/01/2019","Technicien","BAC+2-DEUG-BTS-DUT","ISTA","ISTA","Non Cadre"]
[707128,"Production Informatique","Pilotage & Supervision de la Production PSP","Pilotage de l'Exploitation, Optimisation des traitements et pilotage des flux","Pilotage de l'Exploitation, Optimisation des traitements et pilotage des flux","Pilotage Exploitation","TALIB","MOHAMED","Responsable de Shift","2007-02-15","M","2007-02-15","1972-05-22","","BAC+2","BAC+2-DEUG-BTS-DUT","","","Cadre"]
[716611,"Production Informatique","Pilotage & Supervision de la Production PSP","Pilotage de l'Exploitation, Optimisation des traitements et pilotage des flux","Pilotage de l'Exploitation, Optimisation des traitements et pilotage des flux","Pilotage Exploitation","FATHALLAH","REDA","Opérateur d'Exploitation","2018-06-01","M","2018-06-01","1997-07-25","","Licence Professionnelle","BAC+3-DIPLOME CYCLE NORMAL+LICENCE","FST","FST","Non Cadre"]
[713029,"Production Informatique","Pilotage & Supervision de la Production PSP","Pilotage de l'Exploitation, Optimisation des traitements et pilotage des flux","Pilotage de l'Exploitation, Optimisation des traitements et pilotage des flux","Pilotage Exploitation","ABGUAOU","RACHID","Opérateur d'exploitation","2013-06-03","M","2013-06-03","1987-04-18","","Technicien spécialisé","BAC+2-DEUG-BTS-DUT","ISTA","ISTA","Non Cadre"]
[716320,"Production Informatique","Pilotage & Supervision de la Production PSP","Pilotage de l'Exploitation, Optimisation des traitements et pilotage des flux","Pilotage de l'Exploitation, Optimisation des traitements et pilotage des flux","Pilotage Exploitation","MOUATIK","ZAKARIA","Opérateur d'Exploitation","2017-12-15","M","2017-12-15","1992-06-09","","Licence Professionnelle","BAC+3-DIPLOME CYCLE NORMAL+LICENCE","FS AIN CHOCK","FS AIN CHOCK","Non Cadre"]
[770144,"Production Informatique","Pilotage & Supervision de la Production PSP","Pilotage de l'Exploitation, Optimisation des traitements et pilotage des flux","Pilotage de l'Exploitation, Optimisation des traitements et pilotage des flux","Pilotage Exploitation","EL COURT","SAID","Gestionnaire d'exploitation","1998-02-01","M","1998-02-01","1967-06-30","","Secondaire","NS","Lycée","Lycée","Non Cadre"]
[714983,"Production Informatique","Pilotage & Supervision de la Production PSP","Pilotage de l'Exploitation, Optimisation des traitements et pilotage des flux","Pilotage de l'Exploitation, Optimisation des traitements et pilotage des flux","Pilotage Exploitation","JANAH","ABDERRAZAK","Opérateur d'Exploitation","2016-01-04","M","2016-04-01","1992-11-17","","Licence Professionnelle","BAC+3-DIPLOME CYCLE NORMAL+LICENCE","FST","FST","Non Cadre"]
[707049,"Production Informatique","Pilotage & Supervision de la Production PSP","Pilotage de l'Exploitation, Optimisation des traitements et pilotage des flux","Pilotage de l'Exploitation, Optimisation des traitements et pilotage des flux","Pilotage Exploitation","KHAZZAR","MUSTAPHA","Opérateur d'Exploitation","2007-01-02","M","2007-01-02","1972-01-07","","Licence","BAC+4-LICENCE-MAITRISE","Univ. Maroc","Univ. Maroc","Cadre"]
[713286,"Production Informatique","Pilotage & Supervision de la Production PSP","Pilotage de l'Exploitation, Optimisation des traitements et pilotage des flux","Pilotage de l'Exploitation, Optimisation des traitements et pilotage des flux","Pilotage Exploitation","NOUMIR","HAJIB","Opérateur d'Exploitation","2013-10-21","M","2013-10-21","1993-07-29","19/03/2019","Technicien spécialisé","BAC+2-DEUG-BTS-DUT","ISTA","ISTA","Non Cadre"]
[707590,"Production Informatique","Pilotage & Supervision de la Production PSP","Pilotage de l'Exploitation, Optimisation des traitements et pilotage des flux","Pilotage de l'Exploitation, Optimisation des traitements et pilotage des flux","Responsable Pilotage Exploitation","HAMI","ABDELILAH","Responsable Pilotage Exploitation","2007-12-24","M","2007-12-24","1974-07-23","","Ingénieur d'application","BAC+4-LICENCE-MAITRISE","EMSI","EMSI","Cadre"]
[15406,"Production Informatique","Pilotage & Supervision de la Production PSP","Supervision"," A Responsable Supervision","","ABOUMEJD","ABDESSAMAD","Responsable Supervision","1985-01-07","M","1985-01-07","1963-01-21","","BAC","BAC","Lycée","Lycée","Cadre"]
[716855,"Production Informatique","Pilotage & Supervision de la Production PSP","Supervision","Supervision","","MANKARI","AYMEN","Superviseur","2018-09-17","M","2018-09-17","1996-12-28","","Licence Professionnelle","BAC+5-INGENIEUR-MASTER-DEA-DESS","FST","FST","NON CADRE"]
[716838,"Production Informatique","Pilotage & Supervision de la Production PSP","Supervision","Supervision","","MEZIANE","AYOUB","Superviseur","2018-09-03","M","2018-09-03","1995-06-23","","","BAC+3-DIPLOME CYCLE NORMAL+LICENCE","","","Non Cadre"]
[716256,"Production Informatique","Pilotage & Supervision de la Production PSP","Supervision","Supervision","","AYOUR","HAMZA","Superviseur","2017-11-01","M","2017-11-01","1993-04-13","23/01/2020","","BAC+2-DEUG-BTS-DUT","","","Non Cadre"]
[401778,"Production Informatique","Pilotage & Supervision de la Production PSP","Supervision","Supervision","","TAHRAOUI","NOUREDDINE","Superviseur","1990-06-11","M","1990-06-11","1961-09-09","","DUT","BAC+2-DEUG-BTS-DUT","","","Cadre"]
[716883,"Production Informatique","Pilotage & Supervision de la Production PSP","Supervision","Supervision","","DAOUJI","YASSINE","Superviseur","2018-10-15","M","2018-10-15","1996-11-16","","Technicien spécialisé","BAC+2-DEUG-BTS-DUT","ISTA","ISTA","NON CADRE"]
[716776,"Production Informatique","Pilotage & Supervision de la Production PSP","Supervision","Supervision","","LABYAD","YOUSSEF","Superviseur","2018-08-01","M","2018-08-01","1991-07-28","","Licence Professionnelle","BAC+3-DIPLOME CYCLE NORMAL+LICENCE","FST","FST","NON CADRE"]
[714854,"Production Informatique","Pilotage & Supervision de la Production PSP","Supervision","Supervision","","WAHOUB","ZAKARIA","Superviseur","2016-01-08","M","2016-01-08","1990-11-09","","Licence Professionnelle","BAC+3-DIPLOME CYCLE NORMAL+LICENCE","FST","FST","Non Cadre"]
[716392,"Production Informatique","Pilotage & Supervision de la Production PSP","Supervision","Supervision","","GHANDI","AYOUB","Superviseur","2018-02-01","M","2018-02-01","1993-01-19","","Licence Professionnelle","BAC+3-DIPLOME CYCLE NORMAL+LICENCE","EST","EST","Non Cadre"]
[716393,"Production Informatique","Pilotage & Supervision de la Production PSP","Supervision","Supervision","","BAHYA","ILYASS","Superviseur","2018-02-01","M","2018-02-01","1995-10-14","","Technicien spécialisé","BAC+2-DEUG-BTS-DUT","NTIC2","NTIC2","Non Cadre"]
[716885,"Production Informatique","Pilotage & Supervision de la Production PSP","Supervision","Supervision","","LEHOUIZI","ABDELKARIM","Superviseur","2018-10-15","M","2018-10-15","1997-04-02","","Licence Professionnelle","BAC+3-DIPLOME CYCLE NORMAL+LICENCE","FST","FST","NON CADRE"]
[714866,"Production Informatique","Pilotage & Supervision de la Production PSP","Supervision","Supervision","","MOUNIS","ABDERRAHMANE","Superviseur","2016-01-08","M","2016-01-08","1993-07-03","","Technicien spécialisé + Licence prof","BAC+3-DIPLOME CYCLE NORMAL+LICENCE","ISTA MARRAKECH","ISTA MARRAKECH","Non Cadre"]
[715880,"Production Informatique","Pilotage & Supervision de la Production PSP","Supervision","Supervision","","BOUKHOU","MOHAMED","Superviseur","2017-06-01","M","2017-06-01","1992-04-13","","Licence Professionnelle","BAC+3-DIPLOME CYCLE NORMAL+LICENCE","FST","FST","Non Cadre"]
[703860,"Production Informatique","Support & Services aux utilisateurs ( SSU)","A Responsable Support & Services aux utilisateurs ( SSU)","","","BENKIRAN","ZAKIA","Responsable Support & Services aux utilisateurs ( SSU)","1988-07-18","F","1988-07-18","1966-02-22","19/07/2019","Diplôme cycle normal","BAC+3-DIPLOME CYCLE NORMAL+LICENCE","ISG","ISG","Cadre"]
[714404,"Production Informatique","Support & Services aux utilisateurs ( SSU)","Assistance en ligne & Support Régions","AA Responsable Assistance en ligne & Support Régions","","CHEMAOU EL FIHRI","MOUKTAFI","Responsable Assistance en ligne & Support Régions","2015-06-15","M","2015-06-15","1980-10-02","12/02/2019","Ingénieur","BAC+5-INGENIEUR-MASTER-DEA-DESS","California state university","California state university","Cadre"]
[716195,"Production Informatique","Support & Services aux utilisateurs ( SSU)","Assistance en ligne & Support Régions","Assistance en ligne","Assistance en ligne","EL AAZOUZI","KHADIJA","Assistant en ligne","2017-10-09","F","2017-10-09","1994-12-15","19/01/2019","Licence Professionnelle","BAC+3-DIPLOME CYCLE NORMAL+LICENCE","FSJES","FSJES","Non Cadre"]
[28721,"Production Informatique","Support & Services aux utilisateurs ( SSU)","Assistance en ligne & Support Régions Déploiements, Coordination & Gestion des Prestataires","Assistance en ligne","A Responsable  Assistance en ligne","RAHMOUNI","ABDELLATIF","Responsable Assistance en ligne","1998-12-29","M","1998-12-29","1975-06-01","","DEUG","BAC+2-DEUG-BTS-DUT","Univ. Maroc","Univ. Maroc","Cadre"]
[716196,"Production Informatique","Support & Services aux utilisateurs ( SSU)","Assistance en ligne & Support Régions Déploiements, Coordination & Gestion des Prestataires","Assistance en ligne","Assistance en ligne","BENTAHAR","MOUAD","Assistant en ligne","2017-10-09","M","2017-10-09","1992-06-12","10/05/2019","Licence Professionnelle","BAC+3-DIPLOME CYCLE NORMAL+LICENCE","Sup Tech","Sup Tech","Non Cadre"]
[716663,"Production Informatique","Support & Services aux utilisateurs ( SSU)","Assistance en ligne & Support Régions Déploiements, Coordination & Gestion des Prestataires","Assistance en ligne","Assistance en ligne","RAKHI","ABDELHAK","Assistant en ligne","2018-06-18","M","2018-06-18","1998-01-06","","Technicien spécialisé","BAC+2-DEUG-BTS-DUT","NTIC2","NTIC2","Non Cadre"]
[716445,"Production Informatique","Support & Services aux utilisateurs ( SSU)","Assistance en ligne & Support Régions Déploiements, Coordination & Gestion des Prestataires","Assistance en ligne","Assistance en ligne","TAKI","ACHRAF","Assistant en ligne","2018-04-02","M","2018-04-02","1991-12-24","","","BAC+3-DIPLOME CYCLE NORMAL+LICENCE","","","Non Cadre"]
[716385,"Production Informatique","Support & Services aux utilisateurs ( SSU)","Assistance en ligne & Support Régions Déploiements, Coordination & Gestion des Prestataires","Assistance en ligne","Assistance en ligne","CHTIOUI","AHMED","Assistant en ligne","2018-01-15","M","2018-01-15","1993-01-07","","Technicien spécialisé","BAC+2-DEUG-BTS-DUT","","","Non Cadre"]
[716994,"Production Informatique","Support & Services aux utilisateurs ( SSU)","Assistance en ligne & Support Régions Déploiements, Coordination & Gestion des Prestataires","Assistance en ligne","Assistance en ligne","ZEHDI","YOUSSEF","Assistant en ligne","2018-11-15","M","2018-11-15","1995-06-10","","","BAC+2-DEUG-BTS-DUT","","","NON CADRE"]
[716441,"Production Informatique","Support & Services aux utilisateurs ( SSU)","Assistance en ligne & Support Régions Déploiements, Coordination & Gestion des Prestataires","Assistance en ligne","Assistance en ligne","KHDAD","OUMAYMA","Assistant en ligne","2018-03-15","F","2018-03-15","1996-07-02","","Licence Génie Civil","BAC+3-DIPLOME CYCLE NORMAL+LICENCE","FST","FST","Non Cadre"]
[716670,"Production Informatique","Support & Services aux utilisateurs ( SSU)","Assistance en ligne & Support Régions Déploiements, Coordination & Gestion des Prestataires","Assistance en ligne","Assistance en ligne","FIKRI","ABDELLAH","Assistant en ligne","2018-06-18","M","2018-06-18","1995-04-23","","Technicien spécialisé","BAC+2-DEUG-BTS-DUT","ISTA","ISTA","Non Cadre"]
[716647,"Production Informatique","Support & Services aux utilisateurs ( SSU)","Assistance en ligne & Support Régions Déploiements, Coordination & Gestion des Prestataires","Déploiements, Coordination & Gestion des Prestataires","Déploiements, Coordination & Gestion des Prestataires","RIFLA","SAMAH","Chargé de projets et déploiement","2018-06-18","F","2018-06-18","1996-08-18","","Licence Professionnelle","BAC+3-DIPLOME CYCLE NORMAL+LICENCE","EST","EST","Non Cadre"]
[704142,"Production Informatique","Support & Services aux utilisateurs ( SSU)","Assistance en ligne & Support Régions Déploiements, Coordination & Gestion des Prestataires","Déploiements, Coordination & Gestion des Prestataires","Déploiements, Coordination & Gestion des Prestataires","FEKAK","KHALID","Chargé de projets et déploiement","1991-04-08","M","1991-04-08","1964-05-01","","BTS","BAC+2-DEUG-BTS-DUT","IGA","IGA","Cadre"]
[39473,"Production Informatique","Support & Services aux utilisateurs ( SSU)","Assistance en ligne & Support Régions Déploiements, Coordination & Gestion des Prestataires","Support  Grand Casa","A Responsable Support  Grand Casa","MAFTOUH","OMAR","Responsable Régions Service Desk","1992-08-10","M","1992-08-10","1962-04-19","","Ingénieur d'application","BAC+4-LICENCE-MAITRISE","ESTEM","ESTEM","Cadre"]
[770164,"Production Informatique","Support & Services aux utilisateurs ( SSU)","Assistance en ligne & Support Régions Déploiements, Coordination & Gestion des Prestataires","Support  Grand Casa","Support  Grand Casa SF","AZMI","ADIL","Chargé support technique Service Desk","2000-03-01","M","2000-03-01","1975-04-06","","Secondaire","NS","Lycée","Lycée","Non Cadre"]
[714096,"Production Informatique","Support & Services aux utilisateurs ( SSU)","Assistance en ligne & Support Régions Déploiements, Coordination & Gestion des Prestataires","Support  Grand Casa","Support  Grand Casa SF","BALLOUCH","ZAINAB","Chargé Support Fonctionnel Service Desk","2014-12-15","F","2014-12-15","1994-02-18","","Technicien spécialisé  + Master","BAC+5-INGENIEUR-MASTER-DEA-DESS","ISTA","ISTA","Non Cadre"]
[400697,"Production Informatique","Support & Services aux utilisateurs ( SSU)","Assistance en ligne & Support Régions Déploiements, Coordination & Gestion des Prestataires","Support  Grand Casa","Support  Grand Casa SF","FARTAS","BOUCHAIB","Chargé Support Fonctionnel Service Desk","1987-12-15","M","1987-12-15","1964-09-07","","CAB","CAB","Centre de Formation Profes. & Banc.","Centre de Formation Profes. & Banc.","Cadre"]
[714431,"Production Informatique","Support & Services aux utilisateurs ( SSU)","Assistance en ligne & Support Régions Déploiements, Coordination & Gestion des Prestataires","Support  Grand Casa","Support  Grand Casa ST","BUIZ","ABDLILAH","Chargé support technique Service Desk","2015-07-01","M","2015-07-01","1994-06-14","","Technicien spécialisé","BAC+2-DEUG-BTS-DUT","ISTA ISIG","ISTA ISIG","Non Cadre"]
[713559,"Production Informatique","Support & Services aux utilisateurs ( SSU)","Assistance en ligne & Support Régions Déploiements, Coordination & Gestion des Prestataires","Support  Grand Casa","Support  Grand Casa ST","MHAIDI","TAOUFIK","Chargé support technique Service Desk","2014-02-17","M","2014-02-17","1991-11-06","","DTS","BAC+2-DEUG-BTS-DUT","ISTA","ISTA","Non Cadre"]
[704564,"Production Informatique","Support & Services aux utilisateurs ( SSU)","Assistance en ligne & Support Régions Déploiements, Coordination & Gestion des Prestataires","Support  Grand Casa","Support  Grand Casa ST","BOUIHOUCHAMA","NAIM","Chargé Support Fonctionnel Service Desk","1988-08-01","M","1988-08-01","1963-11-03","","Secondaire","NS","Lycée","Lycée","Cadre"]
[716194,"Production Informatique","Support & Services aux utilisateurs ( SSU)","Assistance en ligne & Support Régions Déploiements, Coordination & Gestion des Prestataires","Support  Grand Casa","Support  Grand Casa ST","MABROUK","MAROUANE","Chargé support technique Service Desk","2017-10-09","M","2017-10-09","1992-02-10","","Technicien spécialisé","BAC+2-DEUG-BTS-DUT","ESIA","ESIA","Non Cadre"]
[712773,"Production Informatique","Support & Services aux utilisateurs ( SSU)","Assistance en ligne & Support Régions Déploiements, Coordination & Gestion des Prestataires","Support  Grand Casa","Support  Grand Casa ST","MOURID","YOUNESS","Chargé support technique Service Desk","2013-02-04","M","2013-02-04","1988-12-04","","Technicien","BAC+2-DEUG-BTS-DUT","ISTA","ISTA","Non Cadre"]
[716777,"Production Informatique","Support & Services aux utilisateurs ( SSU)","Assistance en ligne & Support Régions Déploiements, Coordination & Gestion des Prestataires","Support  Grand Casa","Support  Grand Casa ST1","KHATTABI","ABDELHAK","Chargé support technique Service Desk","2018-08-01","M","2018-08-02","1983-11-18","","Technicien spécialisé","BAC+2-DEUG-BTS-DUT","EURIATECH","EURIATECH","Non Cadre"]
[401723,"Production Informatique","Support & Services aux utilisateurs ( SSU)","Assistance en ligne & Support Régions Déploiements, Coordination & Gestion des Prestataires","Support Nord Est & YEM","A Responsable Support Nord Est & YEM","TALBI","DRISS","Responsable Régions Service Desk","1999-03-01","M","1999-03-01","1972-10-08","","Licence","BAC+4-LICENCE-MAITRISE","Univ. Maroc","Univ. Maroc","Cadre"]
[715640,"Production Informatique","Support & Services aux utilisateurs ( SSU)","Assistance en ligne & Support Régions Déploiements, Coordination & Gestion des Prestataires","Support Nord Est & YEM","Support Nord Est & YEM","BOUALAM","OUMAIMA","Chargé support technique Service Desk","2017-02-06","F","2017-02-06","1995-12-31","","Technicien spécialisé","BAC+2-DEUG-BTS-DUT","EFET","EFET","Non Cadre"]
[716381,"Production Informatique","Support & Services aux utilisateurs ( SSU)","Assistance en ligne & Support Régions Déploiements, Coordination & Gestion des Prestataires","Support Nord Est & YEM","Support Nord Est & YEM","SEMMOUZI","SOFIA","Chargé support technique Service Desk","2018-01-15","M","2018-01-15","1993-08-03","","Licence Professionnelle","BAC+3-DIPLOME CYCLE NORMAL+LICENCE","FST","FST","Non Cadre"]
[714160,"Production Informatique","Support & Services aux utilisateurs ( SSU)","Assistance en ligne & Support Régions Déploiements, Coordination & Gestion des Prestataires","Support Nord Est & YEM","Support Nord Est & YEM","GHANDI","NEZHA","Chargé Support Fonctionnel Service Desk","2015-02-02","F","2015-02-02","1990-05-03","","Technicien spécialisé","BAC+2-DEUG-BTS-DUT","ISTA NTIC","ISTA NTIC","Non Cadre"]
[46107,"Production Informatique","Support & Services aux utilisateurs ( SSU)","Assistance en ligne & Support Régions Déploiements, Coordination & Gestion des Prestataires","Support Nord Est & YEM","Support Nord Est & YEM SF","ELLOUIZ","KHALID","Chargé Support Fonctionnel Service Desk","2003-12-08","M","2003-12-08","1980-04-04","","Ingénieur d'application","BAC+4-LICENCE-MAITRISE","ESTEM","ESTEM","Cadre"]
[714829,"Production Informatique","Support & Services aux utilisateurs ( SSU)","Assistance en ligne & Support Régions Déploiements, Coordination & Gestion des Prestataires","Support Nord Est & YEM","Support Nord Est & YEM SF","SERADNI","FATIMA ZAHRA","Chargé Support Fonctionnel Service Desk","2016-01-12","F","2016-01-12","1990-05-24","","Licence Professionnelle","BAC+3-DIPLOME CYCLE NORMAL+LICENCE","FST","FST","Non Cadre"]
[711740,"Production Informatique","Support & Services aux utilisateurs ( SSU)","Assistance en ligne & Support Régions Déploiements, Coordination & Gestion des Prestataires","Support Nord Est & YEM","Support Nord Est & YEM ST","LARRACHE","WALID","Chargé support technique Service Desk","2011-09-27","M","2011-10-03","1989-06-01","01/04/2019","BAC+2","BAC+2-DEUG-BTS-DUT","CFPNC","CFPNC","Non Cadre"]
[709608,"Production Informatique","Support & Services aux utilisateurs ( SSU)","Assistance en ligne & Support Régions Déploiements, Coordination & Gestion des Prestataires","Support Nord Ouest","A Responsable Support Nord Ouest","EL BOUDLALI","YOUNES","Responsable Régions Service Desk","2007-09-17","M","2007-09-17","1984-02-03","","BAC+2","BAC+2-DEUG-BTS-DUT","","","Non Cadre"]
[714175,"Production Informatique","Support & Services aux utilisateurs ( SSU)","Assistance en ligne & Support Régions Déploiements, Coordination & Gestion des Prestataires","Support Nord Ouest","Support Nord Ouest  SF","HARIS","SALMA","Chargé support technique Service Desk","2015-02-16","F","2015-02-16","1991-06-05","","Licence","BAC+3-DIPLOME CYCLE NORMAL+LICENCE","FSJES","FSJES","Non Cadre"]
[11958,"Production Informatique","Support & Services aux utilisateurs ( SSU)","Assistance en ligne & Support Régions Déploiements, Coordination & Gestion des Prestataires","Support Nord Ouest","Support Nord Ouest  SF","NAJAH","MOHAMED","Chargé Support Fonctionnel Service Desk","1981-11-27","M","1981-11-27","1960-06-09","30/06/2020","Brevet bancaire","BREVET B","Centre de Formation Profes. & Banc.","Centre de Formation Profes. & Banc.","Cadre"]
[37926,"Production Informatique","Support & Services aux utilisateurs ( SSU)","Assistance en ligne & Support Régions Déploiements, Coordination & Gestion des Prestataires","Support Nord Ouest","Support Nord Ouest  ST1","AMMOR","ZOUHEIR","Chargé Support Fonctionnel Service Desk","1986-05-20","M","1986-05-20","1961-09-13","","Secondaire","NS","Lycée","Lycée","Cadre"]
[715627,"Production Informatique","Support & Services aux utilisateurs ( SSU)","Assistance en ligne & Support Régions Déploiements, Coordination & Gestion des Prestataires","Support Nord Ouest","Support Nord Ouest  ST1","QUIBANE","RAMZI","Chargé support technique Service Desk","2017-02-06","M","2017-02-06","1995-12-11","","Technicien spécialisé","BAC+2-DEUG-BTS-DUT","OFPPT","OFPPT","Non Cadre"]
[707972,"Production Informatique","Support & Services aux utilisateurs ( SSU)","Assistance en ligne & Support Régions Déploiements, Coordination & Gestion des Prestataires","Support Sud & Sud ouest","A Responsable Support Sud & Sud ouest","ADALLA","HICHAM","Responsable Régions Service Desk","2008-08-18","M","2008-08-04","1979-12-21","","Ingénieur d'application en Informatique","BAC+5-INGENIEUR-MASTER-DEA-DESS","Univer Techn de KOVROV Russie","Univer Techn de KOVROV Russie","Cadre"]
[716255,"Production Informatique","Support & Services aux utilisateurs ( SSU)","Assistance en ligne & Support Régions Déploiements, Coordination & Gestion des Prestataires","Support Sud & Sud ouest","Support Sud & Sud ouest ST","AMINE","OUMAYMA","Chargé support technique Service Desk","2017-11-01","F","2017-11-01","1994-11-20","","Licence Professionnelle","BAC+3-DIPLOME CYCLE NORMAL+LICENCE","","","Non Cadre"]
[714432,"Production Informatique","Support & Services aux utilisateurs ( SSU)","Assistance en ligne & Support Régions Déploiements, Coordination & Gestion des Prestataires","Support Sud & Sud ouest","Support Sud & Sud ouest ST","KBAILI","MERIEM","Chargé support technique Service Desk","2015-07-01","F","2015-07-01","1992-07-26","","Licence","BAC+3-DIPLOME CYCLE NORMAL+LICENCE","SUP TECHNOLOGY","SUP TECHNOLOGY","Non Cadre"]
[713122,"Production Informatique","Support & Services aux utilisateurs ( SSU)","Assistance en ligne & Support Régions Déploiements, Coordination & Gestion des Prestataires","Support Sud & Sud ouest","Support Sud & Sud ouest ST","AMZIL","HANANE","Chargé Support Fonctionnel","2013-07-17","F","2013-07-17","1991-04-27","","Technicien Spécialisé","BAC+2-DEUG-BTS-DUT","CFMOTI","CFMOTI","Non Cadre"]
[709163,"Production Informatique","Support & Services aux utilisateurs ( SSU)","Gestion du Parc Matériel","A Responsable Gestion du Parc Matériel","A Responsable Gestion du Parc Matériel","DOULFAKAR","MERYEM","Responsable du parc Informatique","2008-11-20","F","2009-01-05","1971-12-22","","BAC+4","BAC+4-LICENCE-MAITRISE","ENIM TUNIS","ENIM TUNIS","Cadre"]
[401687,"Production Informatique","Support & Services aux utilisateurs ( SSU)","Gestion du Parc Matériel","Gestion du Parc Matériel","Gestion du Parc Matériel","AIT SAID","ABDERRAHMANE","Chargé du parc Informatique","1999-05-24","M","1999-05-24","1970-05-02","","Secondaire","NS","Lycée","Lycée","Non Cadre"]
[715101,"Production Informatique","Support & Services aux utilisateurs ( SSU)","Gestion du Parc Matériel","Gestion du Parc Matériel","Gestion du Parc Matériel","ABOUYAALA","KHAOULA","Chargé du parc Informatique","2016-06-01","F","2016-06-01","1993-01-26","","Licence Fondamentale","BAC+3-DIPLOME CYCLE NORMAL+LICENCE","FSJES","FSJES","Non Cadre"]
[709610,"Production Informatique","Support & Services aux utilisateurs ( SSU)","Gestion du Parc Matériel","Gestion du Parc Matériel","Gestion du Parc Matériel","EL BOUATI","FATIM ZAHRA","Chargé du parc Informatique","2008-06-18","F","2008-06-18","1984-02-18","","DTS","BAC+2-DEUG-BTS-DUT","CETEC","CETEC","Non Cadre"]
[707710,"Production Informatique","Support & Services aux utilisateurs ( SSU)","Support & Services aux utilisateurs ( SSU)","A Support & Services aux utilisateurs ( SSU)","A Responsable Support & Services aux utilisateurs ( SSU)","HADDAJE","YOUNES","Responsable Support & Services aux utilisateurs ( SSU)","2008-03-17","M","2008-03-17","1974-06-13","","Master IS EEPR","BAC+5-INGENIEUR-MASTER-DEA-DESS","Univ Henry Poincaré","Univ Henry Poincaré","Cadre"]
[716043,"Sécurité  des SI Groupe","A Sécurité  des SI Groupe","A Responsable Sécurité  des SI Groupe","","","FAIK","HICHAM","Responsable Sécurité  des SI Groupe","2017-08-15","M","2017-08-15","1977-03-06","","Ingénieur d'état","BAC+5-INGENIEUR-MASTER-DEA-DESS","EHTP","EHTP","Cadre"]
[708089,"Sécurité  des SI Groupe","Analyse des menaces et veille","Analyse des menaces et veille","","","QAISAR","MOHAMMED","Responsable du centre Opérationnel de Supervision Sécurité","2008-09-29","M","2008-09-29","1969-08-08","","Licence en S Inf et Master en cours","BAC+5-INGENIEUR-MASTER-DEA-DESS","Unive Maroc","Unive Maroc","Cadre"]
[716594,"Sécurité  des SI Groupe","Analyse des menaces et veille","Analyse des menaces et veille","","","ASSAID","AYOUB","Analyste Supervision Opérationnelle de la Sécurité - T2","2018-05-15","M","2018-05-15","1991-04-09","06/09/2019","Ingénieur d'état","BAC+5-INGENIEUR-MASTER-DEA-DESS","ENSIAS","ENSIAS","Cadre"]
[716847,"Sécurité  des SI Groupe","Analyse des menaces et veille","Analyse des menaces et veille","","","EL ALLIOUI","MOSTAFA","Analyste Supervision Opérationnelle de la Sécurité - T1","2018-09-17","M","2018-09-17","1995-01-28","","Ingénieur d'état","BAC+5-INGENIEUR-MASTER-DEA-DESS","ENSA","ENSA","CADRE"]
[716942,"Sécurité  des SI Groupe","Analyse des menaces et veille","Analyse des menaces et veille","","","OUBAOUG","RACHID","Analyste Supervision Opérationnelle de la Sécurité - T1","2018-11-01","M","2018-11-01","1994-09-17","","Ingénieur d'état","BAC+5-INGENIEUR-MASTER-DEA-DESS","ENSIAS","ENSIAS","CADRE"]
[716267,"Sécurité  des SI Groupe","Analyse des menaces et veille","Analyse des menaces et veille","","","KADADRY","ANWAR","Ingénieur Analyse forensique et Réponse aux incidents sécurité","2017-11-15","M","2017-11-15","1988-02-07","","Master","BAC+5-INGENIEUR-MASTER-DEA-DESS","ESC LILLE","ESC LILLE","Cadre"]
[716476,"Sécurité  des SI Groupe","Analyse des menaces et veille","Analyse des menaces et veille","","","BEDARI","HOUSNA","Analyste Supervision Opérationnelle de la Sécurité - T1","2018-04-16","F","2018-04-16","1990-08-29","12/03/2019","Master","BAC+5-INGENIEUR-MASTER-DEA-DESS","Facu des SC Rabat","Facu des SC Rabat","Cadre"]
[716695,"Sécurité  des SI Groupe","Analyse des menaces et veille","Analyse des menaces et veille","","","BACHANE","IMANE","Ingénieur Analyste Cyber Threat Intelligence","2018-07-02","F","2018-07-02","1990-12-18","06/09/2019","Master","BAC+5-INGENIEUR-MASTER-DEA-DESS","Ntional school of applied","Ntional school of applied","Cadre"]
[716518,"Sécurité  des SI Groupe","Management de la Sécurité","a Responsable Management de la Sécurité","","","ESSAMI","FATIMA EZZAHRA","Responsable Pôle management de la Sécurité des SI","2018-05-02","F","2018-05-02","1986-10-10","","Ingénieur d'état","BAC+5-INGENIEUR-MASTER-DEA-DESS","ENIM","ENIM","Cadre"]
[716922,"Sécurité  des SI Groupe","Management de la Sécurité","Management de la Sécurité","","","KERMICHE","AICHA","Ingénieur Gouvernance Sécurité des SI Junior","2018-10-15","F","2018-10-15","1993-06-13","","Ingénieur d'état","BAC+5-INGENIEUR-MASTER-DEA-DESS","Ecole Polytechnique d'Agadir","Ecole Polytechnique d'Agadir","CADRE"]
[716868,"Sécurité  des SI Groupe","Management de la Sécurité","Management de la Sécurité","","","ADILI","MAHMOUD AMINE","Analyste risque sécurité SI","2018-10-01","M","2018-10-01","1993-04-22","28/11/2019","Ingénieur d'état","BAC+5-INGENIEUR-MASTER-DEA-DESS","ENSA / INSA CVL-BOURGES","ENSA / INSA CVL-BOURGES","CADRE"]
[716870,"Sécurité  des SI Groupe","Pilotage Sécurité Filiales"," Responsable Pilotage Sécurité Filiales","","","GUENNOUNI","HASNAE","Responsable Pilotage Sécurité Filiales","2018-10-01","F","2018-10-01","1987-11-26","","Ingénieur d'état","BAC+5-INGENIEUR-MASTER-DEA-DESS","ENSA TANGER","ENSA TANGER","CADRE"]
[17352,"Sécurité  des SI Groupe","Sécurité  des SI Groupe","","","","EL BEJJAJ","ABDELKRIM","Administrateur Sécurité SI Senior","1986-04-14","M","1986-04-14","1963-04-10","","BTS","BAC+2-DEUG-BTS-DUT","","","Cadre"]
[709397,"Sécurité  des SI Groupe","Sécurité Opérationnelle","a Responsable Sécurité Opérationnelle","","","BENHMAMMOUCH","Mohamed","Responsable Sécurité Opérationnelle Groupe","2009-02-18","M","2009-03-16","1983-10-01","","Ingénieur sécurité systéme","BAC+4-LICENCE-MAITRISE","EMSI","EMSI","Cadre"]
[717000,"Sécurité  des SI Groupe","Sécurité Opérationnelle","Sécurité Opérationnelle","","","NAJIM","MERIEM","Ingénieur Sécurité  Opérationnelle des données","2018-12-03","F","2018-12-03","1988-02-26","","Master","BAC+5-INGENIEUR-MASTER-DEA-DESS","ESEM","ESEM","CADRE"]
[401734,"Sécurité  des SI Groupe","Sécurité Opérationnelle","Sécurité Opérationnelle","","","MORJANE","KAMAL","Ingénieur Sécurité Opérationnelle","1999-01-02","M","1999-01-02","1973-08-12","","Ingénieur d'application","BAC+4-LICENCE-MAITRISE","ESTEM","ESTEM","Cadre"]
[710710,"Sécurité  des SI Groupe","Sécurité Opérationnelle","Sécurité Opérationnelle","","","KOURI","MOHAMED","Administrateur Sécurité Opérationnelle","2010-06-14","M","2010-06-14","1986-01-14","","Technicien","BAC+2-DEUG-BTS-DUT","","","Non Cadre"]
[716380,"Sécurité  des SI Groupe","Sécurité Opérationnelle","Sécurité Opérationnelle","","","MAJDOUL","SALMA","Administrateur Sécurité Opérationnelle","2018-01-15","F","2018-01-15","1992-08-05","17/12/2019","Ingénieur d'état","BAC+5-INGENIEUR-MASTER-DEA-DESS","ENSA KENITRA","ENSA KENITRA","Cadre"]
[713917,"Sécurité  des SI Groupe","Sécurité Opérationnelle","Sécurité Opérationnelle","","","KAITOUNI IDRISSI","YOUSSEF","Ingénieur Sécurité  Opérationnelle des Applications","2014-10-15","M","2014-10-15","1988-08-16","05/07/2019","Ingénieur","BAC+5-INGENIEUR-MASTER-DEA-DESS","EFREI","EFREI","Cadre"]
[716515,"Sécurité  des SI Groupe","Sécurité Opérationnelle","Sécurité Opérationnelle","","","BENJELLOUN TOUIMI","KAMAL","Ingénieur Sécurité Opérationnelle","2018-05-02","M","2018-05-02","1980-03-26","11/03/2019","","BAC+5-INGENIEUR-MASTER-DEA-DESS","","","CADRE"]
[716466,"Sécurité  des SI Groupe","Sécurité Opérationnelle","Sécurité Opérationnelle","","","CHOUHBI","TAHA YASSINE","Ingénieur Cybersécurité Pentesteur","2018-04-02","M","2018-04-02","1991-12-15","","Ingénieur","BAC+5-INGENIEUR-MASTER-DEA-DESS","Institut Vinci","Institut Vinci","Cadre"]
[710047,"Sécurité  des SI Groupe","Sécurité Opérationnelle","Sécurité Opérationnelle","","AFFECTE LE 03/06/19","TAGHRICHTE","MOUHCINE","Administrateur Sécurité Opérationnelle","2009-10-30","M","2009-11-02","1989-01-10","","Technicien Spécialisé","BAC+2-DEUG-BTS-DUT","ISTA NTIC II","ISTA NTIC II","Non Cadre"]
[716467,"Stratégie et Architecture","A Stratégie et Architecture","A Responsable Stratégie et Architecture","","","EL GHAZI","ADIL","Responsable Stratégie et Architecture","2018-04-09","M","2018-04-09","1969-05-05","31/03/2019","","BAC+5-INGENIEUR-MASTER-DEA-DESS","","","Cadre"]
[716422,"Stratégie et Architecture","Stratégie et Architecture","Stratégie et Architecture","","","EL HILALI","RACHID","Architecte Solution","2018-03-01","M","2018-03-01","1976-10-07","","Master","BAC+5-INGENIEUR-MASTER-DEA-DESS","UNIV Paris1 Panthéon Sorbonne IAE","UNIV Paris1 Panthéon Sorbonne IAE","Cadre"]
[707807,"Stratégie et Architecture","Stratégie et Architecture","Stratégie et Architecture","","","BENJLIL","BOUCHAIB","Architecte Solution","2008-05-05","M","2008-05-05","1972-07-01","","Ingénieur d'application","BAC+5-INGENIEUR-MASTER-DEA-DESS","EMSI","EMSI","Cadre"]
[715191,"Stratégie et Architecture","Stratégie et Architecture","Stratégie et Architecture","","","EL MERRAJI","OUIAM","Architecte SI","2016-07-01","F","2016-07-01","1985-11-22","","Master","BAC+5-INGENIEUR-MASTER-DEA-DESS","","","Cadre"]
[707931,"Stratégie et Architecture","Stratégie et Architecture","Stratégie et Architecture","","","MOUHDI","FOUAD","Architecte SI","2008-07-15","M","2008-07-15","1978-09-30","","Ingénieur d'état + Master","BAC+5-INGENIEUR-MASTER-DEA-DESS","EHTP & EMSI","EHTP & EMSI","Cadre"]
[710068,"Support et Pilotage de la Performance"," Pilotage de la Performance","a Responsable  Pilotage de la Performance","","","KAJOUT","Abdelhay","Responsable Pilotage de la Performance","2009-10-16","M","2009-11-16","1983-04-12","","Ingénieur d'état","BAC+5-INGENIEUR-MASTER-DEA-DESS","INSA","INSA","Cadre"]
[714420,"Support et Pilotage de la Performance"," Pilotage de la Performance","Contrôle de Gestion","Contrôle de Gestion","","ZAKARI","KHAOULA","Contrôleur de gestion chargé des budgets","2015-07-01","F","2015-07-01","1992-07-17","","Licence + Master","BAC+5-INGENIEUR-MASTER-DEA-DESS","FSJES","FSJES","Non Cadre"]
[714535,"Support et Pilotage de la Performance"," Pilotage de la Performance","Contrôle de Gestion","Contrôle de Gestion","","DCHIECHE","ZINEB","Contrôleur de gestion chargé des budgets","2015-08-03","F","2015-08-03","1991-01-17","","Licence  + Master","BAC+5-INGENIEUR-MASTER-DEA-DESS","FSJES","FSJES","Non Cadre"]
[709611,"Support et Pilotage de la Performance"," Pilotage de la Performance","Contrôle de Gestion","Contrôle de Gestion","","ISMAILI","ASMAA","Contrôleur de gestion chargé des prestataires","2008-06-18","F","2008-06-18","1983-02-06","","Licence en Sciences Economiques","BAC+3-DIPLOME CYCLE NORMAL+LICENCE","Univ. Maroc","Univ. Maroc","Non Cadre"]
[716421,"Support et Pilotage de la Performance"," Pilotage de la Performance","Contrôle de Gestion","Contrôle de Gestion","","SAIDOUNE","ZINEB","Contrôleur de gestion en charge de refacturation et rengeniering des couts","2018-03-01","F","2018-03-01","1991-12-06","","Master","BAC+5-INGENIEUR-MASTER-DEA-DESS","HEM / IAE Lyon","HEM / IAE Lyon","Cadre"]
[710904,"Support et Pilotage de la Performance"," Pilotage de la Performance","Contrôle de Gestion","Contrôle de Gestion","","MARBOU","AYOUB","Contrôleur de gestion en charge de refacturation et rengeniering des couts","2010-06-25","M","2010-09-01","1979-06-08","","Ingénieur d'état","BAC+5-INGENIEUR-MASTER-DEA-DESS","INSEA","INSEA","Cadre"]
[715488,"Support et Pilotage de la Performance"," Pilotage de la Performance","Contrôle de Gestion","Contrôle de Gestion","","BEN WAHMANE","RITA","Contrôleur de gestion chargé des prestataires","2016-11-16","F","2016-11-16","1995-09-20","","Technicien spécialisé","BAC+2-DEUG-BTS-DUT","CIFPB","CIFPB","Non Cadre"]
[713677,"Support et Pilotage de la Performance"," Pilotage de la Performance","Project Management Office","a Responsable Project Management Office","","DARDAR","KAOUTAR","Responsable Project Management Office","2014-05-02","F","2014-05-02","1983-10-15","","Master","BAC+5-INGENIEUR-MASTER-DEA-DESS","HEC","HEC","Cadre"]
[715366,"Support et Pilotage de la Performance"," Pilotage de la Performance","Project Management Office","Project Management Office","","AMRANI JOUTEY","MERYEM","Project Management Officer Portefeuille","2016-09-15","F","2016-09-15","1987-12-19","","Master","BAC+5-INGENIEUR-MASTER-DEA-DESS","ESSEC","ESSEC","Cadre"]
[715685,"Support et Pilotage de la Performance"," Pilotage de la Performance","Project Management Office","Project Management Office","","ELATOUANI","REDA","Administrateur Junior EPM","2017-03-15","M","2017-03-15","1995-03-09","","Licence en Math Informatique","BAC+3-DIPLOME CYCLE NORMAL+LICENCE","FSB Casablanca","FSB Casablanca","NON CADRE"]
[713741,"Support et Pilotage de la Performance"," Pilotage de la Performance","Project Management Office","Project Management Office","","ALOUI","MARIEM","Project Management Officer Projet","2014-06-16","F","2014-06-16","1991-10-19","","Licence Professionnelle  + Master","BAC+5-INGENIEUR-MASTER-DEA-DESS","FS EL JADIDA","FS EL JADIDA","Non Cadre"]
[715534,"Support et Pilotage de la Performance","Assurance Qualité","A responsable Assurance Qualité","","","BEN MEHREZ","NADIA","Responsable Assurance Qualité","2017-01-02","F","2017-01-02","1967-06-02","","Ingénieur d'état","BAC+5-INGENIEUR-MASTER-DEA-DESS","INPT","INPT","Cadre"]
[716983,"Support et Pilotage de la Performance","Assurance Qualité","Assurance Qualité","","","ALAMI MARROUNI","IMANE","Analyste Assurance Qualité","2018-11-15","F","2018-11-15","1992-03-06","","Ingénieur d'état","BAC+5-INGENIEUR-MASTER-DEA-DESS","INPT","INPT","CADRE"]
[716935,"Support et Pilotage de la Performance","Assurance Qualité","Methodes et Qualite","","","JALIL","SANAA","Analyste Méthodes & Qualité Sénior","2018-11-01","F","2018-11-01","1984-04-26","","","BAC+5-INGENIEUR-MASTER-DEA-DESS","IGA","IGA","CADRE"]
[715194,"Support et Pilotage de la Performance","Assurance Qualité","Software testing","","","EL KALAI","ZAKARIA","Responsable Software testing","2016-07-01","M","2016-07-01","1976-06-28","","Master","BAC+5-INGENIEUR-MASTER-DEA-DESS","","","Cadre"]
[716414,"Support et Pilotage de la Performance","Assurance Qualité","Software testing","Software testing","","FARES","SOUMIA","Chargé Software testing","2018-03-01","F","2018-03-01","1983-02-23","","Master","BAC+5-INGENIEUR-MASTER-DEA-DESS","Univ IBN TOFAIL","Univ IBN TOFAIL","Cadre"]
[716748,"Support et Pilotage de la Performance","Assurance Qualité","Software testing","Software testing","","NEFAA","HOUDA","Chargé Software Testing","2018-07-16","F","2018-07-16","1989-04-03","","Master","BAC+5-INGENIEUR-MASTER-DEA-DESS","Univ Nice Antipolis France","Univ Nice Antipolis France","Cadre"]
[715658,"Support et Pilotage de la Performance","Contrôle de Gestion","Contrôle de Gestion","","","DOUGHI","MARIAMA","Contrôleur de gestion chargé des contrats","2017-02-15","F","2017-02-15","1993-11-19","29/08/2019","","BAC+5-INGENIEUR-MASTER-DEA-DESS","","","Cadre"]
[711075,"Support et Pilotage de la Performance","Support et Moyens SIG","A Responsable Support et Moyens SIG","","","KHATIR Ep ELHILA","LEYLA","Responsable Support et Moyens","2010-11-01","F","2013-09-16","1961-04-26","","Ingénieur+Doctorat+MBA","BAC+5-INGENIEUR-MASTER-DEA-DESS","Ecole Ing + Univ de Toulouse + ENASS Paris","Ecole Ing + Univ de Toulouse + ENASS Paris","Cadre"]
[451108,"Support et Pilotage de la Performance","Support et Moyens SIG","Garcon de bureau","","","KALA","OMAR","Assistant de bureau","1996-01-01","M","1996-01-01","1961-07-01","","Secondaire","NS","","","Non Cadre"]
[18320,"Support et Pilotage de la Performance","Support et Moyens SIG","Garcon de bureau","","","LAZRAK","LOTFI","Assistant de bureau","1987-05-01","M","2008-01-01","1959-12-18","31/12/2019","Secondaire","NS","","","Cadre"]
[716982,"Support et Pilotage de la Performance","Support et Moyens SIG","Support et Moyens SIG","","","ZAHER","KHAOULA","Responsable Orga & Process","2018-11-15","F","2018-11-15","1985-01-04","","Master","BAC+5-INGENIEUR-MASTER-DEA-DESS","ENCG","ENCG","CADRE"]
[714883,"Support et Pilotage de la Performance","Support et Moyens SIG","Support et Moyens SIG","","","LAHRACH","SIHAME","Assistante","2016-02-02","F","2016-02-02","1992-03-05","","Licence Professionnelle","BAC+3-DIPLOME CYCLE NORMAL+LICENCE","FSJES","FSJES","Non Cadre"]
[23430,"Support et Pilotage de la Performance","Support et Moyens SIG","Support et Moyens SIG","","","DIOUCH","NOURA","Gestionnaire administratif RH & moyens","1991-12-09","F","1991-12-09","1968-06-08","","DEUG + Brevet Bancaire","BAC+2-DEUG-BTS-DUT","Univ. Maroc + Centre de Formation Profes. & Banc.","Univ. Maroc + Centre de Formation Profes. & Banc.","Cadre"]
[709563,"Support et Pilotage de la Performance","Support et Moyens SIG","Support et Moyens SIG","","","JEBBAR","FATIMA","Gestionnaire de suivi RH & Moyens","2009-05-18","F","2016-06-01","1983-05-10","","Master","BAC+5-INGENIEUR-MASTER-DEA-DESS","FSH2","FSH2","Cadre"]
[400700,"Support et Pilotage de la Performance","Support et Moyens SIG","Support et Moyens SIG","","","RAJRAJI","NADIA","CADRE","2010-01-01","F","2010-01-01","1962-01-21","","Maîtrise","BAC+4-LICENCE-MAITRISE","Univ. Belgique","Univ. Belgique","Cadre"]

{"sheet":"31-12-19","index":3,"n_rows":361,"n_cols":19,"rows_kept":361,"cut":false,"hidden":true,"merged":[]}
["Matricule","Entite","Pôle","Domaine","Sujet","Sous domaine","Nom","Prénom","Fonction","Date de Recrutement","Sexe","Date démarrage SIG","Date de naissance","Date du départ du SIG","DIPLOME","Nombre d'année","ECOLE/UNIVERSITE","ECOLE/UNIVERSITE","Statut"]
[703875," Systèmes d'information Groupe"," Responsable du SIG","","","","LRHEZZIOUI","SOUMAYA","Directeur Exécutif","1988-08-08","F","1988-08-08","1960-06-02","","Ingénieur d'état + Master","BAC+5-INGENIEUR-MASTER-DEA-DESS","INSEA","INSEA","Cadre"]
[704591," Systèmes d'information Groupe","Systèmes d'information Groupe","","","","EL AISSAOUI","REDOUANE","","1992-05-11","M","2019-09-01","1966-06-29","","Ingénieur d'état + ITB","BAC+5-INGENIEUR-MASTER-DEA-DESS","ENSEEIHT","ENSEEIHT","CADRE"]
[804555,"Contrôle Interne","Contrôle Interne","A Contrôleur interne manager","","","AIT MAHDI","MALIKA","Contrôleur interne manager","2017-04-03","F","2017-04-03","1979-02-07","","Ingénieur d'application + Master","BAC+5-INGENIEUR-MASTER-DEA-DESS","EMSI","EMSI","Cadre"]
[402713,"Contrôle Interne","Contrôle Interne","Contrôle Interne","","","CHENTOUF","SABAH","Contrôleur Interne","1999-01-11","F","1999-01-11","1968-11-05","","Ingénieur d'application","BAC+4-LICENCE-MAITRISE","ISGE","ISGE","Cadre"]
[21324,"Contrôle Interne","Contrôle Interne","Contrôle Interne","","","MOUNTASSIR","HICHAM","Contrôleur Interne","1990-03-01","M","1990-03-01","1967-12-20","","BTS","BAC+2-DEUG-BTS-DUT","","","Cadre"]
[707309,"Contrôle Interne","Contrôle Interne","Contrôle Interne","","","TOULOUT","AMAL","Contrôleur Interne","2007-06-15","F","2014-06-23","1979-07-29","","Diplôme ESG France","BAC+5-INGENIEUR-MASTER-DEA-DESS","ESGF PARIS","ESGF PARIS","Cadre"]
[711862,"Digital center"," Digital center","A Responsable Digital center","","","ZIADI","HICHAM","Responsable Digital center","2011-05-27","M","2011-11-02","1976-12-08","","Ingénieur","BAC+5-INGENIEUR-MASTER-DEA-DESS","ENSTA","ENSTA","Cadre"]
[713554,"DIGITAL CENTER","Banque En Ligne & Frontaux","A Responsable Banque En Ligne & Frontaux","","","AIFOUTE","AHMED","Responsable de pôle","2014-02-03","M","2014-02-03","1969-08-08","","DESS","BAC+5-INGENIEUR-MASTER-DEA-DESS","Univ.STL Montpellier","Univ.STL Montpellier","Cadre"]
[717864,"Digital center","Banque En Ligne & Frontaux","Banque En Ligne & Frontaux","","","SI HAMMOU","FOUAD","Coordinateur Etudes & Developpements","2019-12-23","M","2019-12-23",null,"","Ingénieur d'état","BAC+5-INGENIEUR-MASTER-DEA-DESS","EMI","EMI","CADRE"]
[717861,"Digital center","Banque En Ligne & Frontaux","Domaine Self care","Self care","","LACHHAB","SAID","Chargé d'étude et développement junior","2019-12-16","M","2019-12-16","1997-05-22","","Master","BAC+5-INGENIEUR-MASTER-DEA-DESS","ENSIAS","ENSIAS","CADRE"]
[717808,"Digital center","Banque En Ligne & Frontaux","Domaine Self care","Self care","","THIAW","MAMADOU","Chargé d'étude et développement junior","2019-12-02","M","2019-12-02",null,"","","BAC+5-INGENIEUR-MASTER-DEA-DESS","","","CADRE"]
[717863,"Digital center","Banque En Ligne & Frontaux","Domaine Self care","Self care","","SARR","JOSEPH DOMINIQUE GOROM","Coordinateur Etudes & Developpements","2019-12-16","M","2019-12-16","1988-01-21","","","BAC+5-INGENIEUR-MASTER-DEA-DESS","","","CADRE"]
[717825,"Digital center","Banque En Ligne & Frontaux","Domaine Self care","Self care","","ERRIFAI","MOHAMED ADIB","Chargé d'étude et développement junior","2019-12-16","M","2019-12-16","1995-07-02","","Ingénieur d'état","BAC+5-INGENIEUR-MASTER-DEA-DESS","ENSA","ENSA","CADRE"]
[717779,"Digital center","Banque En Ligne & Frontaux","Domaine Self care","Self care","","NDAW","ABOU AZIZ","Chargé d'étude et développement Senior","2019-11-15","M","2019-11-15","1990-10-19","","","BAC+5-INGENIEUR-MASTER-DEA-DESS","","","CADRE"]
[711197,"DIGITAL CENTER","Banque En Ligne & Frontaux","Selfcare","Selfcare","","BERRADA","MOHAMED","Chargé d'étude et développement Senior","2011-01-07","M","2011-01-17","1984-12-12","","Master 2","BAC+5-INGENIEUR-MASTER-DEA-DESS","ESGI Paris","ESGI Paris","Cadre"]
[716596,"DIGITAL CENTER","Banque En Ligne & Frontaux","Selfcare","Selfcare","","NACIF","ACHRAF","Chargé d'étude et développement Senior","2018-06-01","M","2018-06-01","1986-11-22","","Ingénieur d'état","BAC+5-INGENIEUR-MASTER-DEA-DESS","ENSA SAFI","ENSA","Cadre"]
[715146,"DIGITAL CENTER","Banque En Ligne & Frontaux","Selfcare","Selfcare","","ZEROUALI BOUKHAL","EL MEHDI","Coordinateur Etudes & Developpements","2016-06-15","M","2016-06-15","1982-02-24","","Ingénieur","BAC+5-INGENIEUR-MASTER-DEA-DESS","Poly technique TOURS","Poly technique TOURS","Cadre"]
[710208,"DIGITAL CENTER","Banque En Ligne & Frontaux","Selfcare","Selfcare","","DLIMI","ZAKARIA","Coordinateur Etudes & Developpements","2009-11-25","M","2010-01-04","1985-01-09","","Ingénieur d'état","BAC+4-LICENCE-MAITRISE","ENSA","ENSA","Cadre"]
[715521,"DIGITAL CENTER","Banque En Ligne & Frontaux","Selfcare","Selfcare","","JAFOUI","LAILA","Chargé d'étude et développement Senior","2016-12-15","F","2016-12-15","1986-09-27","","Ingénieur d'application","BAC+5-INGENIEUR-MASTER-DEA-DESS","EMSI","EMSI","Cadre"]
[714886,"DIGITAL CENTER","Banque En Ligne & Frontaux","Selfcare","Selfcare","","SALHI","WAHIBA","Chargé d'étude et développement junior","2016-02-01","F","2016-02-01","1994-03-12","","Licence Professionnelle","BAC+3-DIPLOME CYCLE NORMAL+LICENCE","ENITE OASIS","ENITE OASIS","Non Cadre"]
[712806,"DIGITAL CENTER","Banque En Ligne & Frontaux","Selfcare","Selfcare","","LAHYAN","SALMA","Chargé d'étude et développement Senior","2013-02-15","F","2013-02-15","1987-07-12","","Ingénieur d'état","BAC+5-INGENIEUR-MASTER-DEA-DESS","ENSIAS","ENSIAS","Cadre"]
[716786,"DIGITAL CENTER","Banque En Ligne & Frontaux","Selfcare","Selfcare","","MOUMKINE","OUMAIMA","Chargé d'étude et développement junior","2018-08-15","F","2018-08-15","1994-05-25","","Master","BAC+5-INGENIEUR-MASTER-DEA-DESS","ENSA TETOUAN","ENSA","Cadre"]
[714893,"DIGITAL CENTER","Banque En Ligne & Frontaux","Selfcare","Selfcare","","KABLY","SALAHEDDINE","Chargé d'étude et développement junior","2016-02-15","M","2016-02-15","1992-01-24","02/03/2020","Master","BAC+5-INGENIEUR-MASTER-DEA-DESS","","","Cadre"]
[715063,"DIGITAL CENTER","Banque En Ligne & Frontaux","Vitrines Digitales","Vitrines Digitales","","BERRADA","KENZA","Coordinateur Etudes & Developpements","2016-05-16","F","2016-05-16","1988-08-17","","Ingénieur","BAC+5-INGENIEUR-MASTER-DEA-DESS","Telecom bretagne","Telecom bretagne","Cadre"]
[712183,"DIGITAL CENTER","Digital Platforms Enablers & DevSecOps","Datalake","A Responsable Datalake","","ELGHAZALI","KHALID","Coordinateur Etudes & Developpements","2012-04-16","M","2012-04-16","1972-09-18","","Master","BAC+5-INGENIEUR-MASTER-DEA-DESS","Univ Henri Poincaré","Univ Henri Poincaré","Cadre"]
[451143,"DIGITAL CENTER","Digital Platforms Enablers & DevSecOps","Datalake","Datalake","","RETAIBA","RACHID","Chargé d'étude et développement Senior","2001-05-14","M","2001-05-14","1972-06-29","","Euromater Gestion Télécom","BAC+5-INGENIEUR-MASTER-DEA-DESS","ESIEA Paris","ESIEA Paris","Cadre"]
[711556,"DIGITAL CENTER","Digital Platforms Enablers & DevSecOps","Datalake","Datalake","","SALIM","ZAKARIA","Chargé d'étude et développement Senior","2011-07-07","M","2011-07-18","1987-01-02","","Master 2","BAC+5-INGENIEUR-MASTER-DEA-DESS","ESIAG + EDHEC+ ISTA","ESIAG + EDHEC+ ISTA","Cadre"]
[711841,"DIGITAL CENTER","Digital Platforms Enablers & DevSecOps","ECM - Collaboratif et Digitalisation","A Responsable ECM - Collaboratif et Digitalisation","","BENTOUILA","EL MEHDI","Responsable Domaine Fonctionnel","2011-08-01","M","2011-11-02","1983-04-18","","Ingénieur d'état","BAC+5-INGENIEUR-MASTER-DEA-DESS","INSA LYON","INSA LYON","Cadre"]
[714906,"DIGITAL CENTER","Digital Platforms Enablers & DevSecOps","ECM - Collaboratif et Digitalisation","ECM - Collaboratif et Digitalisation","","BOUSBAA","HOUDA","Chargé d'étude et développement junior","2016-03-01","F","2016-03-01","1996-02-02","","Technicien spécialisé","BAC+2-DEUG-BTS-DUT","ISTA","ISTA","Non Cadre"]
[715479,"DIGITAL CENTER","Digital Platforms Enablers & DevSecOps","ECM - Collaboratif et Digitalisation","ECM - Collaboratif et Digitalisation","","EL HALLAOUI","KENZA","Chargé d'étude et développement junior","2016-11-15","F","2016-11-15","1992-05-25","","Ingénieur","BAC+5-INGENIEUR-MASTER-DEA-DESS","UIC","UIC","Cadre"]
[716923,"DIGITAL CENTER","Digital Platforms Enablers & DevSecOps","ECM - Collaboratif et Digitalisation","ECM - Collaboratif et Digitalisation","","OUAZZANI TOUHAMI","MOHAMMED","Chargé d'étude et développement Senior","2018-10-15","M","2018-10-15","1985-08-31","","Master","BAC+5-INGENIEUR-MASTER-DEA-DESS","Univ René Descartes","Univ René Descartes","CADRE"]
[715700,"DIGITAL CENTER","Digital Platforms Enablers & DevSecOps","ECM - Collaboratif et Digitalisation","ECM - Collaboratif et Digitalisation","","BERKAOUI","ABDELLAH","Chargé d'étude et développement Senior","2017-03-15","M","2017-03-15","1987-02-14","","Ingénieur d'état + MBA","BAC+5-INGENIEUR-MASTER-DEA-DESS","ENSIAS ESCAE","ENSIAS ESCAE","Cadre"]
[711186,"DIGITAL CENTER","Digital Platforms Enablers & DevSecOps","ECM - Collaboratif et Digitalisation","ECM - Collaboratif et Digitalisation","","KHERRAZ","SOUAD","Chargé d'étude et développement junior","2011-01-17","F","2011-01-17","1990-02-22","","Technicien spécialisé","BAC+2-DEUG-BTS-DUT","ISTA","ISTA","Non Cadre"]
[714807,"DIGITAL CENTER","Digital Platforms Enablers & DevSecOps","ECM - Collaboratif et Digitalisation","ECM - Collaboratif et Digitalisation","","LGHAZAOUI","IBRAHIM","Chargé d'étude et développement Junior","2016-01-04","M","2016-01-04","1990-10-20","17/01/2020","Ingénieur d'état","BAC+5-INGENIEUR-MASTER-DEA-DESS","ENSEM INFORMATIQUE","ENSEM INFORMATIQUE","Cadre"]
[712746,"DIGITAL CENTER","Digital Platforms Enablers & DevSecOps","ECM - Collaboratif et Digitalisation","ECM - Collaboratif et Digitalisation","","OUEDGHIRI","SANAE","Chargé d'étude et développement Senior","2013-01-02","F","2013-01-02","1987-07-01","","Master","BAC+5-INGENIEUR-MASTER-DEA-DESS","FSTS","FSTS","Cadre"]
[716110,"DIGITAL CENTER","Digital Platforms Enablers & DevSecOps","ECM - Collaboratif et Digitalisation","ECM - Collaboratif et Digitalisation","","BOUGHALEB","TAHAR","Chargé d'étude et développement Senior","2017-09-04","M","2017-09-04","1983-02-08","","Master","BAC+5-INGENIEUR-MASTER-DEA-DESS","Univ Nancy2 / IGA","Univ Nancy2 / IGA","Cadre"]
[713715,"DIGITAL CENTER","Digital Platforms Enablers & DevSecOps","OMS","A Responsable OMS","","HAJOUI","MOURAD","Coordinateur Etudes & Developpements","2014-06-02","M","2014-06-02","1978-06-27","","DESS SIAD","BAC+5-INGENIEUR-MASTER-DEA-DESS","UNIV Toulouse I","UNIV Toulouse I","Cadre"]
[710728,"DIGITAL CENTER","Digital Platforms Enablers & DevSecOps","OMS","OMS","","MOURADI","WALID","Chargé d'étude et développement Senior","2010-05-26","M","2010-07-01","1984-08-10","","DESS","BAC+5-INGENIEUR-MASTER-DEA-DESS","FST","FST","Cadre"]
[717302,"DIGITAL CENTER","Digital Platforms Enablers & DevSecOps","OMS","OMS","","QOTAIBAH","YOUSRA","Chargé d'étude et développement junior","2019-04-01","F","2019-04-01","1991-06-26","","Master","BAC+5-INGENIEUR-MASTER-DEA-DESS","Nice Sophia Antipolis","Nice Sophia Antipolis","CADRE"]
[706102,"DIGITAL CENTER","Distribution, Facturation & Paiement ","A Responsable Distribution, Facturation & Paiement","","","AKRAB","MAROUANE","Responsable de pôle","2002-12-09","M","2002-12-09","1980-10-29","","BTS","BAC+4-LICENCE-MAITRISE","IGA","IGA","Cadre"]
[712984,"DIGITAL CENTER","Distribution, Facturation & Paiement ","Facturation","Facturation","","ET-TALEB","MEHDI","Chargé d'étude et développement Senior","2013-06-17","M","2013-06-17","1988-04-01","","Ingénieur","BAC+5-INGENIEUR-MASTER-DEA-DESS","Telecom Sud PARIS","Telecom Sud PARIS","Cadre"]
[451154,"DIGITAL CENTER","Distribution, Facturation & Paiement ","Facturation","Facturation","","ACHBANI","KHALID","Chargé d'étude et développement Senior","2001-05-22","M","2001-05-22","1969-06-29","","Licence","BAC+4-LICENCE-MAITRISE","Univ. Maroc","Univ. Maroc","Cadre"]
[451236,"DIGITAL CENTER","Distribution, Facturation & Paiement ","Facturation","Facturation","","BOUSSAID","ISSMAIL","Coordinateur Etudes & Developpements","2004-09-24","M","2004-09-24","1977-11-30","","Master","BAC+5-INGENIEUR-MASTER-DEA-DESS","Univ. Maroc","Univ. Maroc","Cadre"]
[716867,"DIGITAL CENTER","Distribution, Facturation & Paiement ","Paiement","Paiement","","KAMAL","DALAL","Chargé d'étude et développement Senior","2018-10-01","F","2018-10-01","1988-09-24","","Ingénieur d'état","BAC+5-INGENIEUR-MASTER-DEA-DESS","ENSIAS","ENSIAS","CADRE"]
[716025,"DIGITAL CENTER","Distribution, Facturation & Paiement ","Paiement","Paiement","","AHMATACH","FAWAZ","Responsable Domaine Fonctionnel","2017-08-01","M","2017-08-01","1979-05-17","","Ingénieur d'état","BAC+5-INGENIEUR-MASTER-DEA-DESS","ISTASE","ISTASE","Cadre"]
[709607,"DIGITAL CENTER","Distribution, Facturation & Paiement ","Vente Multicanale","Vente Multicanale","","ESSOULHI","KHADIJA","Chargé d'étude et développement junior","2008-06-18","F","2008-06-18","1983-05-19","","Technicien spécialisé","BAC+2-DEUG-BTS-DUT","CIFPB","CIFPB","Non Cadre"]
[716415,"DIGITAL CENTER","Distribution, Facturation & Paiement ","Vente Multicanale","Vente Multicanale","","KHAL","MOUNTASSER","Chargé d'étude et développement junior","2018-03-01","M","2018-03-01","1993-01-14","","Ingénieur d'état","BAC+5-INGENIEUR-MASTER-DEA-DESS","Académie d'aviation civile","Académie d'aviation civile","Cadre"]
[715287,"DIGITAL CENTER","Distribution, Facturation & Paiement ","Vente Multicanale","Vente Multicanale","","HAIDA","KAOUTAR","Coordinateur Etudes & Developpements","2016-08-15","F","2016-08-15","1985-01-03","","Ingénieur d'état","BAC+5-INGENIEUR-MASTER-DEA-DESS","ENIM","ENIM","Cadre"]
[716172,"DIGITAL CENTER","Distribution, Facturation & Paiement ","Vente Multicanale","Vente Multicanale","","EL YASSEM","HOUDA","Chargé d'étude et développement Senior","2017-09-15","F","2017-09-15","1987-10-24","","Ingénieur d'état","BAC+5-INGENIEUR-MASTER-DEA-DESS","ENSIAS","ENSIAS","Cadre"]
[715187,"DIGITAL CENTER","Distribution, Facturation & Paiement ","Vente Multicanale","Vente Multicanale","","EL FATMI","YASSINE","Chargé d'étude et développement Senior","2016-07-01","M","2016-07-01","1990-12-01","","Ingénieur d'état","BAC+5-INGENIEUR-MASTER-DEA-DESS","EMI","EMI","Cadre"]
[451212,"DIGITAL CENTER","Pilotage & Coaching","Pilotage & Coaching","","","ESSABER","AMINE","Project Management Officer Projet","2003-09-01","M","2003-09-01","1979-04-27","","Ingénieur d'état","BAC+5-INGENIEUR-MASTER-DEA-DESS","EMI","EMI","Cadre"]
[717144,"DIGITAL CENTER","Pilotage & Coaching","Pilotage & Coaching","","","CHERIF","LALLIA","Coordinateur Etudes & Developpements","2019-02-01","F","2019-02-01","1984-06-02","","Ingénieur + Master","BAC+5-INGENIEUR-MASTER-DEA-DESS","Polytechnique Algérie","Polytechnique Algérie","CADRE"]
[706067,"DIGITAL CENTER","Postes de Travail & Connaissance Client","A Responsable Postes de Travail & Connaissance Client","","","ABOULOUMOUM","SAID","Responsable de pôle","2002-10-08","M","2002-10-08","1978-08-16","","Ingénieur d'état","BAC+5-INGENIEUR-MASTER-DEA-DESS","ENSIAS","ENSIAS","Cadre"]
[715549,"DIGITAL CENTER","Postes de Travail & Connaissance Client","Components","Components","","SQUALLI HOUSSAINI","NARJISS","Chargé d'étude et développement Senior","2017-01-02","F","2017-01-02","1988-06-18","","Ingénieur d'état","BAC+5-INGENIEUR-MASTER-DEA-DESS","ENSIAS","ENSIAS","Cadre"]
[707062,"DIGITAL CENTER","Postes de Travail & Connaissance Client","CRM & Modèle relationnel","A Responsable CRM & Modèle relationnel","","EL HAOUATE","KARIM","Responsable de Domaine Fonctionnel","2013-02-15","M","2013-02-15","1982-06-01","","Ingénieur d'état","BAC+5-INGENIEUR-MASTER-DEA-DESS","ENIM","ENIM","Cadre"]
[711417,"DIGITAL CENTER","Postes de Travail & Connaissance Client","CRM & Modèle relationnel","CRM & Modèle relationnel","","AMANE","HICHAM","Chargé d'étude et développement Senior","2011-05-02","M","2011-05-16","1984-07-31","","Ingénieur d'application","BAC+5-INGENIEUR-MASTER-DEA-DESS","EMSI","EMSI","Cadre"]
[716773,"DIGITAL CENTER","Postes de Travail & Connaissance Client","CRM & Modèle relationnel","CRM & Modèle relationnel","","BOUHILA","SAFAE","Chargé d'étude et développement junior","2018-08-01","F","2018-08-01","1992-08-29","","Ingénieur","BAC+5-INGENIEUR-MASTER-DEA-DESS","VINCI Rabat","VINCI Rabat","Cadre"]
[707601,"DIGITAL CENTER","Postes de Travail & Connaissance Client","Operation agence & Intraday","Operation agence & Intraday","","MORTAJI","ADIL","Coordinateur Etudes & Developpements","2008-01-15","M","2008-01-15","1981-02-10","","Ingénieur d'état","BAC+5-INGENIEUR-MASTER-DEA-DESS","ENSEEIHT","ENSEEIHT","Cadre"]
[707715,"DIGITAL CENTER","Postes de Travail & Connaissance Client","Operation agence & Intraday","Operation agence & Intraday","","EDDAKAKI","AYOUB","Coordinateur Etudes & Developpements","2008-03-17","M","2008-03-17","1983-05-31","","Ingénieur d'état","BAC+5-INGENIEUR-MASTER-DEA-DESS","EMI","EMI","Cadre"]
[716869,"DIGITAL CENTER","Postes de Travail & Connaissance Client","Operation agence & Intraday","Operation agence & Intraday","","MANOUN","WESSAM","Chargé d'étude et développement Senior","2018-10-01","M","2018-10-01","1989-02-04","","","BAC+5-INGENIEUR-MASTER-DEA-DESS","","","CADRE"]
[715423,"DIGITAL CENTER","Postes de Travail & Connaissance Client","Référentiel client et EER","Référentiel client et EER","","EL HANAFI SEBTI","AHMED","Chargé d'étude et développement junior","2016-10-17","M","2016-10-17","1992-07-20","","Ingénieur d'état","BAC+5-INGENIEUR-MASTER-DEA-DESS","ENSIAS","ENSIAS","Cadre"]
[712157,"DIGITAL CENTER","Postes de Travail & Connaissance Client","Référentiel client et EER","Référentiel client et EER","","TOUERESS EP ABCHIR","WAFAA","Chargé d'étude et développement Senior","2012-04-16","F","2012-04-16","1981-12-16","","Master","BAC+5-INGENIEUR-MASTER-DEA-DESS","EMSI + Univ Paris Sud 11","EMSI + Univ Paris Sud 11","Cadre"]
[714832,"DIGITAL CENTER","Postes de Travail & Connaissance Client","Supports N2","Supports N2","","MOUSTAID","MOUNA","Chargé d'étude et développement junior","2016-01-04","F","2016-01-04","1994-04-13","","Licence Professionnelle","BAC+3-DIPLOME CYCLE NORMAL+LICENCE","FST","FST","Non Cadre"]
[714919,"DIGITAL CENTER","Postes de Travail & Connaissance Client","Supports N2","Supports N2","AFFECTE LE 01-01-19","EL MOUQTASIDI","ASMAA","Chargé d'étude et développement junior","2016-03-15","F","2016-03-15","1994-04-17","","Technicien spécialisé + MASTER","BAC+5-INGENIEUR-MASTER-DEA-DESS","ISGI","ISGI","Non Cadre"]
[707061,"Etudes & Développements"," Etudes & Développements","  Responsable des Etudes & Développements","","","BENJELLOUN","MOHAMED","Responsable Etudes & Développements","2007-01-15","M","2007-01-15","1965-03-15","","Ingénieur","BAC+5-INGENIEUR-MASTER-DEA-DESS","EUDIL","EUDIL","Cadre"]
[402223,"Etudes & Développements","Banque commerciale et Filiales bancaires","Domaine Filiales SFS et Bancaires","Domaine Filiales SFS et Bancaires","BAS","DAHRI","NADIA","Coordinateur Etudes & Developpements","2001-10-01","F","2001-10-01","1977-07-27","","Maîtrise","BAC+4-LICENCE-MAITRISE","Univ. Maroc","Univ. Maroc","Cadre"]
[706572,"Etudes & Développements","Banque commerciale et Filiales bancaires","Domaine Filiales SFS et Bancaires","Domaine Filiales SFS et Bancaires","BAS","MAZDAOUI","LAILA","Coordinateur Etudes & Developpements","2006-06-15","F","2006-06-15","1978-11-08","","Maîtrise","BAC+4-LICENCE-MAITRISE","Univ. Maroc","Univ. Maroc","Cadre"]
[712497,"Etudes & Développements","Banque de financement et d'investissement groupe","A responsable Banque de financement et d'investissement groupe","","","DAHMAN","RIDA","Responsable de pôle","2012-10-15","M","2012-10-15","1979-10-23","","Master","BAC+5-INGENIEUR-MASTER-DEA-DESS","Fst + Institut Galilée de Paris","Fst + Institut Galilée de Paris","Cadre"]
[707911,"Etudes & Développements","Banque de financement et d'investissement groupe","Domaine Salle des marchés","A Responsable Domaine Fonctionnel","","BENMAAZOUZ","ALLAL","Responsable Domaine Fonctionnel","2008-07-01","M","2008-07-01","1972-04-19","","DESS","BAC+5-INGENIEUR-MASTER-DEA-DESS","ESSI NICE","ESSI NICE","Cadre"]
[703788,"Etudes & Développements","Banque de financement et d'investissement groupe","Domaine Salle des marchés","Salle des marchés","","BOUAMAINE","FOUAD","Chargé d'étude et développement Senior","1987-09-01","M","1987-09-01","1963-09-19","","Diplôme cycle normal","BAC+3-DIPLOME CYCLE NORMAL+LICENCE","ISG","ISG","Cadre"]
[707381,"Etudes & Développements","Banque de financement et d'investissement groupe","Domaine Salle des marchés","Salle des marchés","","JERRAF","ACHRAF","Chargé d'étude et développement Senior","2007-09-03","M","2007-09-03","1982-12-19","","Ingénieur d'application","BAC+5-INGENIEUR-MASTER-DEA-DESS","ESG","ESG","Cadre"]
[714703,"Etudes & Développements","Banque de financement et d'investissement groupe","Domaine Salle des marchés","Salle des marchés","","GOURAINY","IMANE","Chargé d'étude et développement Senior","2015-11-01","M","2015-11-01","1991-12-18","","Ingénieur d'état","BAC+5-INGENIEUR-MASTER-DEA-DESS","ENSA SAFI","ENSA","Cadre"]
[714835,"Etudes & Développements","Banque de financement et d'investissement groupe","Domaine Salle des marchés","Salle des marchés","","DKHISSI","ILHAM","Chargé d'étude et développement junior","2016-01-15","F","2016-01-15","1988-08-13","","Ingénieur d'état","BAC+5-INGENIEUR-MASTER-DEA-DESS","INSEA","INSEA","Cadre"]
[713743,"Etudes & Développements","Banque de financement et d'investissement groupe","Domaine Salle des marchés","Salle des marchés","","KETTANI HASSANI","ISMAIL","Chargé d'étude et développement Junior","2014-06-16","M","2014-06-16","1991-02-10","","Master","BAC+5-INGENIEUR-MASTER-DEA-DESS","ESG","ESG","Cadre"]
[710767,"Etudes & Développements","Banque de financement et d'investissement groupe","Domaine Salle des marchés","Salle des marchés","","ARAFA","YOUNES","Chargé d'étude et développement Senior","2010-05-27","M","2010-07-01","1983-08-13","","Master","BAC+5-INGENIEUR-MASTER-DEA-DESS","Univ Henry Poincaré nancy 1","Univ Henry Poincaré nancy 1","Cadre"]
[717738,"Etudes & Développements","Banque de financement et d'investissement groupe","Domaine Salle des marchés","Salle des marchés","","BOUIRDI","MOHAMED REDA","Chargé d'étude et développement junior","2019-11-01","M","2019-11-01","1993-08-08","","Master","BAC+5-INGENIEUR-MASTER-DEA-DESS","Univ Hassan 1er","Univ Hassan 1er","CADRE"]
[715613,"Etudes & Développements","Banque de financement et d'investissement groupe","Domaine Salle des marchés","Salle des marchés","","KOSSIR","YOUNES","Chargé d'étude et développement Senior","2017-02-01","M","2017-02-01","1988-08-02","","Ingénieur d'état","BAC+5-INGENIEUR-MASTER-DEA-DESS","ENSIAS","ENSIAS","Cadre"]
[704275,"Etudes & Développements","Banque de financement et d'investissement groupe","Domaine Titres & Opérations de Bourses","A Responsable Domaine Titres & Opérations de Bourses","","DAKY","MOHAMED OTHMANE","Responsable Domaine Fonctionnel","1991-11-04","M","1991-11-04","1963-08-31","","Bachelor","BAC+5-INGENIEUR-MASTER-DEA-DESS","Univ. Canada","Univ. Canada","Cadre"]
[38665,"Etudes & Développements","Banque de financement et d'investissement groupe","Domaine Titres & Opérations de Bourses","Titres & Opérations de Bourses","","TUIRTOU","ABDELMOULA","Chargé d'étude et développement Senior","1990-12-01","M","1990-12-01","1960-07-23","31/07/2020","BAC","BAC","Lycée","Lycée","Cadre"]
[717466,"Etudes & Développements","Banque de financement et d'investissement groupe","Domaine Titres & Opérations de Bourses","Titres & Opérations de Bourses","","KISSANE","ISLAM","Chargé d'étude et développement junior","2019-06-17","F","2019-06-17","1991-04-30","","Ingénieur d'état","BAC+5-INGENIEUR-MASTER-DEA-DESS","ENSIAS","ENSIAS","CADRE"]
[714840,"Etudes & Développements","Banque de financement et d'investissement groupe","Domaine Titres & Opérations de Bourses","Titres & Opérations de Bourses","","ZAHIR","HAMZA","Chargé d'étude et développement Senior","2016-01-04","M","2016-01-04","1991-04-15","","Ingénieur d'état","BAC+5-INGENIEUR-MASTER-DEA-DESS","EMI","EMI","Cadre"]
[715859,"Etudes & Développements","Banque de financement et d'investissement groupe","Domaine Titres & Opérations de Bourses","Titres & Opérations de Bourses","","SLIMANI HOUTI","ALI","Chargé d'étude et développement Senior","2017-06-01","M","2017-06-01","1989-07-10","","Ingénieur d'état","BAC+5-INGENIEUR-MASTER-DEA-DESS","ENSEIRB MATMECA","ENSEIRB MATMECA","Cadre"]
[706114,"Etudes & Développements","Cash Management & Trade Finance","Domaine Trade Finance & Cash Management","A Responsable Domaine Trade Finance & Cash Management","","MEKKAOUI","JAMAL","Responsable Domaine Fonctionnel","2002-12-10","M","2002-12-10","1979-08-18","","Ingénieur d'état","BAC+5-INGENIEUR-MASTER-DEA-DESS","ENSIAS","ENSIAS","Cadre"]
[717111,"Etudes & Développements","Cash Management & Trade Finance","Domaine Trade Finance & Cash Management","Trade Finance & Cash Management","","EL GHAZOUANI","YASSINE","Chargé d'étude et développement junior","2019-01-02","M","2019-01-02","1992-08-24","","Ingénieur d'état","BAC+5-INGENIEUR-MASTER-DEA-DESS","ENSET","ENSET","CADRE"]
[707808,"Etudes & Développements","Cash Management & Trade Finance","Domaine Trade Finance & Cash Management","Trade Finance & Cash Management","","CHAIR","NADIA","Chargé d'étude et développement Senior","2008-05-02","F","2008-05-02","1984-07-20","","Ingénieur d'application","BAC+4-LICENCE-MAITRISE","EMSI","EMSI","Cadre"]
[710446,"Etudes & Développements","Cash Management & Trade Finance","Domaine Trade Finance & Cash Management","Trade Finance & Cash Management","","ZEMMITA","MOHAMED","Chargé d'étude et développement Senior","2010-01-04","M","2010-03-01","1985-01-02","","Ingénieur d'application","BAC+4-LICENCE-MAITRISE","ISERT","ISERT","Cadre"]
[451085,"Etudes & Développements","Cash Management & Trade Finance","Domaine Trade Finance & Cash Management","Trade Finance & Cash Management","","MAJDI","MOHAMED","Chargé d'étude et développement Senior","1989-05-02","M","1989-05-02","1962-12-11","11/12/2022","DTI","BAC+2-DEUG-BTS-DUT","","","Cadre"]
[711034,"Etudes & Développements","Cash Management & Trade Finance","Domaine Trade Finance & Cash Management","Trade Finance & Cash Management","","EL HAMIDI-EL KETTANI","SOURAYA","Chargé d'étude et développement Senior","2010-09-17","F","2010-11-01","1983-07-14","","Ingénieur d'application","BAC+5-INGENIEUR-MASTER-DEA-DESS","EMSI","EMSI","Cadre"]
[709398,"Etudes & Développements","Cash Management & Trade Finance","Domaine Trade Finance & Cash Management","Trade Finance & Cash Management","","LAGMIRI","BOUCHRA","Coordinateur Etudes & Developpements","2009-03-03","F","2009-03-16","1976-02-14","","Ingénieur d'application","BAC+4-LICENCE-MAITRISE","EMSI","EMSI","Cadre"]
[705990,"Etudes & Développements","Cash Management & Trade Finance","Domaine Trade Finance & Cash Management","Trade Finance & Cash Management","","SMOUNI","RABII","Coordinateur Etudes & Developpements","2002-03-18","M","2002-03-18","1977-09-20","","Licence","BAC+4-LICENCE-MAITRISE","Univ. Maroc","Univ. Maroc","Cadre"]
[451238,"Etudes & Développements","Cash Management & Trade Finance","Domaine Trade Finance & Cash Management","Trade Finance & Cash Management","","FOUTA","HAFIDA","Coordinateur Etudes & Developpements","2004-10-01","F","2004-10-01","1977-11-08","","Master + Bachelor","BAC+5-INGENIEUR-MASTER-DEA-DESS","Al Akhawayn","Al Akhawayn","Cadre"]
[707699,"Etudes & Développements","Cash Management & Trade Finance","Domaine Trade Finance & Cash Management","Trade Finance & Cash Management","AFFECTE LE 01-04-19","ZINE EDDINE","NAWAL","Chargé d'étude et développement junior","2007-02-28","F","2007-02-28","1984-08-24","","Bac+3","BAC+3-DIPLOME CYCLE NORMAL+LICENCE","ISTA + IGA","ISTA + IGA","Non Cadre"]
[716479,"Etudes & Développements","Etudes & Développements","","","","ETTIRMIDI","OUAFA","Manager SI","2018-04-23","F","2018-04-23","1974-09-17","","Ingénieur d'état","BAC+5-INGENIEUR-MASTER-DEA-DESS","EHTP","EHTP","Cadre"]
[400788,"Etudes & Développements","Pilotage & Moyens généraux","A responsable Pilotage & Moyens généraux","","","AFRIKOU","AMINA","Responsable de pôle","1996-12-02","F","1996-12-02","1969-05-28","","Ingénieur d'état","BAC+5-INGENIEUR-MASTER-DEA-DESS","EMI","EMI","Cadre"]
[402165,"Etudes & Développements","Pilotage & Moyens généraux","Domaine Décisionel","A Responsable Domaine Décisionel","","MIKOU","ADIL","Responsable Domaine Fonctionnel","2001-09-01","M","2001-09-01","1973-09-20","","Master Télécom","BAC+5-INGENIEUR-MASTER-DEA-DESS","IGA Casa","IGA Casa","Cadre"]
[716819,"Etudes & Développements","Pilotage & Moyens généraux","Domaine Décisionel","Décisionel","","SAOUD","DRISS","Chargé d'étude et développement Junior","2018-09-03","M","2018-09-03","1994-01-21","","Master en BIG DATA & CLOUD","BAC+5-INGENIEUR-MASTER-DEA-DESS","","","Cadre"]
[400653,"Etudes & Développements","Pilotage & Moyens généraux","Domaine Décisionel","Décisionel","","RIKAOUI","RACHID","Chargé d'étude et développement Senior","1991-01-08","M","1991-01-08","1966-09-18","","Ingénieur d'état","BAC+5-INGENIEUR-MASTER-DEA-DESS","Univ. Maroc","Univ. Maroc","Cadre"]
[707227,"Etudes & Développements","Pilotage & Moyens généraux","Domaine Décisionel","Décisionel","","EL BADAOUI","SALIM","Coordinateur Etudes & Developpements","2007-04-02","M","2007-04-02","1978-08-20","","Ingénieur d'application","BAC+5-INGENIEUR-MASTER-DEA-DESS","EMSI","EMSI","Cadre"]
[715538,"Etudes & Développements","Pilotage & Moyens généraux","Domaine Décisionel","Décisionel","","AFILAL","KHAWLA","Chargé d'étude et développement junior","2017-01-02","F","2017-01-02","1994-05-07","","Ingénieur d'état","BAC+5-INGENIEUR-MASTER-DEA-DESS","EMI","EMI","Cadre"]
[711946,"Etudes & Développements","Pilotage & Moyens généraux","Domaine Finance & Comptabilité","A Responsable Domaine Finance & Comptabilité","","BICHRA","MOHAMED NAWFAL","Responsable de Domaine Fonctionnel","2011-12-01","M","2011-12-01","1980-05-19","","Master","BAC+5-INGENIEUR-MASTER-DEA-DESS","ESCE Paris","ESCE Paris","Cadre"]
[707691,"Etudes & Développements","Pilotage & Moyens généraux","Domaine Finance & Comptabilité","Finance & Comptabilité","","LAGHROUSSI","JAMILA","Chargé d'étude et développement Senior","2008-03-04","F","2008-03-04","1984-01-26","","Ingénieur d'application","BAC+4-LICENCE-MAITRISE","EMSI","EMSI","Cadre"]
[400334,"Etudes & Développements","Pilotage & Moyens généraux","Domaine Finance & Comptabilité","Finance & Comptabilité","","SAOUD","HASSAN","Chargé d'étude et développement Senior","1990-02-19","M","1990-02-19","1962-12-11","","Secondaire","NS","Lycée","Lycée","Cadre"]
[402245,"Etudes & Développements","Pilotage & Moyens généraux","Domaine Moyens Généraux","A Responsable Domaine Moyens Généraux","","SOUSSI-MAISSOUR","MOUNIA","Responsable Domaine Fonctionnel","2001-08-20","F","2001-08-20","1977-08-07","","Ingénieur d'état","BAC+5-INGENIEUR-MASTER-DEA-DESS","Ecole Mines","Ecole Mines","Cadre"]
[707254,"Etudes & Développements","Pilotage & Moyens généraux","Domaine Moyens Généraux","Moyens Généraux","","ALLAMI","SOUHAIB","Chargé d'étude et développement Senior","2007-05-02","M","2007-05-02","1973-05-22","","DESS","BAC+5-INGENIEUR-MASTER-DEA-DESS","ESSAIM","ESSAIM","Cadre"]
[717189,"Etudes & Développements","Pilotage & Moyens généraux","Domaine Moyens Généraux","Moyens Généraux","","TOULALI","CHAIMAE","Chargé d'étude et développement junior","2019-02-15","F","2019-02-15","1991-09-08","","Ingénieur d'état","BAC+5-INGENIEUR-MASTER-DEA-DESS","ENSAO","ENSA","Cadre"]
[400675,"Etudes & Développements","Pilotage & Moyens généraux","Domaine Moyens Généraux","Moyens Généraux","","HALOUANE ","HAKIM","Chargé d'étude et développement Senior","1990-02-19","M","1990-02-19","1960-05-14","30/05/2020","ITB","ITB","Conser National des arts & métiers","Conser National des arts & métiers","Cadre"]
[717624,"Etudes & Développements","Pilotage & Moyens généraux","Domaine Moyens Généraux","Moyens Généraux","","FERTASSI","SIHAM","Chargé d'étude et développement Senior","2019-08-15","F","2019-08-15","1986-11-24","","Ingénieur d'état","BAC+5-INGENIEUR-MASTER-DEA-DESS","ENSAT","ENSA","CADRE"]
[707628,"Etudes & Développements","Recette","Recette","","","ARHOUNI","ADIL","Chargé d'étude et développement Senior","2008-01-03","M","2008-01-03","1972-05-15","","Master","BAC+5-INGENIEUR-MASTER-DEA-DESS","Al Akhawayn","Al Akhawayn","Cadre"]
[45653,"Etudes & Développements","Recette","Recette","","","TABIT","ABDELILLAH","Chargé d'étude et développement junior","2009-01-25","M","2009-02-02","1981-02-05","","BAC+4","BAC+4-LICENCE-MAITRISE","IGA","IGA","Cadre"]
[716934,"Etudes & Développements","Ressources Management","Ingénierie Applicative","","","BAHI","Mostafa","Coordinateur Etudes & Developpements","2018-11-01","M","2018-11-01","1978-01-01","","Ingénieur","BAC+5-INGENIEUR-MASTER-DEA-DESS","NTIC de TELECOM LILLE1","NTIC de TELECOM LILLE1","CADRE"]
[402110,"Etudes & Développements","Ressources Management","Ingénierie Applicative","Arrêtés des comptes / Réferentiel","","HAJBAOUI","YOUSSEF","Responsable Domaine Fonctionnel","2001-07-09","M","2001-07-09","1968-09-16","","Ingénieur d'état","BAC+5-INGENIEUR-MASTER-DEA-DESS","ENSIAS","ENSIAS","Cadre"]
[715784,"Etudes & Développements","Ressources Management","Ingénierie Applicative","EBICS","","ZNIBER","SAAD","Coordinateur Etudes & Developpements","2017-04-19","M","2017-04-19","1985-01-09","","Ingénieur d'état","BAC+5-INGENIEUR-MASTER-DEA-DESS","INSA ROUEN","INSA ROUEN","Cadre"]
[715305,"Etudes & Développements","Ressources Management","Ingénierie Applicative","Finance & Comptabilité","","BERRADA","ASMAE","Coordinateur Etudes & Developpements","2016-08-15","F","2016-08-15","1984-07-07","","Ingénieur","BAC+5-INGENIEUR-MASTER-DEA-DESS","IAE","IAE","Cadre"]
[401608,"Etudes & Développements","Ressources Management","Ingénierie Applicative","Ingénierie Applicative","","TAOUSS ","NADIA","Chargé d'étude et développement Senior","1999-06-01","F","1999-06-01","1968-01-29","","Ingénieur d'état + Master","BAC+5-INGENIEUR-MASTER-DEA-DESS","INSEA + Al Akhawayn","INSEA + Al Akhawayn","Cadre"]
[716403,"Etudes & Développements","Ressources Management","Ingénierie Applicative","Moyen Generaux (E-sourcing)","","CHERKAOUI","ABDERRAZZAK","Chargé d'étude et développement Senior","2018-02-01","M","2018-02-01","1985-01-30","","Ingénieur d'état","BAC+5-INGENIEUR-MASTER-DEA-DESS","ENSA TANGER","ENSA","Cadre"]
[715440,"Etudes & Développements","Ressources Management","Ingénierie Applicative","Moyens Géneraux SIRH","","EL JILANI","OMAR","Coordinateur Etudes & Developpements","2016-11-01","M","2016-11-01","1980-11-17","","Ingénieur d'état","BAC+5-INGENIEUR-MASTER-DEA-DESS","INSEA","INSEA","Cadre"]
[401643,"Etudes & Développements","Ressources Management","Ingénierie Applicative","Position Minute et autres sujets","","KHAIROUN","MOHAMED","Responsable Domaine Fonctionnel","2000-06-01","M","2000-06-01","1962-07-01","","Ingénieur","BAC+5-INGENIEUR-MASTER-DEA-DESS","Ecole Centrale Paris","Ecole Centrale Paris","Cadre"]
[716113,"Etudes & Développements","Ressources Management","Ingénierie Applicative","Programme SWIFT","","CHRAIBI","ALAE","Coordinateur Etudes & Developpements","2017-09-04","M","2017-09-04","1975-11-12","","DEA","BAC+5-INGENIEUR-MASTER-DEA-DESS","ENSEEIHT TOULOUSE","ENSEEIHT TOULOUSE","Cadre"]
[715266,"Etudes & Développements","Ressources Management","Ingénierie Applicative","Trade (TI+)","","EL IDRISSI","ABDELMOUMEN","Chargé d'étude et développement Senior","2016-08-01","M","2016-08-01","1988-06-23","","Ingénieur d'application","BAC+5-INGENIEUR-MASTER-DEA-DESS","ESTEM","ESTEM","Cadre"]
[716069,"Etudes & Développements","Ressources Management","Ingénierie Applicative","Trade (TI+)","","HAMADA","ZAKARYA","Chargé d'étude et développement junior","2017-08-15","M","2017-08-15","1994-02-22","","Ingénieur d'état","BAC+5-INGENIEUR-MASTER-DEA-DESS","EMI","EMI","Cadre"]
[716413,"Etudes & Développements","Ressources Management","Ingénierie Applicative","Trade (TI+)","","LAMRINI","ABDELKARIM","Chargé d'étude et développement Senior","2018-02-15","M","2018-02-15","1987-06-26","","Ingénieur d'état + Master","BAC+5-INGENIEUR-MASTER-DEA-DESS","ENSICAEN","ENSICAEN","Cadre"]
[710069,"Etudes & Développements","Risques et compliance","Domaine Compliance","A Responsable Domaine Compliance","","BENNANI","MANAR","Responsable Domaine Fonctionnel","2009-11-09","M","2009-11-16","1975-04-25","","Ingénieur d'état","BAC+5-INGENIEUR-MASTER-DEA-DESS","EMI","EMI","Cadre"]
[715588,"Etudes & Développements","Risques et compliance","Domaine Compliance","Compliance","","CHAMLAL","MOHAMED","Chargé d'étude et développement junior","2017-01-16","M","2017-01-16","1991-07-27","","Master","BAC+5-INGENIEUR-MASTER-DEA-DESS","Univ Toulouse 1","Univ Toulouse 1","Cadre"]
[717821,"Etudes & Développements","Risques et compliance","Domaine Compliance","Compliance","","CHAJAR","ILHAM","Chargé d'étude et développement junior","2019-12-16","F","2019-12-16","1997-01-31","","Master","BAC+5-INGENIEUR-MASTER-DEA-DESS","FST","FST","CADRE"]
[716691,"Etudes & Développements","Risques et compliance","Domaine Compliance","Compliance","","DEGHAI","HAFSA","Chargé d'étude et développement junior","2018-06-18","F","2018-06-18","1982-02-10","","Ingénieur d'état","BAC+5-INGENIEUR-MASTER-DEA-DESS"," EPS"," EPS","Cadre"]
[717627,"Etudes & Développements","Risques et compliance","Domaine Compliance","Compliance","","EL MIR","ABIR","Chargé d'étude et développement Senior","2019-08-15","F","2019-08-15","1986-09-20","","Master","BAC+5-INGENIEUR-MASTER-DEA-DESS","INSA / ENIM","INSA / ENIM","CADRE"]
[717686,"Etudes & Développements","Risques et compliance","Domaine Risque & engagements"," Risque & engagements","","GUENNOUN","MOHAMED","Chargé d'étude et développement Senior","2019-09-16","M","2019-09-16","1984-05-14","","Ingénieur d'application","BAC+5-INGENIEUR-MASTER-DEA-DESS","EMSI","EMSI","CADRE"]
[703799,"Etudes & Développements","Risques et compliance","Domaine Risque & engagements","A Responsable Domaine Risque & engagements","","ZAHRANE Ep ABROUS","AICHA","Responsable Domaine Fonctionnel","1987-09-01","F","1987-09-01","1963-12-15","","Diplôme cycle normal","BAC+3-DIPLOME CYCLE NORMAL+LICENCE","IGA","IGA","Cadre"]
[712808,"Etudes & Développements","Risques et compliance","Domaine Risque & engagements","Risque & engagements","","GHANNAM","ZAYD","Coordinateur Etudes & Developpements","2013-02-15","M","2013-02-15","1982-06-28","","Ingénieur","BAC+5-INGENIEUR-MASTER-DEA-DESS","Ecole Poly Tech Montpellier","Ecole Poly Tech Montpellier","Cadre"]
[20915,"Etudes & Développements","Risques et compliance","Domaine Risque & engagements","Risque & engagements","","ZIDI","MUSTAPHA","Coordinateur Etudes & Developpements","1989-10-19","M","1989-10-19","1964-05-26","","ITB","ITB","Centre de Formation Profes. & Banc.","Centre de Formation Profes. & Banc.","Cadre"]
[716322,"Etudes & Développements","Risques et compliance","Domaine Risque & engagements","Risque & engagements","","BENALI","MOHAMED","Chargé d'étude et développement junior","2017-12-15","M","2017-12-15","1994-03-23","","Ingénieur d'état","BAC+5-INGENIEUR-MASTER-DEA-DESS","EMI","EMI","Cadre"]
[707806,"Etudes & Développements","Risques et compliance","Domaine Risque & engagements","Risque & engagements","","SFAIRA","BAHIA","Chargé d'étude et développement Senior","2008-05-02","F","2008-05-02","1983-02-09","","DESS","BAC+5-INGENIEUR-MASTER-DEA-DESS","Univers. Dhar Mehraz Fes","Univers. Dhar Mehraz Fes","Cadre"]
[712799,"Etudes & Développements","Risques et compliance","Domaine Risque & engagements","Risque & engagements","","EL MOUTAOUAKKIL","AICHA","Chargé d'étude et développement Senior","2013-02-01","F","2013-02-01","1983-12-12","","Master","BAC+5-INGENIEUR-MASTER-DEA-DESS","Inst d'Adm des Entr","Inst d'Adm des Entr","Cadre"]
[716324,"Etudes & Développements","Risques et compliance","Domaine Risque & engagements","Risque & engagements","","SAID","SALAHEDDINE","Chargé d'étude et développement Senior","2017-12-15","M","2017-12-15","1991-02-23","","Ingénieur d'état","BAC+5-INGENIEUR-MASTER-DEA-DESS","EMI","EMI","Cadre"]
[402393,"Etudes & Développements","Risques et compliance","Domaine Risque & engagements","Risque & engagements","","SEKKATE","NABILA","Coordinateur Etudes & Developpements","2002-01-02","F","2002-01-02","1977-03-17","","Ingénieur d'état","BAC+5-INGENIEUR-MASTER-DEA-DESS","ENSIAS","ENSIAS","Cadre"]
[717119,"Etudes & Développements","Risques et compliance","Domaine Risque & engagements","Risque & engagements","","MOUJIB","ILHAM","Chargé d'étude et développement Senior","2019-01-02","F","2019-01-02","1987-07-01","","Ingénieur d'application","BAC+5-INGENIEUR-MASTER-DEA-DESS","EMSI","EMSI","CADRE"]
[704015,"Infrastructure & Production Informatique","  Infrastructure & Production Informatique","a Responsable Infrastructure & Production Informatique","","","LARAKI","MOHAMED JAOUAD","Responsable Production Informatique","1990-01-02","M","1990-01-02","1958-06-06","","Maîtrise","BAC+4-LICENCE-MAITRISE","Univ. France","Univ. France","Cadre"]
[402212,"Infrastructure & Production Informatique","Architecture et Projets de la Production Informatique (APPI)","A Responsable Architecture et Projets de la Production Informatique (APPI)","","","RHINAOUI","SALAH EDDINE","Responsable Architecture et Projets de la Production Informatique (APPI)","2017-01-02","M","2017-01-18","1967-07-08","","Analyste Programmeur","BAC+2-DEUG-BTS-DUT","EUROLEC","EUROLEC","Cadre"]
[706617,"Infrastructure & Production Informatique","Architecture et Projets de la Production Informatique (APPI)","ASSET MANAGEMENT","A Responsable ASSET MANAGEMENT","","AARAFAT","ABDELALALI","Chargé d'asset management","2006-07-03","M","2006-07-03","1976-08-18","","Master Europeen","BAC+5-INGENIEUR-MASTER-DEA-DESS","Univ. Poincaré","Univ. Poincaré","Cadre"]
[709913,"Infrastructure & Production Informatique","Architecture et Projets de la Production Informatique (APPI)","Cellule Architecture de Production","","","BOUZKRAOUI","ELHOUSSAINE","Architecte de Production","2009-06-15","M","2009-08-17","1986-06-16","","Ingénieur d'état","BAC+5-INGENIEUR-MASTER-DEA-DESS","EMI","EMI","Cadre"]
[451132,"Infrastructure & Production Informatique","Architecture et Projets de la Production Informatique (APPI)","Cellule Architecture de Production","","","MOUTAWAKIL","KHALID","Architecte de production","2001-03-01","M","2001-03-01","1974-03-02","","Ingénieur d'état","BAC+5-INGENIEUR-MASTER-DEA-DESS","ENIM","ENIM","Cadre"]
[28958,"Infrastructure & Production Informatique","Architecture et Projets de la Production Informatique (APPI)","Equipe chefs de projets de production","","","ACHARKI","MOHAMED","Chef de projet de production","1999-04-26","M","1999-04-26","1973-10-23","","Licence","BAC+4-LICENCE-MAITRISE","Univ. Maroc","Univ. Maroc","Cadre"]
[717463,"Infrastructure & Production Informatique","Architecture et Projets de la Production Informatique (APPI)","Equipe chefs de projets de production","","","BERRABHA","MARYAM","Chef de projet de production","2019-06-17","F","2019-06-17","1989-01-15","","Ingénieur d'état","BAC+5-INGENIEUR-MASTER-DEA-DESS","ENSA","ENSA","CADRE"]
[716426,"Infrastructure & Production Informatique","Architecture et Projets de la Production Informatique (APPI)","Equipe chefs de projets de production","","","ARIF","JALAL","Chef de Projet de Production","2018-03-15","M","2018-03-15","1985-01-17","","Master","BAC+5-INGENIEUR-MASTER-DEA-DESS","UIR","UIR","Cadre"]
[716461,"Infrastructure & Production Informatique","Architecture et Projets de la Production Informatique (APPI)","Equipe chefs de projets de production","","","YOUSFI","IMAD","Chef de projet de production","2018-04-02","M","2018-04-02","1980-10-28","31/01/2020","Master DEA","BAC+5-INGENIEUR-MASTER-DEA-DESS","Univ d' Orsay Paris","Univ d' Orsay Paris","Cadre"]
[707529,"Infrastructure & Production Informatique","Architecture et Projets de la Production Informatique (APPI)","Equipe chefs de projets de production","","","AIT ABDERRAHMANE","MOUNIR","Chef de projet de production","2007-12-17","M","2007-12-17","1982-05-27","","Ingénieur","BAC+5-INGENIEUR-MASTER-DEA-DESS","ESST","ESST","Cadre"]
[705925,"Infrastructure & Production Informatique","Architecture et Projets de la Production Informatique (APPI)","Equipe chefs de projets de production","","","NAJMI","SAMIR","Chef de projet de production","2001-10-15","M","2001-10-15","1977-08-18","","Ingénieur d'état","BAC+5-INGENIEUR-MASTER-DEA-DESS","EMI","EMI","Cadre"]
[717776,"Infrastructure & Production Informatique","Infrastructure","Infra Réseau Télécom","","","TAHIRI IDRISSI","ISMAIL","Administrateur Réseaux & Télécoms","2019-11-15","M","2019-11-15","1988-03-16","","Master","BAC+5-INGENIEUR-MASTER-DEA-DESS","","","CADRE"]
[706229,"Infrastructure & Production Informatique","Infrastructure","Infra Réseau Télécom","  Responsable Domaine Infra Réseau Télécom","","EL HANNIOUI","MOHAMED","Responsable Domaine Infra Réseau Télécom","2003-12-04","M","2003-12-04","1968-10-01","","Master","BAC+5-INGENIEUR-MASTER-DEA-DESS","OFPPT","OFPPT","Cadre"]
[710663,"Infrastructure & Production Informatique","Infrastructure","Infra Réseau Télécom","Infra Réseau Télécom","","LYAMANI","FAICAL","Expert Réseaux & Télécoms","2010-04-30","M","2010-05-17","1986-06-15","","Ingénieur d'application","BAC+4-LICENCE-MAITRISE","ISERT","ISERT","Cadre"]
[707182,"Infrastructure & Production Informatique","Infrastructure","Infra Réseau Télécom","Infra Réseau Télécom","","AMRANI","EL GHALI","Architecte Télécoms Senior","2007-03-01","M","2007-03-01","1984-10-14","","Master","BAC+5-INGENIEUR-MASTER-DEA-DESS","2 IRS","2 IRS","Cadre"]
[715769,"Infrastructure & Production Informatique","Infrastructure","Infra Réseau Télécom","Infra Réseau Télécom","","EL HAMRITI","AMINE","Administrateur Réseaux & Télécoms","2017-04-17","M","2017-04-17","1984-04-01","","Ingénieur","BAC+5-INGENIEUR-MASTER-DEA-DESS","EHEGICC","EHEGICC","Cadre"]
[717780,"Infrastructure & Production Informatique","Infrastructure","Infra Réseau Télécom","Infra Réseau Télécom","","NDIAYE","SIDY BOUYA","Administrateur Réseaux & Télécoms","2019-11-15","M","2019-11-15","1991-08-31","","","BAC+5-INGENIEUR-MASTER-DEA-DESS","","","CADRE"]
[709738,"Infrastructure & Production Informatique","Infrastructure","Infra Réseau Télécom","Infra Réseau Télécom","","LAACHIR","ADIL","Technicien Réseaux & Télécoms","2009-06-15","M","2009-08-03","1975-06-02","","Technicien télecom","BAC+2-DEUG-BTS-DUT","EURELEC","EURELEC","Cadre"]
[717818,"Infrastructure & Production Informatique","Infrastructure","Infra Réseau Télécom","Infra Réseau Télécom","","DIALLO","AMADOU MOCTAR","Administrateur Réseaux & Télécoms","2019-12-02","M","2019-12-02",null,"","","BAC+5-INGENIEUR-MASTER-DEA-DESS","","","CADRE"]
[715806,"Infrastructure & Production Informatique","Infrastructure","Infrastructure Centralisée","Infrastructure Centralisée","","BEKKALI","ZAKARIA","Administrateur Infrastructure Confirmé","2017-05-02","M","2017-05-02","1983-04-11","","Ingénieur d'état","BAC+5-INGENIEUR-MASTER-DEA-DESS","Vincy","Vincy","Cadre"]
[716272,"Infrastructure & Production Informatique","Infrastructure","Infrastructure Centralisée","Infrastructure Centralisée","","DIOUCH","ABDERRAZAK","Administrateur Infrastructure Junior","2017-11-15","M","2017-11-15","1992-04-14","","Ingénieur d'application","BAC+5-INGENIEUR-MASTER-DEA-DESS","ESTEM","ESTEM","Cadre"]
[715819,"Infrastructure & Production Informatique","Infrastructure","Infrastructure Centralisée","Infrastructure Centralisée","","LAKRAFI","YOUSSEF","Expert Infrastructure","2017-05-02","M","2017-05-02","1969-05-01","","Master","BAC+5-INGENIEUR-MASTER-DEA-DESS","Univ de Montpellier","Univ de Montpellier","Cadre"]
[707013,"Infrastructure & Production Informatique","Infrastructure","Infrastructure Centralisée","Infrastructure Centralisée","","EL JALLAB","TARIK","Expert Infrastructure","2006-12-15","M","2006-12-15","1980-08-18","","Maîtrise","BAC+5-INGENIEUR-MASTER-DEA-DESS","Univ. Maroc","Univ. Maroc","Cadre"]
[716418,"Infrastructure & Production Informatique","Infrastructure","Infrastructure Centralisée","Infrastructure Centralisée","","SAMI","YOUNES","Administrateur Infrastructure Confirmé","2018-03-01","M","2018-03-01","1986-09-30","","Ingénieur d'état","BAC+5-INGENIEUR-MASTER-DEA-DESS","INPT","INPT","Cadre"]
[716291,"Infrastructure & Production Informatique","Infrastructure","Infrastructure Centralisée","Infrastructure Centralisée","","LAHOUAICHRI","IMAD","Administrateur Infrastructure Junior","2017-12-04","M","2017-12-04","1989-10-18","","Master","BAC+5-INGENIEUR-MASTER-DEA-DESS","FST","FST","Cadre"]
[715091,"Infrastructure & Production Informatique","Infrastructure","Infrastructure Centralisée","Infrastructure Centralisée","","TOUIJRI","SOUFIANE","Administrateur Infrastructure Sénior","2016-06-01","M","2016-06-01","1984-02-24","","","BAC+5-INGENIEUR-MASTER-DEA-DESS","","","Cadre"]
[716694,"Infrastructure & Production Informatique","Infrastructure & Production Informatique","Cellule de pilotage","Cellule de pilotage","","MOUAK","YOUSSEF","Chargé de pilotage","2018-07-02","M","2018-07-02","1988-06-06","","Ingénieur","BAC+5-INGENIEUR-MASTER-DEA-DESS","HIGH-TECH","HIGH-TECH","Cadre"]
[705790,"Infrastructure & Production Informatique","Mainframe","A Responsable Mainframe","","","EL BACHIRI","ABDENNACER","Responsable Mainframe","2009-01-19","M","2009-03-02","1977-01-01","","Ingénieur d'état","BAC+5-INGENIEUR-MASTER-DEA-DESS","EMI","EMI","Cadre"]
[709009,"Infrastructure & Production Informatique","Mainframe","Intégration Mainframe","A Responsable Intégration Mainframe","","FAYESSAL EL KETTANI","EL ABID","Responsable Intégration de Production des Applications Mainframe","2008-10-30","M","2008-10-30","1962-09-23","","Formation Reseau et Télécom","BAC+5-INGENIEUR-MASTER-DEA-DESS","ISERT","ISERT","Cadre"]
[715386,"Infrastructure & Production Informatique","Mainframe","Intégration Mainframe","Intégration Mainframe","","EL KADDOURI","MOHAMED REDA","Intégrateur de Production des Applications Mainframes","2016-10-03","M","2016-10-03","1985-07-09","","Maîtrise","BAC+5-INGENIEUR-MASTER-DEA-DESS","ISIAG IUP  MIAGE","ISIAG IUP  MIAGE","Cadre"]
[716230,"Infrastructure & Production Informatique","Pilotage & Supervision de la Production PSP","PSI & Gestion des DATACENTERS","PSI & Gestion des DATACENTERS","","ABDENEBAOUI","YASSINE","Gesionnaire PSI","2017-11-01","M","2017-11-01","1982-07-02","","Ingénieur d'application","BAC+4-LICENCE-MAITRISE","EMSI","EMSI","Cadre"]
[707296,"Infrastructure & Production Informatique","Pilotage & Supervision de la Production PSP","PSI & Gestion des DATACENTERS","PSI & Gestion des DATACENTERS","","FAOUZI","MOSTAPHA","Gestionnaire PSI","2007-06-01","M","2007-06-01","1979-04-08","","Maîtrise","BAC+5-INGENIEUR-MASTER-DEA-DESS","Univ. Maroc","Univ. Maroc","Cadre"]
[452348,"Infrastructure & Production Informatique","Services Applicatifs et Intégration (SAI)","","","","LAHROUSSI","FATIHA","CH. DE QUALIF.ET EXPLOIT. FLUX MONETIQUE","2005-06-01","F","2019-02-21","1969-11-27","","Technicien spécialisé","BAC+2-DEUG-BTS-DUT","","","CADRE"]
[714629,"Infrastructure & Production Informatique","Services Applicatifs et Intégration (SAI)","","","","BEN KHADAJ","BRAHIM","Technical Account Manager","2016-09-15","M","2019-02-21","1977-07-01","","Ingénieur d'état","BAC+5-INGENIEUR-MASTER-DEA-DESS","","","CADRE"]
[453123,"Infrastructure & Production Informatique","Services Applicatifs et Intégration (SAI)","","","","BOUALAM","CHAKIB","CH. SECURITE DEVELOP.ET PERFORM.MONETIQ.","2005-06-01","M","2019-02-21","1977-06-08","","Technicien spécialisé","BAC+2-DEUG-BTS-DUT","","","CADRE"]
[714833,"Infrastructure & Production Informatique","Services Applicatifs et Intégration (SAI)","A Responsable Services Applicatifs et Intégration (SAI)","","","OBBAD EP BAKI","NEZHA","Responsable Services Applicatifs et Intégration (SAI)","2016-01-15","F","2016-01-15","1972-06-04","","Ingénieur","BAC+5-INGENIEUR-MASTER-DEA-DESS","ENI BREST","ENI BREST","Cadre"]
[716407,"Infrastructure & Production Informatique","Services Applicatifs et Intégration (SAI)","Administration et expertises","Administration et expertises","A Responsable Administration et expertises","LAZAR","NABIL","Responsable Administration et expertises","2018-02-05","M","2018-02-05","1983-06-15","31/01/2020","","BAC+5-INGENIEUR-MASTER-DEA-DESS","","","Cadre"]
[401701,"Infrastructure & Production Informatique","Services Applicatifs et Intégration (SAI)","Administration et expertises","Administration technique","A Team Leader Administration technique","EL GOUR","AZEDDINE","Team Leader Administration technique","1999-04-12","M","1999-04-12","1975-02-25","","Ingénieur d'application","BAC+4-LICENCE-MAITRISE","ESTEM","ESTEM","Cadre"]
[716749,"Infrastructure & Production Informatique","Services Applicatifs et Intégration (SAI)","Administration et expertises","Administration technique","Administration Technique","ROUESSI","MOHAMED HAMZA","Administrateur Technique","2018-07-16","M","2018-07-16","1987-03-30","","Master","BAC+5-INGENIEUR-MASTER-DEA-DESS","FST","FST","Cadre"]
[709572,"Infrastructure & Production Informatique","Services Applicatifs et Intégration (SAI)","Administration et expertises","Administration Technique","Administration Technique","ELGOUMIRI","LOUBNA","Administrateur Technique","2009-04-20","F","2009-06-01","1983-02-08","","Ingénieur d'application","BAC+4-LICENCE-MAITRISE","EMSI","EMSI","Cadre"]
[707921,"Infrastructure & Production Informatique","Services Applicatifs et Intégration (SAI)","Administration et expertises","Administration Technique","Administration Technique","CHANTIT","REDA","Administrateur Technique","2007-12-01","M","2007-12-01","1981-03-27","","BAC+4","BAC+4-LICENCE-MAITRISE","IGA","IGA","Cadre"]
[400367,"Infrastructure & Production Informatique","Services Applicatifs et Intégration (SAI)","Administration et expertises","Expertises Middleware / WEB / BD","Expertises Middleware / WEB / BD","BENRICHE","KHALID","Expert DBA","1993-01-01","M","1993-01-01","1968-01-09","","Secondaire","NS","Lycée","Lycée","Cadre"]
[710197,"Infrastructure & Production Informatique","Services Applicatifs et Intégration (SAI)","Administration et expertises","Gestion Poste de travail","A Team Leader Gestion Poste de travail","MOUSTIPHI","YASSINE","Team Leader Gestion Poste de travail","2019-07-01","M","2019-07-01","1988-08-18","","Technicien","BAC+2-DEUG-BTS-DUT","ISTA","ISTA","Cadre"]
[712070,"Infrastructure & Production Informatique","Services Applicatifs et Intégration (SAI)","Administration et expertises","Gestion Poste de travail","Gestion Poste de travail","CHAHID","AMINE","Gestionnaire Poste de travail","2012-02-01","M","2012-02-01","1987-08-03","","Licence professionnelle en Conception et développement Architecture Système","BAC+3-DIPLOME CYCLE NORMAL+LICENCE","ENEM","ENEM","Non Cadre"]
[710699,"Infrastructure & Production Informatique","Services Applicatifs et Intégration (SAI)","Administration et expertises","Pôle de Compétence Opérationnelle PCO","A Team Leader PCO Pôle de Compétence Opérationnelle","FAHMANI","MOHAMED EL MAHDI","Team Leader PCO","2010-05-25","M","2010-06-15","1983-09-20","","Master 2","BAC+5-INGENIEUR-MASTER-DEA-DESS","Univ CLAUDE BERNARD Lyon","Univ CLAUDE BERNARD Lyon","Cadre"]
[713558,"Infrastructure & Production Informatique","Services Applicatifs et Intégration (SAI)","Administration et expertises","Pôle de Compétence Opérationnelle PCO","Pôle de Compétence Opérationnelle PCO","ADLIL","ABDERRAHMANE","Administrateur de Production","2014-02-17","M","2014-02-17","1990-03-24","","Licence Professionnelle + Master","BAC+5-INGENIEUR-MASTER-DEA-DESS","FST","FST","Non Cadre"]
[402600,"Infrastructure & Production Informatique","Services Applicatifs et Intégration (SAI)","Administration et expertises","Pôle de Compétence Opérationnelle PCO","Pôle de Compétence Opérationnelle PCO","BENTAIEB","EL MEHDI","Administrateur de Production","2002-10-10","M","2002-10-10","1978-04-16","","Ingénieur d'application","BAC+4-LICENCE-MAITRISE","ESTEM","ESTEM","Cadre"]
[710700,"Infrastructure & Production Informatique","Services Applicatifs et Intégration (SAI)","Administration et expertises","Pôle de Compétence Opérationnelle PCO","Pôle de Compétence Opérationnelle PCO","AJAFAR","ZOUHEIR","Administrateur de Production","2010-05-25","M","2010-06-15","1980-01-05","","BAC+4","BAC+4-LICENCE-MAITRISE","IGA","IGA","Cadre"]
[714924,"Infrastructure & Production Informatique","Services Applicatifs et Intégration (SAI)","Administration et expertises","Pôle de Compétence Opérationnelle PCO","Pôle de Compétence Opérationnelle PCO","HINNI","OUSSAMA","Administrateur de Production","2016-03-15","m","2016-03-15","1991-05-25","","Licence Professionnelle  + Master","BAC+5-INGENIEUR-MASTER-DEA-DESS","FST","FST","Non Cadre"]
[717133,"Infrastructure & Production Informatique","Services Applicatifs et Intégration (SAI)","Industrialisation des processus"," Responsable Industrialisation des processus","","EL GHAOUAT","MOHAMED"," Responsable Industrialisation des processus","2019-01-02","M","2019-01-02","1975-05-04","","Master","BAC+5-INGENIEUR-MASTER-DEA-DESS","ETS MONTREAL","ETS MONTREAL","CADRE"]
[716920,"Infrastructure & Production Informatique","Services Applicatifs et Intégration (SAI)","Industrialisation des processus","Industrialisation des processus","","GAKOU","FALLOU","Chargé d'industrialisation des processus","2018-10-15","M","2018-10-15","1992-09-10","","Ingénieur d'état","BAC+5-INGENIEUR-MASTER-DEA-DESS","Academie Internationale MED VI","Academie Internationale MED VI","CADRE"]
[709024,"Infrastructure & Production Informatique","Services Applicatifs et Intégration (SAI)","Intégration de Production des Applications BDI","A Responsable Intégration de Production des Applications BDI","","KABDI","SOUHAIL","Responsable Intégration de Production des Applications BDI","2008-11-17","M","2008-11-17","1975-07-28","","Ingénieur d'étude et développement","BAC+5-INGENIEUR-MASTER-DEA-DESS","ESG","ESG","Cadre"]
[717630,"Infrastructure & Production Informatique","Services Applicatifs et Intégration (SAI)","Intégration de Production des Applications BDI","Intégration de Production des Applications BDI","","ELMAAZOUZ","KAMAL","Technical Account Manager","2019-08-15","M","2019-08-15","1982-03-22","02/01/2020","Ingénieur d'état","BAC+5-INGENIEUR-MASTER-DEA-DESS","EMI","EMI","CADRE"]
[717807,"Infrastructure & Production Informatique","Services Applicatifs et Intégration (SAI)","Intégration de Production des Applications BDI","Intégration de Production des Applications BDI","","COLY","NICOLAS CHISTIAN","Technical Account Manager","2019-12-02","M","2019-12-02",null,"","","BAC+5-INGENIEUR-MASTER-DEA-DESS","","","CADRE"]
[402495,"Infrastructure & Production Informatique","Services Applicatifs et Intégration (SAI)","Intégration de production des applications de la banque","A Responsable Intégration de production des applications de la banque","","AZIZ","KENZA","Responsable intégration de production des applications de la banque","2002-04-15","F","2002-04-15","1982-04-21","","Diplôme cycle normal","BAC+3-DIPLOME CYCLE NORMAL+LICENCE","EMSI","EMSI","Cadre"]
[710348,"Infrastructure & Production Informatique","Services Applicatifs et Intégration (SAI)","Intégration de production des applications de la banque","Flux et d'ordonnancement","A Responsable Flux & ordonnancement","AMRAOUI","LAHCEN","Team Leader Flux et d'ordonnancement","2009-11-09","M","2010-02-01","1981-12-17","","Ingénieur d'état","BAC+5-INGENIEUR-MASTER-DEA-DESS","ENSIAS","ENSIAS","Cadre"]
[717419,"Infrastructure & Production Informatique","Services Applicatifs et Intégration (SAI)","Intégration de production des applications de la banque","Flux et d'ordonnancement","Flux et d'ordonnancement","TOUIL","RABII","Intégrateur des flux","2019-05-07","F","2019-05-07","1992-08-28","","Ingénieur d'application","BAC+5-INGENIEUR-MASTER-DEA-DESS","ESTEM","ESTEM","CADRE"]
[714113,"Infrastructure & Production Informatique","Services Applicatifs et Intégration (SAI)","Intégration de production des applications de la banque","Flux et d'ordonnancement","Flux et d'ordonnancement","EL JABLI","ABDELILLAH","Intégrateur des flux","2015-01-02","M","2015-01-02","1988-01-14","","Licence Professionnelle + Master","BAC+3-DIPLOME CYCLE NORMAL+LICENCE","","","Non Cadre"]
[716313,"Infrastructure & Production Informatique","Services Applicatifs et Intégration (SAI)","Intégration de production des applications de la banque","Flux et d'ordonnancement","Flux et d'ordonnancement","OUSSALM","SAMIA","Intégrateur des flux","2018-12-01","F","2019-02-21","1995-06-13","","Technicien spécialisé","BAC+2-DEUG-BTS-DUT","ISTA","ISTA","NON CADRE"]
[715104,"Infrastructure & Production Informatique","Services Applicatifs et Intégration (SAI)","Intégration de production des applications de la banque","Flux et d'ordonnancement","Flux et d'ordonnancement","LACHGAR","YASSINE","Intégrateur des flux","2016-06-01","M","2016-06-01","1993-08-30","","Licence Professionnelle","BAC+3-DIPLOME CYCLE NORMAL+LICENCE","EST","EST","Non Cadre"]
[716601,"Infrastructure & Production Informatique","Services Applicatifs et Intégration (SAI)","Intégration de production des applications de la banque","IPAB BTG BC & F, SFS","IPAB BTG BC & F, SFS","FERAA","ISMAIL","Intégrateur de Production des Applications","2018-06-01","M","2018-06-01","1987-10-30","","Master","BAC+5-INGENIEUR-MASTER-DEA-DESS","Univ Bretagne Occidental / ESTEM","Univ Bretagne Occidental / ESTEM","Cadre"]
[709639,"Infrastructure & Production Informatique","Services Applicatifs et Intégration (SAI)","Intégration de production des applications de la banque","IPAB BTG BC & F, SFS","IPAB BTG BC & F, SFS","EL JAOUHARI","GHALIA","Intégrateur de Production des Applications","2009-06-10","F","2009-06-23","1988-04-11","","DUT","BAC+2-DEUG-BTS-DUT","ESTC","ESTC","Non Cadre"]
[714230,"Infrastructure & Production Informatique","Services Applicatifs et Intégration (SAI)","Intégration de production des applications de la banque","IPAB OTD Monétique","A Responsable IPAB OTD Monétique","DILALI","MAROUANE","Technical Account Manager","2015-04-01","M","2015-04-01","1988-11-04","","Ingénieur d'application","BAC+4-LICENCE-MAITRISE","HIGH TECH","HIGH TECH","Cadre"]
[714179,"Infrastructure & Production Informatique","Services Applicatifs et Intégration (SAI)","Intégration de production des applications de la banque","IPAB OTD Monétique","IPAB OTD Monétique","KHATTABI","MOHAMED","Intégrateur de Production des Applications","2015-03-04","M","2015-03-04","1989-06-26","","Ingénieur d'application","BAC+4-LICENCE-MAITRISE","EMSI","EMSI","Cadre"]
[716406,"Infrastructure & Production Informatique","Services Applicatifs et Intégration (SAI)","Intégration de production des applications de la banque","IPAB OTD Monétique","IPAB OTD Monétique","LARHZIL","AALI","Intégrateur de Production des Applications","2018-02-01","M","2018-02-01","1994-06-06","","Ingénieur d'état","BAC+5-INGENIEUR-MASTER-DEA-DESS","EMI","EMI","Cadre"]
[709910,"Infrastructure & Production Informatique","Services Applicatifs et Intégration (SAI)","Intégration de production des applications de la banque","IPAB Pilotage M.Généraux Risques Compliance","A Responsable IPAB IPAB Pilotage M.Généraux Risques Compliance","BENABDELLAH","YOUSSEF","Technical Account Manager","2009-04-20","M","2009-09-01","1980-10-23","","Master en informatique","BAC+5-INGENIEUR-MASTER-DEA-DESS","Henri Poincaré Nancy France","Henri Poincaré Nancy France","Cadre"]
[716831,"Infrastructure & Production Informatique","Services Applicatifs et Intégration (SAI)","Intégration de production des applications de la banque","IPAB Pilotage M.Généraux Risques Compliance","IPAB Pilotage M.Généraux Risques Compliance","EL AOUNI","MAHFOUD","Intégrateur de Production des Applications","2018-09-03","M","2018-09-03","1991-09-01","","Ingénieur d'état","BAC+5-INGENIEUR-MASTER-DEA-DESS","AIAC","AIAC","CADRE"]
[704285,"IT AFRICA"," IT AFRICA","a Responsable IT AFRICA","","","BENABDELJALIL","MOHAMED","Responsable IT AFRICA","1991-12-03","M","1991-12-03","1966-02-07","","Maîtrise","BAC+4-LICENCE-MAITRISE","Univ. France","Univ. France","Cadre"]
[401585,"IT AFRICA","Centre de service et de supports","A Responsable Centre de service et de supports","","","EL BOUZID","MUSTAPHA","Responsable de Pôle","1988-01-01","M","1988-01-01","1962-02-21","02/02/2020","Master of business ADM","BAC+5-INGENIEUR-MASTER-DEA-DESS","Univ. Canada","Univ. Canada","Cadre"]
[400414,"IT AFRICA","Centre de service et de supports","Centre de service et de supports","","","DOSS BENNANI","JAMAL","Responsable Domaine Fonctionnel","1990-02-01","M","1990-02-01","1961-04-22","","DEUG","BAC+2-DEUG-BTS-DUT","Univ. Maroc","Univ. Maroc","Cadre"]
[716793,"IT AFRICA","Centre de service et de supports","Centre de service et de supports","","","FAHLI","YOUSSEF","Chargé d'étude et développement Senior","2018-08-15","M","2018-08-15","1984-01-26","","Master","BAC+5-INGENIEUR-MASTER-DEA-DESS","FST","FST","Cadre"]
[712822,"IT AFRICA","Centre de service et de supports","Centre de service et de supports","","","TIOUDKI","KHALID","Chargé d'étude et développement junior","2014-03-01","M","2019-02-11","1988-08-23","","Master","BAC+5-INGENIEUR-MASTER-DEA-DESS","","","NON CADRE"]
[715770,"IT AFRICA","Centre de service et de supports","Centre de service et de supports","","","LIMAMI","YASSER","Chargé d'étude et développement Senior","2017-04-17","M","2017-04-17","1987-07-13","","Master pro 2 miage","BAC+5-INGENIEUR-MASTER-DEA-DESS","FST","FST","Cadre"]
[708078,"IT AFRICA","Centre de service et de supports","Centre de service et de supports","","","EL AICHI","MOULAY RACHID","Chargé d'étude et développement Senior","2008-10-15","M","2008-10-15","1977-12-03","","Diplôme d'ingénieur en informatique","BAC+5-INGENIEUR-MASTER-DEA-DESS","ENSIEG INPG GRENOBLE","ENSIEG INPG GRENOBLE","Cadre"]
[711742,"IT AFRICA","Centre de service et de supports","Centre de service et de supports","","","BERRADI","KHADIJA","Chargé d'étude et développement Junior","2011-09-27","F","2011-10-03","1990-04-16","","Technicien spécialisé","BAC+2-DEUG-BTS-DUT","NTIC2","NTIC2","Non Cadre"]
[715847,"IT AFRICA","Centre de service et de supports","Centre de service et de supports","","","DRIHANY","KHADIJA","Coordinateur Etudes & Developpements","2017-05-15","F","2017-05-02","1986-04-12","","Ingénieur d'état","BAC+5-INGENIEUR-MASTER-DEA-DESS","ISITV Toulan","ISITV Toulan","Cadre"]
[716431,"IT AFRICA","Centre de service et de supports","Centre de service et de supports","","","DADI","MERIEM","Coordinateur Etudes & Developpements","2018-03-15","F","2018-03-15","1984-10-27","","Master","BAC+5-INGENIEUR-MASTER-DEA-DESS","EMSI / EHTP","EMSI / EHTP","Cadre"]
[712027,"IT AFRICA","Centre de service et de supports","Centre de service et de supports","","AFFECTE 30/10/18","JALLOULY","AYOUB","Chargé d'étude et développement Junior","2012-01-17","M","2012-01-17","1988-03-03","","Technicien","BAC+2-DEUG-BTS-DUT","ISTA","ISTA","Non Cadre"]
[704188,"Production Informatique","Pilotage & Supervision de la Production PSP","Pilotage de l'Exploitation, Optimisation des traitements et pilotage des flux","A Responsable Pilotage de l'Exploitation, Optimisation des traitements et pilotage des flux","","MARZOUKI","YOUSSEF","Responsable Pilotage de l'exploitation, optimisation des traitements et Pilotage des flux","1991-04-22","M","1991-04-22","1965-10-10","","ITB","ITB","Centre de Formation Profes. & Banc.","Centre de Formation Profes. & Banc.","Cadre"]
[37697,"Production Informatique","Pilotage & Supervision de la Production PSP","Pilotage de l'Exploitation, Optimisation des traitements et pilotage des flux","Pilotage de l'Exploitation, Optimisation des traitements et pilotage des flux","","FENTAOUI","ABDERRAHIM","Gestionnaire de flux","1981-09-01","M","1981-09-01","1960-06-01","30/06/2020","Secondaire","NS","Lycée","Lycée","Cadre"]
[400686,"Production Informatique","Pilotage & Supervision de la Production PSP","Pilotage de l'Exploitation, Optimisation des traitements et pilotage des flux","Pilotage de l'Exploitation, Optimisation des traitements et pilotage des flux","","FAJRINE","OMAR","Gestionnaire de flux","1989-05-02","M","1989-05-02","1961-10-28","","Niveau BAC + 2","NIVEAU BAC","","","Cadre"]
[707591,"Production Informatique","Pilotage & Supervision de la Production PSP","Pilotage de l'Exploitation, Optimisation des traitements et pilotage des flux","Pilotage de l'Exploitation, Optimisation des traitements et pilotage des flux","","BENIHYA","MOHAMED AMINE","Gestionnaire de flux","2007-12-24","M","2007-12-24","1981-12-17","","BAC+4","BAC+4-LICENCE-MAITRISE","IGA","IGA","Cadre"]
[711992,"Production Informatique","Pilotage & Supervision de la Production PSP","Pilotage de l'Exploitation, Optimisation des traitements et pilotage des flux","Pilotage de l'Exploitation, Optimisation des traitements et pilotage des flux","Pilotage Exploitation","MOUSSAFIR","ABDESSAMAD","Opérateur d'Exploitation","2012-01-16","M","2012-01-16","1991-01-09","31/12/2019","DTS","BAC+2-DEUG-BTS-DUT","CFMOTI","CFMOTI","Non Cadre"]
[713692,"Production Informatique","Pilotage & Supervision de la Production PSP","Pilotage de l'Exploitation, Optimisation des traitements et pilotage des flux","Pilotage de l'Exploitation, Optimisation des traitements et pilotage des flux","Pilotage Exploitation","FADLEDDINE","HAMZA","Opérateur d'Exploitation","2014-06-02","M","2014-06-02","1991-02-17","","Licence Professionnelle","BAC+3-DIPLOME CYCLE NORMAL+LICENCE","FST","FST","Non Cadre"]
[713029,"Production Informatique","Pilotage & Supervision de la Production PSP","Pilotage de l'Exploitation, Optimisation des traitements et pilotage des flux","Pilotage de l'Exploitation, Optimisation des traitements et pilotage des flux","Pilotage Exploitation","ABGUAOU","RACHID","Opérateur d'exploitation","2013-06-03","M","2013-06-03","1987-04-18","","Technicien spécialisé","BAC+2-DEUG-BTS-DUT","ISTA","ISTA","Non Cadre"]
[717751,"Production Informatique","Pilotage & Supervision de la Production PSP","Pilotage de l'Exploitation, Optimisation des traitements et pilotage des flux","Pilotage de l'Exploitation, Optimisation des traitements et pilotage des flux","Pilotage Exploitation","SILOUH","MOHAMED","Opérateur d'Exploitation","2019-11-01","M","2019-11-01","1995-01-05","","Licence","BAC+3-DIPLOME CYCLE NORMAL+LICENCE","FST","FST","NON CADRE"]
[716320,"Production Informatique","Pilotage & Supervision de la Production PSP","Pilotage de l'Exploitation, Optimisation des traitements et pilotage des flux","Pilotage de l'Exploitation, Optimisation des traitements et pilotage des flux","Pilotage Exploitation","MOUATIK","ZAKARIA","Opérateur d'Exploitation","2017-12-15","M","2017-12-15","1992-06-09","","Licence Professionnelle","BAC+3-DIPLOME CYCLE NORMAL+LICENCE","FS AIN CHOCK","FS AIN CHOCK","Non Cadre"]
[717781,"Production Informatique","Pilotage & Supervision de la Production PSP","Pilotage de l'Exploitation, Optimisation des traitements et pilotage des flux","Pilotage de l'Exploitation, Optimisation des traitements et pilotage des flux","Pilotage Exploitation","JAWAL","REDA","Opérateur d'Exploitation","2019-11-15","M","2019-11-15","1991-03-27","","","BAC+2-DEUG-BTS-DUT","","","NON CADRE"]
[713280,"Production Informatique","Pilotage & Supervision de la Production PSP","Pilotage de l'Exploitation, Optimisation des traitements et pilotage des flux","Pilotage de l'Exploitation, Optimisation des traitements et pilotage des flux","Pilotage Exploitation","HARNOUFI","ZINE ABIDINE","Opérateur d'Exploitation","2013-10-28","M","2013-10-28","1990-08-25","","Technicien spécialisé","BAC+2-DEUG-BTS-DUT","ISTA","ISTA","Non Cadre"]
[717769,"Production Informatique","Pilotage & Supervision de la Production PSP","Pilotage de l'Exploitation, Optimisation des traitements et pilotage des flux","Pilotage de l'Exploitation, Optimisation des traitements et pilotage des flux","Pilotage Exploitation","MORJANI","ANAS","Opérateur d'Exploitation","2019-11-15","M","2019-11-05","1997-07-26","","Licence Professionnelle","BAC+3-DIPLOME CYCLE NORMAL+LICENCE","","","NON CADRE"]
[716611,"Production Informatique","Pilotage & Supervision de la Production PSP","Pilotage de l'Exploitation, Optimisation des traitements et pilotage des flux","Pilotage de l'Exploitation, Optimisation des traitements et pilotage des flux","Pilotage Exploitation","FATHALLAH","REDA","Opérateur d'Exploitation","2018-06-01","M","2018-06-01","1997-07-25","","Licence Professionnelle","BAC+3-DIPLOME CYCLE NORMAL+LICENCE","FST","FST","Non Cadre"]
[714983,"Production Informatique","Pilotage & Supervision de la Production PSP","Pilotage de l'Exploitation, Optimisation des traitements et pilotage des flux","Pilotage de l'Exploitation, Optimisation des traitements et pilotage des flux","Pilotage Exploitation","JANAH","ABDERRAZAK","Opérateur d'Exploitation","2016-01-04","M","2016-04-01","1992-11-17","","Licence Professionnelle","BAC+3-DIPLOME CYCLE NORMAL+LICENCE","FST","FST","Non Cadre"]
[707256,"Production Informatique","Pilotage & Supervision de la Production PSP","Pilotage de l'Exploitation, Optimisation des traitements et pilotage des flux","Pilotage de l'Exploitation, Optimisation des traitements et pilotage des flux","Pilotage Exploitation","EL MOUAFFEQ","MOHAMED","Responsable de Shift","2007-05-02","M","2007-05-02","1982-09-11","","DTS","BAC+2-DEUG-BTS-DUT","IGA","IGA","Non Cadre"]
[717444,"Production Informatique","Pilotage & Supervision de la Production PSP","Pilotage de l'Exploitation, Optimisation des traitements et pilotage des flux","Pilotage de l'Exploitation, Optimisation des traitements et pilotage des flux","Pilotage Exploitation","BAISSI","SOUFIANE","Opérateur d'Exploitation","2019-06-03","M","2019-06-03","1995-07-30","","Licence Professionnelle","BAC+3-DIPLOME CYCLE NORMAL+LICENCE","","","NON CADRE"]
[37881,"Production Informatique","Pilotage & Supervision de la Production PSP","Pilotage de l'Exploitation, Optimisation des traitements et pilotage des flux","Pilotage de l'Exploitation, Optimisation des traitements et pilotage des flux","Pilotage Exploitation","NOUARI","ABDELAZIZ","Opérateur d'Exploitation","1985-09-16","M","1985-09-16","1966-06-17","","Secondaire","NS","Lycée","Lycée","Cadre"]
[770144,"Production Informatique","Pilotage & Supervision de la Production PSP","Pilotage de l'Exploitation, Optimisation des traitements et pilotage des flux","Pilotage de l'Exploitation, Optimisation des traitements et pilotage des flux","Pilotage Exploitation","EL COURT","SAID","Gestionnaire d'exploitation","1998-02-01","M","1998-02-01","1967-06-30","","Secondaire","NS","Lycée","Lycée","Non Cadre"]
[707128,"Production Informatique","Pilotage & Supervision de la Production PSP","Pilotage de l'Exploitation, Optimisation des traitements et pilotage des flux","Pilotage de l'Exploitation, Optimisation des traitements et pilotage des flux","Pilotage Exploitation","TALIB","MOHAMED","Responsable de Shift","2007-02-15","M","2007-02-15","1972-05-22","","BAC+2","BAC+2-DEUG-BTS-DUT","","","Cadre"]
[707063,"Production Informatique","Pilotage & Supervision de la Production PSP","Pilotage de l'Exploitation, Optimisation des traitements et pilotage des flux","Pilotage de l'Exploitation, Optimisation des traitements et pilotage des flux","Pilotage Exploitation","AIT AROUSS","HAFID","Responsable de Shift","2007-01-15","M","2007-01-15","1975-06-26","","Licence","BAC+4-LICENCE-MAITRISE","Univ. Maroc","Univ. Maroc","Cadre"]
[716390,"Production Informatique","Pilotage & Supervision de la Production PSP","Pilotage de l'Exploitation, Optimisation des traitements et pilotage des flux","Pilotage de l'Exploitation, Optimisation des traitements et pilotage des flux","Pilotage Exploitation","RHANBOURI","WALID","Opérateur d'Exploitation","2018-01-15","M","2018-01-15","1994-06-22","","Licence","BAC+3-DIPLOME CYCLE NORMAL+LICENCE","FST Marrakech","FST Marrakech","Non Cadre"]
[707049,"Production Informatique","Pilotage & Supervision de la Production PSP","Pilotage de l'Exploitation, Optimisation des traitements et pilotage des flux","Pilotage de l'Exploitation, Optimisation des traitements et pilotage des flux","Pilotage Exploitation","KHAZZAR","MUSTAPHA","Opérateur d'Exploitation","2007-01-02","M","2007-01-02","1972-01-07","","Licence","BAC+4-LICENCE-MAITRISE","Univ. Maroc","Univ. Maroc","Cadre"]
[704537,"Production Informatique","Pilotage & Supervision de la Production PSP","Pilotage de l'Exploitation, Optimisation des traitements et pilotage des flux","Pilotage de l'Exploitation, Optimisation des traitements et pilotage des flux","Pilotage Exploitation","DARDARY","MOUNSIF","Gestionnaire d'exploitation","1988-04-01","M","1988-04-01","1960-12-18","31/12/2020","DEUG","BAC+2-DEUG-BTS-DUT","Univ. Maroc","Univ. Maroc","Cadre"]
[713162,"Production Informatique","Pilotage & Supervision de la Production PSP","Pilotage de l'Exploitation, Optimisation des traitements et pilotage des flux","Pilotage de l'Exploitation, Optimisation des traitements et pilotage des flux","Pilotage Exploitation","HAKIM","ZAKARIA","Opérateur d'Exploitation","2013-09-09","M","2013-09-10","1989-12-16","","Licence Professionnelle","BAC+3-DIPLOME CYCLE NORMAL+LICENCE","F BEN MSIK","F BEN MSIK","Non Cadre"]
[716528,"Production Informatique","Pilotage & Supervision de la Production PSP","Pilotage de l'Exploitation, Optimisation des traitements et pilotage des flux","Pilotage de l'Exploitation, Optimisation des traitements et pilotage des flux","Pilotage Exploitation","LASRY","ACHRAF","Opérateur d'Exploitation","2018-05-02","M","2018-05-02","1997-08-27","","Technicien spécialisé","BAC+2-DEUG-BTS-DUT","ISTA","ISTA","Non Cadre"]
[709327,"Production Informatique","Pilotage & Supervision de la Production PSP","Pilotage de l'Exploitation, Optimisation des traitements et pilotage des flux","Pilotage de l'Exploitation, Optimisation des traitements et pilotage des flux","Pilotage Exploitation","BERRISSOUL","ISMAIL","Responsable de Shift","2009-02-20","M","2009-03-02","1984-10-12","","Diplôme réseaux télécoms","BAC+4-LICENCE-MAITRISE","EDHEC","EDHEC","Cadre"]
[703662,"Production Informatique","Pilotage & Supervision de la Production PSP","Pilotage de l'Exploitation, Optimisation des traitements et pilotage des flux","Pilotage de l'Exploitation, Optimisation des traitements et pilotage des flux","Pilotage Exploitation","EL GUASSEM","HAMID","Gestionnaire d'exploitation","1986-02-17","M","1986-02-17","1961-01-01","","BAC","BAC","Lycée","Lycée","Cadre"]
[716950,"Production Informatique","Pilotage & Supervision de la Production PSP","Pilotage de l'Exploitation, Optimisation des traitements et pilotage des flux","Pilotage de l'Exploitation, Optimisation des traitements et pilotage des flux","Pilotage Exploitation","BOUZROUR","MEHDI","Opérateur d'Exploitation","2018-11-01","M","2018-11-01","1996-09-28","","Licence Professionnelle","BAC+3-DIPLOME CYCLE NORMAL+LICENCE","FST Mohammedia","FST Mohammedia","NON CADRE"]
[707590,"Production Informatique","Pilotage & Supervision de la Production PSP","Pilotage de l'Exploitation, Optimisation des traitements et pilotage des flux","Pilotage de l'Exploitation, Optimisation des traitements et pilotage des flux","Responsable Pilotage Exploitation","HAMI","ABDELILAH","Responsable Pilotage Exploitation","2007-12-24","M","2007-12-24","1974-07-23","","Ingénieur d'application","BAC+4-LICENCE-MAITRISE","EMSI","EMSI","Cadre"]
[15406,"Production Informatique","Pilotage & Supervision de la Production PSP","Supervision"," A Responsable Supervision","","ABOUMEJD","ABDESSAMAD","Responsable Supervision","1985-01-07","M","1985-01-07","1963-01-21","","BAC","BAC","Lycée","Lycée","Cadre"]
[716885,"Production Informatique","Pilotage & Supervision de la Production PSP","Supervision","Supervision","","LEHOUIZI","ABDELKARIM","Superviseur","2018-10-15","M","2018-10-15","1997-04-02","","Licence Professionnelle","BAC+3-DIPLOME CYCLE NORMAL+LICENCE","FST","FST","NON CADRE"]
[717747,"Production Informatique","Pilotage & Supervision de la Production PSP","Supervision","Supervision","","GANDAOUI","ABDERRAMAN","Superviseur","2019-11-01","M","2019-11-01","1996-10-09","","Licence","BAC+3-DIPLOME CYCLE NORMAL+LICENCE","IPI","IPI","NON CADRE"]
[716256,"Production Informatique","Pilotage & Supervision de la Production PSP","Supervision","Supervision","","AYOUR","HAMZA","Superviseur","2017-11-01","M","2017-11-01","1993-04-13","23/01/2020","","BAC+2-DEUG-BTS-DUT","","","Non Cadre"]
[716883,"Production Informatique","Pilotage & Supervision de la Production PSP","Supervision","Supervision","","DAOUJI","YASSINE","Superviseur","2018-10-15","M","2018-10-15","1996-11-16","","Technicien spécialisé","BAC+2-DEUG-BTS-DUT","ISTA HH1","ISTA HH1","NON CADRE"]
[716838,"Production Informatique","Pilotage & Supervision de la Production PSP","Supervision","Supervision","","MEZIANE","AYOUB","Superviseur","2018-09-03","M","2018-09-03","1995-06-23","","","BAC+3-DIPLOME CYCLE NORMAL+LICENCE","","","Non Cadre"]
[717684,"Production Informatique","Pilotage & Supervision de la Production PSP","Supervision","Supervision","","NAFHI","YASSINE","Superviseur","2019-09-16","M","2019-09-16","1997-11-25","","Licence Professionnelle","BAC+3-DIPLOME CYCLE NORMAL+LICENCE","FST","FST","NON CADRE"]
[716393,"Production Informatique","Pilotage & Supervision de la Production PSP","Supervision","Supervision","","BAHYA","ILYASS","Superviseur","2018-02-01","M","2018-02-01","1995-10-14","","Technicien spécialisé","BAC+2-DEUG-BTS-DUT","NTIC2","NTIC2","Non Cadre"]
[715880,"Production Informatique","Pilotage & Supervision de la Production PSP","Supervision","Supervision","","BOUKHOU","MOHAMED","Superviseur","2017-06-01","M","2017-06-01","1992-04-13","","Licence Professionnelle","BAC+3-DIPLOME CYCLE NORMAL+LICENCE","FST","FST","Non Cadre"]
[714854,"Production Informatique","Pilotage & Supervision de la Production PSP","Supervision","Supervision","","WAHOUB","ZAKARIA","Superviseur","2016-01-08","M","2016-01-08","1990-11-09","","Licence Professionnelle","BAC+3-DIPLOME CYCLE NORMAL+LICENCE","FST","FST","Non Cadre"]
[716776,"Production Informatique","Pilotage & Supervision de la Production PSP","Supervision","Supervision","","LABYAD","YOUSSEF","Superviseur","2018-08-01","M","2018-08-01","1991-07-28","","Licence Professionnelle","BAC+3-DIPLOME CYCLE NORMAL+LICENCE","FST","FST","NON CADRE"]
[716855,"Production Informatique","Pilotage & Supervision de la Production PSP","Supervision","Supervision","","MANKARI","AYMEN","Superviseur","2018-09-17","M","2018-09-17","1996-12-28","","Licence Professionnelle","BAC+5-INGENIEUR-MASTER-DEA-DESS","FST","FST","NON CADRE"]
[714866,"Production Informatique","Pilotage & Supervision de la Production PSP","Supervision","Supervision","","MOUNIS","ABDERRAHMANE","Superviseur","2016-01-08","M","2016-01-08","1993-07-03","","Technicien spécialisé + Licence prof","BAC+3-DIPLOME CYCLE NORMAL+LICENCE","ISTA MARRAKECH","ISTA MARRAKECH","Non Cadre"]
[716392,"Production Informatique","Pilotage & Supervision de la Production PSP","Supervision","Supervision","","GHANDI","AYOUB","Superviseur","2018-02-01","M","2018-02-01","1993-01-19","","Licence Professionnelle","BAC+3-DIPLOME CYCLE NORMAL+LICENCE","EST","EST","Non Cadre"]
[401778,"Production Informatique","Pilotage & Supervision de la Production PSP","Supervision","Supervision","","TAHRAOUI","NOUREDDINE","Superviseur","1990-06-11","M","1990-06-11","1961-09-09","","DUT","BAC+2-DEUG-BTS-DUT","","","Cadre"]
[28721,"Production Informatique","Support & Services aux utilisateurs ( SSU)","Assistance en ligne & Support Régions Déploiements, Coordination & Gestion des Prestataires","Assistance en ligne","A Responsable  Assistance en ligne","RAHMOUNI","ABDELLATIF","Responsable Assistance en ligne","1998-12-29","M","1998-12-29","1975-06-01","","DEUG","BAC+2-DEUG-BTS-DUT","Univ. Maroc","Univ. Maroc","Cadre"]
[716385,"Production Informatique","Support & Services aux utilisateurs ( SSU)","Assistance en ligne & Support Régions Déploiements, Coordination & Gestion des Prestataires","Assistance en ligne","Assistance en ligne","CHTIOUI","AHMED","Assistant en ligne","2018-01-15","M","2018-01-15","1993-01-07","","Technicien spécialisé","BAC+2-DEUG-BTS-DUT","","","Non Cadre"]
[716445,"Production Informatique","Support & Services aux utilisateurs ( SSU)","Assistance en ligne & Support Régions Déploiements, Coordination & Gestion des Prestataires","Assistance en ligne","Assistance en ligne","TAKI","ACHRAF","Assistant en ligne","2018-04-02","M","2018-04-02","1991-12-24","","","BAC+3-DIPLOME CYCLE NORMAL+LICENCE","","","Non Cadre"]
[716441,"Production Informatique","Support & Services aux utilisateurs ( SSU)","Assistance en ligne & Support Régions Déploiements, Coordination & Gestion des Prestataires","Assistance en ligne","Assistance en ligne","KHDAD","OUMAYMA","Assistant en ligne","2018-03-15","F","2018-03-15","1996-07-02","","Licence Génie Civil","BAC+3-DIPLOME CYCLE NORMAL+LICENCE","FST","FST","Non Cadre"]
[716663,"Production Informatique","Support & Services aux utilisateurs ( SSU)","Assistance en ligne & Support Régions Déploiements, Coordination & Gestion des Prestataires","Assistance en ligne","Assistance en ligne","RAKHI","ABDELHAK","Assistant en ligne","2018-06-18","M","2018-06-18","1998-01-06","","Technicien spécialisé","BAC+2-DEUG-BTS-DUT","NTIC2","NTIC2","Non Cadre"]
[717788,"Production Informatique","Support & Services aux utilisateurs ( SSU)","Assistance en ligne & Support Régions Déploiements, Coordination & Gestion des Prestataires","Assistance en ligne","Assistance en ligne","WAHID","REDA","Assistant en ligne","2019-12-02","M","2019-12-02","1999-03-31","","","BAC+2-DEUG-BTS-DUT","","","NON CADRE"]
[716994,"Production Informatique","Support & Services aux utilisateurs ( SSU)","Assistance en ligne & Support Régions Déploiements, Coordination & Gestion des Prestataires","Assistance en ligne","Assistance en ligne","ZEHDI","YOUSSEF","Assistant en ligne","2018-11-15","M","2018-11-15","1995-06-10","","","BAC+2-DEUG-BTS-DUT","","","NON CADRE"]
[716670,"Production Informatique","Support & Services aux utilisateurs ( SSU)","Assistance en ligne & Support Régions Déploiements, Coordination & Gestion des Prestataires","Assistance en ligne","Assistance en ligne","FIKRI","ABDELLAH","Assistant en ligne","2018-06-18","M","2018-06-18","1995-04-23","","Technicien spécialisé","BAC+2-DEUG-BTS-DUT","ISTA","ISTA","Non Cadre"]
[717698,"Production Informatique","Support & Services aux utilisateurs ( SSU)","Assistance en ligne & Support Régions Déploiements, Coordination & Gestion des Prestataires","Assistance en ligne","Assistance en ligne","BANAICHE","ABDELALI","Assistant en ligne","2019-10-01","M","2019-10-01","1999-02-07","","Technicien spécialisé","BAC+2-DEUG-BTS-DUT","ISTA","ISTA","NON CADRE"]
[717772,"Production Informatique","Support & Services aux utilisateurs ( SSU)","Assistance en ligne & Support Régions Déploiements, Coordination & Gestion des Prestataires","Assistance en ligne","Assistance en ligne","NACER","AYOUB","Assistant en ligne","2019-11-15","M","2019-11-15","1994-02-01","","Technicien spécialisé","BAC+2-DEUG-BTS-DUT","","","NON CADRE"]
[717264,"Production Informatique","Support & Services aux utilisateurs ( SSU)","Assistance en ligne & Support Régions Déploiements, Coordination & Gestion des Prestataires","Assistance en ligne","Assistance en ligne","ELMAATAOUI","ABDELKODDOUS","Assistant en ligne","2019-03-15","M","2019-03-15","1998-03-29","","Technicien spécialisé","BAC+2-DEUG-BTS-DUT","","","NON CADRE"]
[717771,"Production Informatique","Support & Services aux utilisateurs ( SSU)","Assistance en ligne & Support Régions Déploiements, Coordination & Gestion des Prestataires","Assistance en ligne","Assistance en ligne","JAMAL EDDINE","RIHAB","Assistant en ligne","2019-11-15","F","2019-11-15","1998-03-24","","Licence Professionnelle","BAC+3-DIPLOME CYCLE NORMAL+LICENCE","","","Non Cadre"]
[717443,"Production Informatique","Support & Services aux utilisateurs ( SSU)","Assistance en ligne & Support Régions Déploiements, Coordination & Gestion des Prestataires","Assistance en ligne","Assistance en ligne","HAIDAT","HAJAR","Assistant en ligne","2019-06-03","F","2019-06-03","1996-12-10","","Licence Professionnelle","BAC+3-DIPLOME CYCLE NORMAL+LICENCE","FST","FST","NON CADRE"]
[717266,"Production Informatique","Support & Services aux utilisateurs ( SSU)","Assistance en ligne & Support Régions Déploiements, Coordination & Gestion des Prestataires","Assistance en ligne","Assistance en ligne","BOUSETTA","MOHAMED","Assistant en ligne","2019-03-15","M","2019-03-15","1996-05-25","","Technicien spécialisé","BAC+2-DEUG-BTS-DUT","","","NON CADRE"]
[717263,"Production Informatique","Support & Services aux utilisateurs ( SSU)","Assistance en ligne & Support Régions Déploiements, Coordination & Gestion des Prestataires","Assistance en ligne","Assistance en ligne","AKHSSASSI","SOUFIANE","Assistant en ligne","2019-03-15","M","2019-03-15","1996-02-14","","Technicien spécialisé","BAC+2-DEUG-BTS-DUT","","","NON CADRE"]
[717439,"Production Informatique","Support & Services aux utilisateurs ( SSU)","Assistance en ligne & Support Régions Déploiements, Coordination & Gestion des Prestataires","Assistance en ligne","Assistance en ligne","SAHRAOUI","ABDELKRIM","Assistant en ligne","2019-06-03","M","2019-06-03","1994-09-08","","Technicien spécialisé","BAC+2-DEUG-BTS-DUT","OFPTT","OFPTT","NON CADRE"]
[717699,"Production Informatique","Support & Services aux utilisateurs ( SSU)","Assistance en ligne & Support Régions Déploiements, Coordination & Gestion des Prestataires","Assistance en ligne","Assistance en ligne","NAMA","YOUSSEF","Assistant en ligne","2019-10-01","M","2019-10-01","1999-06-22","","Technicien spécialisé","BAC+2-DEUG-BTS-DUT","ISTA","ISTA","NON CADRE"]
[717700,"Production Informatique","Support & Services aux utilisateurs ( SSU)","Assistance en ligne & Support Régions Déploiements, Coordination & Gestion des Prestataires","Assistance en ligne","Assistance en ligne","OUMESLAKHT","TARIK","Assistant en ligne","2019-10-01","M","2019-10-01","1999-07-02","","Technicien spécialisé","BAC+2-DEUG-BTS-DUT","ISTA","ISTA","NON CADRE"]
[716647,"Production Informatique","Support & Services aux utilisateurs ( SSU)","Assistance en ligne & Support Régions Déploiements, Coordination & Gestion des Prestataires","Déploiements, Coordination & Gestion des Prestataires","Déploiements, Coordination & Gestion des Prestataires","RIFLA","SAMAH","Chargé de projets et déploiement","2018-06-18","F","2018-06-18","1996-08-18","","Licence Professionnelle","BAC+3-DIPLOME CYCLE NORMAL+LICENCE","EST","EST","Non Cadre"]
[704142,"Production Informatique","Support & Services aux utilisateurs ( SSU)","Assistance en ligne & Support Régions Déploiements, Coordination & Gestion des Prestataires","Déploiements, Coordination & Gestion des Prestataires","Déploiements, Coordination & Gestion des Prestataires","FEKAK","KHALID","Chargé de projets et déploiement","1991-04-08","M","1991-04-08","1964-05-01","","BTS","BAC+2-DEUG-BTS-DUT","IGA","IGA","Cadre"]
[717203,"Production Informatique","Support & Services aux utilisateurs ( SSU)","Assistance en ligne & Support Régions Déploiements, Coordination & Gestion des Prestataires","Déploiements, Coordination & Gestion des Prestataires","Déploiements, Coordination & Gestion des Prestataires","TOUIBGUI","MEHDI","Chargé de projets et déploiement","2019-03-01","M","2019-03-01","1990-04-27","","Technicien spécialisé","BAC+2-DEUG-BTS-DUT","ISTA","ISTA","NON CADRE"]
[39473,"Production Informatique","Support & Services aux utilisateurs ( SSU)","Assistance en ligne & Support Régions Déploiements, Coordination & Gestion des Prestataires","Support  Grand Casa","A Responsable Support  Grand Casa","MAFTOUH","OMAR","Responsable Régions Service Desk","1992-08-10","M","1992-08-10","1962-04-19","","Ingénieur d'application","BAC+4-LICENCE-MAITRISE","ESTEM","ESTEM","Cadre"]
[714096,"Production Informatique","Support & Services aux utilisateurs ( SSU)","Assistance en ligne & Support Régions Déploiements, Coordination & Gestion des Prestataires","Support  Grand Casa","Support  Grand Casa SF","BALLOUCH","ZAINAB","Chargé Support Fonctionnel Service Desk","2014-12-15","F","2014-12-15","1994-02-18","","Technicien spécialisé  + Master","BAC+5-INGENIEUR-MASTER-DEA-DESS","ISTA","ISTA","Non Cadre"]
[400697,"Production Informatique","Support & Services aux utilisateurs ( SSU)","Assistance en ligne & Support Régions Déploiements, Coordination & Gestion des Prestataires","Support  Grand Casa","Support  Grand Casa SF","FARTAS","BOUCHAIB","Chargé Support Fonctionnel Service Desk","1987-12-15","M","1987-12-15","1964-09-07","","CAB","CAB","Centre de Formation Profes. & Banc.","Centre de Formation Profes. & Banc.","Cadre"]
[770164,"Production Informatique","Support & Services aux utilisateurs ( SSU)","Assistance en ligne & Support Régions Déploiements, Coordination & Gestion des Prestataires","Support  Grand Casa","Support  Grand Casa SF","AZMI","ADIL","Chargé support technique Service Desk","2000-03-01","M","2000-03-01","1975-04-06","","Secondaire","NS","Lycée","Lycée","Non Cadre"]
[704564,"Production Informatique","Support & Services aux utilisateurs ( SSU)","Assistance en ligne & Support Régions Déploiements, Coordination & Gestion des Prestataires","Support  Grand Casa","Support  Grand Casa ST","BOUIHOUCHAMA","NAIM","Chargé Support Fonctionnel Service Desk","1988-08-01","M","1988-08-01","1963-11-03","","Secondaire","NS","Lycée","Lycée","Cadre"]
[716194,"Production Informatique","Support & Services aux utilisateurs ( SSU)","Assistance en ligne & Support Régions Déploiements, Coordination & Gestion des Prestataires","Support  Grand Casa","Support  Grand Casa ST","MABROUK","MAROUANE","Chargé support technique Service Desk","2017-10-09","M","2017-10-09","1992-02-10","","Technicien spécialisé","BAC+2-DEUG-BTS-DUT","ESIA","ESIA","Non Cadre"]
[713559,"Production Informatique","Support & Services aux utilisateurs ( SSU)","Assistance en ligne & Support Régions Déploiements, Coordination & Gestion des Prestataires","Support  Grand Casa","Support  Grand Casa ST","MHAIDI","TAOUFIK","Chargé support technique Service Desk","2014-02-17","M","2014-02-17","1991-11-06","","DTS","BAC+2-DEUG-BTS-DUT","ISTA","ISTA","Non Cadre"]
[714431,"Production Informatique","Support & Services aux utilisateurs ( SSU)","Assistance en ligne & Support Régions Déploiements, Coordination & Gestion des Prestataires","Support  Grand Casa","Support  Grand Casa ST","BUIZ","ABDLILAH","Chargé support technique Service Desk","2015-07-01","M","2015-07-01","1994-06-14","","Technicien spécialisé","BAC+2-DEUG-BTS-DUT","ISTA ISIG","ISTA ISIG","Non Cadre"]
[712773,"Production Informatique","Support & Services aux utilisateurs ( SSU)","Assistance en ligne & Support Régions Déploiements, Coordination & Gestion des Prestataires","Support  Grand Casa","Support  Grand Casa ST","MOURID","YOUNESS","Chargé support technique Service Desk","2013-02-04","M","2013-02-04","1988-12-04","","Technicien","BAC+2-DEUG-BTS-DUT","ISTA","ISTA","Non Cadre"]
[716777,"Production Informatique","Support & Services aux utilisateurs ( SSU)","Assistance en ligne & Support Régions Déploiements, Coordination & Gestion des Prestataires","Support  Grand Casa","Support  Grand Casa ST1","KHATTABI","ABDELHAK","Chargé support technique Service Desk","2018-08-01","M","2018-08-02","1983-11-18","","Technicien spécialisé","BAC+2-DEUG-BTS-DUT","EURIATECH","EURIATECH","Non Cadre"]
[401723,"Production Informatique","Support & Services aux utilisateurs ( SSU)","Assistance en ligne & Support Régions Déploiements, Coordination & Gestion des Prestataires","Support Nord Est & YEM","A Responsable Support Nord Est & YEM","TALBI","DRISS","Responsable Régions Service Desk","1999-03-01","M","1999-03-01","1972-10-08","","Licence","BAC+4-LICENCE-MAITRISE","Univ. Maroc","Univ. Maroc","Cadre"]
[715640,"Production Informatique","Support & Services aux utilisateurs ( SSU)","Assistance en ligne & Support Régions Déploiements, Coordination & Gestion des Prestataires","Support Nord Est & YEM","Support Nord Est & YEM","BOUALAM","OUMAIMA","Chargé support technique Service Desk","2017-02-06","F","2017-02-06","1995-12-31","","Technicien spécialisé","BAC+2-DEUG-BTS-DUT","EFET","EFET","Non Cadre"]
[716381,"Production Informatique","Support & Services aux utilisateurs ( SSU)","Assistance en ligne & Support Régions Déploiements, Coordination & Gestion des Prestataires","Support Nord Est & YEM","Support Nord Est & YEM","SEMMOUZI","SOFIA","Chargé support technique Service Desk","2018-01-15","M","2018-01-15","1993-08-03","","Licence Professionnelle","BAC+3-DIPLOME CYCLE NORMAL+LICENCE","FST","FST","Non Cadre"]
[714160,"Production Informatique","Support & Services aux utilisateurs ( SSU)","Assistance en ligne & Support Régions Déploiements, Coordination & Gestion des Prestataires","Support Nord Est & YEM","Support Nord Est & YEM","GHANDI","NEZHA","Chargé Support Fonctionnel Service Desk","2015-02-02","F","2015-02-02","1990-05-03","","Technicien spécialisé","BAC+2-DEUG-BTS-DUT","ISTA NTIC","ISTA NTIC","Non Cadre"]
[46107,"Production Informatique","Support & Services aux utilisateurs ( SSU)","Assistance en ligne & Support Régions Déploiements, Coordination & Gestion des Prestataires","Support Nord Est & YEM","Support Nord Est & YEM SF","ELLOUIZ","KHALID","Chargé Support Fonctionnel Service Desk","2003-12-08","M","2003-12-08","1980-04-04","","Ingénieur d'application","BAC+4-LICENCE-MAITRISE","ESTEM","ESTEM","Cadre"]
[714829,"Production Informatique","Support & Services aux utilisateurs ( SSU)","Assistance en ligne & Support Régions Déploiements, Coordination & Gestion des Prestataires","Support Nord Est & YEM","Support Nord Est & YEM SF","SERADNI","FATIMA ZAHRA","Chargé Support Fonctionnel Service Desk","2016-01-12","F","2016-01-12","1990-05-24","","Licence Professionnelle","BAC+3-DIPLOME CYCLE NORMAL+LICENCE","FST AIN CHOK","FST AIN CHOK","Non Cadre"]
[709608,"Production Informatique","Support & Services aux utilisateurs ( SSU)","Assistance en ligne & Support Régions Déploiements, Coordination & Gestion des Prestataires","Support Nord Ouest","A Responsable Support Nord Ouest","EL BOUDLALI","YOUNES","Responsable Régions Service Desk","2007-09-17","M","2007-09-17","1984-02-03","","BAC+2","BAC+2-DEUG-BTS-DUT","","","Non Cadre"]
[714175,"Production Informatique","Support & Services aux utilisateurs ( SSU)","Assistance en ligne & Support Régions Déploiements, Coordination & Gestion des Prestataires","Support Nord Ouest","Support Nord Ouest  SF","HARIS","SALMA","Chargé support technique Service Desk","2015-02-16","F","2015-02-16","1991-06-05","","Licence","BAC+3-DIPLOME CYCLE NORMAL+LICENCE","FSEJ","FSEJ","Non Cadre"]
[11958,"Production Informatique","Support & Services aux utilisateurs ( SSU)","Assistance en ligne & Support Régions Déploiements, Coordination & Gestion des Prestataires","Support Nord Ouest","Support Nord Ouest  SF","NAJAH","MOHAMED","Chargé Support Fonctionnel Service Desk","1981-11-27","M","1981-11-27","1960-06-09","30/06/2020","Brevet bancaire","BREVET B","Centre de Formation Profes. & Banc.","Centre de Formation Profes. & Banc.","Cadre"]
[715627,"Production Informatique","Support & Services aux utilisateurs ( SSU)","Assistance en ligne & Support Régions Déploiements, Coordination & Gestion des Prestataires","Support Nord Ouest","Support Nord Ouest  ST1","QUIBANE","RAMZI","Chargé support technique Service Desk","2017-02-06","M","2017-02-06","1995-12-11","","Technicien spécialisé","BAC+2-DEUG-BTS-DUT","OFPTT","OFPTT","Non Cadre"]
[37926,"Production Informatique","Support & Services aux utilisateurs ( SSU)","Assistance en ligne & Support Régions Déploiements, Coordination & Gestion des Prestataires","Support Nord Ouest","Support Nord Ouest  ST1","AMMOR","ZOUHEIR","Chargé Support Fonctionnel Service Desk","1986-05-20","M","1986-05-20","1961-09-13","","Secondaire","NS","Lycée","Lycée","Cadre"]
[707972,"Production Informatique","Support & Services aux utilisateurs ( SSU)","Assistance en ligne & Support Régions Déploiements, Coordination & Gestion des Prestataires","Support Sud & Sud ouest","A Responsable Support Sud & Sud ouest","ADALLA","HICHAM","Responsable Régions Service Desk","2008-08-18","M","2008-08-04","1979-12-21","","Ingénieur d'application en Informatique","BAC+5-INGENIEUR-MASTER-DEA-DESS","Univer Techn de KOVROV Russie","Univer Techn de KOVROV Russie","Cadre"]
[714432,"Production Informatique","Support & Services aux utilisateurs ( SSU)","Assistance en ligne & Support Régions Déploiements, Coordination & Gestion des Prestataires","Support Sud & Sud ouest","Support Sud & Sud ouest ST","KBAILI","MERIEM","Chargé support technique Service Desk","2015-07-01","F","2015-07-01","1992-07-26","","Licence","BAC+3-DIPLOME CYCLE NORMAL+LICENCE","SUP TECHNOLOGY","SUP TECHNOLOGY","Non Cadre"]
[713122,"Production Informatique","Support & Services aux utilisateurs ( SSU)","Assistance en ligne & Support Régions Déploiements, Coordination & Gestion des Prestataires","Support Sud & Sud ouest","Support Sud & Sud ouest ST","AMZIL","HANANE","Chargé Support Fonctionnel","2013-07-17","F","2013-07-17","1991-04-27","","Technicien Spécialisé","BAC+2-DEUG-BTS-DUT","CFMOTI","CFMOTI","Non Cadre"]
[716255,"Production Informatique","Support & Services aux utilisateurs ( SSU)","Assistance en ligne & Support Régions Déploiements, Coordination & Gestion des Prestataires","Support Sud & Sud ouest","Support Sud & Sud ouest ST","AMINE","OUMAYMA","Chargé support technique Service Desk","2017-11-01","F","2017-11-01","1994-11-20","","Licence Professionnelle","BAC+3-DIPLOME CYCLE NORMAL+LICENCE","","","Non Cadre"]
[709163,"Production Informatique","Support & Services aux utilisateurs ( SSU)","Gestion du Parc Matériel","A Responsable Gestion du Parc Matériel","A Responsable Gestion du Parc Matériel","DOULFAKAR","MERYEM","Responsable du parc Informatique","2008-11-20","F","2009-01-05","1971-12-22","","BAC+4","BAC+4-LICENCE-MAITRISE","ENIM TUNIS","ENIM TUNIS","Cadre"]
[709610,"Production Informatique","Support & Services aux utilisateurs ( SSU)","Gestion du Parc Matériel","Gestion du Parc Matériel","Gestion du Parc Matériel","EL BOUATI","FATIM ZAHRA","Chargé du parc Informatique","2008-06-18","F","2008-06-18","1984-02-18","","DTS","BAC+2-DEUG-BTS-DUT","CETEC","CETEC","Non Cadre"]
[715101,"Production Informatique","Support & Services aux utilisateurs ( SSU)","Gestion du Parc Matériel","Gestion du Parc Matériel","Gestion du Parc Matériel","ABOUYAALA","KHAOULA","Chargé du parc Informatique","2016-06-01","F","2016-06-01","1993-01-26","","Licence Fondamentale","BAC+3-DIPLOME CYCLE NORMAL+LICENCE","FSJES","FSJES","Non Cadre"]
[401687,"Production Informatique","Support & Services aux utilisateurs ( SSU)","Gestion du Parc Matériel","Gestion du Parc Matériel","Gestion du Parc Matériel","AIT SAID","ABDERRAHMANE","Chargé du parc Informatique","1999-05-24","M","1999-05-24","1970-05-02","","Secondaire","NS","Lycée","Lycée","Non Cadre"]
[707710,"Production Informatique","Support & Services aux utilisateurs ( SSU)","Support & Services aux utilisateurs ( SSU)","A Support & Services aux utilisateurs ( SSU)","A Responsable Support & Services aux utilisateurs ( SSU)","HADDAJE","YOUNES","Responsable Support & Services aux utilisateurs ( SSU)","2008-03-17","M","2008-03-17","1974-06-13","","Master IS EEPR","BAC+5-INGENIEUR-MASTER-DEA-DESS","Univ Henry Poincaré","Univ Henry Poincaré","Cadre"]
[716043,"Sécurité  des SI Groupe","A Sécurité  des SI Groupe","A Responsable Sécurité  des SI Groupe","","","FAIK","HICHAM","Responsable Sécurité  des SI Groupe","2017-08-15","M","2017-08-15","1977-03-06","","Ingénieur d'état","BAC+5-INGENIEUR-MASTER-DEA-DESS","EHTP","EHTP","Cadre"]
[716267,"Sécurité  des SI Groupe","Analyse des menaces et veille","Analyse des menaces et veille","","","KADADRY","ANWAR","Ingénieur Analyse forensique et Réponse aux incidents sécurité","2017-11-15","M","2017-11-15","1988-02-07","","Master","BAC+5-INGENIEUR-MASTER-DEA-DESS","ESC LILLE","ESC LILLE","Cadre"]
[717199,"Sécurité  des SI Groupe","Analyse des menaces et veille","Analyse des menaces et veille","","","SAOUDI","YOUNES","Analyste Supervision Opérationnelle de la Sécurité - T1","2019-03-01","M","2019-03-01","1992-02-19","","Ingénieur d'état","BAC+5-INGENIEUR-MASTER-DEA-DESS","ENSIAS","ENSIAS","CADRE"]
[717729,"Sécurité  des SI Groupe","Analyse des menaces et veille","Analyse des menaces et veille","","","JANNAT","TAHA","Analyste Supervision Opérationnelle de la Sécurité - T1","2019-10-15","M","2019-10-15","1994-03-29","","Master","BAC+5-INGENIEUR-MASTER-DEA-DESS","ENSA KENITRA","ENSA","CADRE"]
[716942,"Sécurité  des SI Groupe","Analyse des menaces et veille","Analyse des menaces et veille","","","OUBAOUG","RACHID","Analyste Supervision Opérationnelle de la Sécurité - T1","2018-11-01","M","2018-11-01","1994-09-17","","Ingénieur d'état","BAC+5-INGENIEUR-MASTER-DEA-DESS","ENSIAS","ENSIAS","CADRE"]
[716847,"Sécurité  des SI Groupe","Analyse des menaces et veille","Analyse des menaces et veille","","","EL ALLIOUI","MOSTAFA","Analyste Supervision Opérationnelle de la Sécurité - T1","2018-09-17","M","2018-09-17","1995-01-28","","Ingénieur d'état","BAC+5-INGENIEUR-MASTER-DEA-DESS","ENSA","ENSA","CADRE"]
[708089,"Sécurité  des SI Groupe","Analyse des menaces et veille","Analyse des menaces et veille","","","QAISAR","MOHAMMED","Responsable du centre Opérationnel de Supervision Sécurité","2008-09-29","M","2008-09-29","1969-08-08","","Licence en S Inf et Master en cours","BAC+5-INGENIEUR-MASTER-DEA-DESS","Unive Maroc","Unive Maroc","Cadre"]
[716518,"Sécurité  des SI Groupe","Management de la Sécurité","a Responsable Management de la Sécurité","","","ESSAMI","FATIMA EZZAHRA","Responsable Pôle management de la Sécurité des SI","2018-05-02","F","2018-05-02","1986-10-10","","Ingénieur d'état","BAC+5-INGENIEUR-MASTER-DEA-DESS","ENIM","ENIM","Cadre"]
[717725,"Sécurité  des SI Groupe","Management de la Sécurité","Management de la Sécurité","","","BOUGAZE","YOUSSRA","Ingénieur Gouvernance Sécurité des SI","2019-10-15","F","2019-10-15","1994-09-26","","Ingénieur d'état","BAC+5-INGENIEUR-MASTER-DEA-DESS","EMI","EMI","CADRE"]
[716922,"Sécurité  des SI Groupe","Management de la Sécurité","Management de la Sécurité","","","KERMICHE","AICHA","Ingénieur Gouvernance Sécurité des SI Junior","2018-10-15","F","2018-10-15","1993-06-13","","Ingénieur d'état","BAC+5-INGENIEUR-MASTER-DEA-DESS","Ecole Polytechnique d'Agadir","Ecole Polytechnique d'Agadir","CADRE"]
[716870,"Sécurité  des SI Groupe","Pilotage Sécurité Filiales"," Responsable Pilotage Sécurité Filiales","","","GUENNOUNI","HASNAE","Responsable Pilotage Sécurité Filiales","2018-10-01","F","2018-10-01","1987-11-26","","Ingénieur d'état","BAC+5-INGENIEUR-MASTER-DEA-DESS","ENSA TANGER","ENSA","CADRE"]
[17352,"Sécurité  des SI Groupe","Sécurité  des SI Groupe","","","","EL BEJJAJ","ABDELKRIM","Administrateur Sécurité SI Senior","1986-04-14","M","1986-04-14","1963-04-10","","BTS","BAC+2-DEUG-BTS-DUT","","","Cadre"]
[709397,"Sécurité  des SI Groupe","Sécurité Opérationnelle","a Responsable Sécurité Opérationnelle","","","BENHMAMMOUCH","Mohamed","Responsable Sécurité Opérationnelle Groupe","2009-02-18","M","2009-03-16","1983-10-01","","Ingénieur sécurité systéme","BAC+4-LICENCE-MAITRISE","EMSI","EMSI","Cadre"]
[717000,"Sécurité  des SI Groupe","Sécurité Opérationnelle","Sécurité Opérationnelle","","","NAJIM","MERIEM","Ingénieur Sécurité  Opérationnelle des données","2018-12-03","F","2018-12-03","1988-02-26","","Master","BAC+5-INGENIEUR-MASTER-DEA-DESS","ESEM","ESEM","CADRE"]
[717775,"Sécurité  des SI Groupe","Sécurité Opérationnelle","Sécurité Opérationnelle","","","NDAW","HABIBOU","Administrateur Sécurité Opérationnelle","2019-11-01","M","2019-11-01","1995-10-23","","Master","BAC+5-INGENIEUR-MASTER-DEA-DESS","","","CADRE"]
[717774,"Sécurité  des SI Groupe","Sécurité Opérationnelle","Sécurité Opérationnelle","",""," LO","MASSABA BATHIE","Administrateur Sécurité Opérationnelle","2019-11-01","M","2019-11-01","1987-07-07","","Master","BAC+5-INGENIEUR-MASTER-DEA-DESS","LIMOGES","LIMOGES","CADRE"]
[710710,"Sécurité  des SI Groupe","Sécurité Opérationnelle","Sécurité Opérationnelle","","","KOURI","MOHAMED","Administrateur Sécurité Opérationnelle","2010-06-14","M","2010-06-14","1986-01-14","","Technicien","BAC+2-DEUG-BTS-DUT","","","Non Cadre"]
[401734,"Sécurité  des SI Groupe","Sécurité Opérationnelle","Sécurité Opérationnelle","","","MORJANE","KAMAL","Ingénieur Sécurité Opérationnelle","1999-01-02","M","1999-01-02","1973-08-12","","Ingénieur d'application","BAC+4-LICENCE-MAITRISE","ESTEM","ESTEM","Cadre"]
[716466,"Sécurité  des SI Groupe","Sécurité Opérationnelle","Sécurité Opérationnelle","","","CHOUHBI","TAHA YASSINE","Ingénieur Cybersécurité Pentesteur","2018-04-02","M","2018-04-02","1991-12-15","","Ingénieur","BAC+5-INGENIEUR-MASTER-DEA-DESS","Institut Vinci","Institut Vinci","Cadre"]
[710047,"Sécurité  des SI Groupe","Sécurité Opérationnelle","Sécurité Opérationnelle","","AFFECTE LE 03/06/19","TAGHRICHTE","MOUHCINE","Administrateur Sécurité Opérationnelle","2009-10-30","M","2009-11-02","1989-01-10","","Technicien Spécialisé","BAC+2-DEUG-BTS-DUT","ISTA NTIC II","ISTA NTIC II","Non Cadre"]
[716422,"Stratégie et Architecture","Stratégie et Architecture","Stratégie et Architecture","","","EL HILALI","RACHID","Architecte Solution","2018-03-01","M","2018-03-01","1976-10-07","","Master","BAC+5-INGENIEUR-MASTER-DEA-DESS","UNIV Paris1 Panthéon Sorbonne IAE","UNIV Paris1 Panthéon Sorbonne IAE","Cadre"]
[707807,"Stratégie et Architecture","Stratégie et Architecture","Stratégie et Architecture","","","BENJLIL","BOUCHAIB","Architecte Solution","2008-05-05","M","2008-05-05","1972-07-01","","Ingénieur d'application","BAC+5-INGENIEUR-MASTER-DEA-DESS","EMSI","EMSI","Cadre"]
[715191,"Stratégie et Architecture","Stratégie et Architecture","Stratégie et Architecture","","","EL MERRAJI","OUIAM","Architecte SI","2016-07-01","F","2016-07-01","1985-11-22","","Master","BAC+5-INGENIEUR-MASTER-DEA-DESS","","","Cadre"]
[707931,"Stratégie et Architecture","Stratégie et Architecture","Stratégie et Architecture","","","MOUHDI","FOUAD","Architecte SI","2008-07-15","M","2008-07-15","1978-09-30","","Ingénieur d'état + Master","BAC+5-INGENIEUR-MASTER-DEA-DESS","EHTP & EMSI","EHTP & EMSI","Cadre"]
[710068,"Support et Pilotage de la Performance"," Pilotage de la Performance","a Responsable  Pilotage de la Performance","","","KAJOUT","Abdelhay","Responsable Pilotage de la Performance","2009-10-16","M","2009-11-16","1983-04-12","","Ingénieur d'état","BAC+5-INGENIEUR-MASTER-DEA-DESS","INSA","INSA","Cadre"]
[709611,"Support et Pilotage de la Performance"," Pilotage de la Performance","Contrôle de Gestion","Contrôle de Gestion","","ISMAILI","ASMAA","Contrôleur de gestion chargé des prestataires","2008-06-18","F","2008-06-18","1983-02-06","","Licence en Sciences Economiques","BAC+3-DIPLOME CYCLE NORMAL+LICENCE","Univ. Maroc","Univ. Maroc","Non Cadre"]
[715488,"Support et Pilotage de la Performance"," Pilotage de la Performance","Contrôle de Gestion","Contrôle de Gestion","","BEN WAHMANE","RITA","Contrôleur de gestion chargé des prestataires","2016-11-16","F","2016-11-16","1995-09-20","","Technicien spécialisé","BAC+2-DEUG-BTS-DUT","CIFPB","CIFPB","Non Cadre"]
[716421,"Support et Pilotage de la Performance"," Pilotage de la Performance","Contrôle de Gestion","Contrôle de Gestion","","SAIDOUNE","ZINEB","Contrôleur de gestion en charge de refacturation et rengeniering des couts","2018-03-01","F","2018-03-01","1991-12-06","","Master","BAC+5-INGENIEUR-MASTER-DEA-DESS","HEM / IAE Lyon","HEM / IAE Lyon","Cadre"]
[714420,"Support et Pilotage de la Performance"," Pilotage de la Performance","Contrôle de Gestion","Contrôle de Gestion","","ZAKARI","KHAOULA","Contrôleur de gestion chargé des budgets","2015-07-01","F","2015-07-01","1992-07-17","","Licence + Master","BAC+5-INGENIEUR-MASTER-DEA-DESS","FSEJ","FSEJ","Non Cadre"]
[710904,"Support et Pilotage de la Performance"," Pilotage de la Performance","Contrôle de Gestion","Contrôle de Gestion","","MARBOU","AYOUB","Contrôleur de gestion en charge de refacturation et rengeniering des couts","2010-06-25","M","2010-09-01","1979-06-08","","Ingénieur d'état","BAC+5-INGENIEUR-MASTER-DEA-DESS","INSEA","INSEA","Cadre"]
[714535,"Support et Pilotage de la Performance"," Pilotage de la Performance","Contrôle de Gestion","Contrôle de Gestion","","DCHIECHE","ZINEB","Contrôleur de gestion chargé des budgets","2015-08-03","F","2015-08-03","1991-01-17","","Licence  + Master","BAC+5-INGENIEUR-MASTER-DEA-DESS","FSJES","FSJES","Non Cadre"]
[713677,"Support et Pilotage de la Performance"," Pilotage de la Performance","Project Management Office","a Responsable Project Management Office","","DARDAR","KAOUTAR","Responsable Project Management Office","2014-05-02","F","2014-05-02","1983-10-15","","Master","BAC+5-INGENIEUR-MASTER-DEA-DESS","HEC","HEC","Cadre"]
[715685,"Support et Pilotage de la Performance"," Pilotage de la Performance","Project Management Office","Project Management Office","","ELATOUANI","REDA","Administrateur Junior EPM","2017-03-15","M","2017-03-15","1995-03-09","","Licence en Math Informatique","BAC+3-DIPLOME CYCLE NORMAL+LICENCE","FSB Casablanca","FSB Casablanca","NON CADRE"]
[715366,"Support et Pilotage de la Performance"," Pilotage de la Performance","Project Management Office","Project Management Office","","AMRANI JOUTEY","MERYEM","Project Management Officer Portefeuille","2016-09-15","F","2016-09-15","1987-12-19","","Master","BAC+5-INGENIEUR-MASTER-DEA-DESS","ESSEC","ESSEC","Cadre"]
[713741,"Support et Pilotage de la Performance"," Pilotage de la Performance","Project Management Office","Project Management Office","","ALOUI","MARIEM","Project Management Officer Projet","2014-06-16","F","2014-06-16","1991-10-19","","Licence Professionnelle  + Master","BAC+5-INGENIEUR-MASTER-DEA-DESS","FS EL JADIDA","FS EL JADIDA","Non Cadre"]
[717651,"Support et Pilotage de la Performance"," Pilotage de la Performance","Project Management Office","Project Management Office","","SAYOUTY","SANAA","Administrateur Junior EPM","2019-09-02","F","2019-09-02","1998-09-19","","Technicien spécialisé","BAC+2-DEUG-BTS-DUT","","","NON CADRE"]
[715534,"Support et Pilotage de la Performance","Assurance Qualité","A responsable Assurance Qualité","","","BEN MEHREZ","NADIA","Responsable Assurance Qualité","2017-01-02","F","2017-01-02","1967-06-02","","Ingénieur d'état","BAC+5-INGENIEUR-MASTER-DEA-DESS","INPT","INPT","Cadre"]
[716983,"Support et Pilotage de la Performance","Assurance Qualité","Assurance Qualité","","","ALAMI MARROUNI","IMANE","Analyste Assurance Qualité","2018-11-15","F","2018-11-15","1992-03-06","","Ingénieur d'état","BAC+5-INGENIEUR-MASTER-DEA-DESS","INPT","INPT","CADRE"]
[716935,"Support et Pilotage de la Performance","Assurance Qualité","Methodes et Qualite","","","JALIL","SANAA","Analyste Méthodes & Qualité Sénior","2018-11-01","F","2018-11-01","1984-04-26","","","BAC+5-INGENIEUR-MASTER-DEA-DESS","IGA","IGA","CADRE"]
[715194,"Support et Pilotage de la Performance","Assurance Qualité","Software testing","","","EL KALAI","ZAKARIA","Responsable Software testing","2016-07-01","M","2016-07-01","1976-06-28","","Master","BAC+5-INGENIEUR-MASTER-DEA-DESS","","","Cadre"]
[716414,"Support et Pilotage de la Performance","Assurance Qualité","Software testing","Software testing","","FARES","SOUMIA","Chargé Software testing","2018-03-01","F","2018-03-01","1983-02-23","","Master","BAC+5-INGENIEUR-MASTER-DEA-DESS","Univ IBN TOFAIL","Univ IBN TOFAIL","Cadre"]
[716748,"Support et Pilotage de la Performance","Assurance Qualité","Software testing","Software testing","","NEFAA","HOUDA","Chargé Software Testing","2018-07-16","F","2018-07-16","1989-04-03","","Master","BAC+5-INGENIEUR-MASTER-DEA-DESS","Univ Nice Antipolis France","Univ Nice Antipolis France","Cadre"]
[711075,"Support et Pilotage de la Performance","Support et Moyens SIG","A Responsable Support et Moyens SIG","","","KHATIR Ep ELHILA","LEYLA","Responsable Support et Moyens","2010-11-01","F","2013-09-16","1961-04-26","","Ingénieur+Doctorat+MBA","BAC+5-INGENIEUR-MASTER-DEA-DESS","Ecole Ing + Univ de Toulouse + ENASS Paris","Ecole Ing + Univ de Toulouse + ENASS Paris","Cadre"]
[18320,"Support et Pilotage de la Performance","Support et Moyens SIG","Garcon de bureau","","","LAZRAK","LOTFI","Assistant de bureau","1987-05-01","M","2008-01-01","1959-12-18","31/12/2019","Secondaire","NS","","","Cadre"]
[451108,"Support et Pilotage de la Performance","Support et Moyens SIG","Garcon de bureau","","","KALA","OMAR","Assistant de bureau","1996-01-01","M","1996-01-01","1961-07-01","","Secondaire","NS","","","Non Cadre"]
[709563,"Support et Pilotage de la Performance","Support et Moyens SIG","Support et Moyens SIG","","","JEBBAR","FATIMA","Gestionnaire de suivi RH & Moyens","2009-05-18","F","2016-06-01","1983-05-10","","Master","BAC+5-INGENIEUR-MASTER-DEA-DESS","FSH2","FSH2","Cadre"]
[714883,"Support et Pilotage de la Performance","Support et Moyens SIG","Support et Moyens SIG","","","LAHRACH","SIHAME","Assistante","2016-02-02","F","2016-02-02","1992-03-05","","Licence Professionnelle","BAC+3-DIPLOME CYCLE NORMAL+LICENCE","FSJES","FSJES","Non Cadre"]
[400700,"Support et Pilotage de la Performance","Support et Moyens SIG","Support et Moyens SIG","","","RAJRAJI","NADIA","CADRE","2010-01-01","F","2010-01-01","1962-01-21","","Maîtrise","BAC+4-LICENCE-MAITRISE","Univ. Belgique","Univ. Belgique","Cadre"]
[716982,"Support et Pilotage de la Performance","Support et Moyens SIG","Support et Moyens SIG","","","ZAHER","KHAOULA","Responsable Orga & Process","2018-11-15","F","2018-11-15","1985-01-04","","Master","BAC+5-INGENIEUR-MASTER-DEA-DESS","ENCG","ENCG","CADRE"]
[23430,"Support et Pilotage de la Performance","Support et Moyens SIG","Support et Moyens SIG","","","DIOUCH","NOURA","Gestionnaire administratif RH & moyens","1991-12-09","F","1991-12-09","1968-06-08","","DEUG + Brevet Bancaire","BAC+2-DEUG-BTS-DUT","Univ. Maroc + Centre de Formation Profes. & Banc.","Univ. Maroc + Centre de Formation Profes. & Banc.","Cadre"]
[717800,"Support et Pilotage de la Performance","Support et Moyens SIG","Support et Moyens SIG","","","BENZAKOUR","AHMED","Chargé d'Ingénierie RH et Communication","2019-12-02","M","2019-12-02","1985-02-18","","","BAC+5-INGENIEUR-MASTER-DEA-DESS","","","CADRE"]

{"sheet":"BD","index":4,"n_rows":312,"n_cols":9,"rows_kept":312,"cut":false,"hidden":false,"merged":[]}
[]
[null,null,null,null,null,null,null,null,"AARAFAT ABDELAALI"]
[null,null,null,null,null,null,null,null,"ABDENEBAOUI YASSINE"]
[null,null,null,null,null,null,null,null,"ABGUAOU RACHID"]
[null,null,null,null,null,null,null,null,"ABOUKADRI SARA"]
[null,null,null,null,null,null,null,null,"ABOULOUMOUM SAID"]
[null,null,null,null,null,null,null,null,"ABOUMEJD ABDESSAMAD"]
[null,null,null,null,null,null,null,null,"ABOUYAALA KHAOULA"]
[null,null,null,null,null,null,null,null,"ACHARKI MOHAMED"]
[null,null,null,null,null,null,null,null,"ACHBANI KHALID"]
[null,null,null,null,null,null,null,null,"ADALLA HICHAM"]
[null,null,null,null,null,null,null,null,"ADLIL ABDERRAHMANE"]
[null,null,null,null,null,null,null,null,"AFILAL KHAWLA"]
[null,null,null,null,null,null,null,null,"AFRIKOU AMINA"]
[null,null,null,null,null,null,null,null,"AHMATACH FAWAZ"]
[null,null,null,null,null,null,null,null,"AIFOUTE AHMED"]
[null,null,null,null,null,null,null,null,"AIT ABDERRAHMANE MOUNIR"]
[null,null,null,null,null,null,null,null,"AIT AROUSS HAFID"]
[null,null,null,null,null,null,null,null,"AIT MAHDI MALIKA"]
[null,null,null,null,null,null,null,null,"AIT SAID ABDERRAHMAN"]
[null,null,null,null,null,null,null,null,"AJAFAR ZOUHEIR"]
[null,null,null,null,null,null,null,null,"AKHSSASSI SOUFIANE"]
[null,null,null,null,null,null,null,null,"AKRAB MAROUANE"]
[null,null,null,null,null,null,null,null,"ALLAMI SOUHAIB"]
[null,null,null,null,null,null,null,null,"ALOUI MARIEM"]
[null,null,null,null,null,null,null,null,"AMANE HICHAM"]
[null,null,null,null,null,null,null,null,"AMINE OMAYMA"]
[null,null,null,null,null,null,null,null,"AMMOR ZOUHEIR"]
[null,null,null,null,null,null,null,null,"AMRANI ELGHALI"]
[null,null,null,null,null,null,null,null,"AMRANI JOUTEY MERYEM"]
[null,null,null,null,null,null,null,null,"AMRAOUI LAHCEN"]
[null,null,null,null,null,null,null,null,"AMZIL HANANE"]
[null,null,null,null,null,null,null,null,"ARAFA YOUNES"]
[null,null,null,null,null,null,null,null,"ARHOUNI ADIL"]
[null,null,null,null,null,null,null,null,"ARIF JALAL"]
[null,null,null,null,null,null,null,null,"AZIZ KENZA"]
[null,null,null,null,null,null,null,null,"AZMI ADIL"]
[null,null,null,null,null,null,null,null,"BA KARIM"]
[null,null,null,null,null,null,null,null,"BAHI MOSTAFA"]
[null,null,null,null,null,null,null,null,"BAHYA ILYASS"]
[null,null,null,null,null,null,null,null,"BAISSI SOUFIANE"]
[null,null,null,null,null,null,null,null,"BALLOUCH ZAINAB"]
[null,null,null,null,null,null,null,null,"BASSOU YOUSSEF"]
[null,null,null,null,null,null,null,null,"BEKKALI ZAKARIAE"]
[null,null,null,null,null,null,null,null,"BELFKIH BRAHIM"]
[null,null,null,null,null,null,null,null,"BEN KHADAJ BRAHIM"]
[null,null,null,null,null,null,null,null,"BEN MEHREZ NADIA"]
[null,null,null,null,null,null,null,null,"BEN WAHMANE RITA"]
[null,null,null,null,null,null,null,null,"BENHMAMMOUCH MOHAMMED"]
[null,null,null,null,null,null,null,null,"BENIHYA MOHAMED AMINE"]
[null,null,null,null,null,null,null,null,"BENJELLOUN MOHAMED"]
[null,null,null,null,null,null,null,null,"BENJLIL BOUCHAIB"]
[null,null,null,null,null,null,null,null,"BENMAAZOUZ ALLAL"]
[null,null,null,null,null,null,null,null,"BENNANI MANAR"]
[null,null,null,null,null,null,null,null,"BENRICHE KHALID"]
[null,null,null,null,null,null,null,null,"BENTAIEB EL MEHDI"]
[null,null,null,null,null,null,null,null,"BENTOUILA EL MEHDI"]
[null,null,null,null,null,null,null,null,"BENZAKOUR AHMED"]
[null,null,null,null,null,null,null,null,"BERKAOUI ABDELLAH"]
[null,null,null,null,null,null,null,null,"BERRABHA MARYAM"]
[null,null,null,null,null,null,null,null,"BERRADA ASMAE"]
[null,null,null,null,null,null,null,null,"BERRADA KENZA"]
[null,null,null,null,null,null,null,null,"BERRADA MOHAMMED"]
[null,null,null,null,null,null,null,null,"BERRISSOUL ISMAIL"]
[null,null,null,null,null,null,null,null,"BETTACHE FAHD"]
[null,null,null,null,null,null,null,null,"BICHRA MOHAMED NAWFAL"]
[null,null,null,null,null,null,null,null,"BOUALAM CHAKIB"]
[null,null,null,null,null,null,null,null,"BOUALAM OUMAIMA"]
[null,null,null,null,null,null,null,null,"BOUAMAINE FOUAD"]
[null,null,null,null,null,null,null,null,"BOUGHALEB TAHAR"]
[null,null,null,null,null,null,null,null,"BOUHILA SAFAE"]
[null,null,null,null,null,null,null,null,"BOUIHOUCHAMA NAIM"]
[null,null,null,null,null,null,null,null,"BOUIRDI MOHAMED REDA"]
[null,null,null,null,null,null,null,null,"BOUKHOU MOHAMED"]
[null,null,null,null,null,null,null,null,"BOUMLIC YOUNES"]
[null,null,null,null,null,null,null,null,"BOUSBAA HOUDA"]
[null,null,null,null,null,null,null,null,"BOUSETTA MOHAMED"]
[null,null,null,null,null,null,null,null,"BOUSSAID ISSMAIL"]
[null,null,null,null,null,null,null,null,"BOUZKRAOUI EL HOUSSAINE"]
[null,null,null,null,null,null,null,null,"BUIZ ABDELILAH"]
[null,null,null,null,null,null,null,null,"CHAHID AMINE"]
[null,null,null,null,null,null,null,null,"CHAIR NADIA"]
[null,null,null,null,null,null,null,null,"CHAJAR ILHAM"]
[null,null,null,null,null,null,null,null,"CHAMLAL MOHAMED"]
[null,null,null,null,null,null,null,null,"CHANTIT RIDA"]
[null,null,null,null,null,null,null,null,"CHENTOUF SABAH"]
[null,null,null,null,null,null,null,null,"CHERIF LALLIA"]
[null,null,null,null,null,null,null,null,"CHERKAOUI ABDERRAZZAK"]
[null,null,null,null,null,null,null,null,"CHOUHBI TAHA YASSINE"]
[null,null,null,null,null,null,null,null,"CHRAIBI ALAE"]
[null,null,null,null,null,null,null,null,"CHTIOUI AHMED"]
[null,null,null,null,null,null,null,null,"COLY NICOLAS CHRISTIAN"]
[null,null,null,null,null,null,null,null,"DAHMAN RIDA"]
[null,null,null,null,null,null,null,null,"DAHRI NADIA"]
[null,null,null,null,null,null,null,null,"DAKY MOHAMED OTHMANE"]
[null,null,null,null,null,null,null,null,"DAOUJI YASSINE"]
[null,null,null,null,null,null,null,null,"DARDAR KAOUTAR"]
[null,null,null,null,null,null,null,null,"DCHIECHE ZINEB"]
[null,null,null,null,null,null,null,null,"DEGAI HAFSA"]
[null,null,null,null,null,null,null,null,"DIALLO AHMADOU MATAR"]
[null,null,null,null,null,null,null,null,"DIALLO AMADOU MOCTAR"]
[null,null,null,null,null,null,null,null,"DIOUCH ABDERRAZAK"]
[null,null,null,null,null,null,null,null,"DIOUCH NOURA"]
[null,null,null,null,null,null,null,null,"DKHISSI ILHAM"]
[null,null,null,null,null,null,null,null,"DLIMI ZAKARIAE"]
[null,null,null,null,null,null,null,null,"DOULFAKAR MERYEM"]
[null,null,null,null,null,null,null,null,"EDDAKAKI AYOUB"]
[null,null,null,null,null,null,null,null,"EL AISSAOUI REDOUANE"]
[null,null,null,null,null,null,null,null,"EL BACHIRI ABDENNACER"]
[null,null,null,null,null,null,null,null,"EL BAHTOURI OTHMANE"]
[null,null,null,null,null,null,null,null,"EL BOUATI FATIMA ZAHRA"]
[null,null,null,null,null,null,null,null,"EL BOUDLALI YOUNES"]
[null,null,null,null,null,null,null,null,"EL COURT SAID"]
[null,null,null,null,null,null,null,null,"EL FATMI YASSINE"]
[null,null,null,null,null,null,null,null,"EL GHAOUAT MOHAMMED"]
[null,null,null,null,null,null,null,null,"EL GHAZOUANI YASSINE"]
[null,null,null,null,null,null,null,null,"EL GOUR AZEDDINE"]
[null,null,null,null,null,null,null,null,"EL GUASSEM HAMID"]
[null,null,null,null,null,null,null,null,"EL HALLAOUI KENZA"]
[null,null,null,null,null,null,null,null,"EL HAMIDI-EL KETTANI SOURAYA"]
[null,null,null,null,null,null,null,null,"EL HAMRITI AMINE"]
[null,null,null,null,null,null,null,null,"EL HANAFI-SEBTI AHMED"]
[null,null,null,null,null,null,null,null,"EL HANNIOUI MOHAMED"]
[null,null,null,null,null,null,null,null,"EL HAOUATE KARIM"]
[null,null,null,null,null,null,null,null,"EL HATA YASSINE"]
[null,null,null,null,null,null,null,null,"EL HILALI RACHID"]
[null,null,null,null,null,null,null,null,"EL IDRISSI ABDELMOUMEN"]
[null,null,null,null,null,null,null,null,"EL JALLAB TARIK"]
[null,null,null,null,null,null,null,null,"EL JAOUHARI GHALIA"]
[null,null,null,null,null,null,null,null,"EL JILANI OMAR"]
[null,null,null,null,null,null,null,null,"EL KADDOURI MOHAMED REDA"]
[null,null,null,null,null,null,null,null,"EL KALAI ZAKARIA"]
[null,null,null,null,null,null,null,null,"EL MAATAOUI ABDEL KODDOUS"]
[null,null,null,null,null,null,null,null,"EL MERRAJI OUIAM"]
[null,null,null,null,null,null,null,null,"EL MIR ABIR"]
[null,null,null,null,null,null,null,null,"EL MOUAFFEQ MOHAMED"]
[null,null,null,null,null,null,null,null,"EL MOUQTASIDI ASMAA"]
[null,null,null,null,null,null,null,null,"EL MOUTAOUAKKIL AICHA"]
[null,null,null,null,null,null,null,null,"EL YASSEM HOUDA"]
[null,null,null,null,null,null,null,null,"ELAOUNI MAHFOUD"]
[null,null,null,null,null,null,null,null,"ELGOUMIRI LOUBNA"]
[null,null,null,null,null,null,null,null,"ELLOUIZ KHALID"]
[null,null,null,null,null,null,null,null,"ERRIFAI MOHAMED ADIB"]
[null,null,null,null,null,null,null,null,"ESSABER AMINE"]
[null,null,null,null,null,null,null,null,"ESSADEQ HAFSSA"]
[null,null,null,null,null,null,null,null,"ESSOULHI KHADIJA"]
[null,null,null,null,null,null,null,null,"ET-TALEB MEHDI"]
[null,null,null,null,null,null,null,null,"ETTIRMIDI OUAFA"]
[null,null,null,null,null,null,null,null,"FADLEDDINE HAMZA"]
[null,null,null,null,null,null,null,null,"FAHLI YOUSSEF"]
[null,null,null,null,null,null,null,null,"FAHMANI MOHAMED EL MAHDI"]
[null,null,null,null,null,null,null,null,"FAJRINE OMAR"]
[null,null,null,null,null,null,null,null,"FAOUZI MOSTAPHA"]
[null,null,null,null,null,null,null,null,"FARTAS BOUCHAIB"]
[null,null,null,null,null,null,null,null,"FATHALLAH REDA"]
[null,null,null,null,null,null,null,null,"FAYESSAL EL KETTANI EL ABID"]
[null,null,null,null,null,null,null,null,"FEKAK KHALID"]
[null,null,null,null,null,null,null,null,"FERRAA ISMAIL"]
[null,null,null,null,null,null,null,null,"FERTASSI SIHAM"]
[null,null,null,null,null,null,null,null,"FIKRI ABDALLAH"]
[null,null,null,null,null,null,null,null,"FOUTA HAFIDA"]
[null,null,null,null,null,null,null,null,"GAKOU FALLOU"]
[null,null,null,null,null,null,null,null,"GHANDI AYOUB"]
[null,null,null,null,null,null,null,null,"GHANDI NEZHA"]
[null,null,null,null,null,null,null,null,"GHANNAM ZAYD"]
[null,null,null,null,null,null,null,null,"GOURAINY IMANE"]
[null,null,null,null,null,null,null,null,"GUENNOUN MOHAMED"]
[null,null,null,null,null,null,null,null,"GUIJJANE ZAKARIA"]
[null,null,null,null,null,null,null,null,"HADDAJE YOUNES"]
[null,null,null,null,null,null,null,null,"HADDANE ABDESSAMAD"]
[null,null,null,null,null,null,null,null,"HAIDA KAOUTAR"]
[null,null,null,null,null,null,null,null,"HAIDAT HAJAR"]
[null,null,null,null,null,null,null,null,"HAJBAOUI YOUSSEF"]
[null,null,null,null,null,null,null,null,"HAJJI OUAFI KARIM"]
[null,null,null,null,null,null,null,null,"HAKIM ZAKARIA"]
[null,null,null,null,null,null,null,null,"HAMADA ZAKARYA"]
[null,null,null,null,null,null,null,null,"HAMI ABDELILLAH"]
[null,null,null,null,null,null,null,null,"HARIS SALMA"]
[null,null,null,null,null,null,null,null,"HARNOUFI ZINEL ABIDINE"]
[null,null,null,null,null,null,null,null,"HINNI OUSSAMA"]
[null,null,null,null,null,null,null,null,"ISMAILI ASMAA"]
[null,null,null,null,null,null,null,null,"JAFOUI LAILA"]
[null,null,null,null,null,null,null,null,"JALIL SANAA"]
[null,null,null,null,null,null,null,null,"JANAH ABDERRAZAK"]
[null,null,null,null,null,null,null,null,"JAWAL REDA"]
[null,null,null,null,null,null,null,null,"JEBBAR FATIMA"]
[null,null,null,null,null,null,null,null,"JERRAF ACHRAF"]
[null,null,null,null,null,null,null,null,"KABDI SOUHAIL"]
[null,null,null,null,null,null,null,null,"KAJOUT ABDELHAY"]
[null,null,null,null,null,null,null,null,"KALA OMAR"]
[null,null,null,null,null,null,null,null,"KAMAL DALAL"]
[null,null,null,null,null,null,null,null,"KBAILI MERIEM"]
[null,null,null,null,null,null,null,null,"KERMICHE AICHA"]
[null,null,null,null,null,null,null,null,"KETTANI HASSANI ISMAIL"]
[null,null,null,null,null,null,null,null,"KHAIROUN MOHAMED"]
[null,null,null,null,null,null,null,null,"KHAL MOUNTASSER"]
[null,null,null,null,null,null,null,null,"KHATIR LEYLA"]
[null,null,null,null,null,null,null,null,"KHATTABI ABDELHAK"]
[null,null,null,null,null,null,null,null,"KHATTABI MOHAMED"]
[null,null,null,null,null,null,null,null,"KHAZZAR MUSTAPHA"]
[null,null,null,null,null,null,null,null,"KHDAD OUMAIMA"]
[null,null,null,null,null,null,null,null,"KISSANE ISLAM"]
[null,null,null,null,null,null,null,null,"KOSSIR YOUNES"]
[null,null,null,null,null,null,null,null,"KOURI MOHAMED"]
[null,null,null,null,null,null,null,null,"LAACHIR ADIL"]
[null,null,null,null,null,null,null,null,"LABYAD YOUSSEF"]
[null,null,null,null,null,null,null,null,"LACHGAR YASSINE"]
[null,null,null,null,null,null,null,null,"LACHHAB SAID"]
[null,null,null,null,null,null,null,null,"LAGHROUSSI JAMILA"]
[null,null,null,null,null,null,null,null,"LAGMIRI BOUCHRA"]
[null,null,null,null,null,null,null,null,"LAHOUAICHRI IMAD"]
[null,null,null,null,null,null,null,null,"LAHYAN SALMA"]
[null,null,null,null,null,null,null,null,"LAKRAFI YOUSSEF"]
[null,null,null,null,null,null,null,null,"LAMRINI ABDELKARIM"]
[null,null,null,null,null,null,null,null,"LARAKI MOHAMED JAOUAD"]
[null,null,null,null,null,null,null,null,"LARHZIL AALI"]
[null,null,null,null,null,null,null,null,"LASRY ACHRAF"]
[null,null,null,null,null,null,null,null,"LEHOUIZI ABDELKARIM"]
[null,null,null,null,null,null,null,null,"LYAMANI FAYCAL"]
[null,null,null,null,null,null,null,null,"MABROUK MAROUANE"]
[null,null,null,null,null,null,null,null,"MAFTOUH OMAR"]
[null,null,null,null,null,null,null,null,"MAJDI MOHAMED"]
[null,null,null,null,null,null,null,null,"MAJDOUL SALMA"]
[null,null,null,null,null,null,null,null,"MANOUN WESSAM"]
[null,null,null,null,null,null,null,null,"MARBOU AYOUB"]
[null,null,null,null,null,null,null,null,"MARZOUKI YOUSSEF"]
[null,null,null,null,null,null,null,null,"MAZDAOUI LAILA"]
[null,null,null,null,null,null,null,null,"MEKKAOUI JAMAL"]
[null,null,null,null,null,null,null,null,"MHAIDI TAOUFIK"]
[null,null,null,null,null,null,null,null,"MIKOU ADIL"]
[null,null,null,null,null,null,null,null,"MORJANE KAMAL"]
[null,null,null,null,null,null,null,null,"MORTAJI ADIL"]
[null,null,null,null,null,null,null,null,"MOUAK YOUSSEF"]
[null,null,null,null,null,null,null,null,"MOUATIK ZAKARIA"]
[null,null,null,null,null,null,null,null,"MOUHDI FOUAD"]
[null,null,null,null,null,null,null,null,"MOUJIB ILHAM"]
[null,null,null,null,null,null,null,null,"MOUMKINE OUMAIMA"]
[null,null,null,null,null,null,null,null,"MOUNIS ABDERRAHMANE"]
[null,null,null,null,null,null,null,null,"MOUNTASSIR HICHAM"]
[null,null,null,null,null,null,null,null,"MOURADI WALID"]
[null,null,null,null,null,null,null,null,"MOUSTAID MOUNA"]
[null,null,null,null,null,null,null,null,"MOUSTIPHI YASSINE"]
[null,null,null,null,null,null,null,null,"MOUTAWAKIL KHALID"]
[null,null,null,null,null,null,null,null,"NACER AYOUB"]
[null,null,null,null,null,null,null,null,"NACIF ACHRAF"]
[null,null,null,null,null,null,null,null,"NAFHI YASSINE"]
[null,null,null,null,null,null,null,null,"NAJIM MERIEM"]
[null,null,null,null,null,null,null,null,"NAJMI SAMIR"]
[null,null,null,null,null,null,null,null,"NDAW ABDOU AZIZ"]
[null,null,null,null,null,null,null,null,"NDIAYE SIDI BOUYA"]
[null,null,null,null,null,null,null,null,"NEFAA HOUDA"]
[null,null,null,null,null,null,null,null,"NOUARI ABDELAZIZ"]
[null,null,null,null,null,null,null,null,"OBBAD NEZHA"]
[null,null,null,null,null,null,null,null,"OUAZZANI TOUHAMI MOHAMMED"]
[null,null,null,null,null,null,null,null,"OUEDGHIRI SANAE"]
[null,null,null,null,null,null,null,null,"OUSSALM SAMIA"]
[null,null,null,null,null,null,null,null,"QOTAIBAH YOUSRA"]
[null,null,null,null,null,null,null,null,"QUIBANE RAMZI"]
[null,null,null,null,null,null,null,null,"RAHMOUNI ABDELLATIF"]
[null,null,null,null,null,null,null,null,"RAIS BOUCHRA"]
[null,null,null,null,null,null,null,null,"RAKHI ABDELHAK"]
[null,null,null,null,null,null,null,null,"RETAIBA RACHID"]
[null,null,null,null,null,null,null,null,"RHINAOUI SALAH EDDINE"]
[null,null,null,null,null,null,null,null,"RIFLA SAMAH"]
[null,null,null,null,null,null,null,null,"RIKAOUI RACHID"]
[null,null,null,null,null,null,null,null,"ROUESSI MOHAMED HAMZA"]
[null,null,null,null,null,null,null,null,"SAHRAOUI ABDELHAKIM"]
[null,null,null,null,null,null,null,null,"SAID SALAHEDDINE"]
[null,null,null,null,null,null,null,null,"SAIDOUNE ZINEB"]
[null,null,null,null,null,null,null,null,"SALHI OUAHIBA"]
[null,null,null,null,null,null,null,null,"SALIM ZAKARIA"]
[null,null,null,null,null,null,null,null,"SAMI YOUNES"]
[null,null,null,null,null,null,null,null,"SANI NADIA"]
[null,null,null,null,null,null,null,null,"SAOUD DRISS"]
[null,null,null,null,null,null,null,null,"SAOUD HASSAN"]
[null,null,null,null,null,null,null,null,"SARR JOSEPH DOMINIQUE GOROM"]
[null,null,null,null,null,null,null,null,"SAYOUTY SANAA"]
[null,null,null,null,null,null,null,null,"SEKKATE NABILA"]
[null,null,null,null,null,null,null,null,"SEMMOUZI SOFIA"]
[null,null,null,null,null,null,null,null,"SERADNI FATIMA ZAHRA"]
[null,null,null,null,null,null,null,null,"SFAIRA BAHIA"]
[null,null,null,null,null,null,null,null,"SLIMANI HOUTI ALI"]
[null,null,null,null,null,null,null,null,"SMOUNI RABII"]
[null,null,null,null,null,null,null,null,"SOULHI MOHAMED"]
[null,null,null,null,null,null,null,null,"SOUSSI-MAISSOUR MOUNIA"]
[null,null,null,null,null,null,null,null,"SQUALLI-HOUSSAINI NARJISS"]
[null,null,null,null,null,null,null,null,"TABIT ABDELILAH"]
[null,null,null,null,null,null,null,null,"TAGHRICHTE MOUHSSIN"]
[null,null,null,null,null,null,null,null,"TAHIRI IDRISSI ISMAIL"]
[null,null,null,null,null,null,null,null,"TAHRAOUI NOUREDDINE"]
[null,null,null,null,null,null,null,null,"TAKI ACHRAF"]
[null,null,null,null,null,null,null,null,"TALBI DRISS"]
[null,null,null,null,null,null,null,null,"TALIB MOHAMED"]
[null,null,null,null,null,null,null,null,"TAOUSS NADIA"]
[null,null,null,null,null,null,null,null,"THIAW MAMADOU"]
[null,null,null,null,null,null,null,null,"TOUERESS WAFAA"]
[null,null,null,null,null,null,null,null,"TOUIBGUI EL MAHDI"]
[null,null,null,null,null,null,null,null,"TOUIJRI SOUFIANE"]
[null,null,null,null,null,null,null,null,"TOUIL RABII"]
[null,null,null,null,null,null,null,null,"TOULALI CHAIMAA"]
[null,null,null,null,null,null,null,null,"TOULOUT AMAL"]
[null,null,null,null,null,null,null,null,"WAHOUB ZAKARIA"]
[null,null,null,null,null,null,null,null,"ZAHER KHAOULA"]
[null,null,null,null,null,null,null,null,"ZAHIR HAMZA"]
[null,null,null,null,null,null,null,null,"ZAHRANE AICHA"]
[null,null,null,null,null,null,null,null,"ZEHDI YOUSSEF"]
[null,null,null,null,null,null,null,null,"ZEMMITA MOHAMED"]
[null,null,null,null,null,null,null,null,"ZEROUALI BOUKHAL EL MEHDI"]
[null,null,null,null,null,null,null,null,"ZIADI HICHAM"]
[null,null,null,null,null,null,null,null,"ZIDI MUSTAPHA"]
[null,null,null,null,null,null,null,null,"ZINE EDDINE NAWAL"]
[null,null,null,null,null,null,null,null,"ZNIBER SAAD"]

{"sheet":"CALC MOY","index":5,"n_rows":296,"n_cols":3,"rows_kept":296,"cut":false,"hidden":true,"merged":[]}
["Synthèse globale des compétences","Synthèse globale des performances"]
["0 - Non évaluée","0 - Non évaluée",{"$f":"MID(B2,1,1)","v":"0"}]
["3 - Conforme aux attentes","4 - A l'objectif","4"]
["3 - Conforme aux attentes","4 - A l'objectif","4"]
["3 - Conforme aux attentes","4 - A l'objectif","4"]
["0 - NC Non concernée","0 - Non évaluée","0"]
["3 - Conforme aux attentes","4 - A l'objectif","4"]
["4 - Supérieur aux attentes","5 - Supérieur à l'objectif","5"]
["0 - Non évaluée","0 - Non évaluée","0"]
["4 - Supérieur aux attentes","4 - A l'objectif","4"]
["3 - Conforme aux attentes","4 - A l'objectif","4"]
["0 - Non évaluée","0 - Non évaluée","0"]
["4 - Supérieur aux attentes","5 - Supérieur à l'objectif","5"]
["4 - Supérieur aux attentes","5 - Supérieur à l'objectif","5"]
["3 - Conforme aux attentes","0 - Non évaluée","0"]
["0 - Non évaluée","0 - Non évaluée","0"]
["4 - Supérieur aux attentes","4 - A l'objectif","4"]
["3 - Conforme aux attentes","4 - A l'objectif","4"]
["3 - Conforme aux attentes","5 - Supérieur à l'objectif","5"]
["3 - Conforme aux attentes","4 - A l'objectif","4"]
["4 - Supérieur aux attentes","4 - A l'objectif","4"]
["3 - Conforme aux attentes","0 - Non évaluée","0"]
["5 - Exceptionnel","5 - Supérieur à l'objectif","5"]
["3 - Conforme aux attentes","5 - Supérieur à l'objectif","5"]
["4 - Supérieur aux attentes","4 - A l'objectif","4"]
["5 - Exceptionnel","6 - Très au-delà","6"]
["3 - Conforme aux attentes","4 - A l'objectif","4"]
["4 - Supérieur aux attentes","5 - Supérieur à l'objectif","5"]
["5 - Exceptionnel","6 - Très au-delà","6"]
["0 - Non évaluée","0 - Non évaluée","0"]
["4 - Supérieur aux attentes","5 - Supérieur à l'objectif","5"]
["0 - NC Non concernée","0 - Non évaluée","0"]
["3 - Conforme aux attentes","4 - A l'objectif","4"]
["0 - Non évaluée","0 - Non évaluée","0"]
["0 - Non évaluée","0 - Non évaluée","0"]
["4 - Supérieur aux attentes","4 - A l'objectif","4"]
["5 - Exceptionnel","5 - Supérieur à l'objectif","5"]
["4 - Supérieur aux attentes","5 - Supérieur à l'objectif","5"]
["3 - Conforme aux attentes","5 - Supérieur à l'objectif","5"]
["3 - Conforme aux attentes","5 - Supérieur à l'objectif","5"]
["3 - Conforme aux attentes","4 - A l'objectif","4"]
["4 - Supérieur aux attentes","5 - Supérieur à l'objectif","5"]
["4 - Supérieur aux attentes","5 - Supérieur à l'objectif","5"]
["4 - Supérieur aux attentes","5 - Supérieur à l'objectif","5"]
["0 - Non évaluée","0 - Non évaluée","0"]
["3 - Conforme aux attentes","4 - A l'objectif","4"]
["3 - Conforme aux attentes","0 - Non évaluée","0"]
["3 - Conforme aux attentes","4 - A l'objectif","4"]
["4 - Supérieur aux attentes","5 - Supérieur à l'objectif","5"]
["4 - Supérieur aux attentes","4 - A l'objectif","4"]
["3 - Conforme aux attentes","4 - A l'objectif","4"]
["3 - Conforme aux attentes","4 - A l'objectif","4"]
["3 - Conforme aux attentes","4 - A l'objectif","4"]
["0 - Non évaluée","5 - Supérieur à l'objectif","5"]
["4 - Supérieur aux attentes","5 - Supérieur à l'objectif","5"]
["4 - Supérieur aux attentes","5 - Supérieur à l'objectif","5"]
["4 - Supérieur aux attentes","5 - Supérieur à l'objectif","5"]
["4 - Supérieur aux attentes","5 - Supérieur à l'objectif","5"]
["3 - Conforme aux attentes","4 - A l'objectif","4"]
["3 - Conforme aux attentes","4 - A l'objectif","4"]
["4 - Supérieur aux attentes","5 - Supérieur à l'objectif","5"]
["4 - Supérieur aux attentes","5 - Supérieur à l'objectif","5"]
["0 - Non évaluée","0 - Non évaluée","0"]
["0 - NC Non concernée","0 - Non évaluée",{"$f":"MID(B64,1,1)","v":"0"}]
["0 - NC Non concernée","0 - Non évaluée","0"]
["3 - Conforme aux attentes","4 - A l'objectif","4"]
["0 - Non évaluée","0 - Non évaluée","0"]
["3 - Conforme aux attentes","5 - Supérieur à l'objectif","5"]
["5 - Exceptionnel","6 - Très au-delà","6"]
["4 - Supérieur aux attentes","5 - Supérieur à l'objectif","5"]
["4 - Supérieur aux attentes","5 - Supérieur à l'objectif","5"]
["4 - Supérieur aux attentes","5 - Supérieur à l'objectif","5"]
["3 - Conforme aux attentes","4 - A l'objectif","4"]
["4 - Supérieur aux attentes","5 - Supérieur à l'objectif","5"]
["4 - Supérieur aux attentes","5 - Supérieur à l'objectif","5"]
["4 - Supérieur aux attentes","5 - Supérieur à l'objectif","5"]
["4 - Supérieur aux attentes","5 - Supérieur à l'objectif","5"]
["0 - Non évaluée","0 - Non évaluée","0"]
["0 - Non évaluée","0 - Non évaluée","0"]
["4 - Supérieur aux attentes","4 - A l'objectif","4"]
["4 - Supérieur aux attentes","5 - Supérieur à l'objectif","5"]
["3 - Conforme aux attentes","4 - A l'objectif","4"]
["4 - Supérieur aux attentes","5 - Supérieur à l'objectif","5"]
["5 - Exceptionnel","6 - Très au-delà","6"]
["4 - Supérieur aux attentes","6 - Très au-delà","6"]
["0 - Non évaluée","0 - Non évaluée","0"]
["4 - Supérieur aux attentes","5 - Supérieur à l'objectif","5"]
["4 - Supérieur aux attentes","5 - Supérieur à l'objectif","5"]
["4 - Supérieur aux attentes","5 - Supérieur à l'objectif","5"]
["4 - Supérieur aux attentes","5 - Supérieur à l'objectif","5"]
["4 - Supérieur aux attentes","5 - Supérieur à l'objectif","5"]
["0 - Non évaluée","0 - Non évaluée","0"]
["5 - Exceptionnel","6 - Très au-delà","6"]
["0 - Non évaluée","0 - Non évaluée","0"]
["0 - Non évaluée","0 - Non évaluée","0"]
["4 - Supérieur aux attentes","6 - Très au-delà","6"]
["3 - Conforme aux attentes","4 - A l'objectif","4"]
["5 - Exceptionnel","6 - Très au-delà","6"]
["0 - Non évaluée","0 - Non évaluée","0"]
["3 - Conforme aux attentes","5 - Supérieur à l'objectif","5"]
["4 - Supérieur aux attentes","5 - Supérieur à l'objectif","5"]
["3 - Conforme aux attentes","4 - A l'objectif","4"]
["3 - Conforme aux attentes","4 - A l'objectif","4"]
["5 - Exceptionnel","5 - Supérieur à l'objectif","5"]
["4 - Supérieur aux attentes","5 - Supérieur à l'objectif","5"]
["4 - Supérieur aux attentes","5 - Supérieur à l'objectif","5"]
["0 - NC Non concernée","0 - Non évaluée","0"]
["3 - Conforme aux attentes","0 - Non évaluée","0"]
["0 - Non évaluée","0 - Non évaluée","0"]
["4 - Supérieur aux attentes","5 - Supérieur à l'objectif","5"]
["4 - Supérieur aux attentes","5 - Supérieur à l'objectif","5"]
["4 - Supérieur aux attentes","5 - Supérieur à l'objectif","5"]
["3 - Conforme aux attentes","5 - Supérieur à l'objectif","5"]
["0 - Non évaluée","0 - Non évaluée","0"]
["4 - Supérieur aux attentes","4 - A l'objectif","4"]
["4 - Supérieur aux attentes","4 - A l'objectif","4"]
["3 - Conforme aux attentes","5 - Supérieur à l'objectif","5"]
["3 - Conforme aux attentes","4 - A l'objectif","4"]
["3 - Conforme aux attentes","4 - A l'objectif","4"]
["3 - Conforme aux attentes","4 - A l'objectif","4"]
["4 - Supérieur aux attentes","5 - Supérieur à l'objectif","5"]
["5 - Exceptionnel","5 - Supérieur à l'objectif","5"]
["4 - Supérieur aux attentes","4 - A l'objectif","4"]
["4 - Supérieur aux attentes","5 - Supérieur à l'objectif","5"]
["4 - Supérieur aux attentes","5 - Supérieur à l'objectif","5"]
["3 - Conforme aux attentes","4 - A l'objectif","4"]
["3 - Conforme aux attentes","5 - Supérieur à l'objectif","5"]
["4 - Supérieur aux attentes","5 - Supérieur à l'objectif",{"$f":"MID(B128,1,1)","v":"5"}]
["4 - Supérieur aux attentes","5 - Supérieur à l'objectif","5"]
["3 - Conforme aux attentes","4 - A l'objectif","4"]
["3 - Conforme aux attentes","4 - A l'objectif","4"]
["3 - Conforme aux attentes","5 - Supérieur à l'objectif","5"]
["3 - Conforme aux attentes","4 - A l'objectif","4"]
["5 - Exceptionnel","6 - Très au-delà","6"]
["4 - Supérieur aux attentes","5 - Supérieur à l'objectif","5"]
["3 - Conforme aux attentes","4 - A l'objectif","4"]
["4 - Supérieur aux attentes","5 - Supérieur à l'objectif","5"]
["4 - Supérieur aux attentes","5 - Supérieur à l'objectif","5"]
["3 - Conforme aux attentes","5 - Supérieur à l'objectif","5"]
["4 - Supérieur aux attentes","5 - Supérieur à l'objectif","5"]
["5 - Exceptionnel","5 - Supérieur à l'objectif","5"]
["5 - Exceptionnel","5 - Supérieur à l'objectif","5"]
["0 - Non évaluée","0 - Non évaluée","0"]
["3 - Conforme aux attentes","4 - A l'objectif","4"]
["4 - Supérieur aux attentes","4 - A l'objectif","4"]
["4 - Supérieur aux attentes","5 - Supérieur à l'objectif","5"]
["4 - Supérieur aux attentes","5 - Supérieur à l'objectif"]
["4 - Supérieur aux attentes","5 - Supérieur à l'objectif"]
["4 - Supérieur aux attentes","5 - Supérieur à l'objectif"]
["4 - Supérieur aux attentes","4 - A l'objectif"]
["0 - Non évaluée","0 - Non évaluée"]
["3 - Conforme aux attentes","5 - Supérieur à l'objectif"]
["3 - Conforme aux attentes","4 - A l'objectif"]
["4 - Supérieur aux attentes","4 - A l'objectif"]
["4 - Supérieur aux attentes","5 - Supérieur à l'objectif"]
["3 - Conforme aux attentes","5 - Supérieur à l'objectif"]
["3 - Conforme aux attentes","4 - A l'objectif"]
["4 - Supérieur aux attentes","4 - A l'objectif"]
["4 - Supérieur aux attentes","4 - A l'objectif"]
["3 - Conforme aux attentes","4 - A l'objectif"]
["3 - Conforme aux attentes","5 - Supérieur à l'objectif"]
["4 - Supérieur aux attentes","4 - A l'objectif"]
["3 - Conforme aux attentes","4 - A l'objectif"]
["4 - Supérieur aux attentes","4 - A l'objectif"]
["4 - Supérieur aux attentes","5 - Supérieur à l'objectif"]
["3 - Conforme aux attentes","5 - Supérieur à l'objectif"]
["0 - Non évaluée","0 - Non évaluée"]
["0 - Non évaluée","0 - Non évaluée"]
["4 - Supérieur aux attentes","5 - Supérieur à l'objectif"]
["5 - Exceptionnel","6 - Très au-delà"]
["4 - Supérieur aux attentes","5 - Supérieur à l'objectif"]
["4 - Supérieur aux attentes","5 - Supérieur à l'objectif"]
["4 - Supérieur aux attentes","5 - Supérieur à l'objectif"]
["4 - Supérieur aux attentes","5 - Supérieur à l'objectif"]
["3 - Conforme aux attentes","4 - A l'objectif"]
["4 - Supérieur aux attentes","5 - Supérieur à l'objectif"]
["4 - Supérieur aux attentes","5 - Supérieur à l'objectif"]
["4 - Supérieur aux attentes","5 - Supérieur à l'objectif"]
["0 - Non évaluée","0 - Non évaluée"]
["3 - Conforme aux attentes","4 - A l'objectif"]
["3 - Conforme aux attentes","4 - A l'objectif"]
["3 - Conforme aux attentes","3 - Proche de l'objectif"]
["4 - Supérieur aux attentes","4 - A l'objectif"]
["4 - Supérieur aux attentes","5 - Supérieur à l'objectif"]
["4 - Supérieur aux attentes","5 - Supérieur à l'objectif"]
["3 - Conforme aux attentes","4 - A l'objectif"]
["4 - Supérieur aux attentes","5 - Supérieur à l'objectif"]
["5 - Exceptionnel","5 - Supérieur à l'objectif"]
["4 - Supérieur aux attentes","5 - Supérieur à l'objectif"]
["4 - Supérieur aux attentes","5 - Supérieur à l'objectif"]
["4 - Supérieur aux attentes","4 - A l'objectif"]
["3 - Conforme aux attentes","4 - A l'objectif"]
["3 - Conforme aux attentes","4 - A l'objectif"]
["3 - Conforme aux attentes","5 - Supérieur à l'objectif"]
["0 - Non évaluée","0 - Non évaluée"]
["4 - Supérieur aux attentes","5 - Supérieur à l'objectif"]
["4 - Supérieur aux attentes","5 - Supérieur à l'objectif"]
["4 - Supérieur aux attentes","5 - Supérieur à l'objectif"]
["3 - Conforme aux attentes","4 - A l'objectif"]
["4 - Supérieur aux attentes","4 - A l'objectif"]
["4 - Supérieur aux attentes","5 - Supérieur à l'objectif"]
["4 - Supérieur aux attentes","5 - Supérieur à l'objectif"]
["4 - Supérieur aux attentes","5 - Supérieur à l'objectif"]
["4 - Supérieur aux attentes","5 - Supérieur à l'objectif"]
["3 - Conforme aux attentes","5 - Supérieur à l'objectif"]
["3 - Conforme aux attentes","4 - A l'objectif"]
["4 - Supérieur aux attentes","5 - Supérieur à l'objectif"]
["3 - Conforme aux attentes","5 - Supérieur à l'objectif"]
["3 - Conforme aux attentes","5 - Supérieur à l'objectif"]
["4 - Supérieur aux attentes","6 - Très au-delà"]
["4 - Supérieur aux attentes","4 - A l'objectif"]
["3 - Conforme aux attentes","4 - A l'objectif"]
["4 - Supérieur aux attentes","5 - Supérieur à l'objectif"]
["4 - Supérieur aux attentes","4 - A l'objectif"]
["3 - Conforme aux attentes","4 - A l'objectif"]
["0 - Non évaluée","0 - Non évaluée"]
["3 - Conforme aux attentes","4 - A l'objectif"]
["0 - Non évaluée","0 - Non évaluée"]
["4 - Supérieur aux attentes","5 - Supérieur à l'objectif"]
["3 - Conforme aux attentes","4 - A l'objectif"]
["4 - Supérieur aux attentes","5 - Supérieur à l'objectif"]
["3 - Conforme aux attentes","5 - Supérieur à l'objectif"]
["3 - Conforme aux attentes","5 - Supérieur à l'objectif"]
["3 - Conforme aux attentes","5 - Supérieur à l'objectif"]
["4 - Supérieur aux attentes","5 - Supérieur à l'objectif"]
["4 - Supérieur aux attentes","5 - Supérieur à l'objectif"]
["3 - Conforme aux attentes","4 - A l'objectif"]
["3 - Conforme aux attentes","4 - A l'objectif"]
["5 - Exceptionnel","6 - Très au-delà"]
["3 - Conforme aux attentes","5 - Supérieur à l'objectif"]
["4 - Supérieur aux attentes","4 - A l'objectif"]
["4 - Supérieur aux attentes","5 - Supérieur à l'objectif"]
["4 - Supérieur aux attentes","5 - Supérieur à l'objectif"]
["3 - Conforme aux attentes","5 - Supérieur à l'objectif"]
["4 - Supérieur aux attentes","5 - Supérieur à l'objectif"]
["3 - Conforme aux attentes","4 - A l'objectif"]
["3 - Conforme aux attentes","3 - Proche de l'objectif"]
["3 - Conforme aux attentes","3 - Proche de l'objectif"]
["3 - Conforme aux attentes","4 - A l'objectif"]
["3 - Conforme aux attentes","0 - Non évaluée"]
["4 - Supérieur aux attentes","5 - Supérieur à l'objectif"]
["4 - Supérieur aux attentes","5 - Supérieur à l'objectif"]
["3 - Conforme aux attentes","4 - A l'objectif"]
["4 - Supérieur aux attentes","5 - Supérieur à l'objectif"]
["4 - Supérieur aux attentes","4 - A l'objectif"]
["3 - Conforme aux attentes","3 - Proche de l'objectif"]
["3 - Conforme aux attentes","4 - A l'objectif"]
["0 - Non évaluée","0 - Non évaluée"]
["4 - Supérieur aux attentes","4 - A l'objectif"]
["4 - Supérieur aux attentes","4 - A l'objectif"]
["3 - Conforme aux attentes","4 - A l'objectif"]
["4 - Supérieur aux attentes","5 - Supérieur à l'objectif"]
["3 - Conforme aux attentes","3 - Proche de l'objectif"]
["3 - Conforme aux attentes","0 - Non évaluée"]
["3 - Conforme aux attentes","5 - Supérieur à l'objectif"]
["3 - Conforme aux attentes","4 - A l'objectif"]
["3 - Conforme aux attentes","4 - A l'objectif"]
["3 - Conforme aux attentes","4 - A l'objectif"]
["0 - Non évaluée","0 - Non évaluée"]
["4 - Supérieur aux attentes","5 - Supérieur à l'objectif"]
["3 - Conforme aux attentes","4 - A l'objectif"]
["2 - Inférieur aux attentes","2 - Très en dessous"]
["4 - Supérieur aux attentes","0 - Non évaluée"]
["3 - Conforme aux attentes","0 - Non évaluée"]
["3 - Conforme aux attentes","4 - A l'objectif"]
["4 - Supérieur aux attentes","5 - Supérieur à l'objectif"]
["4 - Supérieur aux attentes","5 - Supérieur à l'objectif"]
["4 - Supérieur aux attentes","0 - Non évaluée"]
["3 - Conforme aux attentes","4 - A l'objectif"]
["4 - Supérieur aux attentes","5 - Supérieur à l'objectif"]
["4 - Supérieur aux attentes","5 - Supérieur à l'objectif"]
["4 - Supérieur aux attentes","0 - Non évaluée"]
["4 - Supérieur aux attentes","4 - A l'objectif"]
["4 - Supérieur aux attentes","5 - Supérieur à l'objectif"]
["4 - Supérieur aux attentes","5 - Supérieur à l'objectif"]
["3 - Conforme aux attentes","5 - Supérieur à l'objectif"]
["3 - Conforme aux attentes","4 - A l'objectif"]
["4 - Supérieur aux attentes","5 - Supérieur à l'objectif"]
["3 - Conforme aux attentes","4 - A l'objectif"]
["4 - Supérieur aux attentes","5 - Supérieur à l'objectif"]
["3 - Conforme aux attentes","4 - A l'objectif"]
["3 - Conforme aux attentes","4 - A l'objectif"]
["3 - Conforme aux attentes","4 - A l'objectif"]
["4 - Supérieur aux attentes","5 - Supérieur à l'objectif"]
["4 - Supérieur aux attentes","5 - Supérieur à l'objectif"]
["3 - Conforme aux attentes","0 - Non évaluée"]
["4 - Supérieur aux attentes","0 - Non évaluée"]
["2 - Inférieur aux attentes","3 - Proche de l'objectif"]
["4 - Supérieur aux attentes","5 - Supérieur à l'objectif"]
["3 - Conforme aux attentes","0 - Non évaluée"]
["4 - Supérieur aux attentes","5 - Supérieur à l'objectif"]
["3 - Conforme aux attentes","4 - A l'objectif"]
["4 - Supérieur aux attentes","5 - Supérieur à l'objectif"]
["4 - Supérieur aux attentes","5 - Supérieur à l'objectif"]
["4 - Supérieur aux attentes","5 - Supérieur à l'objectif"]
["3 - Conforme aux attentes","4 - A l'objectif"]

{"sheet":"Feuil2","index":6,"n_rows":144,"n_cols":1,"rows_kept":144,"cut":false,"hidden":true,"merged":[]}
[]
[2]
[2]
[2]
[2]
[2]
[2]
[3]
[2]
[4]
[2]
[2]
[3]
[3]
[3]
[2]
[2]
[3]
[3]
[3]
[3]
[3]
[3]
[3]
[2]
[3]
[4]
[3]
[2]
[3]
[1]
[2]
[2]
[2]
[2]
[4]
[3]
[3]
[3]
[3]
[3]
[2]
[3]
[2]
[3]
[2]
[2]
[3]
[2]
[2]
[2]
[2]
[2]
[3]
[2]
[3]
[3]
[2]
[2]
[2]
[3]
[2]
[2]
[3]
[0]
[2]
[2]
[3]
[3]
[2]
[2]
[4]
[3]
[3]
[4]
[2]
[3]
[1]
[2]
[1]
[2]
[2]
[2]
[2]
[3]
[3]
[2]
[2]
[2]
[2]
[2]
[3]
[2]
[2]
[3]
[2]
[3]
[3]
[3]
[3]
[2]
[2]
[2]
[3]
[3]
[3]
[3]
[3]
[3]
[3]
[2]
[4]
[2]
[2]
[3]
[2]
[4]
[2]
[4]
[2]
[2]
[3]
[3]
[3]
[1]
[3]
[4]
[2]
[1]
[2]
[2]
[2]
[3]
[""]
[""]
[""]
[""]
[""]
[""]
[""]
[""]
[""]
[""]
[""]